Workbook

Sheet Station Data
A1: Station Name | B1: Prod. Line | C1: Base Module | D1: Module Name | E1: Ware | F1: Build Need | G1: Production | H1: Secondary | I1: Bonus | J1: Full Effect
A2: Arms Tech Fab | B2: Albion | C2: A1 (Initial) | D2: Plate Foundry | E2: Bio-Optic Wiring | F2: 984
A3: Arms Tech Fab | B3: Albion | C3: A1 (Initial) | D3: Plate Foundry | E3: Chemical Compounds | G3: -480 | J3: =IFERROR(IF(G3>0,INT((SUMIFS(I:I,A:A,"=" & A3,C:C,"=" & C3)/100*G3)),H3)+G3,"") -> -480
A4: Arms Tech Fab | B4: Albion | C4: A1 (Initial) | D4: Plate Foundry | E4: Energy Cells | F4: 2896 | G4: -1280 | J4: -1280
A5: Arms Tech Fab | B5: Albion | C5: A1 (Initial) | D5: Plate Foundry | E5: Force Field Projector | F5: 14
A6: Arms Tech Fab | B6: Albion | C6: A1 (Initial) | D6: Plate Foundry | E6: Fusion Reactors | F6: 394
A7: Arms Tech Fab | B7: Albion | C7: A1 (Initial) | D7: Plate Foundry | E7: HIT/MA Turret | F7: 41
A8: Arms Tech Fab | B8: Albion | C8: A1 (Initial) | D8: Plate Foundry | E8: Medical Supplies | G8: -160 | J8: -160
A9: Arms Tech Fab | B9: Albion | C9: A1 (Initial) | D9: Plate Foundry | E9: Nividium Cubes | G9: -640 | J9: -640
A10: Arms Tech Fab | B10: Albion | C10: A1 (Initial) | D10: Plate Foundry | E10: Plasma/MA Turret | F10: 20
A11: Arms Tech Fab | B11: Albion | C11: A1 (Initial) | D11: Plate Foundry | E11: Refined Metals | G11: -2400 | J11: -2400
A12: Arms Tech Fab | B12: Albion | C12: A1 (Initial) | D12: Plate Foundry | E12: Reinforced Metal Plating | F12: 2096 | G12: 341 | J12: 392
A13: Arms Tech Fab | B13: Albion | C13: A1 (Initial) | D13: Plate Foundry | E13: Spacefuel | H13: -1600 | I13: 15 | J13: -1600
A14: Arms Tech Fab | B14: Albion | C14: A1 (Initial) | D14: Plate Foundry | E14: V Launcher | F14: 3
A15: Arms Tech Fab | B15: Albion | C15: A2 | D15: Targon Tracer | E15: Energy Cells | F15: 440
A16: Arms Tech Fab | B16: Albion | C16: A2 | D16: Targon Tracer | E16: Force Field Projector | F16: 2
A17: Arms Tech Fab | B17: Albion | C17: A2 | D17: Targon Tracer | E17: Fusion Reactors | F17: 44
A18: Arms Tech Fab | B18: Albion | C18: A2 | D18: Targon Tracer | E18: HIT/MA Turret | F18: 8
A19: Arms Tech Fab | B19: Albion | C19: A2 | D19: Targon Tracer | E19: Plasma/MA Turret | F19: 3
A20: Arms Tech Fab | B20: Albion | C20: A2 | D20: Targon Tracer | E20: Reinforced Metal Plating | F20: 218
A21: Arms Tech Fab | B21: Albion | C21: B1 | D21: ScannAr Facility | E21: Bio-Optic Wiring | F21: 2486
A22: Arms Tech Fab | B22: Albion | C22: B1 | D22: ScannAr Facility | E22: Chemical Compounds | G22: -80 | J22: -80
A23: Arms Tech Fab | B23: Albion | C23: B1 | D23: ScannAr Facility | E23: Cut Crystals | G23: -640 | J23: -640
A24: Arms Tech Fab | B24: Albion | C24: B1 | D24: ScannAr Facility | E24: Energy Cells | F24: 2896 | G24: -640 | J24: -640
A25: Arms Tech Fab | B25: Albion | C25: B1 | D25: ScannAr Facility | E25: Food Rations | G25: -400 | J25: -400
A26: Arms Tech Fab | B26: Albion | C26: B1 | D26: ScannAr Facility | E26: Force Field Projector | F26: 8
A27: Arms Tech Fab | B27: Albion | C27: B1 | D27: ScannAr Facility | E27: Fusion Reactors | F27: 582
A28: Arms Tech Fab | B28: Albion | C28: B1 | D28: ScannAr Facility | E28: HIT/MA Turret | F28: 15
A29: Arms Tech Fab | B29: Albion | C29: B1 | D29: ScannAr Facility | E29: Medical Supplies | H29: -160 | I29: 7.5 | J29: -160
A30: Arms Tech Fab | B30: Albion | C30: B1 | D30: ScannAr Facility | E30: Microchips | G30: -80 | J30: -80
A31: Arms Tech Fab | B31: Albion | C31: B1 | D31: ScannAr Facility | E31: Plasma/MA Turret | F31: 10
A32: Arms Tech Fab | B32: Albion | C32: B1 | D32: ScannAr Facility | E32: Quantum Tubes | G32: -40 | J32: -40
A33: Arms Tech Fab | B33: Albion | C33: B1 | D33: ScannAr Facility | E33: Refined Metals | G33: -320 | J33: -320
A34: Arms Tech Fab | B34: Albion | C34: B1 | D34: ScannAr Facility | E34: Reinforced Metal Plating | F34: 2560
A35: Arms Tech Fab | B35: Albion | C35: B1 | D35: ScannAr Facility | E35: Scanning Array | G35: 92 | J35: 105
A36: Arms Tech Fab | B36: Albion | C36: B1 | D36: ScannAr Facility | E36: Silicon wafers | G36: -400 | J36: =IFERROR(IF(G36>0,INT((SUMIFS(I:I,A:A,"=" & A36,C:C,"=" & C36)/100)*G36),H36)+G36,"") -> -400
A37: Arms Tech Fab | B37: Albion | C37: B1 | D37: ScannAr Facility | E37: Spacefuel | H37: -120 | I37: 7.5 | J37: -120
A38: Arms Tech Fab | B38: Albion | C38: B1 | D38: ScannAr Facility | E38: V Launcher | F38: 1
A39: Arms Tech Fab | B39: Albion | C39: B2 | D39: Targon Tracer | E39: Energy Cells | F39: 440
A40: Arms Tech Fab | B40: Albion | C40: B2 | D40: Targon Tracer | E40: Force Field Projector | F40: 2
A41: Arms Tech Fab | B41: Albion | C41: B2 | D41: Targon Tracer | E41: Fusion Reactors | F41: 44
A42: Arms Tech Fab | B42: Albion | C42: B2 | D42: Targon Tracer | E42: HIT/MA Turret | F42: 8
A43: Arms Tech Fab | B43: Albion | C43: B2 | D43: Targon Tracer | E43: Plasma/MA Turret | F43: 3
A44: Arms Tech Fab | B44: Albion | C44: B2 | D44: Targon Tracer | E44: Reinforced Metal Plating | F44: 218
A45: Arms Tech Fab | B45: Albion | C45: C1 | D45: Warhead Forge | E45: Antimatter Cells | G45: -480 | J45: -480
A46: Arms Tech Fab | B46: Albion | C46: C1 | D46: Warhead Forge | E46: Bio-Optic Wiring | F46: 2998
A47: Arms Tech Fab | B47: Albion | C47: C1 | D47: Warhead Forge | E47: Chemical Compounds | G47: -40 | J47: -40
A48: Arms Tech Fab | B48: Albion | C48: C1 | D48: Warhead Forge | E48: Energy Cells | F48: 2546 | G48: -480 | J48: -480
A49: Arms Tech Fab | B49: Albion | C49: C1 | D49: Warhead Forge | E49: Food Rations | G49: -320 | J49: -320
A50: Arms Tech Fab | B50: Albion | C50: C1 | D50: Warhead Forge | E50: Force Field Projector | F50: 1
A51: Arms Tech Fab | B51: Albion | C51: C1 | D51: Warhead Forge | E51: Fusion Reactors | F51: 610
A52: Arms Tech Fab | B52: Albion | C52: C1 | D52: Warhead Forge | E52: HIT/MA Turret | F52: 6
A53: Arms Tech Fab | B53: Albion | C53: C1 | D53: Warhead Forge | E53: Medical Supplies | H53: -100 | I53: 7.5
A54: Arms Tech Fab | B54: Albion | C54: C1 | D54: Warhead Forge | E54: Microchips | G54: -40 | J54: -40
A55: Arms Tech Fab | B55: Albion | C55: C1 | D55: Warhead Forge | E55: Plasma Cells | G55: -160 | J55: -160
A56: Arms Tech Fab | B56: Albion | C56: C1 | D56: Warhead Forge | E56: Plasma/MA Turret | F56: 2
A57: Arms Tech Fab | B57: Albion | C57: C1 | D57: Warhead Forge | E57: Quantum Tubes | G57: -20 | J57: -20
A58: Arms Tech Fab | B58: Albion | C58: C1 | D58: Warhead Forge | E58: Refined Metals | G58: -160 | J58: -160
A59: Arms Tech Fab | B59: Albion | C59: C1 | D59: Warhead Forge | E59: Reinforced Metal Plating | F59: 2450
A60: Arms Tech Fab | B60: Albion | C60: C1 | D60: Warhead Forge | E60: Spacefuel | H60: -80 | I60: 7.5 | J60: -80
A61: Arms Tech Fab | B61: Albion | C61: C1 | D61: Warhead Forge | E61: Warhead Components | G61: 44 | J61: 50
A62: Arms Tech Fab | B62: Albion | C62: C2 | D62: Targon Tracer | E62: Energy Cells | F62: 440
A63: Arms Tech Fab | B63: Albion | C63: C2 | D63: Targon Tracer | E63: Force Field Projector | F63: 2
A64: Arms Tech Fab | B64: Albion | C64: C2 | D64: Targon Tracer | E64: Fusion Reactors | F64: 44
A65: Arms Tech Fab | B65: Albion | C65: C2 | D65: Targon Tracer | E65: HIT/MA Turret | F65: 8
A66: Arms Tech Fab | B66: Albion | C66: C2 | D66: Targon Tracer | E66: Plasma/MA Turret | F66: 3
A67: Arms Tech Fab | B67: Albion | C67: C2 | D67: Targon Tracer | E67: Reinforced Metal Plating | F67: 218
A68: Arms Tech Fab | B68: Albion | C68: D1 | D68: Missile Forge | E68: Astrobee Launcher | F68: 2 | J68: =IFERROR(IF(G68>0,INT((SUMIFS(I:I,A:A,"=" & A68,C:C,"=" & C68)/100)*G68),H68)+G68,"") -> 
A69: Arms Tech Fab | B69: Albion | C69: D1 | D69: Missile Forge | E69: Bio-Optic Wiring | F69: 3542 | G69: -20 | J69: -20
A70: Arms Tech Fab | B70: Albion | C70: D1 | D70: Missile Forge | E70: Energy Cells | F70: 2758 | G70: -480 | J70: -480
A71: Arms Tech Fab | B71: Albion | C71: D1 | D71: Missile Forge | E71: Food Rations | G71: -360 | J71: -360
A72: Arms Tech Fab | B72: Albion | C72: D1 | D72: Missile Forge | E72: Force Field Projector | F72: 21
A73: Arms Tech Fab | B73: Albion | C73: D1 | D73: Missile Forge | E73: Fusion Reactors | F73: 668
A74: Arms Tech Fab | B74: Albion | C74: D1 | D74: Missile Forge | E74: Hailstorm/MA Turret | F74: 4
A75: Arms Tech Fab | B75: Albion | C75: D1 | D75: Missile Forge | E75: HIT/MA Turret | F75: 29
A76: Arms Tech Fab | B76: Albion | C76: D1 | D76: Missile Forge | E76: Medical Supplies | H76: -220 | I76: 7.5
A77: Arms Tech Fab | B77: Albion | C77: D1 | D77: Missile Forge | E77: Microchips | G77: -40 | J77: -40
A78: Arms Tech Fab | B78: Albion | C78: D1 | D78: Missile Forge | E78: Missile Cycle | G78: 112 | J78: 128
A79: Arms Tech Fab | B79: Albion | C79: D1 | D79: Missile Forge | E79: Narcotics | H79: -340 | I79: 7.5
A80: Arms Tech Fab | B80: Albion | C80: D1 | D80: Missile Forge | E80: Plasma/MA Turret | F80: 18
A81: Arms Tech Fab | B81: Albion | C81: D1 | D81: Missile Forge | E81: Quantum Tubes | G81: -10 | J81: -10
A82: Arms Tech Fab | B82: Albion | C82: D1 | D82: Missile Forge | E82: Reinforced Metal Plating | F82: 3358
A83: Arms Tech Fab | B83: Albion | C83: D1 | D83: Missile Forge | E83: Scanning Array | G83: -10 | J83: -10
A84: Arms Tech Fab | B84: Albion | C84: D1 | D84: Missile Forge | E84: V Launcher | F84: 3
A85: Arms Tech Fab | B85: Albion | C85: D1 | D85: Missile Forge | E85: Warhead Components | G85: -40 | J85: -40
A86: Arms Tech Fab | B86: Albion | C86: D2 | D86: Targon Tracer | E86: Energy Cells | F86: 440
A87: Arms Tech Fab | B87: Albion | C87: D2 | D87: Targon Tracer | E87: Force Field Projector | F87: 2
A88: Arms Tech Fab | B88: Albion | C88: D2 | D88: Targon Tracer | E88: Fusion Reactors | F88: 44
A89: Arms Tech Fab | B89: Albion | C89: D2 | D89: Targon Tracer | E89: HIT/MA Turret | F89: 8
A90: Arms Tech Fab | B90: Albion | C90: D2 | D90: Targon Tracer | E90: Plasma/MA Turret | F90: 3
A91: Arms Tech Fab | B91: Albion | C91: D2 | D91: Targon Tracer | E91: Reinforced Metal Plating | F91: 218
A92: Arms Tech Fab | B92: Albion | C92: E1 | D92: Turret Forge | E92: Bio-Optic Wiring | F92: 3552 | G92: -440 | J92: -440
A93: Arms Tech Fab | B93: Albion | C93: E1 | D93: Turret Forge | E93: Energy Cells | F93: 2768 | G93: -760 | J93: -760
A94: Arms Tech Fab | B94: Albion | C94: E1 | D94: Turret Forge | E94: Force Field Projector | F94: 6
A95: Arms Tech Fab | B95: Albion | C95: E1 | D95: Turret Forge | E95: Fusion Reactors | F95: 670
A96: Arms Tech Fab | B96: Albion | C96: E1 | D96: Turret Forge | E96: Fusion Reactors | G96: -120 | J96: -120
A97: Arms Tech Fab | B97: Albion | C97: E1 | D97: Turret Forge | E97: Hailstorm/MA Turret | F97: 6
A98: Arms Tech Fab | B98: Albion | C98: E1 | D98: Turret Forge | E98: Plasma/JET LR Turret | F98: 3
A99: Arms Tech Fab | B99: Albion | C99: E1 | D99: Turret Forge | E99: Plasma/MA Turret | F99: 8
A100: Arms Tech Fab | B100: Albion | C100: E1 | D100: Turret Forge | E100: Reinforced Metal Plating | F100: 3464 | G100: -480 | J100: =IFERROR(IF(G100>0,INT((SUMIFS(I:I,A:A,"=" & A100,C:C,"=" & C100)/100)*G100),H100)+G100,"") -> -480
A101: Arms Tech Fab | B101: Albion | C101: E1 | D101: Turret Forge | E101: Turrets (Cycle) | G101: 40 | J101: 40
A102: Arms Tech Fab | B102: Albion | C102: E2 | D102: Targon Tracer | E102: Energy Cells | F102: 440
A103: Arms Tech Fab | B103: Albion | C103: E2 | D103: Targon Tracer | E103: Force Field Projector | F103: 2
A104: Arms Tech Fab | B104: Albion | C104: E2 | D104: Targon Tracer | E104: Fusion Reactors | F104: 44
A105: Arms Tech Fab | B105: Albion | C105: E2 | D105: Targon Tracer | E105: HIT/MA Turret | F105: 8
A106: Arms Tech Fab | B106: Albion | C106: E2 | D106: Targon Tracer | E106: Plasma/MA Turret | F106: 3
A107: Arms Tech Fab | B107: Albion | C107: E2 | D107: Targon Tracer | E107: Reinforced Metal Plating | F107: 218
A108: Arms Tech Fab | B108: Albion | C108: F1 | D108: Shield Facility | E108: Bio-Optic Wiring | F108: 3552 | G108: -320
A109: Arms Tech Fab | B109: Albion | C109: F1 | D109: Shield Facility | E109: Energy Cells | F109: 2768 | G109: -480
A110: Arms Tech Fab | B110: Albion | C110: F1 | D110: Shield Facility | E110: Food Rations
A111: Arms Tech Fab | B111: Albion | C111: F1 | D111: Shield Facility | E111: Force Field Projector | F111: 6 | G111: 88 | J111: 88
A112: Arms Tech Fab | B112: Albion | C112: F1 | D112: Shield Facility | E112: Fusion Reactors | F112: 670 | G112: -40
A113: Arms Tech Fab | B113: Albion | C113: F1 | D113: Shield Facility | E113: Hailstorm/MA Turret | F113: 6
A114: Arms Tech Fab | B114: Albion | C114: F1 | D114: Shield Facility | E114: Plasma/JET LR Turret | F114: 3
A115: Arms Tech Fab | B115: Albion | C115: F1 | D115: Shield Facility | E115: Plasma/MA Turret | F115: 8
A116: Arms Tech Fab | B116: Albion | C116: F1 | D116: Shield Facility | E116: Reinforced Metal Plating | F116: 3464 | G116: -160
A117: Arms Tech Fab | B117: Albion | C117: F2 | D117: Targon Tracer | E117: Energy Cells | F117: 440
A118: Arms Tech Fab | B118: Albion | C118: F2 | D118: Targon Tracer | E118: Force Field Projector | F118: 2
A119: Arms Tech Fab | B119: Albion | C119: F2 | D119: Targon Tracer | E119: Fusion Reactors | F119: 44
A120: Arms Tech Fab | B120: Albion | C120: F2 | D120: Targon Tracer | E120: HIT/MA Turret | F120: 8
A121: Arms Tech Fab | B121: Albion | C121: F2 | D121: Targon Tracer | E121: Plasma/MA Turret | F121: 3
A122: Arms Tech Fab | B122: Albion | C122: F2 | D122: Targon Tracer | E122: Reinforced Metal Plating | F122: 218
A123: Arms Tech Fab | B123: Albion | C123: G1 | D123: Storage | E123: Energy Cells | F123: 588
A124: Arms Tech Fab | B124: Albion | C124: G1 | D124: Storage | E124: Force Field Projector | F124: 4
A125: Arms Tech Fab | B125: Albion | C125: G1 | D125: Storage | E125: Fusion Reactors | F125: 46
A126: Arms Tech Fab | B126: Albion | C126: G1 | D126: Storage | E126: HIT/MA Turret | F126: 14
A127: Arms Tech Fab | B127: Albion | C127: G1 | D127: Storage | E127: Plasma/MA Turret | F127: 8
A128: Arms Tech Fab | B128: Albion | C128: G1 | D128: Storage | E128: Reinforced Metal Plating | F128: 230
A129: Arms Tech Fab | B129: Albion | C129: H1 | D129: Radar | E129: Energy Cells | F129: 560
A130: Arms Tech Fab | B130: Albion | C130: H1 | D130: Radar | E130: Force Field Projector | F130: 3
A131: Arms Tech Fab | B131: Albion | C131: H1 | D131: Radar | E131: Fusion Reactors | F131: 40
A132: Arms Tech Fab | B132: Albion | C132: H1 | D132: Radar | E132: HIT/MA Turret | F132: 4 | J132: =IFERROR(IF(G132>0,INT((SUMIFS(I:I,A:A,"=" & A132,C:C,"=" & C132)/100)*G132),H132)+G132,"") -> 
A133: Arms Tech Fab | B133: Albion | C133: H1 | D133: Radar | E133: Plasma/MA Turret | F133: 2
A134: Arms Tech Fab | B134: Albion | C134: H1 | D134: Radar | E134: Reinforced Metal Plating | F134: 198
A135: Arms Tech Fab | B135: Albion | C135: H1 | D135: Radar | E135: V Launcher | F135: 1
A136: Cell Fab. Matrix | B136: Albion | C136: A1 (Initial) | D136: Plasma Cyclotron 1 | E136: Bio-Optic Wiring | F136: 698 | J136: 0
A137: Cell Fab. Matrix | B137: Albion | C137: A1 (Initial) | D137: Plasma Cyclotron 1 | E137: Cell Specialist | I137: 10 | J137: =IFERROR(IF(G137>0,INT((SUMIFS(I:I,A:A,"=" & A137,C:C,"=" & C137)/100*G137)),H137)+G137,"") -> 0
A138: Cell Fab. Matrix | B138: Albion | C138: A1 (Initial) | D138: Plasma Cyclotron 1 | E138: Energy Cells | F138: 2462 | G138: -1600 | J138: -1600
A139: Cell Fab. Matrix | B139: Albion | C139: A1 (Initial) | D139: Plasma Cyclotron 1 | E139: Food Rations | G139: -720 | J139: -720
A140: Cell Fab. Matrix | B140: Albion | C140: A1 (Initial) | D140: Plasma Cyclotron 1 | E140: Force Field Projector | F140: 10 | J140: 0
A141: Cell Fab. Matrix | B141: Albion | C141: A1 (Initial) | D141: Plasma Cyclotron 1 | E141: Fusion Reactors | F141: 296 | J141: 0
A142: Cell Fab. Matrix | B142: Albion | C142: A1 (Initial) | D142: Plasma Cyclotron 1 | E142: HIT/MA Turret | F142: 32 | J142: 0
A143: Cell Fab. Matrix | B143: Albion | C143: A1 (Initial) | D143: Plasma Cyclotron 1 | E143: Plasma | G143: -1600 | J143: -1600
A144: Cell Fab. Matrix | B144: Albion | C144: A1 (Initial) | D144: Plasma Cyclotron 1 | E144: Plasma Cells | G144: 863 | J144: 1078
A145: Cell Fab. Matrix | B145: Albion | C145: A1 (Initial) | D145: Plasma Cyclotron 1 | E145: Plasma/MA Turret | F145: 10 | J145: 0
A146: Cell Fab. Matrix | B146: Albion | C146: A1 (Initial) | D146: Plasma Cyclotron 1 | E146: Reinforced Metal Plating | F146: 1064 | J146: 0
A147: Cell Fab. Matrix | B147: Albion | C147: A1 (Initial) | D147: Plasma Cyclotron 1 | E147: Spacefuel | H147: -120 | I147: 15 | J147: -120
A148: Cell Fab. Matrix | B148: Albion | C148: A1 (Initial) | D148: Plasma Cyclotron 1 | E148: V Launcher | F148: 1 | J148: 0
A149: Cell Fab. Matrix | B149: Albion | C149: A2 | D149: Plasma Cyclotron 2 | E149: Bio-Optic Wiring | F149: 686 | J149: 0
A150: Cell Fab. Matrix | B150: Albion | C150: A2 | D150: Plasma Cyclotron 2 | E150: Cell Specialist | I150: 10 | J150: 0
A151: Cell Fab. Matrix | B151: Albion | C151: A2 | D151: Plasma Cyclotron 2 | E151: Energy Cells | F151: 1698 | G151: -1600 | J151: -1600
A152: Cell Fab. Matrix | B152: Albion | C152: A2 | D152: Plasma Cyclotron 2 | E152: Food Rations | G152: -720 | J152: -720
A153: Cell Fab. Matrix | B153: Albion | C153: A2 | D153: Plasma Cyclotron 2 | E153: Force Field Projector | F153: 7 | J153: 0
A154: Cell Fab. Matrix | B154: Albion | C154: A2 | D154: Plasma Cyclotron 2 | E154: Fusion Reactors | F154: 240 | J154: 0
A155: Cell Fab. Matrix | B155: Albion | C155: A2 | D155: Plasma Cyclotron 2 | E155: HIT/MA Turret | F155: 17 | J155: 0
A156: Cell Fab. Matrix | B156: Albion | C156: A2 | D156: Plasma Cyclotron 2 | E156: Plasma | G156: -1600 | J156: -1600
A157: Cell Fab. Matrix | B157: Albion | C157: A2 | D157: Plasma Cyclotron 2 | E157: Plasma Cells | G157: 831 | J157: 1038
A158: Cell Fab. Matrix | B158: Albion | C158: A2 | D158: Plasma Cyclotron 2 | E158: Plasma/MA Turret | F158: 6 | J158: 0
A159: Cell Fab. Matrix | B159: Albion | C159: A2 | D159: Plasma Cyclotron 2 | E159: Reinforced Metal Plating | F159: 782 | J159: 0
A160: Cell Fab. Matrix | B160: Albion | C160: A2 | D160: Plasma Cyclotron 2 | E160: Spacefuel | H160: -120 | I160: 15 | J160: -120
A161: Cell Fab. Matrix | B161: Albion | C161: A2 | D161: Plasma Cyclotron 2 | E161: V Launcher | F161: 1 | J161: 0
A162: Cell Fab. Matrix | B162: Albion | C162: B1 | D162: Ion Cell Plant 1 | E162: Energy Cells | G162: -1600 | J162: -1600
A163: Cell Fab. Matrix | B163: Albion | C163: B1 | D163: Ion Cell Plant 1 | E163: Food Rations | G163: -720 | J163: -720
A164: Cell Fab. Matrix | B164: Albion | C164: B1 | D164: Ion Cell Plant 1 | E164: Ion Cells | G164: 956 | J164: 1099
A165: Cell Fab. Matrix | B165: Albion | C165: B1 | D165: Ion Cell Plant 1 | E165: Ions | G165: -1600 | J165: -1600
A166: Cell Fab. Matrix | B166: Albion | C166: B1 | D166: Ion Cell Plant 1 | E166: Spacefuel | H166: -120 | I166: 15 | J166: -120
A167: Cell Fab. Matrix | B167: Albion | C167: B2 | D167: Ion Cell Plant 2 | E167: Bio-Optic Wiring | F167: 620 | J167: 0
A168: Cell Fab. Matrix | B168: Albion | C168: B2 | D168: Ion Cell Plant 2 | E168: Energy Cells | F168: 1380 | G168: -1600 | J168: -1600
A169: Cell Fab. Matrix | B169: Albion | C169: B2 | D169: Ion Cell Plant 2 | E169: Food Rations | G169: -720 | J169: =IFERROR(IF(G169>0,INT((SUMIFS(I:I,A:A,"=" & A169,C:C,"=" & C169)/100*G169)),H169)+G169,"") -> -720
A170: Cell Fab. Matrix | B170: Albion | C170: B2 | D170: Ion Cell Plant 2 | E170: Force Field Projector | F170: 7 | J170: 0
A171: Cell Fab. Matrix | B171: Albion | C171: B2 | D171: Ion Cell Plant 2 | E171: Fusion Reactors | F171: 164 | J171: 0
A172: Cell Fab. Matrix | B172: Albion | C172: B2 | D172: Ion Cell Plant 2 | E172: HIT/MA Turret | F172: 19 | J172: 0
A173: Cell Fab. Matrix | B173: Albion | C173: B2 | D173: Ion Cell Plant 2 | E173: Ion Cells | G173: 956 | J173: 1099
A174: Cell Fab. Matrix | B174: Albion | C174: B2 | D174: Ion Cell Plant 2 | E174: Ions | G174: -1600 | J174: -1600
A175: Cell Fab. Matrix | B175: Albion | C175: B2 | D175: Ion Cell Plant 2 | E175: Plasma/MA Turret | F175: 5 | J175: 0
A176: Cell Fab. Matrix | B176: Albion | C176: B2 | D176: Ion Cell Plant 2 | E176: Reinforced Metal Plating | F176: 738 | J176: 0
A177: Cell Fab. Matrix | B177: Albion | C177: B2 | D177: Ion Cell Plant 2 | E177: Spacefuel | H177: -120 | I177: 15 | J177: -120
A178: Cell Fab. Matrix | B178: Albion | C178: B2 | D178: Ion Cell Plant 2 | E178: V Launcher | F178: 1 | J178: 0
A179: Cell Fab. Matrix | B179: Albion | C179: B3 | D179: Targon Tracer | E179: Energy Cells | F179: 440 | J179: 0
A180: Cell Fab. Matrix | B180: Albion | C180: B3 | D180: Targon Tracer | E180: Force Field Projector | F180: 2 | J180: 0
A181: Cell Fab. Matrix | B181: Albion | C181: B3 | D181: Targon Tracer | E181: Fusion Reactors | F181: 44 | J181: 0
A182: Cell Fab. Matrix | B182: Albion | C182: B3 | D182: Targon Tracer | E182: HIT/MA Turret | F182: 8 | J182: 0
A183: Cell Fab. Matrix | B183: Albion | C183: B3 | D183: Targon Tracer | E183: Plasma/MA Turret | F183: 3 | J183: 0
A184: Cell Fab. Matrix | B184: Albion | C184: B3 | D184: Targon Tracer | E184: Reinforced Metal Plating | F184: 218 | J184: 0
A185: Cell Fab. Matrix | B185: Albion | C185: C1 | D185: A/M Cyclotron 1 | E185: Antimatter Cells | G185: 848 | J185: 1060
A186: Cell Fab. Matrix | B186: Albion | C186: C1 | D186: A/M Cyclotron 1 | E186: Bio-Optic Wiring | F186: 748 | J186: 0
A187: Cell Fab. Matrix | B187: Albion | C187: C1 | D187: A/M Cyclotron 1 | E187: Cell Specialist | I187: 10 | J187: 0
A188: Cell Fab. Matrix | B188: Albion | C188: C1 | D188: A/M Cyclotron 1 | E188: energy Cells | F188: 1534 | G188: -1600 | J188: -1600
A189: Cell Fab. Matrix | B189: Albion | C189: C1 | D189: A/M Cyclotron 1 | E189: Food Rations | G189: -720 | J189: -720
A190: Cell Fab. Matrix | B190: Albion | C190: C1 | D190: A/M Cyclotron 1 | E190: Force Field Projector | F190: 14 | J190: 0
A191: Cell Fab. Matrix | B191: Albion | C191: C1 | D191: A/M Cyclotron 1 | E191: Fusion Reactors | F191: 192 | J191: 0
A192: Cell Fab. Matrix | B192: Albion | C192: C1 | D192: A/M Cyclotron 1 | E192: HIT/MA Turret | F192: 33 | J192: 0
A193: Cell Fab. Matrix | B193: Albion | C193: C1 | D193: A/M Cyclotron 1 | E193: Hydrogen | G193: -3200 | J193: -3200
A194: Cell Fab. Matrix | B194: Albion | C194: C1 | D194: A/M Cyclotron 1 | E194: Plasma/MA Turret | F194: 11 | J194: 0
A195: Cell Fab. Matrix | B195: Albion | C195: C1 | D195: A/M Cyclotron 1 | E195: Reinforced Metal Plating | F195: 764 | J195: 0
A196: Cell Fab. Matrix | B196: Albion | C196: C1 | D196: A/M Cyclotron 1 | E196: Spacefuel | H196: -120 | I196: 15 | J196: -120
A197: Cell Fab. Matrix | B197: Albion | C197: C1 | D197: A/M Cyclotron 1 | E197: V Launcher | F197: 1 | J197: 0
A198: Cell Fab. Matrix | B198: Albion | C198: C2 | D198: A/M Cyclotron 2 | E198: Antimatter Cells | G198: 848 | J198: 1060
A199: Cell Fab. Matrix | B199: Albion | C199: C2 | D199: A/M Cyclotron 2 | E199: Bio-Optic Wiring | F199: 748 | J199: 0
A200: Cell Fab. Matrix | B200: Albion | C200: C2 | D200: A/M Cyclotron 2 | E200: Cell Specialist | I200: 10 | J200: 0
... 1037 more rows

Sheet Ware List
A1: Ware | B1: Storage Type | C1: Storage Amount | D1: Base Price | E1: WareCode
A2: Antimatter Cells | B2: Energy | C2: 4 | D2: 168 | E2: antimattercells
A3: Astrobee Launcher | B3: Container | C3: 276 | D3: 671972 | E3: swarmturret
A4: Bio-Optic Wiring | B4: Container | C4: 12 | D4: 1968 | E4: bioopticwiring
A5: Chemical Compounds | B5: Container | C5: 8 | D5: 529 | E5: chemicalcompounds
A6: Crystals | B6: Bulk | C6: 14 | D6: 24 | E6: crystals
A7: Cut Crystals | B7: Bulk | C7: 12 | D7: 91 | E7: cutcrystals
A8: Energy Cells | B8: Energy | C8: 2 | D8: 5 | E8: energycells
A9: Food Rations | B9: Container | C9: 2 | D9: 29 | E9: foodrations
A10: Force Field Projector | B10: Container | C10: 96 | D10: 64554 | E10: shieldgenerator
A11: Fuel Cell | B11: Fuel | C11: 4 | D11: 17
A12: Fusion Reactors | B12: Container | C12: 76 | D12: 29366 | E12: fusionreactor
A13: Hailstorm/MA Turret | B13: Container | C13: 78 | D13: 57971 | E13: shotgunturret
A14: HIT/MA Turret | B14: Container | C14: 54 | D14: 33672 | E14: machinegunturret
A15: Hydrogen | B15: Liquid | C15: 10 | D15: 12 | E15: hydrogen
A16: Ice | B16: Bulk | C16: 12 | D16: 6 | E16: ice
A17: Intercepter URV Mk1 | B17: Container | C17: 142 | D17: 69314
A18: Intercepter URV Mk2 | B18: Container | C18: 148 | D18: 97561
A19: Intrepid URV Mk2 | B19: Container | C19: 170 | D19: 138816
A20: Ion Cells | B20: Energy | C20: 4 | D20: 160 | E20: ioncells
A21: Ions | B21: Liquid | C21: 10 | D21: 18 | E21: ions
A22: Meat | B22: Bulk | C22: 4 | D22: 49 | E22: meat
A23: Medical Supplies | B23: Container | C23: 2 | D23: 229 | E23: medicalsupplies
A24: Microchips | B24: Container | C24: 10 | D24: 1390 | E24: microchips
A25: Narcotics | B25: Container | C25: 2 | D25: 81 | E25: narcotics
A26: Nividium | B26: Bulk | C26: 14 | D26: 34 | E26: nividium
A27: Nividium Cubes | B27: Bulk | C27: 12 | D27: 100 | E27: nividiumgems
A28: Ore | B28: Bulk | C28: 18 | D28: 18 | E28: ore
A29: Overrun URV Mk1 | B29: Container | C29: 184 | D29: 132523
A30: Overrun URV Mk2 | B30: Container | C30: 192 | D30: 170318
A31: Plasma | B31: Liquid | C31: 10 | D31: 16 | E31: plasma
A32: Plasma Cells | B32: Energy | C32: 4 | D32: 151 | E32: plasmacells
A33: Plasma Flow Regulators | B33: Container | C33: 92 | D33: 43216 | E33: plasmaflowregulator
A34: Plasma/JET LR Turret | B34: Container | C34: 216 | D34: 414355 | E34: laserturret
A35: Plasma/MA Turret | B35: Container | C35: 188 | D35: 169849 | E35: plasmaturret
A36: Podkletnov Generators | B36: Container | C36: 84 | D36: 30189 | E36: holtzmanfieldgenerator
A37: Quantum Tubes | B37: Container | C37: 14 | D37: 2755 | E37: quantumtubes
A38: Refined Metals | B38: Bulk | C38: 16 | D38: 161 | E38: refinedmetals
A39: Reinforced Metal Plating | B39: Container | C39: 20 | D39: 4846 | E39: reinforcedmetalplating
A40: Scanning Array | B40: Container | C40: 44 | D40: 11514 | E40: scanningarray
A41: Scoop Collector Mk1 | B41: Container | C41: 140 | D41: 68650
A42: Silicon | B42: Bulk | C42: 18 | D42: 20 | E42: silicon
A43: Silicon wafers | B43: Bulk | C43: 16 | D43: 181 | E43: siliconwafers
A44: Spacefuel | B44: Container | C44: 4 | D44: 46 | E44: spacefuel
A45: Spaceweed | B45: Bulk | C45: 2 | D45: 46 | E45: spaceweed
A46: Spices | B46: Bulk | C46: 2 | D46: 29 | E46: spices
A47: Surface Miner URV Mk1 | B47: Container | C47: 136 | D47: 63723
A48: V Launcher | B48: Container | C48: 244 | D48: 259660 | E48: dumbfireturret
A49: Water | B49: Liquid | C49: 10 | D49: 12 | E49: water
A50: Wheat | B50: Bulk | C50: 6 | D50: 14 | E50: wheat
A51: Astrobee Missiles | B51: Container | C51: 36 | D51: 15964
A52: Warhead Components | B52: Container | C52: 48 | D52: 13695 | E52: warheads
A53: Secondary Recource | E53: secondaryresource
A54: Specialist | E54: specialist
A55: BoFu | B55: container | C55: 4 | E55: bofu
A56: Plankton | B56: bulk | C56: 4 | E56: plankton
A57: Soyabeans | B57: bulk | C57: 6 | E57: soybeans
A58: Bio-Electrical Neuron Gel | B58: container | C58: 12 | E58: bioelectricneurongel
A59: EM Spectrometer | B59: container | C59: 38 | E59: emspectrometer
A60: Plasma Pumps | B60: container | C60: 14 | E60: plasmapumps
A61: Sunlight | E61: sunlight
A62: Unknown | B62: container | C62: 16 | E62: unknown

Sheet WIP
A1: Add Station | B1: In System: | E1: Albion | H1: =E1 & " " & D2 -> Albion Cell Fab. Matrix
A2: Production Line: | B2: Albion | C2: Station: | D2: Cell Fab. Matrix | G2: Station Id: | H2: Gemstone Manufactore: Arms Tech Fab
C3: Module: | D3: Ion Cell Plant 2 | G3: Specialist?
N7: Kolonnenavne
N8: (tom) | S8: A1 (Initial) | X8: A2 | AC8: B2 | AH8: C1 | AM8: C2 | AR8: Total Need. | AS8: Total Cost. | AT8: Total Storage amount. | AU8: Total Total Cost. | AV8: Total Total Storage.
A9: Rækkenavne | B9: Production. | C9: Secondary. | D9: Bonus. | E9: Full Effect. | F9: Base Cost. | G9: Total Cost. | I9: Rækkenavne | J9: Production. | K9: Full Effect. | M9: Rækkenavne | N9: Need. | O9: Cost. | P9: Storage amount. | Q9: Total Cost. | R9: Total Storage. | S9: Need. | T9: Cost. | U9: Storage amount. | V9: Total Cost. | W9: Total Storage. | X9: Need. | Y9: Cost. | Z9: Storage amount. | AA9: Total Cost. | AB9: Total Storage. | AC9: Need. | AD9: Cost. | AE9: Storage amount. | AF9: Total Cost. | AG9: Total Storage. | AH9: Need. | AI9: Cost. | AJ9: Storage amount. | AK9: Total Cost. | AL9: Total Storage. | AM9: Need. | AN9: Cost. | AO9: Storage amount. | AP9: Total Cost. | AQ9: Total Storage.
A10: Albion | B10: -21418 | C10: -720 | D10: 90 | E10: -21345 | F10: 487762 | G10: 581277 | I10: Albion | J10: -8618 | K10: -8545 | M10: (tom)
A11: Albion | B11: -21418 | C11: -720 | D11: 90 | E11: -21345 | F11: 487762 | G11: 581277 | I11: Spacefuel | K11: -720 | M11: (tom)
A12: Gemstone Manufactore: Arms Tech Fab | B12: -21418 | C12: -720 | D12: 90 | E12: -21345 | F12: 487762 | G12: 581277 | I12: Energy Cells | J12: -9600 | K12: -9600 | M12: (tom)
A13: Cell Fab. Matrix | B13: -21418 | C13: -720 | D13: 90 | E13: -21345 | F13: 487762 | G13: 581277 | I13: Food Rations | J13: -4320 | K13: -4320 | M13: (tom)
A14: Plasma Cyclotron 1 | B14: -3057 | C14: -120 | D14: 15 | E14: -3048 | F14: 75833 | G14: 89792 | I14: Antimatter Cells | J14: 1696 | K14: 1950 | M14: Gemstone Manufactore: Arms Tech Fab | S14: 4573 | T14: 563920 | U14: 692 | V14: 18915648 | W14: 61888 | X14: 3437 | Y14: 563920 | Z14: 692 | AA14: 14499006 | AB14: 48470 | AC14: 2934 | AD14: 563920 | AE14: 692 | AF14: 11819983 | AG14: 40306 | AH14: 3297 | AI14: 563920 | AJ14: 692 | AK14: 14963281 | AL14: 47354 | AM14: 3270 | AN14: 563920 | AO14: 692 | AP14: 19167568 | AQ14: 52184 | AR14: 17511 | AS14: 2819600 | AT14: 3460 | AU14: 79365486 | AV14: 250202
A15: Energy Cells | B15: -1600 | E15: -1600 | F15: -8000 | G15: -8000 | I15: Plasma Cells | J15: 1694 | K15: 1947 | M15: Cell Fab. Matrix | S15: 4573 | T15: 563920 | U15: 692 | V15: 18915648 | W15: 61888 | X15: 3437 | Y15: 563920 | Z15: 692 | AA15: 14499006 | AB15: 48470 | AC15: 2934 | AD15: 563920 | AE15: 692 | AF15: 11819983 | AG15: 40306 | AH15: 3297 | AI15: 563920 | AJ15: 692 | AK15: 14963281 | AL15: 47354 | AM15: 3270 | AN15: 563920 | AO15: 692 | AP15: 19167568 | AQ15: 52184 | AR15: 17511 | AS15: 2819600 | AT15: 3460 | AU15: 79365486 | AV15: 250202
A16: Food Rations | B16: -720 | E16: -720 | F16: -20880 | G16: -20880 | I16: Ion Cells | J16: 1912 | K16: 2198 | M16: Container | S16: 2111 | T16: 563915 | U16: 690 | V16: 18903338 | W16: 56964 | X16: 1739 | Y16: 563915 | Z16: 690 | AA16: 14490516 | AB16: 45074 | AC16: 1554 | AD16: 563915 | AE16: 690 | AF16: 11813083 | AG16: 37546 | AH16: 1763 | AI16: 563915 | AJ16: 690 | AK16: 14955611 | AL16: 44286 | AM16: 1792 | AN16: 563915 | AO16: 690 | AP16: 19160178 | AQ16: 49228 | AR16: 8959 | AS16: 2819575 | AT16: 3450 | AU16: 79322726 | AV16: 233098
A17: Plasma Cells | B17: 863 | E17: 992 | F17: 130313 | G17: 149792 | I17: Hovedtotal | J17: -8618 | K17: -8545 | M17: Bio-Optic Wiring | S17: 698 | T17: 1968 | U17: 12 | V17: 1373664 | W17: 8376 | X17: 686 | Y17: 1968 | Z17: 12 | AA17: 1350048 | AB17: 8232 | AC17: 620 | AD17: 1968 | AE17: 12 | AF17: 1220160 | AG17: 7440 | AH17: 748 | AI17: 1968 | AJ17: 12 | AK17: 1472064 | AL17: 8976 | AM17: 748 | AN17: 1968 | AO17: 12 | AP17: 1472064 | AQ17: 8976 | AR17: 3500 | AS17: 9840 | AT17: 60 | AU17: 6888000 | AV17: 42000
A18: Spacefuel | C18: -120 | D18: 15 | E18: -120 | F18: 0 | G18: -5520 | M18: Force Field Projector | S18: 10 | T18: 64554 | U18: 96 | V18: 645540 | W18: 960 | X18: 7 | Y18: 64554 | Z18: 96 | AA18: 451878 | AB18: 672 | AC18: 7 | AD18: 64554 | AE18: 96 | AF18: 451878 | AG18: 672 | AH18: 14 | AI18: 64554 | AJ18: 96 | AK18: 903756 | AL18: 1344 | AM18: 32 | AN18: 64554 | AO18: 96 | AP18: 2065728 | AQ18: 3072 | AR18: 70 | AS18: 322770 | AT18: 480 | AU18: 4518780 | AV18: 6720
A19: Plasma | B19: -1600 | E19: -1600 | F19: -25600 | G19: -25600 | M19: Fusion Reactors | S19: 296 | T19: 29366 | U19: 76 | V19: 8692336 | W19: 22496 | X19: 240 | Y19: 29366 | Z19: 76 | AA19: 7047840 | AB19: 18240 | AC19: 164 | AD19: 29366 | AE19: 76 | AF19: 4816024 | AG19: 12464 | AH19: 192 | AI19: 29366 | AJ19: 76 | AK19: 5638272 | AL19: 14592 | AM19: 186 | AN19: 29366 | AO19: 76 | AP19: 5462076 | AQ19: 14136 | AR19: 1078 | AS19: 146830 | AT19: 380 | AU19: 31656548 | AV19: 81928
A20: Plasma Cyclotron 2 | B20: -3089 | C20: -120 | D20: 15 | E20: -3085 | F20: 71001 | G20: 84205 | M20: HIT/MA Turret | S20: 32 | T20: 33672 | U20: 54 | V20: 1077504 | W20: 1728 | X20: 17 | Y20: 33672 | Z20: 54 | AA20: 572424 | AB20: 918 | AC20: 19 | AD20: 33672 | AE20: 54 | AF20: 639768 | AG20: 1026 | AH20: 33 | AI20: 33672 | AJ20: 54 | AK20: 1111176 | AL20: 1782 | AM20: 70 | AN20: 33672 | AO20: 54 | AP20: 2357040 | AQ20: 3780 | AR20: 171 | AS20: 168360 | AT20: 270 | AU20: 5757912 | AV20: 9234
A21: Energy Cells | B21: -1600 | E21: -1600 | F21: -8000 | G21: -8000 | M21: Plasma/MA Turret | S21: 10 | T21: 169849 | U21: 188 | V21: 1698490 | W21: 1880 | X21: 6 | Y21: 169849 | Z21: 188 | AA21: 1019094 | AB21: 1128 | AC21: 5 | AD21: 169849 | AE21: 188 | AF21: 849245 | AG21: 940 | AH21: 11 | AI21: 169849 | AJ21: 188 | AK21: 1868339 | AL21: 2068 | AM21: 22 | AN21: 169849 | AO21: 188 | AP21: 3736678 | AQ21: 4136 | AR21: 54 | AS21: 849245 | AT21: 940 | AU21: 9171846 | AV21: 10152
A22: Food Rations | B22: -720 | E22: -720 | F22: -20880 | G22: -20880 | M22: Reinforced Metal Plating | S22: 1064 | T22: 4846 | U22: 20 | V22: 5156144 | W22: 21280 | X22: 782 | Y22: 4846 | Z22: 20 | AA22: 3789572 | AB22: 15640 | AC22: 738 | AD22: 4846 | AE22: 20 | AF22: 3576348 | AG22: 14760 | AH22: 764 | AI22: 4846 | AJ22: 20 | AK22: 3702344 | AL22: 15280 | AM22: 732 | AN22: 4846 | AO22: 20 | AP22: 3547272 | AQ22: 14640 | AR22: 4080 | AS22: 24230 | AT22: 100 | AU22: 19771680 | AV22: 81600
A23: Plasma Cells | B23: 831 | E23: 955 | F23: 125481 | G23: 144205 | M23: V Launcher | S23: 1 | T23: 259660 | U23: 244 | V23: 259660 | W23: 244 | X23: 1 | Y23: 259660 | Z23: 244 | AA23: 259660 | AB23: 244 | AC23: 1 | AD23: 259660 | AE23: 244 | AF23: 259660 | AG23: 244 | AH23: 1 | AI23: 259660 | AJ23: 244 | AK23: 259660 | AL23: 244 | AM23: 2 | AN23: 259660 | AO23: 244 | AP23: 519320 | AQ23: 488 | AR23: 6 | AS23: 1298300 | AT23: 1220 | AU23: 1557960 | AV23: 1464
A24: Spacefuel | C24: -120 | D24: 15 | E24: -120 | F24: 0 | G24: -5520 | M24: Energy | S24: 2462 | T24: 5 | U24: 2 | V24: 12310 | W24: 4924 | X24: 1698 | Y24: 5 | Z24: 2 | AA24: 8490 | AB24: 3396 | AC24: 1380 | AD24: 5 | AE24: 2 | AF24: 6900 | AG24: 2760 | AH24: 1534 | AI24: 5 | AJ24: 2 | AK24: 7670 | AL24: 3068 | AM24: 1478 | AN24: 5 | AO24: 2 | AP24: 7390 | AQ24: 2956 | AR24: 8552 | AS24: 25 | AT24: 10 | AU24: 42760 | AV24: 17104
A25: Plasma | B25: -1600 | E25: -1600 | F25: -25600 | G25: -25600 | M25: Energy Cells | S25: 2462 | T25: 5 | U25: 2 | V25: 12310 | W25: 4924 | X25: 1698 | Y25: 5 | Z25: 2 | AA25: 8490 | AB25: 3396 | AC25: 1380 | AD25: 5 | AE25: 2 | AF25: 6900 | AG25: 2760 | AH25: 1534 | AI25: 5 | AJ25: 2 | AK25: 7670 | AL25: 3068 | AM25: 1478 | AN25: 5 | AO25: 2 | AP25: 7390 | AQ25: 2956 | AR25: 8552 | AS25: 25 | AT25: 10 | AU25: 42760 | AV25: 17104
A26: Ion Cell Plant 1 | B26: -2964 | C26: -120 | D26: 15 | E26: -2941 | F26: 95280 | G26: 112640 | M26: Hovedtotal | S26: 4573 | T26: 563920 | U26: 692 | V26: 18915648 | W26: 61888 | X26: 3437 | Y26: 563920 | Z26: 692 | AA26: 14499006 | AB26: 48470 | AC26: 2934 | AD26: 563920 | AE26: 692 | AF26: 11819983 | AG26: 40306 | AH26: 3297 | AI26: 563920 | AJ26: 692 | AK26: 14963281 | AL26: 47354 | AM26: 3270 | AN26: 563920 | AO26: 692 | AP26: 19167568 | AQ26: 52184 | AR26: 17511 | AS26: 2819600 | AT26: 3460 | AU26: 79365486 | AV26: 250202
A27: Energy Cells | B27: -1600 | E27: -1600 | F27: -8000 | G27: -8000
A28: Food Rations | B28: -720 | E28: -720 | F28: -20880 | G28: -20880
A29: Spacefuel | C29: -120 | D29: 15 | E29: -120 | F29: 0 | G29: -5520
A30: Ion Cells | B30: 956 | E30: 1099 | F30: 152960 | G30: 175840
A31: Ions | B31: -1600 | E31: -1600 | F31: -28800 | G31: -28800
A32: Ion Cell Plant 2 | B32: -2964 | C32: -120 | D32: 15 | E32: -2941 | F32: 95280 | G32: 112640
A33: Energy Cells | B33: -1600 | E33: -1600 | F33: -8000 | G33: -8000
A34: Food Rations | B34: -720 | E34: -720 | F34: -20880 | G34: -20880
A35: Spacefuel | C35: -120 | D35: 15 | E35: -120 | F35: 0 | G35: -5520
A36: Ion Cells | B36: 956 | E36: 1099 | F36: 152960 | G36: 175840
A37: Ions | B37: -1600 | E37: -1600 | F37: -28800 | G37: -28800
A38: A/M Cyclotron 1 | B38: -4672 | C38: -120 | D38: 15 | E38: -4665 | F38: 75184 | G38: 91000
A39: Antimatter Cells | B39: 848 | E39: 975 | F39: 142464 | G39: 163800
A40: Energy Cells | B40: -1600 | E40: -1600 | F40: -8000 | G40: -8000
A41: Food Rations | B41: -720 | E41: -720 | F41: -20880 | G41: -20880
A42: Spacefuel | C42: -120 | D42: 15 | E42: -120 | F42: 0 | G42: -5520
A43: Hydrogen | B43: -3200 | E43: -3200 | F43: -38400 | G43: -38400
A44: A/M Cyclotron 2 | B44: -4672 | C44: -120 | D44: 15 | E44: -4665 | F44: 75184 | G44: 91000
A45: Antimatter Cells | B45: 848 | E45: 975 | F45: 142464 | G45: 163800
A46: Energy Cells | B46: -1600 | E46: -1600 | F46: -8000 | G46: -8000
A47: Food Rations | B47: -720 | E47: -720 | F47: -20880 | G47: -20880
A48: Spacefuel | C48: -120 | D48: 15 | E48: -120 | F48: 0 | G48: -5520
A49: Hydrogen | B49: -3200 | E49: -3200 | F49: -38400 | G49: -38400
A50: (tom)
A51: (tom)
A52: (tom)
A53: (tom)
A54: (tom)
A55: (tom)
A56: Hovedtotal | B56: -21418 | C56: -720 | D56: 90 | E56: -21345 | F56: 487762 | G56: 581277
... 1 more rows

Sheet Prod.Line
A1: Prod. Line | B1: Albion
A2: System | B2: Albion | C2: De Vries | D2: Omicron Lyrae | E2: Maelstroem
A3: Arms Tech Fab | B3: Arms Tech Fab
A4: Cell Fab. Matrix | B4: Cell Fab. Matrix
A5: Cell Recharge Fac | B5: Cell Recharge Fac
A6: Construction Shop | B6: Construction Shop
A7: Crystal Supplier | B7: Crystal Supplier
A8: Energy Array | B8: Energy Array
A9: Floating Meadows | B9: Floating Meadows
A10: Foodstuff Supply | B10: Foodstuff Supply
A11: H2O Additives Facility | B11: H2O Additives Facility
A12: Med Dispensary | B12: Med Dispensary
A13: Metalworks Yard | B13: Metalworks Yard
A14: Ship Tech Fab | B14: Ship Tech Fab
A15: Spice Plantation | B15: Spice Plantation
A16: Staples Farmery | B16: Staples Farmery
A17: Tech Lab | B17: Tech Lab
A18: URV Parts Supply | B18: URV Parts Supply

Sheet Prod.Module
A1: Station Name | B1: Arms Tech Fab | C1: Cell Fab. Matrix | D1: Cell Recharge Fac | E1: Construction Shop | F1: Crystal Supplier | G1: Energy Array | H1: Floating Meadows | I1: Foodstuff Supply | J1: H2O Additives Facility | K1: Med Dispensary | L1: Metalworks Yard | M1: Ship Tech Fab | N1: Spice Plantation | O1: Staples Farmery | P1: Tech Lab | Q1: URV Parts Supply
A3: Plasma Cyclotron 1 | B3: Plate Foundry | C3: Plasma Cyclotron 1 | D3: Fuel Cell Mill | E3: Plate Foundry 1 | F3: Crystal Cuttery 1 | G3: E-Cell Fab 1-2 | H3: Valley Forge 1 | I3: Foodstuff Fac 1 | J3: Condenser Still 1 | K3: Pharma Platform 1 | L3: Steel Refinery 1 | M3: Fusion Core Fac 1 | N3: Spice Tubes | O3: Foodstuff Fac 1 | P3: Chem Refinery 1 | Q3: URV Wharf
A4: Plasma Cyclotron 2 | B4: Targon Tracer | C4: Plasma Cyclotron 2 | D4: Radar | E4: Plate Foundry 2 | F4: Crystal Cuttery 2 | G4: E-Cell Fab 3-4 | H4: Valley Forge 2 | I4: Foodstuff Fac 2 | J4: Condenser Still 2 | K4: Pharma Platform 2 | L4: Steel Refinery 2 | M4: Fusion Core Fac 2 | N4: Herb Garden | O4: Foodstuff Fac 2 | P4: Chem Refinery 2 | Q4: Storage
A5: Ion Cell Plant 1 | B5: ScannAr Facility | C5: Ion Cell Plant 1 | D5: Targon Tracer x2 | E5: Plate Foundry 3 | F5: Cube Plant 1 | G5: Storage 1 | H5: Valley Forge 3 | I5: Valley Forge 1 | J5: Condenser Still 3 | K5: Narcotics Lab 1 | L5: Wafer Plant 1 | O5: Foodstuff Fac 3 | P5: Storage | Q5: Chip Fab
A6: Ion Cell Plant 2 | B6: Warhead Forge | C6: Ion Cell Plant 2 | E6: Steel Refinery 1 | F6: Cube Plant 2 | G6: E-Cell Fab 5-6 | H6: Valley Forge 4 | I6: Valley Forge 2 | J6: Ice Refinery 1 | K6: Narcotics Lab 2 | L6: Wafer Plant 2 | O6: Liquer Still 1 | P6: Chip Fab 1 | Q6: Chip Fac
A7: Targon Tracer | B7: Missile Forge | C7: Targon Tracer | E7: Steel Refinery 2 | F7: Cube Plant 3 | G7: E-Cell Fab 7-8 | H7: Targon Tracer | I7: Spice Tubes | J7: Ice Refinery 2 | K7: Herb Garden 1 | O7: Liquer Still 2 | P7: Chip Fab 2 | Q7: Bio-Optics Fac
A8: A/M Cyclotron 1 | B8: Turret Forge | C8: A/M Cyclotron 1 | E8: Steel Refinery 3 | G8: Storage 2 | H8: Argnu Paradise 1 | I8: Targon Tracer | K8: Herb Garden 2 | P8: Bio-Optics Fac 1 | Q8: Fusion Core Fac
A9: A/M Cyclotron 2 | B9: Shield Facility | C9: A/M Cyclotron 2 | E9: Targon Tracer | G9: Radar | H9: Argnu Paradise 2 | I9: Argnu Paradise | P9: Bio-Optics Fac 2 | Q9: Targon Tracer
A10: Storage 1 | B10: Storage | C10: Storage 1 | E10: Chem Refinery 1 | G10: Targon Tracer x2 | H10: Spice Tubes | I10: Liquor Still | P10: Targon Tracer | Q10: Plasma Tech
B11: Radar | E11: Chem Refinery 2 | I11: Storage 1 | P11: Qtube Y Fac 1 | Q11: Podkletnov Fab
E12: Storage 1 | I12: Storage 2 | P12: Qtube Y Fac 2 | Q12: ScannAr Facility
E13: Storage 2 | I13: Radar | P13: Targon Tracer x2 | Q13: Radar
E14: Storage 3 | P14: Radar | Q14: Defence
E15: Radar

Sheet MyStations
A1: Station Identity | B1: Station Name | C1: Prod. Line | D1: Base Module | E1: Module Name | F1: Build System | G1: Ware | H1: Production | I1: Secondary | J1: Bonus | K1: Full Effect | L1: Cost Pcs | M1: Base Cost | N1: Total Cost
A2: Gemstone Manufactore: Arms Tech Fab | B2: Cell Fab. Matrix | C2: Albion | D2: A1 (Initial) | E2: Plasma Cyclotron 1 | F2: Albion | G2: Energy Cells | H2: -1600 | K2: =IFERROR(IF(H2>0,INT((SUMIFS(J:J,A:A,"=" & A2,D:D,"=" & D2)/100*H2)),I2)+H2,"") -> -1600 | L2: 5 | M2: =IFERROR(L2*H2,"") -> -8000 | N2: =IFERROR(L2*K2,"") -> -8000
A3: Gemstone Manufactore: Arms Tech Fab | B3: Cell Fab. Matrix | C3: Albion | D3: A1 (Initial) | E3: Plasma Cyclotron 1 | F3: Albion | G3: Food Rations | H3: -720 | K3: -720 | L3: 29 | M3: -20880 | N3: -20880
A4: Gemstone Manufactore: Arms Tech Fab | B4: Cell Fab. Matrix | C4: Albion | D4: A1 (Initial) | E4: Plasma Cyclotron 1 | F4: Albion | G4: Plasma | H4: -1600 | K4: -1600 | L4: 16 | M4: -25600 | N4: -25600
A5: Gemstone Manufactore: Arms Tech Fab | B5: Cell Fab. Matrix | C5: Albion | D5: A1 (Initial) | E5: Plasma Cyclotron 1 | F5: Albion | G5: Plasma Cells | H5: 863 | K5: 992 | L5: 151 | M5: 130313 | N5: 149792
A6: Gemstone Manufactore: Arms Tech Fab | B6: Cell Fab. Matrix | C6: Albion | D6: A1 (Initial) | E6: Plasma Cyclotron 1 | F6: Albion | G6: Spacefuel | I6: -120 | J6: 15 | K6: -120 | L6: 46 | M6: 0 | N6: -5520
A7: Gemstone Manufactore: Arms Tech Fab | B7: Cell Fab. Matrix | C7: Albion | D7: A2 | E7: Plasma Cyclotron 2 | F7: Albion | G7: Energy Cells | H7: -1600 | K7: -1600 | L7: 5 | M7: -8000 | N7: -8000
A8: Gemstone Manufactore: Arms Tech Fab | B8: Cell Fab. Matrix | C8: Albion | D8: A2 | E8: Plasma Cyclotron 2 | F8: Albion | G8: Food Rations | H8: -720 | K8: -720 | L8: 29 | M8: -20880 | N8: -20880
A9: Gemstone Manufactore: Arms Tech Fab | B9: Cell Fab. Matrix | C9: Albion | D9: A2 | E9: Plasma Cyclotron 2 | F9: Albion | G9: Plasma | H9: -1600 | K9: -1600 | L9: 16 | M9: -25600 | N9: -25600
A10: Gemstone Manufactore: Arms Tech Fab | B10: Cell Fab. Matrix | C10: Albion | D10: A2 | E10: Plasma Cyclotron 2 | F10: Albion | G10: Plasma Cells | H10: 831 | K10: 955 | L10: 151 | M10: 125481 | N10: 144205
A11: Gemstone Manufactore: Arms Tech Fab | B11: Cell Fab. Matrix | C11: Albion | D11: A2 | E11: Plasma Cyclotron 2 | F11: Albion | G11: Spacefuel | I11: -120 | J11: 15 | K11: -120 | L11: 46 | M11: 0 | N11: -5520
A12: Gemstone Manufactore: Arms Tech Fab | B12: Cell Fab. Matrix | C12: Albion | D12: B1 | E12: Ion Cell Plant 1 | F12: Albion | G12: Energy Cells | H12: -1600 | K12: -1600 | L12: 5 | M12: -8000 | N12: -8000
A13: Gemstone Manufactore: Arms Tech Fab | B13: Cell Fab. Matrix | C13: Albion | D13: B1 | E13: Ion Cell Plant 1 | F13: Albion | G13: Food Rations | H13: -720 | K13: -720 | L13: 29 | M13: -20880 | N13: -20880
A14: Gemstone Manufactore: Arms Tech Fab | B14: Cell Fab. Matrix | C14: Albion | D14: B1 | E14: Ion Cell Plant 1 | F14: Albion | G14: Ion Cells | H14: 956 | K14: 1099 | L14: 160 | M14: 152960 | N14: 175840
A15: Gemstone Manufactore: Arms Tech Fab | B15: Cell Fab. Matrix | C15: Albion | D15: B1 | E15: Ion Cell Plant 1 | F15: Albion | G15: Ions | H15: -1600 | K15: -1600 | L15: 18 | M15: -28800 | N15: -28800
A16: Gemstone Manufactore: Arms Tech Fab | B16: Cell Fab. Matrix | C16: Albion | D16: B1 | E16: Ion Cell Plant 1 | F16: Albion | G16: Spacefuel | I16: -120 | J16: 15 | K16: -120 | L16: 46 | M16: 0 | N16: -5520
A17: Gemstone Manufactore: Arms Tech Fab | B17: Cell Fab. Matrix | C17: Albion | D17: C1 | E17: A/M Cyclotron 1 | F17: Albion | G17: Antimatter Cells | H17: 848 | K17: 975 | L17: 168 | M17: 142464 | N17: 163800
A18: Gemstone Manufactore: Arms Tech Fab | B18: Cell Fab. Matrix | C18: Albion | D18: C1 | E18: A/M Cyclotron 1 | F18: Albion | G18: energy Cells | H18: -1600 | K18: -1600 | L18: 5 | M18: -8000 | N18: -8000
A19: Gemstone Manufactore: Arms Tech Fab | B19: Cell Fab. Matrix | C19: Albion | D19: C1 | E19: A/M Cyclotron 1 | F19: Albion | G19: Food Rations | H19: -720 | K19: -720 | L19: 29 | M19: -20880 | N19: -20880
A20: Gemstone Manufactore: Arms Tech Fab | B20: Cell Fab. Matrix | C20: Albion | D20: C1 | E20: A/M Cyclotron 1 | F20: Albion | G20: Hydrogen | H20: -3200 | K20: -3200 | L20: 12 | M20: -38400 | N20: -38400
A21: Gemstone Manufactore: Arms Tech Fab | B21: Cell Fab. Matrix | C21: Albion | D21: C1 | E21: A/M Cyclotron 1 | F21: Albion | G21: Spacefuel | I21: -120 | J21: 15 | K21: -120 | L21: 46 | M21: 0 | N21: -5520
A22: Gemstone Manufactore: Arms Tech Fab | B22: Cell Fab. Matrix | C22: Albion | D22: C2 | E22: A/M Cyclotron 2 | F22: Albion | G22: Antimatter Cells | H22: 848 | K22: 975 | L22: 168 | M22: 142464 | N22: 163800
A23: Gemstone Manufactore: Arms Tech Fab | B23: Cell Fab. Matrix | C23: Albion | D23: C2 | E23: A/M Cyclotron 2 | F23: Albion | G23: Energy Cells | H23: -1600 | K23: -1600 | L23: 5 | M23: -8000 | N23: -8000
A24: Gemstone Manufactore: Arms Tech Fab | B24: Cell Fab. Matrix | C24: Albion | D24: C2 | E24: A/M Cyclotron 2 | F24: Albion | G24: Food Rations | H24: -720 | K24: -720 | L24: 29 | M24: -20880 | N24: -20880
A25: Gemstone Manufactore: Arms Tech Fab | B25: Cell Fab. Matrix | C25: Albion | D25: C2 | E25: A/M Cyclotron 2 | F25: Albion | G25: Hydrogen | H25: -3200 | K25: -3200 | L25: 12 | M25: -38400 | N25: -38400
A26: Gemstone Manufactore: Arms Tech Fab | B26: Cell Fab. Matrix | C26: Albion | D26: C2 | E26: A/M Cyclotron 2 | F26: Albion | G26: Spacefuel | I26: -120 | J26: 15 | K26: -120 | L26: 46 | M26: 0 | N26: -5520
A27: Gemstone Manufactore: Arms Tech Fab | B27: Cell Fab. Matrix | C27: Albion | D27: B2 | E27: Ion Cell Plant 2 | F27: Albion | G27: Energy Cells | H27: -1600 | K27: -1600 | L27: 5 | M27: -8000 | N27: -8000
A28: Gemstone Manufactore: Arms Tech Fab | B28: Cell Fab. Matrix | C28: Albion | D28: B2 | E28: Ion Cell Plant 2 | F28: Albion | G28: Food Rations | H28: -720 | K28: -720 | L28: 29 | M28: -20880 | N28: -20880
A29: Gemstone Manufactore: Arms Tech Fab | B29: Cell Fab. Matrix | C29: Albion | D29: B2 | E29: Ion Cell Plant 2 | F29: Albion | G29: Ion Cells | H29: 956 | K29: 1099 | L29: 160 | M29: 152960 | N29: 175840
A30: Gemstone Manufactore: Arms Tech Fab | B30: Cell Fab. Matrix | C30: Albion | D30: B2 | E30: Ion Cell Plant 2 | F30: Albion | G30: Ions | H30: -1600 | K30: -1600 | L30: 18 | M30: -28800 | N30: -28800
A31: Gemstone Manufactore: Arms Tech Fab | B31: Cell Fab. Matrix | C31: Albion | D31: B2 | E31: Ion Cell Plant 2 | F31: Albion | G31: Spacefuel | I31: -120 | J31: 15 | K31: -120 | L31: 46 | M31: 0 | N31: -5520

Sheet Build Cost
A1: Station Identity | B1: Station Name | C1: Prod. Line | D1: Base Module | E1: Module Name | F1: Build System | G1: Ware | H1: Need | I1: Cost | J1: Storage type | K1: Storage amount | L1: Total Cost | M1: Total Storage
A2: Gemstone Manufactore: Arms Tech Fab | B2: Cell Fab. Matrix | C2: Albion | D2: A1 (Initial) | E2: Plasma Cyclotron 1 | F2: Albion | G2: Bio-Optic Wiring | H2: 698 | I2: 1968 | J2: Container | K2: 12 | L2: =H2*I2 -> 1373664 | M2: =H2*K2 -> 8376
A3: Gemstone Manufactore: Arms Tech Fab | B3: Cell Fab. Matrix | C3: Albion | D3: A1 (Initial) | E3: Plasma Cyclotron 1 | F3: Albion | G3: Energy Cells | H3: 2462 | I3: 5 | J3: Energy | K3: 2 | L3: 12310 | M3: 4924
A4: Gemstone Manufactore: Arms Tech Fab | B4: Cell Fab. Matrix | C4: Albion | D4: A1 (Initial) | E4: Plasma Cyclotron 1 | F4: Albion | G4: Force Field Projector | H4: 10 | I4: 64554 | J4: Container | K4: 96 | L4: 645540 | M4: 960
A5: Gemstone Manufactore: Arms Tech Fab | B5: Cell Fab. Matrix | C5: Albion | D5: A1 (Initial) | E5: Plasma Cyclotron 1 | F5: Albion | G5: Fusion Reactors | H5: 296 | I5: 29366 | J5: Container | K5: 76 | L5: 8692336 | M5: 22496
A6: Gemstone Manufactore: Arms Tech Fab | B6: Cell Fab. Matrix | C6: Albion | D6: A1 (Initial) | E6: Plasma Cyclotron 1 | F6: Albion | G6: HIT/MA Turret | H6: 32 | I6: 33672 | J6: Container | K6: 54 | L6: 1077504 | M6: 1728
A7: Gemstone Manufactore: Arms Tech Fab | B7: Cell Fab. Matrix | C7: Albion | D7: A1 (Initial) | E7: Plasma Cyclotron 1 | F7: Albion | G7: Plasma/MA Turret | H7: 10 | I7: 169849 | J7: Container | K7: 188 | L7: 1698490 | M7: 1880
A8: Gemstone Manufactore: Arms Tech Fab | B8: Cell Fab. Matrix | C8: Albion | D8: A1 (Initial) | E8: Plasma Cyclotron 1 | F8: Albion | G8: Reinforced Metal Plating | H8: 1064 | I8: 4846 | J8: Container | K8: 20 | L8: 5156144 | M8: 21280
A9: Gemstone Manufactore: Arms Tech Fab | B9: Cell Fab. Matrix | C9: Albion | D9: A1 (Initial) | E9: Plasma Cyclotron 1 | F9: Albion | G9: V Launcher | H9: 1 | I9: 259660 | J9: Container | K9: 244 | L9: 259660 | M9: 244
A10: Gemstone Manufactore: Arms Tech Fab | B10: Cell Fab. Matrix | C10: Albion | D10: A2 | E10: Plasma Cyclotron 2 | F10: Albion | G10: Bio-Optic Wiring | H10: 686 | I10: 1968 | J10: Container | K10: 12 | L10: 1350048 | M10: 8232
A11: Gemstone Manufactore: Arms Tech Fab | B11: Cell Fab. Matrix | C11: Albion | D11: A2 | E11: Plasma Cyclotron 2 | F11: Albion | G11: Energy Cells | H11: 1698 | I11: 5 | J11: Energy | K11: 2 | L11: 8490 | M11: 3396
A12: Gemstone Manufactore: Arms Tech Fab | B12: Cell Fab. Matrix | C12: Albion | D12: A2 | E12: Plasma Cyclotron 2 | F12: Albion | G12: Force Field Projector | H12: 7 | I12: 64554 | J12: Container | K12: 96 | L12: 451878 | M12: 672
A13: Gemstone Manufactore: Arms Tech Fab | B13: Cell Fab. Matrix | C13: Albion | D13: A2 | E13: Plasma Cyclotron 2 | F13: Albion | G13: Fusion Reactors | H13: 240 | I13: 29366 | J13: Container | K13: 76 | L13: 7047840 | M13: 18240
A14: Gemstone Manufactore: Arms Tech Fab | B14: Cell Fab. Matrix | C14: Albion | D14: A2 | E14: Plasma Cyclotron 2 | F14: Albion | G14: HIT/MA Turret | H14: 17 | I14: 33672 | J14: Container | K14: 54 | L14: 572424 | M14: 918
A15: Gemstone Manufactore: Arms Tech Fab | B15: Cell Fab. Matrix | C15: Albion | D15: A2 | E15: Plasma Cyclotron 2 | F15: Albion | G15: Plasma/MA Turret | H15: 6 | I15: 169849 | J15: Container | K15: 188 | L15: 1019094 | M15: 1128
A16: Gemstone Manufactore: Arms Tech Fab | B16: Cell Fab. Matrix | C16: Albion | D16: A2 | E16: Plasma Cyclotron 2 | F16: Albion | G16: Reinforced Metal Plating | H16: 782 | I16: 4846 | J16: Container | K16: 20 | L16: 3789572 | M16: 15640
A17: Gemstone Manufactore: Arms Tech Fab | B17: Cell Fab. Matrix | C17: Albion | D17: A2 | E17: Plasma Cyclotron 2 | F17: Albion | G17: V Launcher | H17: 1 | I17: 259660 | J17: Container | K17: 244 | L17: 259660 | M17: 244
A18: Gemstone Manufactore: Arms Tech Fab | B18: Cell Fab. Matrix | C18: Albion | D18: C1 | E18: A/M Cyclotron 1 | F18: Albion | G18: Bio-Optic Wiring | H18: 748 | I18: 1968 | J18: Container | K18: 12 | L18: 1472064 | M18: 8976
A19: Gemstone Manufactore: Arms Tech Fab | B19: Cell Fab. Matrix | C19: Albion | D19: C1 | E19: A/M Cyclotron 1 | F19: Albion | G19: energy Cells | H19: 1534 | I19: 5 | J19: Energy | K19: 2 | L19: 7670 | M19: 3068
A20: Gemstone Manufactore: Arms Tech Fab | B20: Cell Fab. Matrix | C20: Albion | D20: C1 | E20: A/M Cyclotron 1 | F20: Albion | G20: Force Field Projector | H20: 14 | I20: 64554 | J20: Container | K20: 96 | L20: 903756 | M20: 1344
A21: Gemstone Manufactore: Arms Tech Fab | B21: Cell Fab. Matrix | C21: Albion | D21: C1 | E21: A/M Cyclotron 1 | F21: Albion | G21: Fusion Reactors | H21: 192 | I21: 29366 | J21: Container | K21: 76 | L21: 5638272 | M21: 14592
A22: Gemstone Manufactore: Arms Tech Fab | B22: Cell Fab. Matrix | C22: Albion | D22: C1 | E22: A/M Cyclotron 1 | F22: Albion | G22: HIT/MA Turret | H22: 33 | I22: 33672 | J22: Container | K22: 54 | L22: 1111176 | M22: 1782
A23: Gemstone Manufactore: Arms Tech Fab | B23: Cell Fab. Matrix | C23: Albion | D23: C1 | E23: A/M Cyclotron 1 | F23: Albion | G23: Plasma/MA Turret | H23: 11 | I23: 169849 | J23: Container | K23: 188 | L23: 1868339 | M23: 2068
A24: Gemstone Manufactore: Arms Tech Fab | B24: Cell Fab. Matrix | C24: Albion | D24: C1 | E24: A/M Cyclotron 1 | F24: Albion | G24: Reinforced Metal Plating | H24: 764 | I24: 4846 | J24: Container | K24: 20 | L24: 3702344 | M24: 15280
A25: Gemstone Manufactore: Arms Tech Fab | B25: Cell Fab. Matrix | C25: Albion | D25: C1 | E25: A/M Cyclotron 1 | F25: Albion | G25: V Launcher | H25: 1 | I25: 259660 | J25: Container | K25: 244 | L25: 259660 | M25: 244
A26: Gemstone Manufactore: Arms Tech Fab | B26: Cell Fab. Matrix | C26: Albion | D26: C2 | E26: A/M Cyclotron 2 | F26: Albion | G26: Bio-Optic Wiring | H26: 748 | I26: 1968 | J26: Container | K26: 12 | L26: 1472064 | M26: 8976
A27: Gemstone Manufactore: Arms Tech Fab | B27: Cell Fab. Matrix | C27: Albion | D27: C2 | E27: A/M Cyclotron 2 | F27: Albion | G27: Energy Cells | H27: 1478 | I27: 5 | J27: Energy | K27: 2 | L27: 7390 | M27: 2956
A28: Gemstone Manufactore: Arms Tech Fab | B28: Cell Fab. Matrix | C28: Albion | D28: C2 | E28: A/M Cyclotron 2 | F28: Albion | G28: Force Field Projector | H28: 32 | I28: 64554 | J28: Container | K28: 96 | L28: 2065728 | M28: 3072
A29: Gemstone Manufactore: Arms Tech Fab | B29: Cell Fab. Matrix | C29: Albion | D29: C2 | E29: A/M Cyclotron 2 | F29: Albion | G29: Fusion Reactors | H29: 186 | I29: 29366 | J29: Container | K29: 76 | L29: 5462076 | M29: 14136
A30: Gemstone Manufactore: Arms Tech Fab | B30: Cell Fab. Matrix | C30: Albion | D30: C2 | E30: A/M Cyclotron 2 | F30: Albion | G30: HIT/MA Turret | H30: 70 | I30: 33672 | J30: Container | K30: 54 | L30: 2357040 | M30: 3780
A31: Gemstone Manufactore: Arms Tech Fab | B31: Cell Fab. Matrix | C31: Albion | D31: C2 | E31: A/M Cyclotron 2 | F31: Albion | G31: Plasma/MA Turret | H31: 22 | I31: 169849 | J31: Container | K31: 188 | L31: 3736678 | M31: 4136
A32: Gemstone Manufactore: Arms Tech Fab | B32: Cell Fab. Matrix | C32: Albion | D32: C2 | E32: A/M Cyclotron 2 | F32: Albion | G32: Reinforced Metal Plating | H32: 732 | I32: 4846 | J32: Container | K32: 20 | L32: 3547272 | M32: 14640
A33: Gemstone Manufactore: Arms Tech Fab | B33: Cell Fab. Matrix | C33: Albion | D33: C2 | E33: A/M Cyclotron 2 | F33: Albion | G33: V Launcher | H33: 2 | I33: 259660 | J33: Container | K33: 244 | L33: 519320 | M33: 488
A34: Gemstone Manufactore: Arms Tech Fab | B34: Cell Fab. Matrix | C34: Albion | D34: B2 | E34: Ion Cell Plant 2 | F34: Albion | G34: Bio-Optic Wiring | H34: 620 | I34: 1968 | J34: Container | K34: 12 | L34: 1220160 | M34: 7440
A35: Gemstone Manufactore: Arms Tech Fab | B35: Cell Fab. Matrix | C35: Albion | D35: B2 | E35: Ion Cell Plant 2 | F35: Albion | G35: Energy Cells | H35: 1380 | I35: 5 | J35: Energy | K35: 2 | L35: 6900 | M35: 2760
A36: Gemstone Manufactore: Arms Tech Fab | B36: Cell Fab. Matrix | C36: Albion | D36: B2 | E36: Ion Cell Plant 2 | F36: Albion | G36: Force Field Projector | H36: 7 | I36: 64554 | J36: Container | K36: 96 | L36: 451878 | M36: 672
A37: Gemstone Manufactore: Arms Tech Fab | B37: Cell Fab. Matrix | C37: Albion | D37: B2 | E37: Ion Cell Plant 2 | F37: Albion | G37: Fusion Reactors | H37: 164 | I37: 29366 | J37: Container | K37: 76 | L37: 4816024 | M37: 12464
A38: Gemstone Manufactore: Arms Tech Fab | B38: Cell Fab. Matrix | C38: Albion | D38: B2 | E38: Ion Cell Plant 2 | F38: Albion | G38: HIT/MA Turret | H38: 19 | I38: 33672 | J38: Container | K38: 54 | L38: 639768 | M38: 1026
A39: Gemstone Manufactore: Arms Tech Fab | B39: Cell Fab. Matrix | C39: Albion | D39: B2 | E39: Ion Cell Plant 2 | F39: Albion | G39: Plasma/MA Turret | H39: 5 | I39: 169849 | J39: Container | K39: 188 | L39: 849245 | M39: 940
A40: Gemstone Manufactore: Arms Tech Fab | B40: Cell Fab. Matrix | C40: Albion | D40: B2 | E40: Ion Cell Plant 2 | F40: Albion | G40: Reinforced Metal Plating | H40: 738 | I40: 4846 | J40: Container | K40: 20 | L40: 3576348 | M40: 14760
A41: Gemstone Manufactore: Arms Tech Fab | B41: Cell Fab. Matrix | C41: Albion | D41: B2 | E41: Ion Cell Plant 2 | F41: Albion | G41: V Launcher | H41: 1 | I41: 259660 | J41: Container | K41: 244 | L41: 259660 | M41: 244

Sheet BaseProduction
A1: id3 | B1: transport5 | C1: specialist | D1: volume7 | E1: amount12 | F1: method13 | G1: ware | H1: amount15 | I1: amount17 | J1: type18 | K1: product19 | L1: ShownName
A2: antimattercells | B2: energy | C2: specialistpowerstorage | D2: 4 | E2: 200 | F2: default | G2: energycells | H2: 400 | L2: Energy Cells
A3: antimattercells | B3: energy | C3: specialistpowerstorage | D3: 4 | E3: 200 | F3: default | G3: foodrations | H3: 180 | L3: Food Rations
A4: antimattercells | B4: energy | C4: specialistpowerstorage | D4: 4 | E4: 200 | F4: default | G4: hydrogen | H4: 800 | L4: Hydrogen
A5: antimattercells | B5: energy | C5: specialistpowerstorage | D5: 4 | E5: 200 | F5: default | G5: spacefuel | I5: 30 | L5: Spacefuel
A6: antimattercells | B6: energy | C6: specialistpowerstorage | D6: 4 | E6: 200 | F6: default | G6: secondaryresource | J6: secondaryresource | K6: 0.15 | L6: Secondary Recource
A7: antimattercells | B7: energy | C7: specialistpowerstorage | D7: 4 | E7: 200 | F7: default | G7: specialist | J7: specialist | K7: 0.1 | L7: Specialist
A8: antimattercells | B8: energy | C8: specialistpowerstorage | D8: 4 | E8: 240 | F8: omicron | G8: bofu | H8: 100 | L8: BoFu
A9: antimattercells | B9: energy | C9: specialistpowerstorage | D9: 4 | E9: 240 | F9: omicron | G9: energycells | H9: 600 | L9: Energy Cells
A10: antimattercells | B10: energy | C10: specialistpowerstorage | D10: 4 | E10: 240 | F10: omicron | G10: hydrogen | H10: 900 | L10: Hydrogen
A11: antimattercells | B11: energy | C11: specialistpowerstorage | D11: 4 | E11: 240 | F11: omicron | G11: spacefuel | I11: 40 | L11: Spacefuel
A12: antimattercells | B12: energy | C12: specialistpowerstorage | D12: 4 | E12: 240 | F12: omicron | G12: secondaryresource | J12: secondaryresource | K12: 0.15 | L12: Secondary Recource
A13: antimattercells | B13: energy | C13: specialistpowerstorage | D13: 4 | E13: 240 | F13: omicron | G13: specialist | J13: specialist | K13: 0.1 | L13: Specialist
A14: bioelectricneurongel | B14: container | C14: specialistchemical | D14: 12 | E14: 160 | F14: default | G14: bofu | H14: 60 | L14: BoFu
A15: bioelectricneurongel | B15: container | C15: specialistchemical | D15: 12 | E15: 160 | F15: default | G15: chemicalcompounds | H15: 160 | L15: Chemical Compounds
A16: bioelectricneurongel | B16: container | C16: specialistchemical | D16: 12 | E16: 160 | F16: default | G16: energycells | H16: 240 | L16: Energy Cells
A17: bioelectricneurongel | B17: container | C17: specialistchemical | D17: 12 | E17: 160 | F17: default | G17: siliconwafers | H17: 320 | L17: Silicon wafers
A18: bioelectricneurongel | B18: container | C18: specialistchemical | D18: 12 | E18: 160 | F18: default | G18: water | H18: 320 | L18: Water
A19: bioelectricneurongel | B19: container | C19: specialistchemical | D19: 12 | E19: 160 | F19: default | G19: medicalsupplies | I19: 20 | L19: Medical Supplies
A20: bioelectricneurongel | B20: container | C20: specialistchemical | D20: 12 | E20: 160 | F20: default | G20: spacefuel | I20: 60 | L20: Spacefuel
A21: bioelectricneurongel | B21: container | C21: specialistchemical | D21: 12 | E21: 160 | F21: default | G21: secondaryresource | J21: secondaryresource | K21: 0.15 | L21: Secondary Recource
A22: bioelectricneurongel | B22: container | C22: specialistchemical | D22: 12 | E22: 160 | F22: default | G22: specialist | J22: specialist | K22: 0.1 | L22: Specialist
A23: bioopticwiring | B23: container | C23: specialistprecision | D23: 12 | E23: 60 | F23: default | G23: chemicalcompounds | H23: 80 | L23: Chemical Compounds
A24: bioopticwiring | B24: container | C24: specialistprecision | D24: 12 | E24: 60 | F24: default | G24: energycells | H24: 240 | L24: Energy Cells
A25: bioopticwiring | B25: container | C25: specialistprecision | D25: 12 | E25: 60 | F25: default | G25: foodrations | H25: 120 | L25: Food Rations
A26: bioopticwiring | B26: container | C26: specialistprecision | D26: 12 | E26: 60 | F26: default | G26: plasmacells | H26: 80 | L26: Plasma Cells
A27: bioopticwiring | B27: container | C27: specialistprecision | D27: 12 | E27: 60 | F27: default | G27: medicalsupplies | I27: 20 | L27: Medical Supplies
A28: bioopticwiring | B28: container | C28: specialistprecision | D28: 12 | E28: 60 | F28: default | G28: spacefuel | I28: 30 | L28: Spacefuel
A29: bioopticwiring | B29: container | C29: specialistprecision | D29: 12 | E29: 60 | F29: default | G29: secondaryresource | J29: secondaryresource | K29: 0.15 | L29: Secondary Recource
A30: bioopticwiring | B30: container | C30: specialistprecision | D30: 12 | E30: 60 | F30: default | G30: specialist | J30: specialist | K30: 0.1 | L30: Specialist
A31: bofu | B31: container | C31: specialistfood | D31: 4 | E31: 360 | F31: default | G31: energycells | H31: 180 | L31: Energy Cells
A32: bofu | B32: container | C32: specialistfood | D32: 4 | E32: 360 | F32: default | G32: plankton | H32: 280 | L32: Plankton
A33: bofu | B33: container | C33: specialistfood | D33: 4 | E33: 360 | F33: default | G33: soybeans | H33: 140 | L33: Soyabeans
A34: bofu | B34: container | C34: specialistfood | D34: 4 | E34: 360 | F34: default | G34: spices | H34: 100 | L34: Spices
A35: bofu | B35: container | C35: specialistfood | D35: 4 | E35: 360 | F35: default | G35: specialist | J35: specialist | K35: 0.2 | L35: Specialist
A36: chemicalcompounds | B36: container | C36: specialistchemical | D36: 8 | E36: 280 | F36: default | G36: energycells | H36: 280 | L36: Energy Cells
A37: chemicalcompounds | B37: container | C37: specialistchemical | D37: 8 | E37: 280 | F37: default | G37: foodrations | H37: 120 | L37: Food Rations
A38: chemicalcompounds | B38: container | C38: specialistchemical | D38: 8 | E38: 280 | F38: default | G38: ioncells | H38: 240 | L38: Ion Cells
A39: chemicalcompounds | B39: container | C39: specialistchemical | D39: 8 | E39: 280 | F39: default | G39: ions | H39: 160 | L39: Ions
A40: chemicalcompounds | B40: container | C40: specialistchemical | D40: 8 | E40: 280 | F40: default | G40: plasma | H40: 240 | L40: Plasma
A41: chemicalcompounds | B41: container | C41: specialistchemical | D41: 8 | E41: 280 | F41: default | G41: plasmacells | H41: 160 | L41: Plasma Cells
A42: chemicalcompounds | B42: container | C42: specialistchemical | D42: 8 | E42: 280 | F42: default | G42: medicalsupplies | I42: 30 | L42: Medical Supplies
A43: chemicalcompounds | B43: container | C43: specialistchemical | D43: 8 | E43: 280 | F43: default | G43: spacefuel | I43: 20 | L43: Spacefuel
A44: chemicalcompounds | B44: container | C44: specialistchemical | D44: 8 | E44: 280 | F44: default | G44: secondaryresource | J44: secondaryresource | K44: 0.15 | L44: Secondary Recource
A45: chemicalcompounds | B45: container | C45: specialistchemical | D45: 8 | E45: 280 | F45: default | G45: specialist | J45: specialist | K45: 0.1 | L45: Specialist
A46: chemicalcompounds | B46: container | C46: specialistchemical | D46: 8 | E46: 280 | F46: omicron | G46: bofu | H46: 70 | L46: BoFu
A47: chemicalcompounds | B47: container | C47: specialistchemical | D47: 8 | E47: 280 | F47: omicron | G47: energycells | H47: 280 | L47: Energy Cells
A48: chemicalcompounds | B48: container | C48: specialistchemical | D48: 8 | E48: 280 | F48: omicron | G48: ioncells | H48: 240 | L48: Ion Cells
A49: chemicalcompounds | B49: container | C49: specialistchemical | D49: 8 | E49: 280 | F49: omicron | G49: ions | H49: 160 | L49: Ions
A50: chemicalcompounds | B50: container | C50: specialistchemical | D50: 8 | E50: 280 | F50: omicron | G50: plasma | H50: 200 | L50: Plasma
A51: chemicalcompounds | B51: container | C51: specialistchemical | D51: 8 | E51: 280 | F51: omicron | G51: plasmacells | H51: 160 | L51: Plasma Cells
A52: chemicalcompounds | B52: container | C52: specialistchemical | D52: 8 | E52: 280 | F52: omicron | G52: medicalsupplies | I52: 30 | L52: Medical Supplies
A53: chemicalcompounds | B53: container | C53: specialistchemical | D53: 8 | E53: 280 | F53: omicron | G53: spacefuel | I53: 10 | L53: Spacefuel
A54: chemicalcompounds | B54: container | C54: specialistchemical | D54: 8 | E54: 280 | F54: omicron | G54: secondaryresource | J54: secondaryresource | K54: 0.15 | L54: Secondary Recource
A55: chemicalcompounds | B55: container | C55: specialistchemical | D55: 8 | E55: 280 | F55: omicron | G55: specialist | J55: specialist | K55: 0.1 | L55: Specialist
A56: crystals | B56: bulk | D56: 14 | E56: 8 | F56: default | G56: energycells | H56: 6 | L56: Energy Cells
A57: cutcrystals | B57: bulk | D57: 12 | E57: 220 | F57: default | G57: crystals | H57: 200 | L57: Crystals
A58: cutcrystals | B58: bulk | D58: 12 | E58: 220 | F58: default | G58: energycells | H58: 160 | L58: Energy Cells
A59: cutcrystals | B59: bulk | D59: 12 | E59: 220 | F59: default | G59: foodrations | H59: 120 | L59: Food Rations
A60: cutcrystals | B60: bulk | D60: 12 | E60: 220 | F60: default | G60: water | H60: 80 | L60: Water
A61: cutcrystals | B61: bulk | D61: 12 | E61: 220 | F61: default | G61: narcotics | I61: 10 | L61: Narcotics
A62: cutcrystals | B62: bulk | D62: 12 | E62: 220 | F62: default | G62: spacefuel | I62: 2 | L62: Spacefuel
A63: cutcrystals | B63: bulk | D63: 12 | E63: 220 | F63: default | G63: secondaryresource | J63: secondaryresource | K63: 0.15 | L63: Secondary Recource
A64: cutcrystals | B64: bulk | D64: 12 | E64: 220 | F64: default | G64: specialist | J64: specialist | K64: 0.1 | L64: Specialist
A65: cutcrystals | B65: bulk | D65: 12 | E65: 220 | F65: omicron | G65: bofu | H65: 60 | L65: BoFu
A66: cutcrystals | B66: bulk | D66: 12 | E66: 220 | F66: omicron | G66: crystals | H66: 200 | L66: Crystals
A67: cutcrystals | B67: bulk | D67: 12 | E67: 220 | F67: omicron | G67: energycells | H67: 140 | L67: Energy Cells
A68: cutcrystals | B68: bulk | D68: 12 | E68: 220 | F68: omicron | G68: water | H68: 80 | L68: Water
A69: cutcrystals | B69: bulk | D69: 12 | E69: 220 | F69: omicron | G69: narcotics | I69: 10 | L69: Narcotics
A70: cutcrystals | B70: bulk | D70: 12 | E70: 220 | F70: omicron | G70: spacefuel | I70: 2 | L70: Spacefuel
A71: cutcrystals | B71: bulk | D71: 12 | E71: 220 | F71: omicron | G71: secondaryresource | J71: secondaryresource | K71: 0.15 | L71: Secondary Recource
A72: cutcrystals | B72: bulk | D72: 12 | E72: 220 | F72: omicron | G72: specialist | J72: specialist | K72: 0.1 | L72: Specialist
A73: drp_assault | B73: container | D73: 194 | E73: 20 | F73: default | G73: bioopticwiring | H73: 134 | L73: Bio-Optic Wiring
A74: drp_assault | B74: container | D74: 194 | E74: 20 | F74: default | G74: energycells | H74: 374 | L74: Energy Cells
A75: drp_assault | B75: container | D75: 194 | E75: 20 | F75: default | G75: foodrations | H75: 258 | L75: Food Rations
A76: drp_assault | B76: container | D76: 194 | E76: 20 | F76: default | G76: fusionreactor | H76: 12 | L76: Fusion Reactors
A77: drp_assault | B77: container | D77: 194 | E77: 20 | F77: default | G77: holtzmanfieldgenerator | H77: 10 | L77: Podkletnov Generators
A78: drp_assault | B78: container | D78: 194 | E78: 20 | F78: default | G78: microchips | H78: 122 | L78: Microchips
A79: drp_assault | B79: container | D79: 194 | E79: 20 | F79: default | G79: plasmaflowregulator | H79: 10 | L79: Plasma Flow Regulators
A80: drp_assault | B80: container | D80: 194 | E80: 20 | F80: default | G80: reinforcedmetalplating | H80: 30 | L80: Reinforced Metal Plating
A81: drp_assault | B81: container | D81: 194 | E81: 20 | F81: default | G81: scanningarray | H81: 32 | L81: Scanning Array
A82: drp_assault | B82: container | D82: 194 | E82: 20 | F82: omicron | G82: bioelectricneurongel | H82: 94 | L82: Bio-Electrical Neuron Gel
A83: drp_assault | B83: container | D83: 194 | E83: 20 | F83: omicron | G83: bofu | H83: 126 | L83: BoFu
A84: drp_assault | B84: container | D84: 194 | E84: 20 | F84: omicron | G84: emspectrometer | H84: 36 | L84: EM Spectrometer
A85: drp_assault | B85: container | D85: 194 | E85: 20 | F85: omicron | G85: energycells | H85: 374 | L85: Energy Cells
A86: drp_assault | B86: container | D86: 194 | E86: 20 | F86: omicron | G86: fusionreactor | H86: 12 | L86: Fusion Reactors
A87: drp_assault | B87: container | D87: 194 | E87: 20 | F87: omicron | G87: holtzmanfieldgenerator | H87: 10 | L87: Podkletnov Generators
A88: drp_assault | B88: container | D88: 194 | E88: 20 | F88: omicron | G88: plasmaflowregulator | H88: 10 | L88: Plasma Flow Regulators
A89: drp_assault | B89: container | D89: 194 | E89: 20 | F89: omicron | G89: plasmapumps | H89: 102 | L89: Plasma Pumps
A90: drp_assault | B90: container | D90: 194 | E90: 20 | F90: omicron | G90: reinforcedmetalplating | H90: 30 | L90: Reinforced Metal Plating
A91: drp_cargolifter | B91: container | D91: 116 | E91: 60 | F91: default | G91: bioopticwiring | H91: 102 | L91: Bio-Optic Wiring
A92: drp_cargolifter | B92: container | D92: 116 | E92: 60 | F92: default | G92: energycells | H92: 358 | L92: Energy Cells
A93: drp_cargolifter | B93: container | D93: 116 | E93: 60 | F93: default | G93: foodrations | H93: 244 | L93: Food Rations
A94: drp_cargolifter | B94: container | D94: 116 | E94: 60 | F94: default | G94: fusionreactor | H94: 6 | L94: Fusion Reactors
A95: drp_cargolifter | B95: container | D95: 116 | E95: 60 | F95: default | G95: holtzmanfieldgenerator | H95: 6 | L95: Podkletnov Generators
A96: drp_cargolifter | B96: container | D96: 116 | E96: 60 | F96: default | G96: microchips | H96: 108 | L96: Microchips
A97: drp_cargolifter | B97: container | D97: 116 | E97: 60 | F97: default | G97: plasmaflowregulator | H97: 6 | L97: Plasma Flow Regulators
A98: drp_cargolifter | B98: container | D98: 116 | E98: 60 | F98: default | G98: reinforcedmetalplating | H98: 16 | L98: Reinforced Metal Plating
A99: drp_cargolifter | B99: container | D99: 116 | E99: 60 | F99: default | G99: scanningarray | H99: 36 | L99: Scanning Array
A100: drp_cargolifter | B100: container | D100: 116 | E100: 60 | F100: omicron | G100: bioelectricneurongel | H100: 88 | L100: Bio-Electrical Neuron Gel
A101: drp_cargolifter | B101: container | D101: 116 | E101: 60 | F101: omicron | G101: bofu | H101: 128 | L101: BoFu
A102: drp_cargolifter | B102: container | D102: 116 | E102: 60 | F102: omicron | G102: emspectrometer | H102: 40 | L102: EM Spectrometer
A103: drp_cargolifter | B103: container | D103: 116 | E103: 60 | F103: omicron | G103: energycells | H103: 358 | L103: Energy Cells
A104: drp_cargolifter | B104: container | D104: 116 | E104: 60 | F104: omicron | G104: fusionreactor | H104: 6 | L104: Fusion Reactors
A105: drp_cargolifter | B105: container | D105: 116 | E105: 60 | F105: omicron | G105: holtzmanfieldgenerator | H105: 6 | L105: Podkletnov Generators
A106: drp_cargolifter | B106: container | D106: 116 | E106: 60 | F106: omicron | G106: plasmaflowregulator | H106: 6 | L106: Plasma Flow Regulators
A107: drp_cargolifter | B107: container | D107: 116 | E107: 60 | F107: omicron | G107: plasmapumps | H107: 80 | L107: Plasma Pumps
A108: drp_cargolifter | B108: container | D108: 116 | E108: 60 | F108: omicron | G108: reinforcedmetalplating | H108: 16 | L108: Reinforced Metal Plating
A109: drp_construction | B109: container | D109: 152 | E109: 32 | F109: default | G109: bioopticwiring | H109: 116 | L109: Bio-Optic Wiring
A110: drp_construction | B110: container | D110: 152 | E110: 32 | F110: default | G110: energycells | H110: 366 | L110: Energy Cells
A111: drp_construction | B111: container | D111: 152 | E111: 32 | F111: default | G111: foodrations | H111: 228 | L111: Food Rations
A112: drp_construction | B112: container | D112: 152 | E112: 32 | F112: default | G112: fusionreactor | H112: 8 | L112: Fusion Reactors
A113: drp_construction | B113: container | D113: 152 | E113: 32 | F113: default | G113: holtzmanfieldgenerator | H113: 6 | L113: Podkletnov Generators
A114: drp_construction | B114: container | D114: 152 | E114: 32 | F114: default | G114: microchips | H114: 104 | L114: Microchips
A115: drp_construction | B115: container | D115: 152 | E115: 32 | F115: default | G115: plasmaflowregulator | H115: 8 | L115: Plasma Flow Regulators
A116: drp_construction | B116: container | D116: 152 | E116: 32 | F116: default | G116: reinforcedmetalplating | H116: 18 | L116: Reinforced Metal Plating
A117: drp_construction | B117: container | D117: 152 | E117: 32 | F117: default | G117: scanningarray | H117: 36 | L117: Scanning Array
A118: drp_construction | B118: container | D118: 152 | E118: 32 | F118: omicron | G118: bioelectricneurongel | H118: 80 | L118: Bio-Electrical Neuron Gel
A119: drp_construction | B119: container | D119: 152 | E119: 32 | F119: omicron | G119: bofu | H119: 116 | L119: BoFu
A120: drp_construction | B120: container | D120: 152 | E120: 32 | F120: omicron | G120: emspectrometer | H120: 40 | L120: EM Spectrometer
A121: drp_construction | B121: container | D121: 152 | E121: 32 | F121: omicron | G121: energycells | H121: 366 | L121: Energy Cells
A122: drp_construction | B122: container | D122: 152 | E122: 32 | F122: omicron | G122: fusionreactor | H122: 8 | L122: Fusion Reactors
A123: drp_construction | B123: container | D123: 152 | E123: 32 | F123: omicron | G123: holtzmanfieldgenerator | H123: 6 | L123: Podkletnov Generators
A124: drp_construction | B124: container | D124: 152 | E124: 32 | F124: omicron | G124: plasmaflowregulator | H124: 8 | L124: Plasma Flow Regulators
A125: drp_construction | B125: container | D125: 152 | E125: 32 | F125: omicron | G125: plasmapumps | H125: 92 | L125: Plasma Pumps
A126: drp_construction | B126: container | D126: 152 | E126: 32 | F126: omicron | G126: reinforcedmetalplating | H126: 18 | L126: Reinforced Metal Plating
A127: drp_interceptor_mk1 | B127: container | D127: 142 | E127: 48 | F127: default | G127: bioopticwiring | H127: 104 | L127: Bio-Optic Wiring
A128: drp_interceptor_mk1 | B128: container | D128: 142 | E128: 48 | F128: default | G128: energycells | H128: 348 | L128: Energy Cells
A129: drp_interceptor_mk1 | B129: container | D129: 142 | E129: 48 | F129: default | G129: foodrations | H129: 252 | L129: Food Rations
A130: drp_interceptor_mk1 | B130: container | D130: 142 | E130: 48 | F130: default | G130: fusionreactor | H130: 8 | L130: Fusion Reactors
A131: drp_interceptor_mk1 | B131: container | D131: 142 | E131: 48 | F131: default | G131: holtzmanfieldgenerator | H131: 6 | L131: Podkletnov Generators
A132: drp_interceptor_mk1 | B132: container | D132: 142 | E132: 48 | F132: default | G132: microchips | H132: 116 | L132: Microchips
A133: drp_interceptor_mk1 | B133: container | D133: 142 | E133: 48 | F133: default | G133: plasmaflowregulator | H133: 6 | L133: Plasma Flow Regulators
A134: drp_interceptor_mk1 | B134: container | D134: 142 | E134: 48 | F134: default | G134: reinforcedmetalplating | H134: 22 | L134: Reinforced Metal Plating
A135: drp_interceptor_mk1 | B135: container | D135: 142 | E135: 48 | F135: default | G135: scanningarray | H135: 44 | L135: Scanning Array
A136: drp_interceptor_mk1 | B136: container | D136: 142 | E136: 12 | F136: devries | G136: crystals | H136: 1840 | L136: Crystals
A137: drp_interceptor_mk1 | B137: container | D137: 142 | E137: 12 | F137: devries | G137: energycells | H137: 380 | L137: Energy Cells
A138: drp_interceptor_mk1 | B138: container | D138: 142 | E138: 12 | F138: devries | G138: foodrations | H138: 260 | L138: Food Rations
A139: drp_interceptor_mk1 | B139: container | D139: 142 | E139: 12 | F139: devries | G139: nividium | H139: 1720 | L139: Nividium
A140: drp_interceptor_mk1 | B140: container | D140: 142 | E140: 12 | F140: devries | G140: ore | H140: 3240 | L140: Ore
A141: drp_interceptor_mk1 | B141: container | D141: 142 | E141: 12 | F141: devries | G141: silicon | H141: 2880 | L141: Silicon
A142: drp_interceptor_mk1 | B142: container | D142: 142 | E142: 48 | F142: omicron | G142: bioelectricneurongel | H142: 96 | L142: Bio-Electrical Neuron Gel
A143: drp_interceptor_mk1 | B143: container | D143: 142 | E143: 48 | F143: omicron | G143: bofu | H143: 134 | L143: BoFu
A144: drp_interceptor_mk1 | B144: container | D144: 142 | E144: 48 | F144: omicron | G144: emspectrometer | H144: 48 | L144: EM Spectrometer
A145: drp_interceptor_mk1 | B145: container | D145: 142 | E145: 48 | F145: omicron | G145: energycells | H145: 348 | L145: Energy Cells
A146: drp_interceptor_mk1 | B146: container | D146: 142 | E146: 48 | F146: omicron | G146: fusionreactor | H146: 8 | L146: Fusion Reactors
A147: drp_interceptor_mk1 | B147: container | D147: 142 | E147: 48 | F147: omicron | G147: holtzmanfieldgenerator | H147: 6 | L147: Podkletnov Generators
A148: drp_interceptor_mk1 | B148: container | D148: 142 | E148: 48 | F148: omicron | G148: plasmaflowregulator | H148: 6 | L148: Plasma Flow Regulators
A149: drp_interceptor_mk1 | B149: container | D149: 142 | E149: 48 | F149: omicron | G149: plasmapumps | H149: 82 | L149: Plasma Pumps
A150: drp_interceptor_mk1 | B150: container | D150: 142 | E150: 48 | F150: omicron | G150: reinforcedmetalplating | H150: 22 | L150: Reinforced Metal Plating
A151: drp_interceptor_mk2 | B151: container | D151: 148 | E151: 40 | F151: default | G151: bioopticwiring | H151: 108 | L151: Bio-Optic Wiring
A152: drp_interceptor_mk2 | B152: container | D152: 148 | E152: 40 | F152: default | G152: energycells | H152: 362 | L152: Energy Cells
A153: drp_interceptor_mk2 | B153: container | D153: 148 | E153: 40 | F153: default | G153: foodrations | H153: 266 | L153: Food Rations
A154: drp_interceptor_mk2 | B154: container | D154: 148 | E154: 40 | F154: default | G154: fusionreactor | H154: 10 | L154: Fusion Reactors
A155: drp_interceptor_mk2 | B155: container | D155: 148 | E155: 40 | F155: default | G155: holtzmanfieldgenerator | H155: 8 | L155: Podkletnov Generators
A156: drp_interceptor_mk2 | B156: container | D156: 148 | E156: 40 | F156: default | G156: microchips | H156: 122 | L156: Microchips
A157: drp_interceptor_mk2 | B157: container | D157: 148 | E157: 40 | F157: default | G157: plasmaflowregulator | H157: 8 | L157: Plasma Flow Regulators
A158: drp_interceptor_mk2 | B158: container | D158: 148 | E158: 40 | F158: default | G158: reinforcedmetalplating | H158: 26 | L158: Reinforced Metal Plating
A159: drp_interceptor_mk2 | B159: container | D159: 148 | E159: 40 | F159: default | G159: scanningarray | H159: 48 | L159: Scanning Array
A160: drp_interceptor_mk2 | B160: container | D160: 148 | E160: 40 | F160: omicron | G160: bioelectricneurongel | H160: 98 | L160: Bio-Electrical Neuron Gel
A161: drp_interceptor_mk2 | B161: container | D161: 148 | E161: 40 | F161: omicron | G161: bofu | H161: 138 | L161: BoFu
A162: drp_interceptor_mk2 | B162: container | D162: 148 | E162: 40 | F162: omicron | G162: emspectrometer | H162: 52 | L162: EM Spectrometer
A163: drp_interceptor_mk2 | B163: container | D163: 148 | E163: 40 | F163: omicron | G163: energycells | H163: 362 | L163: Energy Cells
A164: drp_interceptor_mk2 | B164: container | D164: 148 | E164: 40 | F164: omicron | G164: fusionreactor | H164: 10 | L164: Fusion Reactors
A165: drp_interceptor_mk2 | B165: container | D165: 148 | E165: 40 | F165: omicron | G165: holtzmanfieldgenerator | H165: 8 | L165: Podkletnov Generators
A166: drp_interceptor_mk2 | B166: container | D166: 148 | E166: 40 | F166: omicron | G166: plasmaflowregulator | H166: 8 | L166: Plasma Flow Regulators
A167: drp_interceptor_mk2 | B167: container | D167: 148 | E167: 40 | F167: omicron | G167: plasmapumps | H167: 88 | L167: Plasma Pumps
A168: drp_interceptor_mk2 | B168: container | D168: 148 | E168: 40 | F168: omicron | G168: reinforcedmetalplating | H168: 26 | L168: Reinforced Metal Plating
A169: drp_intrepid_mk1 | B169: container | D169: 162 | E169: 36 | F169: default | G169: bioopticwiring | H169: 118 | L169: Bio-Optic Wiring
A170: drp_intrepid_mk1 | B170: container | D170: 162 | E170: 36 | F170: default | G170: energycells | H170: 364 | L170: Energy Cells
A171: drp_intrepid_mk1 | B171: container | D171: 162 | E171: 36 | F171: default | G171: foodrations | H171: 238 | L171: Food Rations
A172: drp_intrepid_mk1 | B172: container | D172: 162 | E172: 36 | F172: default | G172: fusionreactor | H172: 8 | L172: Fusion Reactors
A173: drp_intrepid_mk1 | B173: container | D173: 162 | E173: 36 | F173: default | G173: holtzmanfieldgenerator | H173: 6 | L173: Podkletnov Generators
A174: drp_intrepid_mk1 | B174: container | D174: 162 | E174: 36 | F174: default | G174: microchips | H174: 118 | L174: Microchips
A175: drp_intrepid_mk1 | B175: container | D175: 162 | E175: 36 | F175: default | G175: plasmaflowregulator | H175: 8 | L175: Plasma Flow Regulators
A176: drp_intrepid_mk1 | B176: container | D176: 162 | E176: 36 | F176: default | G176: reinforcedmetalplating | H176: 24 | L176: Reinforced Metal Plating
A177: drp_intrepid_mk1 | B177: container | D177: 162 | E177: 36 | F177: default | G177: scanningarray | H177: 44 | L177: Scanning Array
A178: drp_intrepid_mk1 | B178: container | D178: 162 | E178: 36 | F178: omicron | G178: bioelectricneurongel | H178: 96 | L178: Bio-Electrical Neuron Gel
A179: drp_intrepid_mk1 | B179: container | D179: 162 | E179: 36 | F179: omicron | G179: bofu | H179: 128 | L179: BoFu
A180: drp_intrepid_mk1 | B180: container | D180: 162 | E180: 36 | F180: omicron | G180: emspectrometer | H180: 48 | L180: EM Spectrometer
A181: drp_intrepid_mk1 | B181: container | D181: 162 | E181: 36 | F181: omicron | G181: energycells | H181: 364 | L181: Energy Cells
A182: drp_intrepid_mk1 | B182: container | D182: 162 | E182: 36 | F182: omicron | G182: fusionreactor | H182: 8 | L182: Fusion Reactors
A183: drp_intrepid_mk1 | B183: container | D183: 162 | E183: 36 | F183: omicron | G183: holtzmanfieldgenerator | H183: 6 | L183: Podkletnov Generators
A184: drp_intrepid_mk1 | B184: container | D184: 162 | E184: 36 | F184: omicron | G184: plasmaflowregulator | H184: 8 | L184: Plasma Flow Regulators
A185: drp_intrepid_mk1 | B185: container | D185: 162 | E185: 36 | F185: omicron | G185: plasmapumps | H185: 94 | L185: Plasma Pumps
A186: drp_intrepid_mk1 | B186: container | D186: 162 | E186: 36 | F186: omicron | G186: reinforcedmetalplating | H186: 24 | L186: Reinforced Metal Plating
A187: drp_intrepid_mk2 | B187: container | D187: 170 | E187: 30 | F187: default | G187: bioopticwiring | H187: 126 | L187: Bio-Optic Wiring
A188: drp_intrepid_mk2 | B188: container | D188: 170 | E188: 30 | F188: default | G188: energycells | H188: 372 | L188: Energy Cells
A189: drp_intrepid_mk2 | B189: container | D189: 170 | E189: 30 | F189: default | G189: foodrations | H189: 246 | L189: Food Rations
A190: drp_intrepid_mk2 | B190: container | D190: 170 | E190: 30 | F190: default | G190: fusionreactor | H190: 10 | L190: Fusion Reactors
A191: drp_intrepid_mk2 | B191: container | D191: 170 | E191: 30 | F191: default | G191: holtzmanfieldgenerator | H191: 8 | L191: Podkletnov Generators
A192: drp_intrepid_mk2 | B192: container | D192: 170 | E192: 30 | F192: default | G192: microchips | H192: 122 | L192: Microchips
A193: drp_intrepid_mk2 | B193: container | D193: 170 | E193: 30 | F193: default | G193: plasmaflowregulator | H193: 10 | L193: Plasma Flow Regulators
A194: drp_intrepid_mk2 | B194: container | D194: 170 | E194: 30 | F194: default | G194: reinforcedmetalplating | H194: 28 | L194: Reinforced Metal Plating
A195: drp_intrepid_mk2 | B195: container | D195: 170 | E195: 30 | F195: default | G195: scanningarray | H195: 48 | L195: Scanning Array
A196: drp_intrepid_mk2 | B196: container | D196: 170 | E196: 30 | F196: omicron | G196: bioelectricneurongel | H196: 98 | L196: Bio-Electrical Neuron Gel
A197: drp_intrepid_mk2 | B197: container | D197: 170 | E197: 30 | F197: omicron | G197: bofu | H197: 132 | L197: BoFu
A198: drp_intrepid_mk2 | B198: container | D198: 170 | E198: 30 | F198: omicron | G198: emspectrometer | H198: 52 | L198: EM Spectrometer
A199: drp_intrepid_mk2 | B199: container | D199: 170 | E199: 30 | F199: omicron | G199: energycells | H199: 372 | L199: Energy Cells
A200: drp_intrepid_mk2 | B200: container | D200: 170 | E200: 30 | F200: omicron | G200: fusionreactor | H200: 10 | L200: Fusion Reactors
... 2330 more rows

Sheet Ark3
A1: Station Name | B1: Prod. Line | C1: Base Module | D1: Module Name | E1: Module Component | F1: Ware | G1: Build Need | H1: Production | I1: Secondary | J1: Bonus | K1: Full Effect | L1: Storage
A2: Energy Array | B2: Albion | C2: A1 | D2: E-Cell Fab 1-2 | E2: Total | F2: Energy Cells | G2: =IF(OR(E2="Total",D2="Total"),"",IFERROR(VLOOKUP(B2&E2&F2,'Sub Modules'!A:E,5,FALSE),"")) ->  | H2: =IF(D2="Total",SUMIFS(H:H,A:A,"="&A2,B:B,"="&B2,E:E,"=Total",F:F,"="&F2),IF(E2="Total",SUMIFS(G:G,A:A,"="&A2,C:C,"="&C2,F:F,"="&F2),IFERROR(VLOOKUP(B2&E2&F2,'Sub Modules'!A:I,6,FALSE),""))) -> 2486 | I2: =IF(D2="Total",SUMIFS(H:H,A:A,"="&A2,B:B,"="&B2,E:E,"=Total",F:F,"="&F2),IFERROR(VLOOKUP(B2&E2&F2,'Sub Modules'!A:I,7,FALSE),"")) ->  | J2: =IF(OR(E2="Total",D2="Total"),IF(I2="",0,I2)-IF(H2="",0,H2),IFERROR(VLOOKUP(B2&E2&F2,'Sub Modules'!A:I,8,FALSE),"")) -> -2486 | K2: =IF(AND(D2<>"Total",E2<>"Total"),IFERROR(IF(H2>0,INT((SUMIFS(J:J,A:A,"=" & A2,C:C,"=" & C2,E:E,"<>Total",E:E,"<>")/100)*H2),I2)+H2,""),"") ->  | L2: =IFERROR(IF(VLOOKUP(B2&E2&F2,'Sub Modules'!A:I,9,FALSE)=0,"",VLOOKUP(B2&E2&F2,'Sub Modules'!A:I,9,FALSE)),"") -> 
A3: Energy Array | B3: Albion | C3: A1 | D3: E-Cell Fab 1-2 | E3: Total | F3: Reinforced Metal Plating | G3: =IF(OR(E3="Total",D3="Total"),"",IFERROR(VLOOKUP(B3&E3&F3,'Sub Modules'!A:E,5,FALSE),"")) ->  | H3: =IF(D3="Total",SUMIFS(H:H,A:A,"="&A3,B:B,"="&B3,E:E,"=Total",F:F,"="&F3),IF(E3="Total",SUMIFS(G:G,A:A,"="&A3,C:C,"="&C3,F:F,"="&F3),IFERROR(VLOOKUP(B3&E3&F3,'Sub Modules'!A:I,6,FALSE),""))) -> 1380 | I3: =IF(D3="Total",SUMIFS(H:H,A:A,"="&A3,B:B,"="&B3,E:E,"=Total",F:F,"="&F3),IFERROR(VLOOKUP(B3&E3&F3,'Sub Modules'!A:I,7,FALSE),"")) ->  | J3: =IF(OR(E3="Total",D3="Total"),IF(I3="",0,I3)-IF(H3="",0,H3),IFERROR(VLOOKUP(B3&E3&F3,'Sub Modules'!A:I,8,FALSE),"")) -> -1380 | L3: =IFERROR(IF(VLOOKUP(B3&E3&F3,'Sub Modules'!A:I,9,FALSE)=0,"",VLOOKUP(B3&E3&F3,'Sub Modules'!A:I,9,FALSE)),"") -> 
A4: Energy Array | B4: Albion | C4: A1 | D4: E-Cell Fab 1-2 | E4: Total | F4: Bio-Optic Wiring | G4: =IF(OR(E4="Total",D4="Total"),"",IFERROR(VLOOKUP(B4&E4&F4,'Sub Modules'!A:E,5,FALSE),"")) ->  | H4: =IF(D4="Total",SUMIFS(H:H,A:A,"="&A4,B:B,"="&B4,E:E,"=Total",F:F,"="&F4),IF(E4="Total",SUMIFS(G:G,A:A,"="&A4,C:C,"="&C4,F:F,"="&F4),IFERROR(VLOOKUP(B4&E4&F4,'Sub Modules'!A:I,6,FALSE),""))) -> 1292 | I4: =IF(D4="Total",SUMIFS(H:H,A:A,"="&A4,B:B,"="&B4,E:E,"=Total",F:F,"="&F4),IFERROR(VLOOKUP(B4&E4&F4,'Sub Modules'!A:I,7,FALSE),"")) ->  | J4: =IF(OR(E4="Total",D4="Total"),IF(I4="",0,I4)-IF(H4="",0,H4),IFERROR(VLOOKUP(B4&E4&F4,'Sub Modules'!A:I,8,FALSE),"")) -> -1292 | L4: =IFERROR(IF(VLOOKUP(B4&E4&F4,'Sub Modules'!A:I,9,FALSE)=0,"",VLOOKUP(B4&E4&F4,'Sub Modules'!A:I,9,FALSE)),"") -> 
A5: Energy Array | B5: Albion | C5: A1 | D5: E-Cell Fab 1-2 | E5: Total | F5: Fusion Reactors | G5: =IF(OR(E5="Total",D5="Total"),"",IFERROR(VLOOKUP(B5&E5&F5,'Sub Modules'!A:E,5,FALSE),"")) ->  | H5: =IF(D5="Total",SUMIFS(H:H,A:A,"="&A5,B:B,"="&B5,E:E,"=Total",F:F,"="&F5),IF(E5="Total",SUMIFS(G:G,A:A,"="&A5,C:C,"="&C5,F:F,"="&F5),IFERROR(VLOOKUP(B5&E5&F5,'Sub Modules'!A:I,6,FALSE),""))) -> 264 | I5: =IF(D5="Total",SUMIFS(H:H,A:A,"="&A5,B:B,"="&B5,E:E,"=Total",F:F,"="&F5),IFERROR(VLOOKUP(B5&E5&F5,'Sub Modules'!A:I,7,FALSE),"")) ->  | J5: =IF(OR(E5="Total",D5="Total"),IF(I5="",0,I5)-IF(H5="",0,H5),IFERROR(VLOOKUP(B5&E5&F5,'Sub Modules'!A:I,8,FALSE),"")) -> -264 | L5: =IFERROR(IF(VLOOKUP(B5&E5&F5,'Sub Modules'!A:I,9,FALSE)=0,"",VLOOKUP(B5&E5&F5,'Sub Modules'!A:I,9,FALSE)),"") -> 
A6: Energy Array | B6: Albion | C6: A1 | D6: E-Cell Fab 1-2 | E6: Total | F6: HIT/MA Turret | G6: =IF(OR(E6="Total",D6="Total"),"",IFERROR(VLOOKUP(B6&E6&F6,'Sub Modules'!A:E,5,FALSE),"")) ->  | H6: =IF(D6="Total",SUMIFS(H:H,A:A,"="&A6,B:B,"="&B6,E:E,"=Total",F:F,"="&F6),IF(E6="Total",SUMIFS(G:G,A:A,"="&A6,C:C,"="&C6,F:F,"="&F6),IFERROR(VLOOKUP(B6&E6&F6,'Sub Modules'!A:I,6,FALSE),""))) -> 25 | I6: =IF(D6="Total",SUMIFS(H:H,A:A,"="&A6,B:B,"="&B6,E:E,"=Total",F:F,"="&F6),IFERROR(VLOOKUP(B6&E6&F6,'Sub Modules'!A:I,7,FALSE),"")) ->  | J6: =IF(OR(E6="Total",D6="Total"),IF(I6="",0,I6)-IF(H6="",0,H6),IFERROR(VLOOKUP(B6&E6&F6,'Sub Modules'!A:I,8,FALSE),"")) -> -25 | L6: =IFERROR(IF(VLOOKUP(B6&E6&F6,'Sub Modules'!A:I,9,FALSE)=0,"",VLOOKUP(B6&E6&F6,'Sub Modules'!A:I,9,FALSE)),"") -> 
A7: Energy Array | B7: Albion | C7: A1 | D7: E-Cell Fab 1-2 | E7: Total | F7: Plasma/MA Turret | G7: =IF(OR(E7="Total",D7="Total"),"",IFERROR(VLOOKUP(B7&E7&F7,'Sub Modules'!A:E,5,FALSE),"")) ->  | H7: =IF(D7="Total",SUMIFS(H:H,A:A,"="&A7,B:B,"="&B7,E:E,"=Total",F:F,"="&F7),IF(E7="Total",SUMIFS(G:G,A:A,"="&A7,C:C,"="&C7,F:F,"="&F7),IFERROR(VLOOKUP(B7&E7&F7,'Sub Modules'!A:I,6,FALSE),""))) -> 9 | I7: =IF(D7="Total",SUMIFS(H:H,A:A,"="&A7,B:B,"="&B7,E:E,"=Total",F:F,"="&F7),IFERROR(VLOOKUP(B7&E7&F7,'Sub Modules'!A:I,7,FALSE),"")) ->  | J7: =IF(OR(E7="Total",D7="Total"),IF(I7="",0,I7)-IF(H7="",0,H7),IFERROR(VLOOKUP(B7&E7&F7,'Sub Modules'!A:I,8,FALSE),"")) -> -9 | L7: =IFERROR(IF(VLOOKUP(B7&E7&F7,'Sub Modules'!A:I,9,FALSE)=0,"",VLOOKUP(B7&E7&F7,'Sub Modules'!A:I,9,FALSE)),"") -> 
A8: Energy Array | B8: Albion | C8: A1 | D8: E-Cell Fab 1-2 | E8: Total | F8: Force Field Projector | G8: =IF(OR(E8="Total",D8="Total"),"",IFERROR(VLOOKUP(B8&E8&F8,'Sub Modules'!A:E,5,FALSE),"")) ->  | H8: =IF(D8="Total",SUMIFS(H:H,A:A,"="&A8,B:B,"="&B8,E:E,"=Total",F:F,"="&F8),IF(E8="Total",SUMIFS(G:G,A:A,"="&A8,C:C,"="&C8,F:F,"="&F8),IFERROR(VLOOKUP(B8&E8&F8,'Sub Modules'!A:I,6,FALSE),""))) -> 6 | I8: =IF(D8="Total",SUMIFS(H:H,A:A,"="&A8,B:B,"="&B8,E:E,"=Total",F:F,"="&F8),IFERROR(VLOOKUP(B8&E8&F8,'Sub Modules'!A:I,7,FALSE),"")) ->  | J8: =IF(OR(E8="Total",D8="Total"),IF(I8="",0,I8)-IF(H8="",0,H8),IFERROR(VLOOKUP(B8&E8&F8,'Sub Modules'!A:I,8,FALSE),"")) -> -6 | L8: =IFERROR(IF(VLOOKUP(B8&E8&F8,'Sub Modules'!A:I,9,FALSE)=0,"",VLOOKUP(B8&E8&F8,'Sub Modules'!A:I,9,FALSE)),"") -> 
A9: Energy Array | B9: Albion | C9: A1 | D9: E-Cell Fab 1-2 | E9: Container Storage | F9: Reinforced Metal Plating | G9: =IF(OR(E9="Total",D9="Total"),"",IFERROR(VLOOKUP(B9&E9&F9,'Sub Modules'!A:E,5,FALSE),"")) -> 70 | H9: =IF(D9="Total",SUMIFS(H:H,A:A,"="&A9,B:B,"="&B9,E:E,"=Total",F:F,"="&F9),IF(E9="Total",SUMIFS(G:G,A:A,"="&A9,C:C,"="&C9,F:F,"="&F9),IFERROR(VLOOKUP(B9&E9&F9,'Sub Modules'!A:I,6,FALSE),""))) -> 0 | I9: =IF(D9="Total",SUMIFS(I:I,A:A,"="&A9,B:B,"="&B9,E:E,"=Total",F:F,"="&F9),IFERROR(VLOOKUP(B9&E9&F9,'Sub Modules'!A:I,7,FALSE),"")) -> 0 | J9: =IF(OR(E9="Total",D9="Total"),IF(I9="",0,I9)-IF(H9="",0,H9),IFERROR(VLOOKUP(B9&E9&F9,'Sub Modules'!A:I,8,FALSE),"")) -> 0 | K9: 0 | L9: =IFERROR(IF(VLOOKUP(B9&E9&F9,'Sub Modules'!A:I,9,FALSE)=0,"",VLOOKUP(B9&E9&F9,'Sub Modules'!A:I,9,FALSE)),"") -> 320000
A10: Energy Array | B10: Albion | C10: A1 | D10: E-Cell Fab 1-2 | E10: Container Storage | F10: Energy Cells | G10: =IF(OR(E10="Total",D10="Total"),"",IFERROR(VLOOKUP(B10&E10&F10,'Sub Modules'!A:E,5,FALSE),"")) -> 170 | H10: =IF(D10="Total",SUMIFS(H:H,A:A,"="&A10,B:B,"="&B10,E:E,"=Total",F:F,"="&F10),IF(E10="Total",SUMIFS(G:G,A:A,"="&A10,C:C,"="&C10,F:F,"="&F10),IFERROR(VLOOKUP(B10&E10&F10,'Sub Modules'!A:I,6,FALSE),""))) -> 0 | I10: =IF(D10="Total",SUMIFS(I:I,A:A,"="&A10,B:B,"="&B10,E:E,"=Total",F:F,"="&F10),IFERROR(VLOOKUP(B10&E10&F10,'Sub Modules'!A:I,7,FALSE),"")) -> 0 | J10: =IF(OR(E10="Total",D10="Total"),IF(I10="",0,I10)-IF(H10="",0,H10),IFERROR(VLOOKUP(B10&E10&F10,'Sub Modules'!A:I,8,FALSE),"")) -> 0 | K10: 0 | L10: =IFERROR(IF(VLOOKUP(B10&E10&F10,'Sub Modules'!A:I,9,FALSE)=0,"",VLOOKUP(B10&E10&F10,'Sub Modules'!A:I,9,FALSE)),"") -> 
A11: Energy Array | B11: Albion | C11: A1 | D11: E-Cell Fab 1-2 | E11: Container Storage | F11: Fusion Reactors | G11: =IF(OR(E11="Total",D11="Total"),"",IFERROR(VLOOKUP(B11&E11&F11,'Sub Modules'!A:E,5,FALSE),"")) -> 14 | H11: =IF(D11="Total",SUMIFS(H:H,A:A,"="&A11,B:B,"="&B11,E:E,"=Total",F:F,"="&F11),IF(E11="Total",SUMIFS(G:G,A:A,"="&A11,C:C,"="&C11,F:F,"="&F11),IFERROR(VLOOKUP(B11&E11&F11,'Sub Modules'!A:I,6,FALSE),""))) -> 0 | I11: =IF(D11="Total",SUMIFS(I:I,A:A,"="&A11,B:B,"="&B11,E:E,"=Total",F:F,"="&F11),IFERROR(VLOOKUP(B11&E11&F11,'Sub Modules'!A:I,7,FALSE),"")) -> 0 | J11: =IF(OR(E11="Total",D11="Total"),IF(I11="",0,I11)-IF(H11="",0,H11),IFERROR(VLOOKUP(B11&E11&F11,'Sub Modules'!A:I,8,FALSE),"")) -> 0 | K11: 0 | L11: =IFERROR(IF(VLOOKUP(B11&E11&F11,'Sub Modules'!A:I,9,FALSE)=0,"",VLOOKUP(B11&E11&F11,'Sub Modules'!A:I,9,FALSE)),"") -> 
A12: Energy Array | B12: Albion | C12: A1 | D12: E-Cell Fab 1-2 | E12: Container Storage | F12: HIT/MA Turret | G12: =IF(OR(E12="Total",D12="Total"),"",IFERROR(VLOOKUP(B12&E12&F12,'Sub Modules'!A:E,5,FALSE),"")) -> 7 | H12: =IF(D12="Total",SUMIFS(H:H,A:A,"="&A12,B:B,"="&B12,E:E,"=Total",F:F,"="&F12),IF(E12="Total",SUMIFS(G:G,A:A,"="&A12,C:C,"="&C12,F:F,"="&F12),IFERROR(VLOOKUP(B12&E12&F12,'Sub Modules'!A:I,6,FALSE),""))) -> 0 | I12: =IF(D12="Total",SUMIFS(I:I,A:A,"="&A12,B:B,"="&B12,E:E,"=Total",F:F,"="&F12),IFERROR(VLOOKUP(B12&E12&F12,'Sub Modules'!A:I,7,FALSE),"")) -> 0 | J12: =IF(OR(E12="Total",D12="Total"),IF(I12="",0,I12)-IF(H12="",0,H12),IFERROR(VLOOKUP(B12&E12&F12,'Sub Modules'!A:I,8,FALSE),"")) -> 0 | K12: 0 | L12: =IFERROR(IF(VLOOKUP(B12&E12&F12,'Sub Modules'!A:I,9,FALSE)=0,"",VLOOKUP(B12&E12&F12,'Sub Modules'!A:I,9,FALSE)),"") -> 
A13: Energy Array | B13: Albion | C13: A1 | D13: E-Cell Fab 1-2 | E13: Container Storage | F13: Plasma/MA Turret | G13: =IF(OR(E13="Total",D13="Total"),"",IFERROR(VLOOKUP(B13&E13&F13,'Sub Modules'!A:E,5,FALSE),"")) -> 5 | H13: =IF(D13="Total",SUMIFS(H:H,A:A,"="&A13,B:B,"="&B13,E:E,"=Total",F:F,"="&F13),IF(E13="Total",SUMIFS(G:G,A:A,"="&A13,C:C,"="&C13,F:F,"="&F13),IFERROR(VLOOKUP(B13&E13&F13,'Sub Modules'!A:I,6,FALSE),""))) -> 0 | I13: =IF(D13="Total",SUMIFS(I:I,A:A,"="&A13,B:B,"="&B13,E:E,"=Total",F:F,"="&F13),IFERROR(VLOOKUP(B13&E13&F13,'Sub Modules'!A:I,7,FALSE),"")) -> 0 | J13: =IF(OR(E13="Total",D13="Total"),IF(I13="",0,I13)-IF(H13="",0,H13),IFERROR(VLOOKUP(B13&E13&F13,'Sub Modules'!A:I,8,FALSE),"")) -> 0 | K13: 0 | L13: =IFERROR(IF(VLOOKUP(B13&E13&F13,'Sub Modules'!A:I,9,FALSE)=0,"",VLOOKUP(B13&E13&F13,'Sub Modules'!A:I,9,FALSE)),"") -> 
A14: Energy Array | B14: Albion | C14: A1 | D14: E-Cell Fab 1-2 | E14: Container Storage | F14: Force Field Projector | G14: =IF(OR(E14="Total",D14="Total"),"",IFERROR(VLOOKUP(B14&E14&F14,'Sub Modules'!A:E,5,FALSE),"")) -> 1 | H14: =IF(D14="Total",SUMIFS(H:H,A:A,"="&A14,B:B,"="&B14,E:E,"=Total",F:F,"="&F14),IF(E14="Total",SUMIFS(G:G,A:A,"="&A14,C:C,"="&C14,F:F,"="&F14),IFERROR(VLOOKUP(B14&E14&F14,'Sub Modules'!A:I,6,FALSE),""))) -> 0 | I14: =IF(D14="Total",SUMIFS(I:I,A:A,"="&A14,B:B,"="&B14,E:E,"=Total",F:F,"="&F14),IFERROR(VLOOKUP(B14&E14&F14,'Sub Modules'!A:I,7,FALSE),"")) -> 0 | J14: =IF(OR(E14="Total",D14="Total"),IF(I14="",0,I14)-IF(H14="",0,H14),IFERROR(VLOOKUP(B14&E14&F14,'Sub Modules'!A:I,8,FALSE),"")) -> 0 | K14: 0 | L14: =IFERROR(IF(VLOOKUP(B14&E14&F14,'Sub Modules'!A:I,9,FALSE)=0,"",VLOOKUP(B14&E14&F14,'Sub Modules'!A:I,9,FALSE)),"") -> 
A15: Energy Array | B15: Albion | C15: A1 | D15: E-Cell Fab 1-2 | E15: URV Launcher | F15: Energy Cells | G15: =IF(OR(E15="Total",D15="Total"),"",IFERROR(VLOOKUP(B15&E15&F15,'Sub Modules'!A:E,5,FALSE),"")) -> 114 | H15: =IF(D15="Total",SUMIFS(H:H,A:A,"="&A15,B:B,"="&B15,E:E,"=Total",F:F,"="&F15),IF(E15="Total",SUMIFS(G:G,A:A,"="&A15,C:C,"="&C15,F:F,"="&F15),IFERROR(VLOOKUP(B15&E15&F15,'Sub Modules'!A:I,6,FALSE),""))) -> 0 | I15: =IF(D15="Total",SUMIFS(I:I,A:A,"="&A15,B:B,"="&B15,E:E,"=Total",F:F,"="&F15),IFERROR(VLOOKUP(B15&E15&F15,'Sub Modules'!A:I,7,FALSE),"")) -> 0 | J15: =IF(OR(E15="Total",D15="Total"),IF(I15="",0,I15)-IF(H15="",0,H15),IFERROR(VLOOKUP(B15&E15&F15,'Sub Modules'!A:I,8,FALSE),"")) -> 0 | K15: 0 | L15: =IFERROR(IF(VLOOKUP(B15&E15&F15,'Sub Modules'!A:I,9,FALSE)=0,"",VLOOKUP(B15&E15&F15,'Sub Modules'!A:I,9,FALSE)),"") -> 
A16: Energy Array | B16: Albion | C16: A1 | D16: E-Cell Fab 1-2 | E16: URV Launcher | F16: Fusion Reactors | G16: =IF(OR(E16="Total",D16="Total"),"",IFERROR(VLOOKUP(B16&E16&F16,'Sub Modules'!A:E,5,FALSE),"")) -> 12 | H16: =IF(D16="Total",SUMIFS(H:H,A:A,"="&A16,B:B,"="&B16,E:E,"=Total",F:F,"="&F16),IF(E16="Total",SUMIFS(G:G,A:A,"="&A16,C:C,"="&C16,F:F,"="&F16),IFERROR(VLOOKUP(B16&E16&F16,'Sub Modules'!A:I,6,FALSE),""))) -> 0 | I16: =IF(D16="Total",SUMIFS(I:I,A:A,"="&A16,B:B,"="&B16,E:E,"=Total",F:F,"="&F16),IFERROR(VLOOKUP(B16&E16&F16,'Sub Modules'!A:I,7,FALSE),"")) -> 0 | J16: =IF(OR(E16="Total",D16="Total"),IF(I16="",0,I16)-IF(H16="",0,H16),IFERROR(VLOOKUP(B16&E16&F16,'Sub Modules'!A:I,8,FALSE),"")) -> 0 | K16: 0 | L16: =IFERROR(IF(VLOOKUP(B16&E16&F16,'Sub Modules'!A:I,9,FALSE)=0,"",VLOOKUP(B16&E16&F16,'Sub Modules'!A:I,9,FALSE)),"") -> 
A17: Energy Array | B17: Albion | C17: A1 | D17: E-Cell Fab 1-2 | E17: URV Launcher | F17: Reinforced Metal Plating | G17: =IF(OR(E17="Total",D17="Total"),"",IFERROR(VLOOKUP(B17&E17&F17,'Sub Modules'!A:E,5,FALSE),"")) -> 56 | H17: =IF(D17="Total",SUMIFS(H:H,A:A,"="&A17,B:B,"="&B17,E:E,"=Total",F:F,"="&F17),IF(E17="Total",SUMIFS(G:G,A:A,"="&A17,C:C,"="&C17,F:F,"="&F17),IFERROR(VLOOKUP(B17&E17&F17,'Sub Modules'!A:I,6,FALSE),""))) -> 0 | I17: =IF(D17="Total",SUMIFS(I:I,A:A,"="&A17,B:B,"="&B17,E:E,"=Total",F:F,"="&F17),IFERROR(VLOOKUP(B17&E17&F17,'Sub Modules'!A:I,7,FALSE),"")) -> 0 | J17: =IF(OR(E17="Total",D17="Total"),IF(I17="",0,I17)-IF(H17="",0,H17),IFERROR(VLOOKUP(B17&E17&F17,'Sub Modules'!A:I,8,FALSE),"")) -> 0 | K17: 0 | L17: =IFERROR(IF(VLOOKUP(B17&E17&F17,'Sub Modules'!A:I,9,FALSE)=0,"",VLOOKUP(B17&E17&F17,'Sub Modules'!A:I,9,FALSE)),"") -> 
A18: Energy Array | B18: Albion | C18: A1 | D18: E-Cell Fab 1-2 | E18: Zoltek Bridge | F18: Energy Cells | G18: =IF(OR(E18="Total",D18="Total"),"",IFERROR(VLOOKUP(B18&E18&F18,'Sub Modules'!A:E,5,FALSE),"")) -> 242 | H18: =IF(D18="Total",SUMIFS(H:H,A:A,"="&A18,B:B,"="&B18,E:E,"=Total",F:F,"="&F18),IF(E18="Total",SUMIFS(G:G,A:A,"="&A18,C:C,"="&C18,F:F,"="&F18),IFERROR(VLOOKUP(B18&E18&F18,'Sub Modules'!A:I,6,FALSE),""))) -> 0 | I18: =IF(D18="Total",SUMIFS(I:I,A:A,"="&A18,B:B,"="&B18,E:E,"=Total",F:F,"="&F18),IFERROR(VLOOKUP(B18&E18&F18,'Sub Modules'!A:I,7,FALSE),"")) -> 0 | J18: =IF(OR(E18="Total",D18="Total"),IF(I18="",0,I18)-IF(H18="",0,H18),IFERROR(VLOOKUP(B18&E18&F18,'Sub Modules'!A:I,8,FALSE),"")) -> 3 | K18: 0 | L18: =IFERROR(IF(VLOOKUP(B18&E18&F18,'Sub Modules'!A:I,9,FALSE)=0,"",VLOOKUP(B18&E18&F18,'Sub Modules'!A:I,9,FALSE)),"") -> 
A19: Energy Array | B19: Albion | C19: A1 | D19: E-Cell Fab 1-2 | E19: Zoltek Bridge | F19: Force Field Projector | G19: =IF(OR(E19="Total",D19="Total"),"",IFERROR(VLOOKUP(B19&E19&F19,'Sub Modules'!A:E,5,FALSE),"")) -> 1 | H19: =IF(D19="Total",SUMIFS(H:H,A:A,"="&A19,B:B,"="&B19,E:E,"=Total",F:F,"="&F19),IF(E19="Total",SUMIFS(G:G,A:A,"="&A19,C:C,"="&C19,F:F,"="&F19),IFERROR(VLOOKUP(B19&E19&F19,'Sub Modules'!A:I,6,FALSE),""))) -> 0 | I19: =IF(D19="Total",SUMIFS(I:I,A:A,"="&A19,B:B,"="&B19,E:E,"=Total",F:F,"="&F19),IFERROR(VLOOKUP(B19&E19&F19,'Sub Modules'!A:I,7,FALSE),"")) -> 0 | J19: =IF(OR(E19="Total",D19="Total"),IF(I19="",0,I19)-IF(H19="",0,H19),IFERROR(VLOOKUP(B19&E19&F19,'Sub Modules'!A:I,8,FALSE),"")) -> 0 | K19: 0 | L19: =IFERROR(IF(VLOOKUP(B19&E19&F19,'Sub Modules'!A:I,9,FALSE)=0,"",VLOOKUP(B19&E19&F19,'Sub Modules'!A:I,9,FALSE)),"") -> 
A20: Energy Array | B20: Albion | C20: A1 | D20: E-Cell Fab 1-2 | E20: Zoltek Bridge | F20: Fusion Reactors | G20: =IF(OR(E20="Total",D20="Total"),"",IFERROR(VLOOKUP(B20&E20&F20,'Sub Modules'!A:E,5,FALSE),"")) -> 18 | H20: =IF(D20="Total",SUMIFS(H:H,A:A,"="&A20,B:B,"="&B20,E:E,"=Total",F:F,"="&F20),IF(E20="Total",SUMIFS(G:G,A:A,"="&A20,C:C,"="&C20,F:F,"="&F20),IFERROR(VLOOKUP(B20&E20&F20,'Sub Modules'!A:I,6,FALSE),""))) -> 0 | I20: =IF(D20="Total",SUMIFS(I:I,A:A,"="&A20,B:B,"="&B20,E:E,"=Total",F:F,"="&F20),IFERROR(VLOOKUP(B20&E20&F20,'Sub Modules'!A:I,7,FALSE),"")) -> 0 | J20: =IF(OR(E20="Total",D20="Total"),IF(I20="",0,I20)-IF(H20="",0,H20),IFERROR(VLOOKUP(B20&E20&F20,'Sub Modules'!A:I,8,FALSE),"")) -> 0 | K20: 0 | L20: =IFERROR(IF(VLOOKUP(B20&E20&F20,'Sub Modules'!A:I,9,FALSE)=0,"",VLOOKUP(B20&E20&F20,'Sub Modules'!A:I,9,FALSE)),"") -> 
A21: Energy Array | B21: Albion | C21: A1 | D21: E-Cell Fab 1-2 | E21: Zoltek Bridge | F21: Reinforced Metal Plating | G21: =IF(OR(E21="Total",D21="Total"),"",IFERROR(VLOOKUP(B21&E21&F21,'Sub Modules'!A:E,5,FALSE),"")) -> 86 | H21: =IF(D21="Total",SUMIFS(H:H,A:A,"="&A21,B:B,"="&B21,E:E,"=Total",F:F,"="&F21),IF(E21="Total",SUMIFS(G:G,A:A,"="&A21,C:C,"="&C21,F:F,"="&F21),IFERROR(VLOOKUP(B21&E21&F21,'Sub Modules'!A:I,6,FALSE),""))) -> 0 | I21: =IF(D21="Total",SUMIFS(I:I,A:A,"="&A21,B:B,"="&B21,E:E,"=Total",F:F,"="&F21),IFERROR(VLOOKUP(B21&E21&F21,'Sub Modules'!A:I,7,FALSE),"")) -> 0 | J21: =IF(OR(E21="Total",D21="Total"),IF(I21="",0,I21)-IF(H21="",0,H21),IFERROR(VLOOKUP(B21&E21&F21,'Sub Modules'!A:I,8,FALSE),"")) -> 0 | K21: 0 | L21: =IFERROR(IF(VLOOKUP(B21&E21&F21,'Sub Modules'!A:I,9,FALSE)=0,"",VLOOKUP(B21&E21&F21,'Sub Modules'!A:I,9,FALSE)),"") -> 
A22: Energy Array | B22: Albion | C22: A1 | D22: E-Cell Fab 1-2 | E22: Zoltek Bridge | F22: Energy Cells | G22: =IF(OR(E22="Total",D22="Total"),"",IFERROR(VLOOKUP(B22&E22&F22,'Sub Modules'!A:E,5,FALSE),"")) -> 242 | H22: =IF(D22="Total",SUMIFS(H:H,A:A,"="&A22,B:B,"="&B22,E:E,"=Total",F:F,"="&F22),IF(E22="Total",SUMIFS(G:G,A:A,"="&A22,C:C,"="&C22,F:F,"="&F22),IFERROR(VLOOKUP(B22&E22&F22,'Sub Modules'!A:I,6,FALSE),""))) -> 0 | I22: =IF(D22="Total",SUMIFS(I:I,A:A,"="&A22,B:B,"="&B22,E:E,"=Total",F:F,"="&F22),IFERROR(VLOOKUP(B22&E22&F22,'Sub Modules'!A:I,7,FALSE),"")) -> 0 | J22: =IF(OR(E22="Total",D22="Total"),IF(I22="",0,I22)-IF(H22="",0,H22),IFERROR(VLOOKUP(B22&E22&F22,'Sub Modules'!A:I,8,FALSE),"")) -> 3 | K22: 0 | L22: =IFERROR(IF(VLOOKUP(B22&E22&F22,'Sub Modules'!A:I,9,FALSE)=0,"",VLOOKUP(B22&E22&F22,'Sub Modules'!A:I,9,FALSE)),"") -> 
A23: Energy Array | B23: Albion | C23: A1 | D23: E-Cell Fab 1-2 | E23: Zoltek Bridge | F23: Force Field Projector | G23: =IF(OR(E23="Total",D23="Total"),"",IFERROR(VLOOKUP(B23&E23&F23,'Sub Modules'!A:E,5,FALSE),"")) -> 1 | H23: =IF(D23="Total",SUMIFS(H:H,A:A,"="&A23,B:B,"="&B23,E:E,"=Total",F:F,"="&F23),IF(E23="Total",SUMIFS(G:G,A:A,"="&A23,C:C,"="&C23,F:F,"="&F23),IFERROR(VLOOKUP(B23&E23&F23,'Sub Modules'!A:I,6,FALSE),""))) -> 0 | I23: =IF(D23="Total",SUMIFS(I:I,A:A,"="&A23,B:B,"="&B23,E:E,"=Total",F:F,"="&F23),IFERROR(VLOOKUP(B23&E23&F23,'Sub Modules'!A:I,7,FALSE),"")) -> 0 | J23: =IF(OR(E23="Total",D23="Total"),IF(I23="",0,I23)-IF(H23="",0,H23),IFERROR(VLOOKUP(B23&E23&F23,'Sub Modules'!A:I,8,FALSE),"")) -> 0 | K23: 0 | L23: =IFERROR(IF(VLOOKUP(B23&E23&F23,'Sub Modules'!A:I,9,FALSE)=0,"",VLOOKUP(B23&E23&F23,'Sub Modules'!A:I,9,FALSE)),"") -> 
A24: Energy Array | B24: Albion | C24: A1 | D24: E-Cell Fab 1-2 | E24: Zoltek Bridge | F24: Fusion Reactors | G24: =IF(OR(E24="Total",D24="Total"),"",IFERROR(VLOOKUP(B24&E24&F24,'Sub Modules'!A:E,5,FALSE),"")) -> 18 | H24: =IF(D24="Total",SUMIFS(H:H,A:A,"="&A24,B:B,"="&B24,E:E,"=Total",F:F,"="&F24),IF(E24="Total",SUMIFS(G:G,A:A,"="&A24,C:C,"="&C24,F:F,"="&F24),IFERROR(VLOOKUP(B24&E24&F24,'Sub Modules'!A:I,6,FALSE),""))) -> 0 | I24: =IF(D24="Total",SUMIFS(I:I,A:A,"="&A24,B:B,"="&B24,E:E,"=Total",F:F,"="&F24),IFERROR(VLOOKUP(B24&E24&F24,'Sub Modules'!A:I,7,FALSE),"")) -> 0 | J24: =IF(OR(E24="Total",D24="Total"),IF(I24="",0,I24)-IF(H24="",0,H24),IFERROR(VLOOKUP(B24&E24&F24,'Sub Modules'!A:I,8,FALSE),"")) -> 0 | K24: 0 | L24: =IFERROR(IF(VLOOKUP(B24&E24&F24,'Sub Modules'!A:I,9,FALSE)=0,"",VLOOKUP(B24&E24&F24,'Sub Modules'!A:I,9,FALSE)),"") -> 
A25: Energy Array | B25: Albion | C25: A1 | D25: E-Cell Fab 1-2 | E25: Zoltek Bridge | F25: Reinforced Metal Plating | G25: =IF(OR(E25="Total",D25="Total"),"",IFERROR(VLOOKUP(B25&E25&F25,'Sub Modules'!A:E,5,FALSE),"")) -> 86 | H25: =IF(D25="Total",SUMIFS(H:H,A:A,"="&A25,B:B,"="&B25,E:E,"=Total",F:F,"="&F25),IF(E25="Total",SUMIFS(G:G,A:A,"="&A25,C:C,"="&C25,F:F,"="&F25),IFERROR(VLOOKUP(B25&E25&F25,'Sub Modules'!A:I,6,FALSE),""))) -> 0 | I25: =IF(D25="Total",SUMIFS(I:I,A:A,"="&A25,B:B,"="&B25,E:E,"=Total",F:F,"="&F25),IFERROR(VLOOKUP(B25&E25&F25,'Sub Modules'!A:I,7,FALSE),"")) -> 0 | J25: =IF(OR(E25="Total",D25="Total"),IF(I25="",0,I25)-IF(H25="",0,H25),IFERROR(VLOOKUP(B25&E25&F25,'Sub Modules'!A:I,8,FALSE),"")) -> 0 | K25: 0 | L25: =IFERROR(IF(VLOOKUP(B25&E25&F25,'Sub Modules'!A:I,9,FALSE)=0,"",VLOOKUP(B25&E25&F25,'Sub Modules'!A:I,9,FALSE)),"") -> 
A26: Energy Array | B26: Albion | C26: A1 | D26: E-Cell Fab 1-2 | E26: Tesla Duo-Charger | F26: Energy Cells | G26: =IF(OR(E26="Total",D26="Total"),"",IFERROR(VLOOKUP(B26&E26&F26,'Sub Modules'!A:E,5,FALSE),"")) -> 290 | H26: =IF(D26="Total",SUMIFS(H:H,A:A,"="&A26,B:B,"="&B26,E:E,"=Total",F:F,"="&F26),IF(E26="Total",SUMIFS(G:G,A:A,"="&A26,C:C,"="&C26,F:F,"="&F26),IFERROR(VLOOKUP(B26&E26&F26,'Sub Modules'!A:I,6,FALSE),""))) -> 0 | I26: =IF(D26="Total",SUMIFS(I:I,A:A,"="&A26,B:B,"="&B26,E:E,"=Total",F:F,"="&F26),IFERROR(VLOOKUP(B26&E26&F26,'Sub Modules'!A:I,7,FALSE),"")) -> 0 | J26: =IF(OR(E26="Total",D26="Total"),IF(I26="",0,I26)-IF(H26="",0,H26),IFERROR(VLOOKUP(B26&E26&F26,'Sub Modules'!A:I,8,FALSE),"")) -> 0 | K26: 0 | L26: =IFERROR(IF(VLOOKUP(B26&E26&F26,'Sub Modules'!A:I,9,FALSE)=0,"",VLOOKUP(B26&E26&F26,'Sub Modules'!A:I,9,FALSE)),"") -> 320000
A27: Energy Array | B27: Albion | C27: A1 | D27: E-Cell Fab 1-2 | E27: Tesla Duo-Charger | F27: Fusion Reactors | G27: =IF(OR(E27="Total",D27="Total"),"",IFERROR(VLOOKUP(B27&E27&F27,'Sub Modules'!A:E,5,FALSE),"")) -> 22 | H27: =IF(D27="Total",SUMIFS(H:H,A:A,"="&A27,B:B,"="&B27,E:E,"=Total",F:F,"="&F27),IF(E27="Total",SUMIFS(G:G,A:A,"="&A27,C:C,"="&C27,F:F,"="&F27),IFERROR(VLOOKUP(B27&E27&F27,'Sub Modules'!A:I,6,FALSE),""))) -> 0 | I27: =IF(D27="Total",SUMIFS(I:I,A:A,"="&A27,B:B,"="&B27,E:E,"=Total",F:F,"="&F27),IFERROR(VLOOKUP(B27&E27&F27,'Sub Modules'!A:I,7,FALSE),"")) -> 0 | J27: =IF(OR(E27="Total",D27="Total"),IF(I27="",0,I27)-IF(H27="",0,H27),IFERROR(VLOOKUP(B27&E27&F27,'Sub Modules'!A:I,8,FALSE),"")) -> 0 | K27: 0 | L27: =IFERROR(IF(VLOOKUP(B27&E27&F27,'Sub Modules'!A:I,9,FALSE)=0,"",VLOOKUP(B27&E27&F27,'Sub Modules'!A:I,9,FALSE)),"") -> 
A28: Energy Array | B28: Albion | C28: A1 | D28: E-Cell Fab 1-2 | E28: Tesla Duo-Charger | F28: HIT/MA Turret | G28: =IF(OR(E28="Total",D28="Total"),"",IFERROR(VLOOKUP(B28&E28&F28,'Sub Modules'!A:E,5,FALSE),"")) -> 8 | H28: =IF(D28="Total",SUMIFS(H:H,A:A,"="&A28,B:B,"="&B28,E:E,"=Total",F:F,"="&F28),IF(E28="Total",SUMIFS(G:G,A:A,"="&A28,C:C,"="&C28,F:F,"="&F28),IFERROR(VLOOKUP(B28&E28&F28,'Sub Modules'!A:I,6,FALSE),""))) -> 0 | I28: =IF(D28="Total",SUMIFS(I:I,A:A,"="&A28,B:B,"="&B28,E:E,"=Total",F:F,"="&F28),IFERROR(VLOOKUP(B28&E28&F28,'Sub Modules'!A:I,7,FALSE),"")) -> 0 | J28: =IF(OR(E28="Total",D28="Total"),IF(I28="",0,I28)-IF(H28="",0,H28),IFERROR(VLOOKUP(B28&E28&F28,'Sub Modules'!A:I,8,FALSE),"")) -> 0 | K28: 0 | L28: =IFERROR(IF(VLOOKUP(B28&E28&F28,'Sub Modules'!A:I,9,FALSE)=0,"",VLOOKUP(B28&E28&F28,'Sub Modules'!A:I,9,FALSE)),"") -> 
A29: Energy Array | B29: Albion | C29: A1 | D29: E-Cell Fab 1-2 | E29: Tesla Duo-Charger | F29: Force Field Projector | G29: =IF(OR(E29="Total",D29="Total"),"",IFERROR(VLOOKUP(B29&E29&F29,'Sub Modules'!A:E,5,FALSE),"")) -> 1 | H29: =IF(D29="Total",SUMIFS(H:H,A:A,"="&A29,B:B,"="&B29,E:E,"=Total",F:F,"="&F29),IF(E29="Total",SUMIFS(G:G,A:A,"="&A29,C:C,"="&C29,F:F,"="&F29),IFERROR(VLOOKUP(B29&E29&F29,'Sub Modules'!A:I,6,FALSE),""))) -> 0 | I29: =IF(D29="Total",SUMIFS(I:I,A:A,"="&A29,B:B,"="&B29,E:E,"=Total",F:F,"="&F29),IFERROR(VLOOKUP(B29&E29&F29,'Sub Modules'!A:I,7,FALSE),"")) -> 0 | J29: =IF(OR(E29="Total",D29="Total"),IF(I29="",0,I29)-IF(H29="",0,H29),IFERROR(VLOOKUP(B29&E29&F29,'Sub Modules'!A:I,8,FALSE),"")) -> 0 | K29: 0 | L29: =IFERROR(IF(VLOOKUP(B29&E29&F29,'Sub Modules'!A:I,9,FALSE)=0,"",VLOOKUP(B29&E29&F29,'Sub Modules'!A:I,9,FALSE)),"") -> 
A30: Energy Array | B30: Albion | C30: A1 | D30: E-Cell Fab 1-2 | E30: Tesla Duo-Charger | F30: Reinforced Metal Plating | G30: =IF(OR(E30="Total",D30="Total"),"",IFERROR(VLOOKUP(B30&E30&F30,'Sub Modules'!A:E,5,FALSE),"")) -> 108 | H30: =IF(D30="Total",SUMIFS(H:H,A:A,"="&A30,B:B,"="&B30,E:E,"=Total",F:F,"="&F30),IF(E30="Total",SUMIFS(G:G,A:A,"="&A30,C:C,"="&C30,F:F,"="&F30),IFERROR(VLOOKUP(B30&E30&F30,'Sub Modules'!A:I,6,FALSE),""))) -> 0 | I30: =IF(D30="Total",SUMIFS(I:I,A:A,"="&A30,B:B,"="&B30,E:E,"=Total",F:F,"="&F30),IFERROR(VLOOKUP(B30&E30&F30,'Sub Modules'!A:I,7,FALSE),"")) -> 0 | J30: =IF(OR(E30="Total",D30="Total"),IF(I30="",0,I30)-IF(H30="",0,H30),IFERROR(VLOOKUP(B30&E30&F30,'Sub Modules'!A:I,8,FALSE),"")) -> 0 | K30: 0 | L30: =IFERROR(IF(VLOOKUP(B30&E30&F30,'Sub Modules'!A:I,9,FALSE)=0,"",VLOOKUP(B30&E30&F30,'Sub Modules'!A:I,9,FALSE)),"") -> 
A31: Energy Array | B31: Albion | C31: A1 | D31: E-Cell Fab 1-2 | E31: E-Cell Fab | F31: Bio-Optic Wiring | G31: =IF(OR(E31="Total",D31="Total"),"",IFERROR(VLOOKUP(B31&E31&F31,'Sub Modules'!A:E,5,FALSE),"")) -> 646 | H31: =IF(D31="Total",SUMIFS(H:H,A:A,"="&A31,B:B,"="&B31,E:E,"=Total",F:F,"="&F31),IF(E31="Total",SUMIFS(G:G,A:A,"="&A31,C:C,"="&C31,F:F,"="&F31),IFERROR(VLOOKUP(B31&E31&F31,'Sub Modules'!A:I,6,FALSE),""))) -> 0 | I31: =IF(D31="Total",SUMIFS(I:I,A:A,"="&A31,B:B,"="&B31,E:E,"=Total",F:F,"="&F31),IFERROR(VLOOKUP(B31&E31&F31,'Sub Modules'!A:I,7,FALSE),"")) -> 0 | J31: =IF(OR(E31="Total",D31="Total"),IF(I31="",0,I31)-IF(H31="",0,H31),IFERROR(VLOOKUP(B31&E31&F31,'Sub Modules'!A:I,8,FALSE),"")) -> 0 | K31: 0 | L31: =IFERROR(IF(VLOOKUP(B31&E31&F31,'Sub Modules'!A:I,9,FALSE)=0,"",VLOOKUP(B31&E31&F31,'Sub Modules'!A:I,9,FALSE)),"") -> 
A32: Energy Array | B32: Albion | C32: A1 | D32: E-Cell Fab 1-2 | E32: E-Cell Fab | F32: Bio-Optic Wiring | G32: =IF(OR(E32="Total",D32="Total"),"",IFERROR(VLOOKUP(B32&E32&F32,'Sub Modules'!A:E,5,FALSE),"")) -> 646 | H32: =IF(D32="Total",SUMIFS(H:H,A:A,"="&A32,B:B,"="&B32,E:E,"=Total",F:F,"="&F32),IF(E32="Total",SUMIFS(G:G,A:A,"="&A32,C:C,"="&C32,F:F,"="&F32),IFERROR(VLOOKUP(B32&E32&F32,'Sub Modules'!A:I,6,FALSE),""))) -> 0 | I32: =IF(D32="Total",SUMIFS(I:I,A:A,"="&A32,B:B,"="&B32,E:E,"=Total",F:F,"="&F32),IFERROR(VLOOKUP(B32&E32&F32,'Sub Modules'!A:I,7,FALSE),"")) -> 0 | J32: =IF(OR(E32="Total",D32="Total"),IF(I32="",0,I32)-IF(H32="",0,H32),IFERROR(VLOOKUP(B32&E32&F32,'Sub Modules'!A:I,8,FALSE),"")) -> 0 | K32: 0 | L32: =IFERROR(IF(VLOOKUP(B32&E32&F32,'Sub Modules'!A:I,9,FALSE)=0,"",VLOOKUP(B32&E32&F32,'Sub Modules'!A:I,9,FALSE)),"") -> 
A33: Energy Array | B33: Albion | C33: A1 | D33: E-Cell Fab 1-2 | E33: E-Cell Fab | F33: Energy Cells | G33: =IF(OR(E33="Total",D33="Total"),"",IFERROR(VLOOKUP(B33&E33&F33,'Sub Modules'!A:E,5,FALSE),"")) -> 714 | H33: =IF(D33="Total",SUMIFS(H:H,A:A,"="&A33,B:B,"="&B33,E:E,"=Total",F:F,"="&F33),IF(E33="Total",SUMIFS(G:G,A:A,"="&A33,C:C,"="&C33,F:F,"="&F33),IFERROR(VLOOKUP(B33&E33&F33,'Sub Modules'!A:I,6,FALSE),""))) -> 7891 | I33: =IF(D33="Total",SUMIFS(I:I,A:A,"="&A33,B:B,"="&B33,E:E,"=Total",F:F,"="&F33),IFERROR(VLOOKUP(B33&E33&F33,'Sub Modules'!A:I,7,FALSE),"")) -> 0 | J33: =IF(OR(E33="Total",D33="Total"),IF(I33="",0,I33)-IF(H33="",0,H33),IFERROR(VLOOKUP(B33&E33&F33,'Sub Modules'!A:I,8,FALSE),"")) -> 0 | K33: 10731 | L33: =IFERROR(IF(VLOOKUP(B33&E33&F33,'Sub Modules'!A:I,9,FALSE)=0,"",VLOOKUP(B33&E33&F33,'Sub Modules'!A:I,9,FALSE)),"") -> 
A34: Energy Array | B34: Albion | C34: A1 | D34: E-Cell Fab 1-2 | E34: E-Cell Fab | F34: Energy Cells | G34: =IF(OR(E34="Total",D34="Total"),"",IFERROR(VLOOKUP(B34&E34&F34,'Sub Modules'!A:E,5,FALSE),"")) -> 714 | H34: =IF(D34="Total",SUMIFS(H:H,A:A,"="&A34,B:B,"="&B34,E:E,"=Total",F:F,"="&F34),IF(E34="Total",SUMIFS(G:G,A:A,"="&A34,C:C,"="&C34,F:F,"="&F34),IFERROR(VLOOKUP(B34&E34&F34,'Sub Modules'!A:I,6,FALSE),""))) -> 7891 | I34: =IF(D34="Total",SUMIFS(I:I,A:A,"="&A34,B:B,"="&B34,E:E,"=Total",F:F,"="&F34),IFERROR(VLOOKUP(B34&E34&F34,'Sub Modules'!A:I,7,FALSE),"")) -> 0 | J34: =IF(OR(E34="Total",D34="Total"),IF(I34="",0,I34)-IF(H34="",0,H34),IFERROR(VLOOKUP(B34&E34&F34,'Sub Modules'!A:I,8,FALSE),"")) -> 0 | K34: 10731 | L34: =IFERROR(IF(VLOOKUP(B34&E34&F34,'Sub Modules'!A:I,9,FALSE)=0,"",VLOOKUP(B34&E34&F34,'Sub Modules'!A:I,9,FALSE)),"") -> 
A35: Energy Array | B35: Albion | C35: A1 | D35: E-Cell Fab 1-2 | E35: E-Cell Fab | F35: Food Rations | G35: =IF(OR(E35="Total",D35="Total"),"",IFERROR(VLOOKUP(B35&E35&F35,'Sub Modules'!A:E,5,FALSE),"")) -> 0 | H35: =IF(D35="Total",SUMIFS(H:H,A:A,"="&A35,B:B,"="&B35,E:E,"=Total",F:F,"="&F35),IF(E35="Total",SUMIFS(G:G,A:A,"="&A35,C:C,"="&C35,F:F,"="&F35),IFERROR(VLOOKUP(B35&E35&F35,'Sub Modules'!A:I,6,FALSE),""))) -> 0 | I35: =IF(D35="Total",SUMIFS(I:I,A:A,"="&A35,B:B,"="&B35,E:E,"=Total",F:F,"="&F35),IFERROR(VLOOKUP(B35&E35&F35,'Sub Modules'!A:I,7,FALSE),"")) -> -48 | J35: =IF(OR(E35="Total",D35="Total"),IF(I35="",0,I35)-IF(H35="",0,H35),IFERROR(VLOOKUP(B35&E35&F35,'Sub Modules'!A:I,8,FALSE),"")) -> 15 | K35: -48 | L35: =IFERROR(IF(VLOOKUP(B35&E35&F35,'Sub Modules'!A:I,9,FALSE)=0,"",VLOOKUP(B35&E35&F35,'Sub Modules'!A:I,9,FALSE)),"") -> 
A36: Energy Array | B36: Albion | C36: A1 | D36: E-Cell Fab 1-2 | E36: E-Cell Fab | F36: Food Rations | G36: =IF(OR(E36="Total",D36="Total"),"",IFERROR(VLOOKUP(B36&E36&F36,'Sub Modules'!A:E,5,FALSE),"")) -> 0 | H36: =IF(D36="Total",SUMIFS(H:H,A:A,"="&A36,B:B,"="&B36,E:E,"=Total",F:F,"="&F36),IF(E36="Total",SUMIFS(G:G,A:A,"="&A36,C:C,"="&C36,F:F,"="&F36),IFERROR(VLOOKUP(B36&E36&F36,'Sub Modules'!A:I,6,FALSE),""))) -> 0 | I36: =IF(D36="Total",SUMIFS(I:I,A:A,"="&A36,B:B,"="&B36,E:E,"=Total",F:F,"="&F36),IFERROR(VLOOKUP(B36&E36&F36,'Sub Modules'!A:I,7,FALSE),"")) -> -48 | J36: =IF(OR(E36="Total",D36="Total"),IF(I36="",0,I36)-IF(H36="",0,H36),IFERROR(VLOOKUP(B36&E36&F36,'Sub Modules'!A:I,8,FALSE),"")) -> 15 | K36: -48 | L36: =IFERROR(IF(VLOOKUP(B36&E36&F36,'Sub Modules'!A:I,9,FALSE)=0,"",VLOOKUP(B36&E36&F36,'Sub Modules'!A:I,9,FALSE)),"") -> 
A37: Energy Array | B37: Albion | C37: A1 | D37: E-Cell Fab 1-2 | E37: E-Cell Fab | F37: Force Field Projector | G37: =IF(OR(E37="Total",D37="Total"),"",IFERROR(VLOOKUP(B37&E37&F37,'Sub Modules'!A:E,5,FALSE),"")) -> 1 | H37: =IF(D37="Total",SUMIFS(H:H,A:A,"="&A37,B:B,"="&B37,E:E,"=Total",F:F,"="&F37),IF(E37="Total",SUMIFS(G:G,A:A,"="&A37,C:C,"="&C37,F:F,"="&F37),IFERROR(VLOOKUP(B37&E37&F37,'Sub Modules'!A:I,6,FALSE),""))) -> 0 | I37: =IF(D37="Total",SUMIFS(I:I,A:A,"="&A37,B:B,"="&B37,E:E,"=Total",F:F,"="&F37),IFERROR(VLOOKUP(B37&E37&F37,'Sub Modules'!A:I,7,FALSE),"")) -> 0 | J37: =IF(OR(E37="Total",D37="Total"),IF(I37="",0,I37)-IF(H37="",0,H37),IFERROR(VLOOKUP(B37&E37&F37,'Sub Modules'!A:I,8,FALSE),"")) -> 0 | K37: 0 | L37: =IFERROR(IF(VLOOKUP(B37&E37&F37,'Sub Modules'!A:I,9,FALSE)=0,"",VLOOKUP(B37&E37&F37,'Sub Modules'!A:I,9,FALSE)),"") -> 
A38: Energy Array | B38: Albion | C38: A1 | D38: E-Cell Fab 1-2 | E38: E-Cell Fab | F38: Force Field Projector | G38: =IF(OR(E38="Total",D38="Total"),"",IFERROR(VLOOKUP(B38&E38&F38,'Sub Modules'!A:E,5,FALSE),"")) -> 1 | H38: =IF(D38="Total",SUMIFS(H:H,A:A,"="&A38,B:B,"="&B38,E:E,"=Total",F:F,"="&F38),IF(E38="Total",SUMIFS(G:G,A:A,"="&A38,C:C,"="&C38,F:F,"="&F38),IFERROR(VLOOKUP(B38&E38&F38,'Sub Modules'!A:I,6,FALSE),""))) -> 0 | I38: =IF(D38="Total",SUMIFS(I:I,A:A,"="&A38,B:B,"="&B38,E:E,"=Total",F:F,"="&F38),IFERROR(VLOOKUP(B38&E38&F38,'Sub Modules'!A:I,7,FALSE),"")) -> 0 | J38: =IF(OR(E38="Total",D38="Total"),IF(I38="",0,I38)-IF(H38="",0,H38),IFERROR(VLOOKUP(B38&E38&F38,'Sub Modules'!A:I,8,FALSE),"")) -> 0 | K38: 0 | L38: =IFERROR(IF(VLOOKUP(B38&E38&F38,'Sub Modules'!A:I,9,FALSE)=0,"",VLOOKUP(B38&E38&F38,'Sub Modules'!A:I,9,FALSE)),"") -> 
A39: Energy Array | B39: Albion | C39: A1 | D39: E-Cell Fab 1-2 | E39: E-Cell Fab | F39: Fusion Reactors | G39: =IF(OR(E39="Total",D39="Total"),"",IFERROR(VLOOKUP(B39&E39&F39,'Sub Modules'!A:E,5,FALSE),"")) -> 90 | H39: =IF(D39="Total",SUMIFS(H:H,A:A,"="&A39,B:B,"="&B39,E:E,"=Total",F:F,"="&F39),IF(E39="Total",SUMIFS(G:G,A:A,"="&A39,C:C,"="&C39,F:F,"="&F39),IFERROR(VLOOKUP(B39&E39&F39,'Sub Modules'!A:I,6,FALSE),""))) -> 0 | I39: =IF(D39="Total",SUMIFS(I:I,A:A,"="&A39,B:B,"="&B39,E:E,"=Total",F:F,"="&F39),IFERROR(VLOOKUP(B39&E39&F39,'Sub Modules'!A:I,7,FALSE),"")) -> 0 | J39: =IF(OR(E39="Total",D39="Total"),IF(I39="",0,I39)-IF(H39="",0,H39),IFERROR(VLOOKUP(B39&E39&F39,'Sub Modules'!A:I,8,FALSE),"")) -> 0 | K39: 0 | L39: =IFERROR(IF(VLOOKUP(B39&E39&F39,'Sub Modules'!A:I,9,FALSE)=0,"",VLOOKUP(B39&E39&F39,'Sub Modules'!A:I,9,FALSE)),"") -> 
A40: Energy Array | B40: Albion | C40: A1 | D40: E-Cell Fab 1-2 | E40: E-Cell Fab | F40: Fusion Reactors | G40: =IF(OR(E40="Total",D40="Total"),"",IFERROR(VLOOKUP(B40&E40&F40,'Sub Modules'!A:E,5,FALSE),"")) -> 90 | H40: =IF(D40="Total",SUMIFS(H:H,A:A,"="&A40,B:B,"="&B40,E:E,"=Total",F:F,"="&F40),IF(E40="Total",SUMIFS(G:G,A:A,"="&A40,C:C,"="&C40,F:F,"="&F40),IFERROR(VLOOKUP(B40&E40&F40,'Sub Modules'!A:I,6,FALSE),""))) -> 0 | I40: =IF(D40="Total",SUMIFS(I:I,A:A,"="&A40,B:B,"="&B40,E:E,"=Total",F:F,"="&F40),IFERROR(VLOOKUP(B40&E40&F40,'Sub Modules'!A:I,7,FALSE),"")) -> 0 | J40: =IF(OR(E40="Total",D40="Total"),IF(I40="",0,I40)-IF(H40="",0,H40),IFERROR(VLOOKUP(B40&E40&F40,'Sub Modules'!A:I,8,FALSE),"")) -> 0 | K40: 0 | L40: =IFERROR(IF(VLOOKUP(B40&E40&F40,'Sub Modules'!A:I,9,FALSE)=0,"",VLOOKUP(B40&E40&F40,'Sub Modules'!A:I,9,FALSE)),"") -> 
A41: Energy Array | B41: Albion | C41: A1 | D41: E-Cell Fab 1-2 | E41: E-Cell Fab | F41: HIT/MA Turret | G41: =IF(OR(E41="Total",D41="Total"),"",IFERROR(VLOOKUP(B41&E41&F41,'Sub Modules'!A:E,5,FALSE),"")) -> 5 | H41: =IF(D41="Total",SUMIFS(H:H,A:A,"="&A41,B:B,"="&B41,E:E,"=Total",F:F,"="&F41),IF(E41="Total",SUMIFS(G:G,A:A,"="&A41,C:C,"="&C41,F:F,"="&F41),IFERROR(VLOOKUP(B41&E41&F41,'Sub Modules'!A:I,6,FALSE),""))) -> 0 | I41: =IF(D41="Total",SUMIFS(I:I,A:A,"="&A41,B:B,"="&B41,E:E,"=Total",F:F,"="&F41),IFERROR(VLOOKUP(B41&E41&F41,'Sub Modules'!A:I,7,FALSE),"")) -> 0 | J41: =IF(OR(E41="Total",D41="Total"),IF(I41="",0,I41)-IF(H41="",0,H41),IFERROR(VLOOKUP(B41&E41&F41,'Sub Modules'!A:I,8,FALSE),"")) -> 0 | K41: 0 | L41: =IFERROR(IF(VLOOKUP(B41&E41&F41,'Sub Modules'!A:I,9,FALSE)=0,"",VLOOKUP(B41&E41&F41,'Sub Modules'!A:I,9,FALSE)),"") -> 
A42: Energy Array | B42: Albion | C42: A1 | D42: E-Cell Fab 1-2 | E42: E-Cell Fab | F42: HIT/MA Turret | G42: =IF(OR(E42="Total",D42="Total"),"",IFERROR(VLOOKUP(B42&E42&F42,'Sub Modules'!A:E,5,FALSE),"")) -> 5 | H42: =IF(D42="Total",SUMIFS(H:H,A:A,"="&A42,B:B,"="&B42,E:E,"=Total",F:F,"="&F42),IF(E42="Total",SUMIFS(G:G,A:A,"="&A42,C:C,"="&C42,F:F,"="&F42),IFERROR(VLOOKUP(B42&E42&F42,'Sub Modules'!A:I,6,FALSE),""))) -> 0 | I42: =IF(D42="Total",SUMIFS(I:I,A:A,"="&A42,B:B,"="&B42,E:E,"=Total",F:F,"="&F42),IFERROR(VLOOKUP(B42&E42&F42,'Sub Modules'!A:I,7,FALSE),"")) -> 0 | J42: =IF(OR(E42="Total",D42="Total"),IF(I42="",0,I42)-IF(H42="",0,H42),IFERROR(VLOOKUP(B42&E42&F42,'Sub Modules'!A:I,8,FALSE),"")) -> 0 | K42: 0 | L42: =IFERROR(IF(VLOOKUP(B42&E42&F42,'Sub Modules'!A:I,9,FALSE)=0,"",VLOOKUP(B42&E42&F42,'Sub Modules'!A:I,9,FALSE)),"") -> 
A43: Energy Array | B43: Albion | C43: A1 | D43: E-Cell Fab 1-2 | E43: E-Cell Fab | F43: Plasma/MA Turret | G43: =IF(OR(E43="Total",D43="Total"),"",IFERROR(VLOOKUP(B43&E43&F43,'Sub Modules'!A:E,5,FALSE),"")) -> 2 | H43: =IF(D43="Total",SUMIFS(H:H,A:A,"="&A43,B:B,"="&B43,E:E,"=Total",F:F,"="&F43),IF(E43="Total",SUMIFS(G:G,A:A,"="&A43,C:C,"="&C43,F:F,"="&F43),IFERROR(VLOOKUP(B43&E43&F43,'Sub Modules'!A:I,6,FALSE),""))) -> 0 | I43: =IF(D43="Total",SUMIFS(I:I,A:A,"="&A43,B:B,"="&B43,E:E,"=Total",F:F,"="&F43),IFERROR(VLOOKUP(B43&E43&F43,'Sub Modules'!A:I,7,FALSE),"")) -> 0 | J43: =IF(OR(E43="Total",D43="Total"),IF(I43="",0,I43)-IF(H43="",0,H43),IFERROR(VLOOKUP(B43&E43&F43,'Sub Modules'!A:I,8,FALSE),"")) -> 0 | K43: 0 | L43: =IFERROR(IF(VLOOKUP(B43&E43&F43,'Sub Modules'!A:I,9,FALSE)=0,"",VLOOKUP(B43&E43&F43,'Sub Modules'!A:I,9,FALSE)),"") -> 
A44: Energy Array | B44: Albion | C44: A1 | D44: E-Cell Fab 1-2 | E44: E-Cell Fab | F44: Plasma/MA Turret | G44: =IF(OR(E44="Total",D44="Total"),"",IFERROR(VLOOKUP(B44&E44&F44,'Sub Modules'!A:E,5,FALSE),"")) -> 2 | H44: =IF(D44="Total",SUMIFS(H:H,A:A,"="&A44,B:B,"="&B44,E:E,"=Total",F:F,"="&F44),IF(E44="Total",SUMIFS(G:G,A:A,"="&A44,C:C,"="&C44,F:F,"="&F44),IFERROR(VLOOKUP(B44&E44&F44,'Sub Modules'!A:I,6,FALSE),""))) -> 0 | I44: =IF(D44="Total",SUMIFS(I:I,A:A,"="&A44,B:B,"="&B44,E:E,"=Total",F:F,"="&F44),IFERROR(VLOOKUP(B44&E44&F44,'Sub Modules'!A:I,7,FALSE),"")) -> 0 | J44: =IF(OR(E44="Total",D44="Total"),IF(I44="",0,I44)-IF(H44="",0,H44),IFERROR(VLOOKUP(B44&E44&F44,'Sub Modules'!A:I,8,FALSE),"")) -> 0 | K44: 0 | L44: =IFERROR(IF(VLOOKUP(B44&E44&F44,'Sub Modules'!A:I,9,FALSE)=0,"",VLOOKUP(B44&E44&F44,'Sub Modules'!A:I,9,FALSE)),"") -> 
A45: Energy Array | B45: Albion | C45: A1 | D45: E-Cell Fab 1-2 | E45: E-Cell Fab | F45: Reinforced Metal Plating | G45: =IF(OR(E45="Total",D45="Total"),"",IFERROR(VLOOKUP(B45&E45&F45,'Sub Modules'!A:E,5,FALSE),"")) -> 487 | H45: =IF(D45="Total",SUMIFS(H:H,A:A,"="&A45,B:B,"="&B45,E:E,"=Total",F:F,"="&F45),IF(E45="Total",SUMIFS(G:G,A:A,"="&A45,C:C,"="&C45,F:F,"="&F45),IFERROR(VLOOKUP(B45&E45&F45,'Sub Modules'!A:I,6,FALSE),""))) -> 0 | I45: =IF(D45="Total",SUMIFS(I:I,A:A,"="&A45,B:B,"="&B45,E:E,"=Total",F:F,"="&F45),IFERROR(VLOOKUP(B45&E45&F45,'Sub Modules'!A:I,7,FALSE),"")) -> 0 | J45: =IF(OR(E45="Total",D45="Total"),IF(I45="",0,I45)-IF(H45="",0,H45),IFERROR(VLOOKUP(B45&E45&F45,'Sub Modules'!A:I,8,FALSE),"")) -> 0 | K45: 0 | L45: =IFERROR(IF(VLOOKUP(B45&E45&F45,'Sub Modules'!A:I,9,FALSE)=0,"",VLOOKUP(B45&E45&F45,'Sub Modules'!A:I,9,FALSE)),"") -> 
A46: Energy Array | B46: Albion | C46: A1 | D46: E-Cell Fab 1-2 | E46: E-Cell Fab | F46: Reinforced Metal Plating | G46: =IF(OR(E46="Total",D46="Total"),"",IFERROR(VLOOKUP(B46&E46&F46,'Sub Modules'!A:E,5,FALSE),"")) -> 487 | H46: =IF(D46="Total",SUMIFS(H:H,A:A,"="&A46,B:B,"="&B46,E:E,"=Total",F:F,"="&F46),IF(E46="Total",SUMIFS(G:G,A:A,"="&A46,C:C,"="&C46,F:F,"="&F46),IFERROR(VLOOKUP(B46&E46&F46,'Sub Modules'!A:I,6,FALSE),""))) -> 0 | I46: =IF(D46="Total",SUMIFS(I:I,A:A,"="&A46,B:B,"="&B46,E:E,"=Total",F:F,"="&F46),IFERROR(VLOOKUP(B46&E46&F46,'Sub Modules'!A:I,7,FALSE),"")) -> 0 | J46: =IF(OR(E46="Total",D46="Total"),IF(I46="",0,I46)-IF(H46="",0,H46),IFERROR(VLOOKUP(B46&E46&F46,'Sub Modules'!A:I,8,FALSE),"")) -> 0 | K46: 0 | L46: =IFERROR(IF(VLOOKUP(B46&E46&F46,'Sub Modules'!A:I,9,FALSE)=0,"",VLOOKUP(B46&E46&F46,'Sub Modules'!A:I,9,FALSE)),"") -> 
A47: Energy Array | B47: Albion | C47: A2 | D47: E-Cell Fab 3-4 | E47: Total | F47: Energy Cells | G47: =IF(OR(E47="Total",D47="Total"),"",IFERROR(VLOOKUP(B47&E47&F47,'Sub Modules'!A:E,5,FALSE),"")) ->  | H47: =IF(D47="Total",SUMIFS(H:H,A:A,"="&A47,B:B,"="&B47,E:E,"=Total",F:F,"="&F47),IF(E47="Total",SUMIFS(G:G,A:A,"="&A47,C:C,"="&C47,F:F,"="&F47),IFERROR(VLOOKUP(B47&E47&F47,'Sub Modules'!A:I,6,FALSE),""))) -> 2026 | I47: =IF(D47="Total",SUMIFS(H:H,A:A,"="&A47,B:B,"="&B47,E:E,"=Total",F:F,"="&F47),IFERROR(VLOOKUP(B47&E47&F47,'Sub Modules'!A:I,7,FALSE),"")) ->  | J47: =IF(OR(E47="Total",D47="Total"),IF(I47="",0,I47)-IF(H47="",0,H47),IFERROR(VLOOKUP(B47&E47&F47,'Sub Modules'!A:I,8,FALSE),"")) -> -2026 | L47: =IFERROR(IF(VLOOKUP(B47&E47&F47,'Sub Modules'!A:I,9,FALSE)=0,"",VLOOKUP(B47&E47&F47,'Sub Modules'!A:I,9,FALSE)),"") -> 
A48: Energy Array | B48: Albion | C48: A2 | D48: E-Cell Fab 3-4 | E48: Total | F48: Reinforced Metal Plating | G48: =IF(OR(E48="Total",D48="Total"),"",IFERROR(VLOOKUP(B48&E48&F48,'Sub Modules'!A:E,5,FALSE),"")) ->  | H48: =IF(D48="Total",SUMIFS(H:H,A:A,"="&A48,B:B,"="&B48,E:E,"=Total",F:F,"="&F48),IF(E48="Total",SUMIFS(G:G,A:A,"="&A48,C:C,"="&C48,F:F,"="&F48),IFERROR(VLOOKUP(B48&E48&F48,'Sub Modules'!A:I,6,FALSE),""))) -> 1202 | I48: =IF(D48="Total",SUMIFS(H:H,A:A,"="&A48,B:B,"="&B48,E:E,"=Total",F:F,"="&F48),IFERROR(VLOOKUP(B48&E48&F48,'Sub Modules'!A:I,7,FALSE),"")) ->  | J48: =IF(OR(E48="Total",D48="Total"),IF(I48="",0,I48)-IF(H48="",0,H48),IFERROR(VLOOKUP(B48&E48&F48,'Sub Modules'!A:I,8,FALSE),"")) -> -1202 | L48: =IFERROR(IF(VLOOKUP(B48&E48&F48,'Sub Modules'!A:I,9,FALSE)=0,"",VLOOKUP(B48&E48&F48,'Sub Modules'!A:I,9,FALSE)),"") -> 
A49: Energy Array | B49: Albion | C49: A2 | D49: E-Cell Fab 3-4 | E49: Total | F49: Bio-Optic Wiring | G49: =IF(OR(E49="Total",D49="Total"),"",IFERROR(VLOOKUP(B49&E49&F49,'Sub Modules'!A:E,5,FALSE),"")) ->  | H49: =IF(D49="Total",SUMIFS(H:H,A:A,"="&A49,B:B,"="&B49,E:E,"=Total",F:F,"="&F49),IF(E49="Total",SUMIFS(G:G,A:A,"="&A49,C:C,"="&C49,F:F,"="&F49),IFERROR(VLOOKUP(B49&E49&F49,'Sub Modules'!A:I,6,FALSE),""))) -> 1292 | I49: =IF(D49="Total",SUMIFS(H:H,A:A,"="&A49,B:B,"="&B49,E:E,"=Total",F:F,"="&F49),IFERROR(VLOOKUP(B49&E49&F49,'Sub Modules'!A:I,7,FALSE),"")) ->  | J49: =IF(OR(E49="Total",D49="Total"),IF(I49="",0,I49)-IF(H49="",0,H49),IFERROR(VLOOKUP(B49&E49&F49,'Sub Modules'!A:I,8,FALSE),"")) -> -1292 | L49: =IFERROR(IF(VLOOKUP(B49&E49&F49,'Sub Modules'!A:I,9,FALSE)=0,"",VLOOKUP(B49&E49&F49,'Sub Modules'!A:I,9,FALSE)),"") -> 
A50: Energy Array | B50: Albion | C50: A2 | D50: E-Cell Fab 3-4 | E50: Total | F50: Fusion Reactors | G50: =IF(OR(E50="Total",D50="Total"),"",IFERROR(VLOOKUP(B50&E50&F50,'Sub Modules'!A:E,5,FALSE),"")) ->  | H50: =IF(D50="Total",SUMIFS(H:H,A:A,"="&A50,B:B,"="&B50,E:E,"=Total",F:F,"="&F50),IF(E50="Total",SUMIFS(G:G,A:A,"="&A50,C:C,"="&C50,F:F,"="&F50),IFERROR(VLOOKUP(B50&E50&F50,'Sub Modules'!A:I,6,FALSE),""))) -> 228 | I50: =IF(D50="Total",SUMIFS(H:H,A:A,"="&A50,B:B,"="&B50,E:E,"=Total",F:F,"="&F50),IFERROR(VLOOKUP(B50&E50&F50,'Sub Modules'!A:I,7,FALSE),"")) ->  | J50: =IF(OR(E50="Total",D50="Total"),IF(I50="",0,I50)-IF(H50="",0,H50),IFERROR(VLOOKUP(B50&E50&F50,'Sub Modules'!A:I,8,FALSE),"")) -> -228 | L50: =IFERROR(IF(VLOOKUP(B50&E50&F50,'Sub Modules'!A:I,9,FALSE)=0,"",VLOOKUP(B50&E50&F50,'Sub Modules'!A:I,9,FALSE)),"") -> 
A51: Energy Array | B51: Albion | C51: A2 | D51: E-Cell Fab 3-4 | E51: Total | F51: HIT/MA Turret | G51: =IF(OR(E51="Total",D51="Total"),"",IFERROR(VLOOKUP(B51&E51&F51,'Sub Modules'!A:E,5,FALSE),"")) ->  | H51: =IF(D51="Total",SUMIFS(H:H,A:A,"="&A51,B:B,"="&B51,E:E,"=Total",F:F,"="&F51),IF(E51="Total",SUMIFS(G:G,A:A,"="&A51,C:C,"="&C51,F:F,"="&F51),IFERROR(VLOOKUP(B51&E51&F51,'Sub Modules'!A:I,6,FALSE),""))) -> 10 | I51: =IF(D51="Total",SUMIFS(H:H,A:A,"="&A51,B:B,"="&B51,E:E,"=Total",F:F,"="&F51),IFERROR(VLOOKUP(B51&E51&F51,'Sub Modules'!A:I,7,FALSE),"")) ->  | J51: =IF(OR(E51="Total",D51="Total"),IF(I51="",0,I51)-IF(H51="",0,H51),IFERROR(VLOOKUP(B51&E51&F51,'Sub Modules'!A:I,8,FALSE),"")) -> -10 | L51: =IFERROR(IF(VLOOKUP(B51&E51&F51,'Sub Modules'!A:I,9,FALSE)=0,"",VLOOKUP(B51&E51&F51,'Sub Modules'!A:I,9,FALSE)),"") -> 
A52: Energy Array | B52: Albion | C52: A2 | D52: E-Cell Fab 3-4 | E52: Total | F52: Plasma/MA Turret | G52: =IF(OR(E52="Total",D52="Total"),"",IFERROR(VLOOKUP(B52&E52&F52,'Sub Modules'!A:E,5,FALSE),"")) ->  | H52: =IF(D52="Total",SUMIFS(H:H,A:A,"="&A52,B:B,"="&B52,E:E,"=Total",F:F,"="&F52),IF(E52="Total",SUMIFS(G:G,A:A,"="&A52,C:C,"="&C52,F:F,"="&F52),IFERROR(VLOOKUP(B52&E52&F52,'Sub Modules'!A:I,6,FALSE),""))) -> 4 | I52: =IF(D52="Total",SUMIFS(H:H,A:A,"="&A52,B:B,"="&B52,E:E,"=Total",F:F,"="&F52),IFERROR(VLOOKUP(B52&E52&F52,'Sub Modules'!A:I,7,FALSE),"")) ->  | J52: =IF(OR(E52="Total",D52="Total"),IF(I52="",0,I52)-IF(H52="",0,H52),IFERROR(VLOOKUP(B52&E52&F52,'Sub Modules'!A:I,8,FALSE),"")) -> -4 | L52: =IFERROR(IF(VLOOKUP(B52&E52&F52,'Sub Modules'!A:I,9,FALSE)=0,"",VLOOKUP(B52&E52&F52,'Sub Modules'!A:I,9,FALSE)),"") -> 
A53: Energy Array | B53: Albion | C53: A2 | D53: E-Cell Fab 3-4 | E53: Total | F53: Force Field Projector | G53: =IF(OR(E53="Total",D53="Total"),"",IFERROR(VLOOKUP(B53&E53&F53,'Sub Modules'!A:E,5,FALSE),"")) ->  | H53: =IF(D53="Total",SUMIFS(H:H,A:A,"="&A53,B:B,"="&B53,E:E,"=Total",F:F,"="&F53),IF(E53="Total",SUMIFS(G:G,A:A,"="&A53,C:C,"="&C53,F:F,"="&F53),IFERROR(VLOOKUP(B53&E53&F53,'Sub Modules'!A:I,6,FALSE),""))) -> 4 | I53: =IF(D53="Total",SUMIFS(H:H,A:A,"="&A53,B:B,"="&B53,E:E,"=Total",F:F,"="&F53),IFERROR(VLOOKUP(B53&E53&F53,'Sub Modules'!A:I,7,FALSE),"")) ->  | J53: =IF(OR(E53="Total",D53="Total"),IF(I53="",0,I53)-IF(H53="",0,H53),IFERROR(VLOOKUP(B53&E53&F53,'Sub Modules'!A:I,8,FALSE),"")) -> -4 | L53: =IFERROR(IF(VLOOKUP(B53&E53&F53,'Sub Modules'!A:I,9,FALSE)=0,"",VLOOKUP(B53&E53&F53,'Sub Modules'!A:I,9,FALSE)),"") -> 
A54: Energy Array | B54: Albion | C54: A2 | D54: E-Cell Fab 3-4 | E54: E-Cell Fab | F54: Bio-Optic Wiring | G54: =IF(OR(E54="Total",D54="Total"),"",IFERROR(VLOOKUP(B54&E54&F54,'Sub Modules'!A:E,5,FALSE),"")) -> 646 | H54: =IF(D54="Total",SUMIFS(H:H,A:A,"="&A54,B:B,"="&B54,E:E,"=Total",F:F,"="&F54),IF(E54="Total",SUMIFS(G:G,A:A,"="&A54,C:C,"="&C54,F:F,"="&F54),IFERROR(VLOOKUP(B54&E54&F54,'Sub Modules'!A:I,6,FALSE),""))) -> 0 | I54: =IF(D54="Total",SUMIFS(I:I,A:A,"="&A54,B:B,"="&B54,E:E,"=Total",F:F,"="&F54),IFERROR(VLOOKUP(B54&E54&F54,'Sub Modules'!A:I,7,FALSE),"")) -> 0 | J54: =IF(OR(E54="Total",D54="Total"),IF(I54="",0,I54)-IF(H54="",0,H54),IFERROR(VLOOKUP(B54&E54&F54,'Sub Modules'!A:I,8,FALSE),"")) -> 0 | K54: 0 | L54: =IFERROR(IF(VLOOKUP(B54&E54&F54,'Sub Modules'!A:I,9,FALSE)=0,"",VLOOKUP(B54&E54&F54,'Sub Modules'!A:I,9,FALSE)),"") -> 
A55: Energy Array | B55: Albion | C55: A2 | D55: E-Cell Fab 3-4 | E55: E-Cell Fab | F55: Bio-Optic Wiring | G55: =IF(OR(E55="Total",D55="Total"),"",IFERROR(VLOOKUP(B55&E55&F55,'Sub Modules'!A:E,5,FALSE),"")) -> 646 | H55: =IF(D55="Total",SUMIFS(H:H,A:A,"="&A55,B:B,"="&B55,E:E,"=Total",F:F,"="&F55),IF(E55="Total",SUMIFS(G:G,A:A,"="&A55,C:C,"="&C55,F:F,"="&F55),IFERROR(VLOOKUP(B55&E55&F55,'Sub Modules'!A:I,6,FALSE),""))) -> 0 | I55: =IF(D55="Total",SUMIFS(I:I,A:A,"="&A55,B:B,"="&B55,E:E,"=Total",F:F,"="&F55),IFERROR(VLOOKUP(B55&E55&F55,'Sub Modules'!A:I,7,FALSE),"")) -> 0 | J55: =IF(OR(E55="Total",D55="Total"),IF(I55="",0,I55)-IF(H55="",0,H55),IFERROR(VLOOKUP(B55&E55&F55,'Sub Modules'!A:I,8,FALSE),"")) -> 0 | K55: 0 | L55: =IFERROR(IF(VLOOKUP(B55&E55&F55,'Sub Modules'!A:I,9,FALSE)=0,"",VLOOKUP(B55&E55&F55,'Sub Modules'!A:I,9,FALSE)),"") -> 
A56: Energy Array | B56: Albion | C56: A2 | D56: E-Cell Fab 3-4 | E56: E-Cell Fab | F56: Energy Cells | G56: =IF(OR(E56="Total",D56="Total"),"",IFERROR(VLOOKUP(B56&E56&F56,'Sub Modules'!A:E,5,FALSE),"")) -> 714 | H56: =IF(D56="Total",SUMIFS(H:H,A:A,"="&A56,B:B,"="&B56,E:E,"=Total",F:F,"="&F56),IF(E56="Total",SUMIFS(G:G,A:A,"="&A56,C:C,"="&C56,F:F,"="&F56),IFERROR(VLOOKUP(B56&E56&F56,'Sub Modules'!A:I,6,FALSE),""))) -> 7891 | I56: =IF(D56="Total",SUMIFS(I:I,A:A,"="&A56,B:B,"="&B56,E:E,"=Total",F:F,"="&F56),IFERROR(VLOOKUP(B56&E56&F56,'Sub Modules'!A:I,7,FALSE),"")) -> 0 | J56: =IF(OR(E56="Total",D56="Total"),IF(I56="",0,I56)-IF(H56="",0,H56),IFERROR(VLOOKUP(B56&E56&F56,'Sub Modules'!A:I,8,FALSE),"")) -> 0 | K56: 10731 | L56: =IFERROR(IF(VLOOKUP(B56&E56&F56,'Sub Modules'!A:I,9,FALSE)=0,"",VLOOKUP(B56&E56&F56,'Sub Modules'!A:I,9,FALSE)),"") -> 
A57: Energy Array | B57: Albion | C57: A2 | D57: E-Cell Fab 3-4 | E57: E-Cell Fab | F57: Energy Cells | G57: =IF(OR(E57="Total",D57="Total"),"",IFERROR(VLOOKUP(B57&E57&F57,'Sub Modules'!A:E,5,FALSE),"")) -> 714 | H57: =IF(D57="Total",SUMIFS(H:H,A:A,"="&A57,B:B,"="&B57,E:E,"=Total",F:F,"="&F57),IF(E57="Total",SUMIFS(G:G,A:A,"="&A57,C:C,"="&C57,F:F,"="&F57),IFERROR(VLOOKUP(B57&E57&F57,'Sub Modules'!A:I,6,FALSE),""))) -> 7891 | I57: =IF(D57="Total",SUMIFS(I:I,A:A,"="&A57,B:B,"="&B57,E:E,"=Total",F:F,"="&F57),IFERROR(VLOOKUP(B57&E57&F57,'Sub Modules'!A:I,7,FALSE),"")) -> 0 | J57: =IF(OR(E57="Total",D57="Total"),IF(I57="",0,I57)-IF(H57="",0,H57),IFERROR(VLOOKUP(B57&E57&F57,'Sub Modules'!A:I,8,FALSE),"")) -> 0 | K57: 10731 | L57: =IFERROR(IF(VLOOKUP(B57&E57&F57,'Sub Modules'!A:I,9,FALSE)=0,"",VLOOKUP(B57&E57&F57,'Sub Modules'!A:I,9,FALSE)),"") -> 
A58: Energy Array | B58: Albion | C58: A2 | D58: E-Cell Fab 3-4 | E58: E-Cell Fab | F58: Food Rations | G58: =IF(OR(E58="Total",D58="Total"),"",IFERROR(VLOOKUP(B58&E58&F58,'Sub Modules'!A:E,5,FALSE),"")) -> 0 | H58: =IF(D58="Total",SUMIFS(H:H,A:A,"="&A58,B:B,"="&B58,E:E,"=Total",F:F,"="&F58),IF(E58="Total",SUMIFS(G:G,A:A,"="&A58,C:C,"="&C58,F:F,"="&F58),IFERROR(VLOOKUP(B58&E58&F58,'Sub Modules'!A:I,6,FALSE),""))) -> 0 | I58: =IF(D58="Total",SUMIFS(I:I,A:A,"="&A58,B:B,"="&B58,E:E,"=Total",F:F,"="&F58),IFERROR(VLOOKUP(B58&E58&F58,'Sub Modules'!A:I,7,FALSE),"")) -> -48 | J58: =IF(OR(E58="Total",D58="Total"),IF(I58="",0,I58)-IF(H58="",0,H58),IFERROR(VLOOKUP(B58&E58&F58,'Sub Modules'!A:I,8,FALSE),"")) -> 15 | K58: -48 | L58: =IFERROR(IF(VLOOKUP(B58&E58&F58,'Sub Modules'!A:I,9,FALSE)=0,"",VLOOKUP(B58&E58&F58,'Sub Modules'!A:I,9,FALSE)),"") -> 
A59: Energy Array | B59: Albion | C59: A2 | D59: E-Cell Fab 3-4 | E59: E-Cell Fab | F59: Food Rations | G59: =IF(OR(E59="Total",D59="Total"),"",IFERROR(VLOOKUP(B59&E59&F59,'Sub Modules'!A:E,5,FALSE),"")) -> 0 | H59: =IF(D59="Total",SUMIFS(H:H,A:A,"="&A59,B:B,"="&B59,E:E,"=Total",F:F,"="&F59),IF(E59="Total",SUMIFS(G:G,A:A,"="&A59,C:C,"="&C59,F:F,"="&F59),IFERROR(VLOOKUP(B59&E59&F59,'Sub Modules'!A:I,6,FALSE),""))) -> 0 | I59: =IF(D59="Total",SUMIFS(I:I,A:A,"="&A59,B:B,"="&B59,E:E,"=Total",F:F,"="&F59),IFERROR(VLOOKUP(B59&E59&F59,'Sub Modules'!A:I,7,FALSE),"")) -> -48 | J59: =IF(OR(E59="Total",D59="Total"),IF(I59="",0,I59)-IF(H59="",0,H59),IFERROR(VLOOKUP(B59&E59&F59,'Sub Modules'!A:I,8,FALSE),"")) -> 15 | K59: -48 | L59: =IFERROR(IF(VLOOKUP(B59&E59&F59,'Sub Modules'!A:I,9,FALSE)=0,"",VLOOKUP(B59&E59&F59,'Sub Modules'!A:I,9,FALSE)),"") -> 
A60: Energy Array | B60: Albion | C60: A2 | D60: E-Cell Fab 3-4 | E60: E-Cell Fab | F60: Force Field Projector | G60: =IF(OR(E60="Total",D60="Total"),"",IFERROR(VLOOKUP(B60&E60&F60,'Sub Modules'!A:E,5,FALSE),"")) -> 1 | H60: =IF(D60="Total",SUMIFS(H:H,A:A,"="&A60,B:B,"="&B60,E:E,"=Total",F:F,"="&F60),IF(E60="Total",SUMIFS(G:G,A:A,"="&A60,C:C,"="&C60,F:F,"="&F60),IFERROR(VLOOKUP(B60&E60&F60,'Sub Modules'!A:I,6,FALSE),""))) -> 0 | I60: =IF(D60="Total",SUMIFS(I:I,A:A,"="&A60,B:B,"="&B60,E:E,"=Total",F:F,"="&F60),IFERROR(VLOOKUP(B60&E60&F60,'Sub Modules'!A:I,7,FALSE),"")) -> 0 | J60: =IF(OR(E60="Total",D60="Total"),IF(I60="",0,I60)-IF(H60="",0,H60),IFERROR(VLOOKUP(B60&E60&F60,'Sub Modules'!A:I,8,FALSE),"")) -> 0 | K60: 0 | L60: =IFERROR(IF(VLOOKUP(B60&E60&F60,'Sub Modules'!A:I,9,FALSE)=0,"",VLOOKUP(B60&E60&F60,'Sub Modules'!A:I,9,FALSE)),"") -> 
A61: Energy Array | B61: Albion | C61: A2 | D61: E-Cell Fab 3-4 | E61: E-Cell Fab | F61: Force Field Projector | G61: =IF(OR(E61="Total",D61="Total"),"",IFERROR(VLOOKUP(B61&E61&F61,'Sub Modules'!A:E,5,FALSE),"")) -> 1 | H61: =IF(D61="Total",SUMIFS(H:H,A:A,"="&A61,B:B,"="&B61,E:E,"=Total",F:F,"="&F61),IF(E61="Total",SUMIFS(G:G,A:A,"="&A61,C:C,"="&C61,F:F,"="&F61),IFERROR(VLOOKUP(B61&E61&F61,'Sub Modules'!A:I,6,FALSE),""))) -> 0 | I61: =IF(D61="Total",SUMIFS(I:I,A:A,"="&A61,B:B,"="&B61,E:E,"=Total",F:F,"="&F61),IFERROR(VLOOKUP(B61&E61&F61,'Sub Modules'!A:I,7,FALSE),"")) -> 0 | J61: =IF(OR(E61="Total",D61="Total"),IF(I61="",0,I61)-IF(H61="",0,H61),IFERROR(VLOOKUP(B61&E61&F61,'Sub Modules'!A:I,8,FALSE),"")) -> 0 | K61: 0 | L61: =IFERROR(IF(VLOOKUP(B61&E61&F61,'Sub Modules'!A:I,9,FALSE)=0,"",VLOOKUP(B61&E61&F61,'Sub Modules'!A:I,9,FALSE)),"") -> 
A62: Energy Array | B62: Albion | C62: A2 | D62: E-Cell Fab 3-4 | E62: E-Cell Fab | F62: Fusion Reactors | G62: =IF(OR(E62="Total",D62="Total"),"",IFERROR(VLOOKUP(B62&E62&F62,'Sub Modules'!A:E,5,FALSE),"")) -> 90 | H62: =IF(D62="Total",SUMIFS(H:H,A:A,"="&A62,B:B,"="&B62,E:E,"=Total",F:F,"="&F62),IF(E62="Total",SUMIFS(G:G,A:A,"="&A62,C:C,"="&C62,F:F,"="&F62),IFERROR(VLOOKUP(B62&E62&F62,'Sub Modules'!A:I,6,FALSE),""))) -> 0 | I62: =IF(D62="Total",SUMIFS(I:I,A:A,"="&A62,B:B,"="&B62,E:E,"=Total",F:F,"="&F62),IFERROR(VLOOKUP(B62&E62&F62,'Sub Modules'!A:I,7,FALSE),"")) -> 0 | J62: =IF(OR(E62="Total",D62="Total"),IF(I62="",0,I62)-IF(H62="",0,H62),IFERROR(VLOOKUP(B62&E62&F62,'Sub Modules'!A:I,8,FALSE),"")) -> 0 | K62: 0 | L62: =IFERROR(IF(VLOOKUP(B62&E62&F62,'Sub Modules'!A:I,9,FALSE)=0,"",VLOOKUP(B62&E62&F62,'Sub Modules'!A:I,9,FALSE)),"") -> 
A63: Energy Array | B63: Albion | C63: A2 | D63: E-Cell Fab 3-4 | E63: E-Cell Fab | F63: Fusion Reactors | G63: =IF(OR(E63="Total",D63="Total"),"",IFERROR(VLOOKUP(B63&E63&F63,'Sub Modules'!A:E,5,FALSE),"")) -> 90 | H63: =IF(D63="Total",SUMIFS(H:H,A:A,"="&A63,B:B,"="&B63,E:E,"=Total",F:F,"="&F63),IF(E63="Total",SUMIFS(G:G,A:A,"="&A63,C:C,"="&C63,F:F,"="&F63),IFERROR(VLOOKUP(B63&E63&F63,'Sub Modules'!A:I,6,FALSE),""))) -> 0 | I63: =IF(D63="Total",SUMIFS(I:I,A:A,"="&A63,B:B,"="&B63,E:E,"=Total",F:F,"="&F63),IFERROR(VLOOKUP(B63&E63&F63,'Sub Modules'!A:I,7,FALSE),"")) -> 0 | J63: =IF(OR(E63="Total",D63="Total"),IF(I63="",0,I63)-IF(H63="",0,H63),IFERROR(VLOOKUP(B63&E63&F63,'Sub Modules'!A:I,8,FALSE),"")) -> 0 | K63: 0 | L63: =IFERROR(IF(VLOOKUP(B63&E63&F63,'Sub Modules'!A:I,9,FALSE)=0,"",VLOOKUP(B63&E63&F63,'Sub Modules'!A:I,9,FALSE)),"") -> 
A64: Energy Array | B64: Albion | C64: A2 | D64: E-Cell Fab 3-4 | E64: E-Cell Fab | F64: HIT/MA Turret | G64: =IF(OR(E64="Total",D64="Total"),"",IFERROR(VLOOKUP(B64&E64&F64,'Sub Modules'!A:E,5,FALSE),"")) -> 5 | H64: =IF(D64="Total",SUMIFS(H:H,A:A,"="&A64,B:B,"="&B64,E:E,"=Total",F:F,"="&F64),IF(E64="Total",SUMIFS(G:G,A:A,"="&A64,C:C,"="&C64,F:F,"="&F64),IFERROR(VLOOKUP(B64&E64&F64,'Sub Modules'!A:I,6,FALSE),""))) -> 0 | I64: =IF(D64="Total",SUMIFS(I:I,A:A,"="&A64,B:B,"="&B64,E:E,"=Total",F:F,"="&F64),IFERROR(VLOOKUP(B64&E64&F64,'Sub Modules'!A:I,7,FALSE),"")) -> 0 | J64: =IF(OR(E64="Total",D64="Total"),IF(I64="",0,I64)-IF(H64="",0,H64),IFERROR(VLOOKUP(B64&E64&F64,'Sub Modules'!A:I,8,FALSE),"")) -> 0 | K64: 0 | L64: =IFERROR(IF(VLOOKUP(B64&E64&F64,'Sub Modules'!A:I,9,FALSE)=0,"",VLOOKUP(B64&E64&F64,'Sub Modules'!A:I,9,FALSE)),"") -> 
A65: Energy Array | B65: Albion | C65: A2 | D65: E-Cell Fab 3-4 | E65: E-Cell Fab | F65: HIT/MA Turret | G65: =IF(OR(E65="Total",D65="Total"),"",IFERROR(VLOOKUP(B65&E65&F65,'Sub Modules'!A:E,5,FALSE),"")) -> 5 | H65: =IF(D65="Total",SUMIFS(H:H,A:A,"="&A65,B:B,"="&B65,E:E,"=Total",F:F,"="&F65),IF(E65="Total",SUMIFS(G:G,A:A,"="&A65,C:C,"="&C65,F:F,"="&F65),IFERROR(VLOOKUP(B65&E65&F65,'Sub Modules'!A:I,6,FALSE),""))) -> 0 | I65: =IF(D65="Total",SUMIFS(I:I,A:A,"="&A65,B:B,"="&B65,E:E,"=Total",F:F,"="&F65),IFERROR(VLOOKUP(B65&E65&F65,'Sub Modules'!A:I,7,FALSE),"")) -> 0 | J65: =IF(OR(E65="Total",D65="Total"),IF(I65="",0,I65)-IF(H65="",0,H65),IFERROR(VLOOKUP(B65&E65&F65,'Sub Modules'!A:I,8,FALSE),"")) -> 0 | K65: 0 | L65: =IFERROR(IF(VLOOKUP(B65&E65&F65,'Sub Modules'!A:I,9,FALSE)=0,"",VLOOKUP(B65&E65&F65,'Sub Modules'!A:I,9,FALSE)),"") -> 
A66: Energy Array | B66: Albion | C66: A2 | D66: E-Cell Fab 3-4 | E66: E-Cell Fab | F66: Plasma/MA Turret | G66: =IF(OR(E66="Total",D66="Total"),"",IFERROR(VLOOKUP(B66&E66&F66,'Sub Modules'!A:E,5,FALSE),"")) -> 2 | H66: =IF(D66="Total",SUMIFS(H:H,A:A,"="&A66,B:B,"="&B66,E:E,"=Total",F:F,"="&F66),IF(E66="Total",SUMIFS(G:G,A:A,"="&A66,C:C,"="&C66,F:F,"="&F66),IFERROR(VLOOKUP(B66&E66&F66,'Sub Modules'!A:I,6,FALSE),""))) -> 0 | I66: =IF(D66="Total",SUMIFS(I:I,A:A,"="&A66,B:B,"="&B66,E:E,"=Total",F:F,"="&F66),IFERROR(VLOOKUP(B66&E66&F66,'Sub Modules'!A:I,7,FALSE),"")) -> 0 | J66: =IF(OR(E66="Total",D66="Total"),IF(I66="",0,I66)-IF(H66="",0,H66),IFERROR(VLOOKUP(B66&E66&F66,'Sub Modules'!A:I,8,FALSE),"")) -> 0 | K66: =IF(AND(D66<>"Total",E66<>"Total"),IFERROR(IF(H66>0,INT((SUMIFS(J:J,A:A,"=" & A66,C:C,"=" & C66,E:E,"<>Total",E:E,"<>")/100)*H66),I66)+H66,""),"") -> 0 | L66: =IFERROR(IF(VLOOKUP(B66&E66&F66,'Sub Modules'!A:I,9,FALSE)=0,"",VLOOKUP(B66&E66&F66,'Sub Modules'!A:I,9,FALSE)),"") -> 
A67: Energy Array | B67: Albion | C67: A2 | D67: E-Cell Fab 3-4 | E67: E-Cell Fab | F67: Plasma/MA Turret | G67: =IF(OR(E67="Total",D67="Total"),"",IFERROR(VLOOKUP(B67&E67&F67,'Sub Modules'!A:E,5,FALSE),"")) -> 2 | H67: =IF(D67="Total",SUMIFS(H:H,A:A,"="&A67,B:B,"="&B67,E:E,"=Total",F:F,"="&F67),IF(E67="Total",SUMIFS(G:G,A:A,"="&A67,C:C,"="&C67,F:F,"="&F67),IFERROR(VLOOKUP(B67&E67&F67,'Sub Modules'!A:I,6,FALSE),""))) -> 0 | I67: =IF(D67="Total",SUMIFS(I:I,A:A,"="&A67,B:B,"="&B67,E:E,"=Total",F:F,"="&F67),IFERROR(VLOOKUP(B67&E67&F67,'Sub Modules'!A:I,7,FALSE),"")) -> 0 | J67: =IF(OR(E67="Total",D67="Total"),IF(I67="",0,I67)-IF(H67="",0,H67),IFERROR(VLOOKUP(B67&E67&F67,'Sub Modules'!A:I,8,FALSE),"")) -> 0 | K67: 0 | L67: =IFERROR(IF(VLOOKUP(B67&E67&F67,'Sub Modules'!A:I,9,FALSE)=0,"",VLOOKUP(B67&E67&F67,'Sub Modules'!A:I,9,FALSE)),"") -> 
A68: Energy Array | B68: Albion | C68: A2 | D68: E-Cell Fab 3-4 | E68: E-Cell Fab | F68: Reinforced Metal Plating | G68: =IF(OR(E68="Total",D68="Total"),"",IFERROR(VLOOKUP(B68&E68&F68,'Sub Modules'!A:E,5,FALSE),"")) -> 487 | H68: =IF(D68="Total",SUMIFS(H:H,A:A,"="&A68,B:B,"="&B68,E:E,"=Total",F:F,"="&F68),IF(E68="Total",SUMIFS(G:G,A:A,"="&A68,C:C,"="&C68,F:F,"="&F68),IFERROR(VLOOKUP(B68&E68&F68,'Sub Modules'!A:I,6,FALSE),""))) -> 0 | I68: =IF(D68="Total",SUMIFS(I:I,A:A,"="&A68,B:B,"="&B68,E:E,"=Total",F:F,"="&F68),IFERROR(VLOOKUP(B68&E68&F68,'Sub Modules'!A:I,7,FALSE),"")) -> 0 | J68: =IF(OR(E68="Total",D68="Total"),IF(I68="",0,I68)-IF(H68="",0,H68),IFERROR(VLOOKUP(B68&E68&F68,'Sub Modules'!A:I,8,FALSE),"")) -> 0 | K68: 0 | L68: =IFERROR(IF(VLOOKUP(B68&E68&F68,'Sub Modules'!A:I,9,FALSE)=0,"",VLOOKUP(B68&E68&F68,'Sub Modules'!A:I,9,FALSE)),"") -> 
A69: Energy Array | B69: Albion | C69: A2 | D69: E-Cell Fab 3-4 | E69: E-Cell Fab | F69: Reinforced Metal Plating | G69: =IF(OR(E69="Total",D69="Total"),"",IFERROR(VLOOKUP(B69&E69&F69,'Sub Modules'!A:E,5,FALSE),"")) -> 487 | H69: =IF(D69="Total",SUMIFS(H:H,A:A,"="&A69,B:B,"="&B69,E:E,"=Total",F:F,"="&F69),IF(E69="Total",SUMIFS(G:G,A:A,"="&A69,C:C,"="&C69,F:F,"="&F69),IFERROR(VLOOKUP(B69&E69&F69,'Sub Modules'!A:I,6,FALSE),""))) -> 0 | I69: =IF(D69="Total",SUMIFS(I:I,A:A,"="&A69,B:B,"="&B69,E:E,"=Total",F:F,"="&F69),IFERROR(VLOOKUP(B69&E69&F69,'Sub Modules'!A:I,7,FALSE),"")) -> 0 | J69: =IF(OR(E69="Total",D69="Total"),IF(I69="",0,I69)-IF(H69="",0,H69),IFERROR(VLOOKUP(B69&E69&F69,'Sub Modules'!A:I,8,FALSE),"")) -> 0 | K69: 0 | L69: =IFERROR(IF(VLOOKUP(B69&E69&F69,'Sub Modules'!A:I,9,FALSE)=0,"",VLOOKUP(B69&E69&F69,'Sub Modules'!A:I,9,FALSE)),"") -> 
A70: Energy Array | B70: Albion | C70: A2 | D70: E-Cell Fab 3-4 | E70: Zoltek Bridge | F70: Energy Cells | G70: =IF(OR(E70="Total",D70="Total"),"",IFERROR(VLOOKUP(B70&E70&F70,'Sub Modules'!A:E,5,FALSE),"")) -> 242 | H70: =IF(D70="Total",SUMIFS(H:H,A:A,"="&A70,B:B,"="&B70,E:E,"=Total",F:F,"="&F70),IF(E70="Total",SUMIFS(G:G,A:A,"="&A70,C:C,"="&C70,F:F,"="&F70),IFERROR(VLOOKUP(B70&E70&F70,'Sub Modules'!A:I,6,FALSE),""))) -> 0 | I70: =IF(D70="Total",SUMIFS(I:I,A:A,"="&A70,B:B,"="&B70,E:E,"=Total",F:F,"="&F70),IFERROR(VLOOKUP(B70&E70&F70,'Sub Modules'!A:I,7,FALSE),"")) -> 0 | J70: =IF(OR(E70="Total",D70="Total"),IF(I70="",0,I70)-IF(H70="",0,H70),IFERROR(VLOOKUP(B70&E70&F70,'Sub Modules'!A:I,8,FALSE),"")) -> 3 | K70: 0 | L70: =IFERROR(IF(VLOOKUP(B70&E70&F70,'Sub Modules'!A:I,9,FALSE)=0,"",VLOOKUP(B70&E70&F70,'Sub Modules'!A:I,9,FALSE)),"") -> 
A71: Energy Array | B71: Albion | C71: A2 | D71: E-Cell Fab 3-4 | E71: Zoltek Bridge | F71: Force Field Projector | G71: =IF(OR(E71="Total",D71="Total"),"",IFERROR(VLOOKUP(B71&E71&F71,'Sub Modules'!A:E,5,FALSE),"")) -> 1 | H71: =IF(D71="Total",SUMIFS(H:H,A:A,"="&A71,B:B,"="&B71,E:E,"=Total",F:F,"="&F71),IF(E71="Total",SUMIFS(G:G,A:A,"="&A71,C:C,"="&C71,F:F,"="&F71),IFERROR(VLOOKUP(B71&E71&F71,'Sub Modules'!A:I,6,FALSE),""))) -> 0 | I71: =IF(D71="Total",SUMIFS(I:I,A:A,"="&A71,B:B,"="&B71,E:E,"=Total",F:F,"="&F71),IFERROR(VLOOKUP(B71&E71&F71,'Sub Modules'!A:I,7,FALSE),"")) -> 0 | J71: =IF(OR(E71="Total",D71="Total"),IF(I71="",0,I71)-IF(H71="",0,H71),IFERROR(VLOOKUP(B71&E71&F71,'Sub Modules'!A:I,8,FALSE),"")) -> 0 | K71: 0 | L71: =IFERROR(IF(VLOOKUP(B71&E71&F71,'Sub Modules'!A:I,9,FALSE)=0,"",VLOOKUP(B71&E71&F71,'Sub Modules'!A:I,9,FALSE)),"") -> 
A72: Energy Array | B72: Albion | C72: A2 | D72: E-Cell Fab 3-4 | E72: Zoltek Bridge | F72: Fusion Reactors | G72: =IF(OR(E72="Total",D72="Total"),"",IFERROR(VLOOKUP(B72&E72&F72,'Sub Modules'!A:E,5,FALSE),"")) -> 18 | H72: =IF(D72="Total",SUMIFS(H:H,A:A,"="&A72,B:B,"="&B72,E:E,"=Total",F:F,"="&F72),IF(E72="Total",SUMIFS(G:G,A:A,"="&A72,C:C,"="&C72,F:F,"="&F72),IFERROR(VLOOKUP(B72&E72&F72,'Sub Modules'!A:I,6,FALSE),""))) -> 0 | I72: =IF(D72="Total",SUMIFS(I:I,A:A,"="&A72,B:B,"="&B72,E:E,"=Total",F:F,"="&F72),IFERROR(VLOOKUP(B72&E72&F72,'Sub Modules'!A:I,7,FALSE),"")) -> 0 | J72: =IF(OR(E72="Total",D72="Total"),IF(I72="",0,I72)-IF(H72="",0,H72),IFERROR(VLOOKUP(B72&E72&F72,'Sub Modules'!A:I,8,FALSE),"")) -> 0 | K72: 0 | L72: =IFERROR(IF(VLOOKUP(B72&E72&F72,'Sub Modules'!A:I,9,FALSE)=0,"",VLOOKUP(B72&E72&F72,'Sub Modules'!A:I,9,FALSE)),"") -> 
A73: Energy Array | B73: Albion | C73: A2 | D73: E-Cell Fab 3-4 | E73: Zoltek Bridge | F73: Reinforced Metal Plating | G73: =IF(OR(E73="Total",D73="Total"),"",IFERROR(VLOOKUP(B73&E73&F73,'Sub Modules'!A:E,5,FALSE),"")) -> 86 | H73: =IF(D73="Total",SUMIFS(H:H,A:A,"="&A73,B:B,"="&B73,E:E,"=Total",F:F,"="&F73),IF(E73="Total",SUMIFS(G:G,A:A,"="&A73,C:C,"="&C73,F:F,"="&F73),IFERROR(VLOOKUP(B73&E73&F73,'Sub Modules'!A:I,6,FALSE),""))) -> 0 | I73: =IF(D73="Total",SUMIFS(I:I,A:A,"="&A73,B:B,"="&B73,E:E,"=Total",F:F,"="&F73),IFERROR(VLOOKUP(B73&E73&F73,'Sub Modules'!A:I,7,FALSE),"")) -> 0 | J73: =IF(OR(E73="Total",D73="Total"),IF(I73="",0,I73)-IF(H73="",0,H73),IFERROR(VLOOKUP(B73&E73&F73,'Sub Modules'!A:I,8,FALSE),"")) -> 0 | K73: 0 | L73: =IFERROR(IF(VLOOKUP(B73&E73&F73,'Sub Modules'!A:I,9,FALSE)=0,"",VLOOKUP(B73&E73&F73,'Sub Modules'!A:I,9,FALSE)),"") -> 
A74: Energy Array | B74: Albion | C74: A2 | D74: E-Cell Fab 3-4 | E74: Zoltek Bridge | F74: Energy Cells | G74: =IF(OR(E74="Total",D74="Total"),"",IFERROR(VLOOKUP(B74&E74&F74,'Sub Modules'!A:E,5,FALSE),"")) -> 242 | H74: =IF(D74="Total",SUMIFS(H:H,A:A,"="&A74,B:B,"="&B74,E:E,"=Total",F:F,"="&F74),IF(E74="Total",SUMIFS(G:G,A:A,"="&A74,C:C,"="&C74,F:F,"="&F74),IFERROR(VLOOKUP(B74&E74&F74,'Sub Modules'!A:I,6,FALSE),""))) -> 0 | I74: =IF(D74="Total",SUMIFS(I:I,A:A,"="&A74,B:B,"="&B74,E:E,"=Total",F:F,"="&F74),IFERROR(VLOOKUP(B74&E74&F74,'Sub Modules'!A:I,7,FALSE),"")) -> 0 | J74: =IF(OR(E74="Total",D74="Total"),IF(I74="",0,I74)-IF(H74="",0,H74),IFERROR(VLOOKUP(B74&E74&F74,'Sub Modules'!A:I,8,FALSE),"")) -> 3 | K74: 0 | L74: =IFERROR(IF(VLOOKUP(B74&E74&F74,'Sub Modules'!A:I,9,FALSE)=0,"",VLOOKUP(B74&E74&F74,'Sub Modules'!A:I,9,FALSE)),"") -> 
A75: Energy Array | B75: Albion | C75: A2 | D75: E-Cell Fab 3-4 | E75: Zoltek Bridge | F75: Force Field Projector | G75: =IF(OR(E75="Total",D75="Total"),"",IFERROR(VLOOKUP(B75&E75&F75,'Sub Modules'!A:E,5,FALSE),"")) -> 1 | H75: =IF(D75="Total",SUMIFS(H:H,A:A,"="&A75,B:B,"="&B75,E:E,"=Total",F:F,"="&F75),IF(E75="Total",SUMIFS(G:G,A:A,"="&A75,C:C,"="&C75,F:F,"="&F75),IFERROR(VLOOKUP(B75&E75&F75,'Sub Modules'!A:I,6,FALSE),""))) -> 0 | I75: =IF(D75="Total",SUMIFS(I:I,A:A,"="&A75,B:B,"="&B75,E:E,"=Total",F:F,"="&F75),IFERROR(VLOOKUP(B75&E75&F75,'Sub Modules'!A:I,7,FALSE),"")) -> 0 | J75: =IF(OR(E75="Total",D75="Total"),IF(I75="",0,I75)-IF(H75="",0,H75),IFERROR(VLOOKUP(B75&E75&F75,'Sub Modules'!A:I,8,FALSE),"")) -> 0 | K75: 0 | L75: =IFERROR(IF(VLOOKUP(B75&E75&F75,'Sub Modules'!A:I,9,FALSE)=0,"",VLOOKUP(B75&E75&F75,'Sub Modules'!A:I,9,FALSE)),"") -> 
A76: Energy Array | B76: Albion | C76: A2 | D76: E-Cell Fab 3-4 | E76: Zoltek Bridge | F76: Fusion Reactors | G76: =IF(OR(E76="Total",D76="Total"),"",IFERROR(VLOOKUP(B76&E76&F76,'Sub Modules'!A:E,5,FALSE),"")) -> 18 | H76: =IF(D76="Total",SUMIFS(H:H,A:A,"="&A76,B:B,"="&B76,E:E,"=Total",F:F,"="&F76),IF(E76="Total",SUMIFS(G:G,A:A,"="&A76,C:C,"="&C76,F:F,"="&F76),IFERROR(VLOOKUP(B76&E76&F76,'Sub Modules'!A:I,6,FALSE),""))) -> 0 | I76: =IF(D76="Total",SUMIFS(I:I,A:A,"="&A76,B:B,"="&B76,E:E,"=Total",F:F,"="&F76),IFERROR(VLOOKUP(B76&E76&F76,'Sub Modules'!A:I,7,FALSE),"")) -> 0 | J76: =IF(OR(E76="Total",D76="Total"),IF(I76="",0,I76)-IF(H76="",0,H76),IFERROR(VLOOKUP(B76&E76&F76,'Sub Modules'!A:I,8,FALSE),"")) -> 0 | K76: 0 | L76: =IFERROR(IF(VLOOKUP(B76&E76&F76,'Sub Modules'!A:I,9,FALSE)=0,"",VLOOKUP(B76&E76&F76,'Sub Modules'!A:I,9,FALSE)),"") -> 
A77: Energy Array | B77: Albion | C77: A2 | D77: E-Cell Fab 3-4 | E77: Zoltek Bridge | F77: Reinforced Metal Plating | G77: =IF(OR(E77="Total",D77="Total"),"",IFERROR(VLOOKUP(B77&E77&F77,'Sub Modules'!A:E,5,FALSE),"")) -> 86 | H77: =IF(D77="Total",SUMIFS(H:H,A:A,"="&A77,B:B,"="&B77,E:E,"=Total",F:F,"="&F77),IF(E77="Total",SUMIFS(G:G,A:A,"="&A77,C:C,"="&C77,F:F,"="&F77),IFERROR(VLOOKUP(B77&E77&F77,'Sub Modules'!A:I,6,FALSE),""))) -> 0 | I77: =IF(D77="Total",SUMIFS(I:I,A:A,"="&A77,B:B,"="&B77,E:E,"=Total",F:F,"="&F77),IFERROR(VLOOKUP(B77&E77&F77,'Sub Modules'!A:I,7,FALSE),"")) -> 0 | J77: =IF(OR(E77="Total",D77="Total"),IF(I77="",0,I77)-IF(H77="",0,H77),IFERROR(VLOOKUP(B77&E77&F77,'Sub Modules'!A:I,8,FALSE),"")) -> 0 | K77: 0 | L77: =IFERROR(IF(VLOOKUP(B77&E77&F77,'Sub Modules'!A:I,9,FALSE)=0,"",VLOOKUP(B77&E77&F77,'Sub Modules'!A:I,9,FALSE)),"") -> 
A78: Energy Array | B78: Albion | C78: A2 | D78: E-Cell Fab 3-4 | E78: URV Launcher | F78: Energy Cells | G78: =IF(OR(E78="Total",D78="Total"),"",IFERROR(VLOOKUP(B78&E78&F78,'Sub Modules'!A:E,5,FALSE),"")) -> 114 | H78: =IF(D78="Total",SUMIFS(H:H,A:A,"="&A78,B:B,"="&B78,E:E,"=Total",F:F,"="&F78),IF(E78="Total",SUMIFS(G:G,A:A,"="&A78,C:C,"="&C78,F:F,"="&F78),IFERROR(VLOOKUP(B78&E78&F78,'Sub Modules'!A:I,6,FALSE),""))) -> 0 | I78: =IF(D78="Total",SUMIFS(I:I,A:A,"="&A78,B:B,"="&B78,E:E,"=Total",F:F,"="&F78),IFERROR(VLOOKUP(B78&E78&F78,'Sub Modules'!A:I,7,FALSE),"")) -> 0 | J78: =IF(OR(E78="Total",D78="Total"),IF(I78="",0,I78)-IF(H78="",0,H78),IFERROR(VLOOKUP(B78&E78&F78,'Sub Modules'!A:I,8,FALSE),"")) -> 0 | K78: 0 | L78: =IFERROR(IF(VLOOKUP(B78&E78&F78,'Sub Modules'!A:I,9,FALSE)=0,"",VLOOKUP(B78&E78&F78,'Sub Modules'!A:I,9,FALSE)),"") -> 
A79: Energy Array | B79: Albion | C79: A2 | D79: E-Cell Fab 3-4 | E79: URV Launcher | F79: Fusion Reactors | G79: =IF(OR(E79="Total",D79="Total"),"",IFERROR(VLOOKUP(B79&E79&F79,'Sub Modules'!A:E,5,FALSE),"")) -> 12 | H79: =IF(D79="Total",SUMIFS(H:H,A:A,"="&A79,B:B,"="&B79,E:E,"=Total",F:F,"="&F79),IF(E79="Total",SUMIFS(G:G,A:A,"="&A79,C:C,"="&C79,F:F,"="&F79),IFERROR(VLOOKUP(B79&E79&F79,'Sub Modules'!A:I,6,FALSE),""))) -> 0 | I79: =IF(D79="Total",SUMIFS(I:I,A:A,"="&A79,B:B,"="&B79,E:E,"=Total",F:F,"="&F79),IFERROR(VLOOKUP(B79&E79&F79,'Sub Modules'!A:I,7,FALSE),"")) -> 0 | J79: =IF(OR(E79="Total",D79="Total"),IF(I79="",0,I79)-IF(H79="",0,H79),IFERROR(VLOOKUP(B79&E79&F79,'Sub Modules'!A:I,8,FALSE),"")) -> 0 | K79: 0 | L79: =IFERROR(IF(VLOOKUP(B79&E79&F79,'Sub Modules'!A:I,9,FALSE)=0,"",VLOOKUP(B79&E79&F79,'Sub Modules'!A:I,9,FALSE)),"") -> 
A80: Energy Array | B80: Albion | C80: A2 | D80: E-Cell Fab 3-4 | E80: URV Launcher | F80: Reinforced Metal Plating | G80: =IF(OR(E80="Total",D80="Total"),"",IFERROR(VLOOKUP(B80&E80&F80,'Sub Modules'!A:E,5,FALSE),"")) -> 56 | H80: =IF(D80="Total",SUMIFS(H:H,A:A,"="&A80,B:B,"="&B80,E:E,"=Total",F:F,"="&F80),IF(E80="Total",SUMIFS(G:G,A:A,"="&A80,C:C,"="&C80,F:F,"="&F80),IFERROR(VLOOKUP(B80&E80&F80,'Sub Modules'!A:I,6,FALSE),""))) -> 0 | I80: =IF(D80="Total",SUMIFS(I:I,A:A,"="&A80,B:B,"="&B80,E:E,"=Total",F:F,"="&F80),IFERROR(VLOOKUP(B80&E80&F80,'Sub Modules'!A:I,7,FALSE),"")) -> 0 | J80: =IF(OR(E80="Total",D80="Total"),IF(I80="",0,I80)-IF(H80="",0,H80),IFERROR(VLOOKUP(B80&E80&F80,'Sub Modules'!A:I,8,FALSE),"")) -> 0 | K80: 0 | L80: =IFERROR(IF(VLOOKUP(B80&E80&F80,'Sub Modules'!A:I,9,FALSE)=0,"",VLOOKUP(B80&E80&F80,'Sub Modules'!A:I,9,FALSE)),"") -> 
A81: Energy Array | B81: Albion | C81: A3 | D81: Storage 1 | E81: Total | F81: Energy Cells | G81: =IF(OR(E81="Total",D81="Total"),"",IFERROR(VLOOKUP(B81&E81&F81,'Sub Modules'!A:E,5,FALSE),"")) ->  | H81: =IF(D81="Total",SUMIFS(H:H,A:A,"="&A81,B:B,"="&B81,E:E,"=Total",F:F,"="&F81),IF(E81="Total",SUMIFS(G:G,A:A,"="&A81,C:C,"="&C81,F:F,"="&F81),IFERROR(VLOOKUP(B81&E81&F81,'Sub Modules'!A:I,6,FALSE),""))) -> 580 | I81: =IF(D81="Total",SUMIFS(H:H,A:A,"="&A81,B:B,"="&B81,E:E,"=Total",F:F,"="&F81),IFERROR(VLOOKUP(B81&E81&F81,'Sub Modules'!A:I,7,FALSE),"")) ->  | J81: =IF(OR(E81="Total",D81="Total"),IF(I81="",0,I81)-IF(H81="",0,H81),IFERROR(VLOOKUP(B81&E81&F81,'Sub Modules'!A:I,8,FALSE),"")) -> -580 | L81: =IFERROR(IF(VLOOKUP(B81&E81&F81,'Sub Modules'!A:I,9,FALSE)=0,"",VLOOKUP(B81&E81&F81,'Sub Modules'!A:I,9,FALSE)),"") -> 
A82: Energy Array | B82: Albion | C82: A3 | D82: Storage 1 | E82: Total | F82: Reinforced Metal Plating | G82: =IF(OR(E82="Total",D82="Total"),"",IFERROR(VLOOKUP(B82&E82&F82,'Sub Modules'!A:E,5,FALSE),"")) ->  | H82: =IF(D82="Total",SUMIFS(H:H,A:A,"="&A82,B:B,"="&B82,E:E,"=Total",F:F,"="&F82),IF(E82="Total",SUMIFS(G:G,A:A,"="&A82,C:C,"="&C82,F:F,"="&F82),IFERROR(VLOOKUP(B82&E82&F82,'Sub Modules'!A:I,6,FALSE),""))) -> 216 | I82: =IF(D82="Total",SUMIFS(H:H,A:A,"="&A82,B:B,"="&B82,E:E,"=Total",F:F,"="&F82),IFERROR(VLOOKUP(B82&E82&F82,'Sub Modules'!A:I,7,FALSE),"")) ->  | J82: =IF(OR(E82="Total",D82="Total"),IF(I82="",0,I82)-IF(H82="",0,H82),IFERROR(VLOOKUP(B82&E82&F82,'Sub Modules'!A:I,8,FALSE),"")) -> -216 | L82: =IFERROR(IF(VLOOKUP(B82&E82&F82,'Sub Modules'!A:I,9,FALSE)=0,"",VLOOKUP(B82&E82&F82,'Sub Modules'!A:I,9,FALSE)),"") -> 
A83: Energy Array | B83: Albion | C83: A3 | D83: Storage 1 | E83: Total | F83: Fusion Reactors | G83: =IF(OR(E83="Total",D83="Total"),"",IFERROR(VLOOKUP(B83&E83&F83,'Sub Modules'!A:E,5,FALSE),"")) ->  | H83: =IF(D83="Total",SUMIFS(H:H,A:A,"="&A83,B:B,"="&B83,E:E,"=Total",F:F,"="&F83),IF(E83="Total",SUMIFS(G:G,A:A,"="&A83,C:C,"="&C83,F:F,"="&F83),IFERROR(VLOOKUP(B83&E83&F83,'Sub Modules'!A:I,6,FALSE),""))) -> 44 | I83: =IF(D83="Total",SUMIFS(H:H,A:A,"="&A83,B:B,"="&B83,E:E,"=Total",F:F,"="&F83),IFERROR(VLOOKUP(B83&E83&F83,'Sub Modules'!A:I,7,FALSE),"")) ->  | J83: =IF(OR(E83="Total",D83="Total"),IF(I83="",0,I83)-IF(H83="",0,H83),IFERROR(VLOOKUP(B83&E83&F83,'Sub Modules'!A:I,8,FALSE),"")) -> -44 | L83: =IFERROR(IF(VLOOKUP(B83&E83&F83,'Sub Modules'!A:I,9,FALSE)=0,"",VLOOKUP(B83&E83&F83,'Sub Modules'!A:I,9,FALSE)),"") -> 
A84: Energy Array | B84: Albion | C84: A3 | D84: Storage 1 | E84: Total | F84: HIT/MA Turret | G84: =IF(OR(E84="Total",D84="Total"),"",IFERROR(VLOOKUP(B84&E84&F84,'Sub Modules'!A:E,5,FALSE),"")) ->  | H84: =IF(D84="Total",SUMIFS(H:H,A:A,"="&A84,B:B,"="&B84,E:E,"=Total",F:F,"="&F84),IF(E84="Total",SUMIFS(G:G,A:A,"="&A84,C:C,"="&C84,F:F,"="&F84),IFERROR(VLOOKUP(B84&E84&F84,'Sub Modules'!A:I,6,FALSE),""))) -> 16 | I84: =IF(D84="Total",SUMIFS(H:H,A:A,"="&A84,B:B,"="&B84,E:E,"=Total",F:F,"="&F84),IFERROR(VLOOKUP(B84&E84&F84,'Sub Modules'!A:I,7,FALSE),"")) ->  | J84: =IF(OR(E84="Total",D84="Total"),IF(I84="",0,I84)-IF(H84="",0,H84),IFERROR(VLOOKUP(B84&E84&F84,'Sub Modules'!A:I,8,FALSE),"")) -> -16 | L84: =IFERROR(IF(VLOOKUP(B84&E84&F84,'Sub Modules'!A:I,9,FALSE)=0,"",VLOOKUP(B84&E84&F84,'Sub Modules'!A:I,9,FALSE)),"") -> 
A85: Energy Array | B85: Albion | C85: A3 | D85: Storage 1 | E85: Total | F85: Force Field Projector | G85: =IF(OR(E85="Total",D85="Total"),"",IFERROR(VLOOKUP(B85&E85&F85,'Sub Modules'!A:E,5,FALSE),"")) ->  | H85: =IF(D85="Total",SUMIFS(H:H,A:A,"="&A85,B:B,"="&B85,E:E,"=Total",F:F,"="&F85),IF(E85="Total",SUMIFS(G:G,A:A,"="&A85,C:C,"="&C85,F:F,"="&F85),IFERROR(VLOOKUP(B85&E85&F85,'Sub Modules'!A:I,6,FALSE),""))) -> 2 | I85: =IF(D85="Total",SUMIFS(H:H,A:A,"="&A85,B:B,"="&B85,E:E,"=Total",F:F,"="&F85),IFERROR(VLOOKUP(B85&E85&F85,'Sub Modules'!A:I,7,FALSE),"")) ->  | J85: =IF(OR(E85="Total",D85="Total"),IF(I85="",0,I85)-IF(H85="",0,H85),IFERROR(VLOOKUP(B85&E85&F85,'Sub Modules'!A:I,8,FALSE),"")) -> -2 | L85: =IFERROR(IF(VLOOKUP(B85&E85&F85,'Sub Modules'!A:I,9,FALSE)=0,"",VLOOKUP(B85&E85&F85,'Sub Modules'!A:I,9,FALSE)),"") -> 
A86: Energy Array | B86: Albion | C86: A3 | D86: Storage 1 | E86: Tesla Duo-Charger | F86: Energy Cells | G86: =IF(OR(E86="Total",D86="Total"),"",IFERROR(VLOOKUP(B86&E86&F86,'Sub Modules'!A:E,5,FALSE),"")) -> 290 | H86: =IF(D86="Total",SUMIFS(H:H,A:A,"="&A86,B:B,"="&B86,E:E,"=Total",F:F,"="&F86),IF(E86="Total",SUMIFS(G:G,A:A,"="&A86,C:C,"="&C86,F:F,"="&F86),IFERROR(VLOOKUP(B86&E86&F86,'Sub Modules'!A:I,6,FALSE),""))) -> 0 | I86: =IF(D86="Total",SUMIFS(I:I,A:A,"="&A86,B:B,"="&B86,E:E,"=Total",F:F,"="&F86),IFERROR(VLOOKUP(B86&E86&F86,'Sub Modules'!A:I,7,FALSE),"")) -> 0 | J86: =IF(OR(E86="Total",D86="Total"),IF(I86="",0,I86)-IF(H86="",0,H86),IFERROR(VLOOKUP(B86&E86&F86,'Sub Modules'!A:I,8,FALSE),"")) -> 0 | K86: 0 | L86: =IFERROR(IF(VLOOKUP(B86&E86&F86,'Sub Modules'!A:I,9,FALSE)=0,"",VLOOKUP(B86&E86&F86,'Sub Modules'!A:I,9,FALSE)),"") -> 320000
A87: Energy Array | B87: Albion | C87: A3 | D87: Storage 1 | E87: Tesla Duo-Charger | F87: Fusion Reactors | G87: =IF(OR(E87="Total",D87="Total"),"",IFERROR(VLOOKUP(B87&E87&F87,'Sub Modules'!A:E,5,FALSE),"")) -> 22 | H87: =IF(D87="Total",SUMIFS(H:H,A:A,"="&A87,B:B,"="&B87,E:E,"=Total",F:F,"="&F87),IF(E87="Total",SUMIFS(G:G,A:A,"="&A87,C:C,"="&C87,F:F,"="&F87),IFERROR(VLOOKUP(B87&E87&F87,'Sub Modules'!A:I,6,FALSE),""))) -> 0 | I87: =IF(D87="Total",SUMIFS(I:I,A:A,"="&A87,B:B,"="&B87,E:E,"=Total",F:F,"="&F87),IFERROR(VLOOKUP(B87&E87&F87,'Sub Modules'!A:I,7,FALSE),"")) -> 0 | J87: =IF(OR(E87="Total",D87="Total"),IF(I87="",0,I87)-IF(H87="",0,H87),IFERROR(VLOOKUP(B87&E87&F87,'Sub Modules'!A:I,8,FALSE),"")) -> 0 | K87: 0 | L87: =IFERROR(IF(VLOOKUP(B87&E87&F87,'Sub Modules'!A:I,9,FALSE)=0,"",VLOOKUP(B87&E87&F87,'Sub Modules'!A:I,9,FALSE)),"") -> 
A88: Energy Array | B88: Albion | C88: A3 | D88: Storage 1 | E88: Tesla Duo-Charger | F88: HIT/MA Turret | G88: =IF(OR(E88="Total",D88="Total"),"",IFERROR(VLOOKUP(B88&E88&F88,'Sub Modules'!A:E,5,FALSE),"")) -> 8 | H88: =IF(D88="Total",SUMIFS(H:H,A:A,"="&A88,B:B,"="&B88,E:E,"=Total",F:F,"="&F88),IF(E88="Total",SUMIFS(G:G,A:A,"="&A88,C:C,"="&C88,F:F,"="&F88),IFERROR(VLOOKUP(B88&E88&F88,'Sub Modules'!A:I,6,FALSE),""))) -> 0 | I88: =IF(D88="Total",SUMIFS(I:I,A:A,"="&A88,B:B,"="&B88,E:E,"=Total",F:F,"="&F88),IFERROR(VLOOKUP(B88&E88&F88,'Sub Modules'!A:I,7,FALSE),"")) -> 0 | J88: =IF(OR(E88="Total",D88="Total"),IF(I88="",0,I88)-IF(H88="",0,H88),IFERROR(VLOOKUP(B88&E88&F88,'Sub Modules'!A:I,8,FALSE),"")) -> 0 | K88: 0 | L88: =IFERROR(IF(VLOOKUP(B88&E88&F88,'Sub Modules'!A:I,9,FALSE)=0,"",VLOOKUP(B88&E88&F88,'Sub Modules'!A:I,9,FALSE)),"") -> 
A89: Energy Array | B89: Albion | C89: A3 | D89: Storage 1 | E89: Tesla Duo-Charger | F89: Force Field Projector | G89: =IF(OR(E89="Total",D89="Total"),"",IFERROR(VLOOKUP(B89&E89&F89,'Sub Modules'!A:E,5,FALSE),"")) -> 1 | H89: =IF(D89="Total",SUMIFS(H:H,A:A,"="&A89,B:B,"="&B89,E:E,"=Total",F:F,"="&F89),IF(E89="Total",SUMIFS(G:G,A:A,"="&A89,C:C,"="&C89,F:F,"="&F89),IFERROR(VLOOKUP(B89&E89&F89,'Sub Modules'!A:I,6,FALSE),""))) -> 0 | I89: =IF(D89="Total",SUMIFS(I:I,A:A,"="&A89,B:B,"="&B89,E:E,"=Total",F:F,"="&F89),IFERROR(VLOOKUP(B89&E89&F89,'Sub Modules'!A:I,7,FALSE),"")) -> 0 | J89: =IF(OR(E89="Total",D89="Total"),IF(I89="",0,I89)-IF(H89="",0,H89),IFERROR(VLOOKUP(B89&E89&F89,'Sub Modules'!A:I,8,FALSE),"")) -> 0 | K89: 0 | L89: =IFERROR(IF(VLOOKUP(B89&E89&F89,'Sub Modules'!A:I,9,FALSE)=0,"",VLOOKUP(B89&E89&F89,'Sub Modules'!A:I,9,FALSE)),"") -> 
A90: Energy Array | B90: Albion | C90: A3 | D90: Storage 1 | E90: Tesla Duo-Charger | F90: Reinforced Metal Plating | G90: =IF(OR(E90="Total",D90="Total"),"",IFERROR(VLOOKUP(B90&E90&F90,'Sub Modules'!A:E,5,FALSE),"")) -> 108 | H90: =IF(D90="Total",SUMIFS(H:H,A:A,"="&A90,B:B,"="&B90,E:E,"=Total",F:F,"="&F90),IF(E90="Total",SUMIFS(G:G,A:A,"="&A90,C:C,"="&C90,F:F,"="&F90),IFERROR(VLOOKUP(B90&E90&F90,'Sub Modules'!A:I,6,FALSE),""))) -> 0 | I90: =IF(D90="Total",SUMIFS(I:I,A:A,"="&A90,B:B,"="&B90,E:E,"=Total",F:F,"="&F90),IFERROR(VLOOKUP(B90&E90&F90,'Sub Modules'!A:I,7,FALSE),"")) -> 0 | J90: =IF(OR(E90="Total",D90="Total"),IF(I90="",0,I90)-IF(H90="",0,H90),IFERROR(VLOOKUP(B90&E90&F90,'Sub Modules'!A:I,8,FALSE),"")) -> 0 | K90: 0 | L90: =IFERROR(IF(VLOOKUP(B90&E90&F90,'Sub Modules'!A:I,9,FALSE)=0,"",VLOOKUP(B90&E90&F90,'Sub Modules'!A:I,9,FALSE)),"") -> 
A91: Energy Array | B91: Albion | C91: A3 | D91: Storage 1 | E91: Tesla Duo-Charger | F91: Energy Cells | G91: =IF(OR(E91="Total",D91="Total"),"",IFERROR(VLOOKUP(B91&E91&F91,'Sub Modules'!A:E,5,FALSE),"")) -> 290 | H91: =IF(D91="Total",SUMIFS(H:H,A:A,"="&A91,B:B,"="&B91,E:E,"=Total",F:F,"="&F91),IF(E91="Total",SUMIFS(G:G,A:A,"="&A91,C:C,"="&C91,F:F,"="&F91),IFERROR(VLOOKUP(B91&E91&F91,'Sub Modules'!A:I,6,FALSE),""))) -> 0 | I91: =IF(D91="Total",SUMIFS(I:I,A:A,"="&A91,B:B,"="&B91,E:E,"=Total",F:F,"="&F91),IFERROR(VLOOKUP(B91&E91&F91,'Sub Modules'!A:I,7,FALSE),"")) -> 0 | J91: =IF(OR(E91="Total",D91="Total"),IF(I91="",0,I91)-IF(H91="",0,H91),IFERROR(VLOOKUP(B91&E91&F91,'Sub Modules'!A:I,8,FALSE),"")) -> 0 | K91: 0 | L91: =IFERROR(IF(VLOOKUP(B91&E91&F91,'Sub Modules'!A:I,9,FALSE)=0,"",VLOOKUP(B91&E91&F91,'Sub Modules'!A:I,9,FALSE)),"") -> 320000
A92: Energy Array | B92: Albion | C92: A3 | D92: Storage 1 | E92: Tesla Duo-Charger | F92: Fusion Reactors | G92: =IF(OR(E92="Total",D92="Total"),"",IFERROR(VLOOKUP(B92&E92&F92,'Sub Modules'!A:E,5,FALSE),"")) -> 22 | H92: =IF(D92="Total",SUMIFS(H:H,A:A,"="&A92,B:B,"="&B92,E:E,"=Total",F:F,"="&F92),IF(E92="Total",SUMIFS(G:G,A:A,"="&A92,C:C,"="&C92,F:F,"="&F92),IFERROR(VLOOKUP(B92&E92&F92,'Sub Modules'!A:I,6,FALSE),""))) -> 0 | I92: =IF(D92="Total",SUMIFS(I:I,A:A,"="&A92,B:B,"="&B92,E:E,"=Total",F:F,"="&F92),IFERROR(VLOOKUP(B92&E92&F92,'Sub Modules'!A:I,7,FALSE),"")) -> 0 | J92: =IF(OR(E92="Total",D92="Total"),IF(I92="",0,I92)-IF(H92="",0,H92),IFERROR(VLOOKUP(B92&E92&F92,'Sub Modules'!A:I,8,FALSE),"")) -> 0 | K92: 0 | L92: =IFERROR(IF(VLOOKUP(B92&E92&F92,'Sub Modules'!A:I,9,FALSE)=0,"",VLOOKUP(B92&E92&F92,'Sub Modules'!A:I,9,FALSE)),"") -> 
A93: Energy Array | B93: Albion | C93: A3 | D93: Storage 1 | E93: Tesla Duo-Charger | F93: HIT/MA Turret | G93: =IF(OR(E93="Total",D93="Total"),"",IFERROR(VLOOKUP(B93&E93&F93,'Sub Modules'!A:E,5,FALSE),"")) -> 8 | H93: =IF(D93="Total",SUMIFS(H:H,A:A,"="&A93,B:B,"="&B93,E:E,"=Total",F:F,"="&F93),IF(E93="Total",SUMIFS(G:G,A:A,"="&A93,C:C,"="&C93,F:F,"="&F93),IFERROR(VLOOKUP(B93&E93&F93,'Sub Modules'!A:I,6,FALSE),""))) -> 0 | I93: =IF(D93="Total",SUMIFS(I:I,A:A,"="&A93,B:B,"="&B93,E:E,"=Total",F:F,"="&F93),IFERROR(VLOOKUP(B93&E93&F93,'Sub Modules'!A:I,7,FALSE),"")) -> 0 | J93: =IF(OR(E93="Total",D93="Total"),IF(I93="",0,I93)-IF(H93="",0,H93),IFERROR(VLOOKUP(B93&E93&F93,'Sub Modules'!A:I,8,FALSE),"")) -> 0 | K93: 0 | L93: =IFERROR(IF(VLOOKUP(B93&E93&F93,'Sub Modules'!A:I,9,FALSE)=0,"",VLOOKUP(B93&E93&F93,'Sub Modules'!A:I,9,FALSE)),"") -> 
A94: Energy Array | B94: Albion | C94: A3 | D94: Storage 1 | E94: Tesla Duo-Charger | F94: Force Field Projector | G94: =IF(OR(E94="Total",D94="Total"),"",IFERROR(VLOOKUP(B94&E94&F94,'Sub Modules'!A:E,5,FALSE),"")) -> 1 | H94: =IF(D94="Total",SUMIFS(H:H,A:A,"="&A94,B:B,"="&B94,E:E,"=Total",F:F,"="&F94),IF(E94="Total",SUMIFS(G:G,A:A,"="&A94,C:C,"="&C94,F:F,"="&F94),IFERROR(VLOOKUP(B94&E94&F94,'Sub Modules'!A:I,6,FALSE),""))) -> 0 | I94: =IF(D94="Total",SUMIFS(I:I,A:A,"="&A94,B:B,"="&B94,E:E,"=Total",F:F,"="&F94),IFERROR(VLOOKUP(B94&E94&F94,'Sub Modules'!A:I,7,FALSE),"")) -> 0 | J94: =IF(OR(E94="Total",D94="Total"),IF(I94="",0,I94)-IF(H94="",0,H94),IFERROR(VLOOKUP(B94&E94&F94,'Sub Modules'!A:I,8,FALSE),"")) -> 0 | K94: 0 | L94: =IFERROR(IF(VLOOKUP(B94&E94&F94,'Sub Modules'!A:I,9,FALSE)=0,"",VLOOKUP(B94&E94&F94,'Sub Modules'!A:I,9,FALSE)),"") -> 
A95: Energy Array | B95: Albion | C95: A3 | D95: Storage 1 | E95: Tesla Duo-Charger | F95: Reinforced Metal Plating | G95: =IF(OR(E95="Total",D95="Total"),"",IFERROR(VLOOKUP(B95&E95&F95,'Sub Modules'!A:E,5,FALSE),"")) -> 108 | H95: =IF(D95="Total",SUMIFS(H:H,A:A,"="&A95,B:B,"="&B95,E:E,"=Total",F:F,"="&F95),IF(E95="Total",SUMIFS(G:G,A:A,"="&A95,C:C,"="&C95,F:F,"="&F95),IFERROR(VLOOKUP(B95&E95&F95,'Sub Modules'!A:I,6,FALSE),""))) -> 0 | I95: =IF(D95="Total",SUMIFS(I:I,A:A,"="&A95,B:B,"="&B95,E:E,"=Total",F:F,"="&F95),IFERROR(VLOOKUP(B95&E95&F95,'Sub Modules'!A:I,7,FALSE),"")) -> 0 | J95: =IF(OR(E95="Total",D95="Total"),IF(I95="",0,I95)-IF(H95="",0,H95),IFERROR(VLOOKUP(B95&E95&F95,'Sub Modules'!A:I,8,FALSE),"")) -> 0 | K95: 0 | L95: =IFERROR(IF(VLOOKUP(B95&E95&F95,'Sub Modules'!A:I,9,FALSE)=0,"",VLOOKUP(B95&E95&F95,'Sub Modules'!A:I,9,FALSE)),"") -> 
A96: Energy Array | B96: Albion | C96: B1 | D96: E-Cell Fab 5-6 | E96: Total | F96: Energy Cells | G96: =IF(OR(E96="Total",D96="Total"),"",IFERROR(VLOOKUP(B96&E96&F96,'Sub Modules'!A:E,5,FALSE),"")) ->  | H96: =IF(D96="Total",SUMIFS(H:H,A:A,"="&A96,B:B,"="&B96,E:E,"=Total",F:F,"="&F96),IF(E96="Total",SUMIFS(G:G,A:A,"="&A96,C:C,"="&C96,F:F,"="&F96),IFERROR(VLOOKUP(B96&E96&F96,'Sub Modules'!A:I,6,FALSE),""))) -> 2492 | I96: =IF(D96="Total",SUMIFS(H:H,A:A,"="&A96,B:B,"="&B96,E:E,"=Total",F:F,"="&F96),IFERROR(VLOOKUP(B96&E96&F96,'Sub Modules'!A:I,7,FALSE),"")) ->  | J96: =IF(OR(E96="Total",D96="Total"),IF(I96="",0,I96)-IF(H96="",0,H96),IFERROR(VLOOKUP(B96&E96&F96,'Sub Modules'!A:I,8,FALSE),"")) -> -2492 | L96: =IFERROR(IF(VLOOKUP(B96&E96&F96,'Sub Modules'!A:I,9,FALSE)=0,"",VLOOKUP(B96&E96&F96,'Sub Modules'!A:I,9,FALSE)),"") -> 
A97: Energy Array | B97: Albion | C97: B1 | D97: E-Cell Fab 5-6 | E97: Total | F97: Reinforced Metal Plating | G97: =IF(OR(E97="Total",D97="Total"),"",IFERROR(VLOOKUP(B97&E97&F97,'Sub Modules'!A:E,5,FALSE),"")) ->  | H97: =IF(D97="Total",SUMIFS(H:H,A:A,"="&A97,B:B,"="&B97,E:E,"=Total",F:F,"="&F97),IF(E97="Total",SUMIFS(G:G,A:A,"="&A97,C:C,"="&C97,F:F,"="&F97),IFERROR(VLOOKUP(B97&E97&F97,'Sub Modules'!A:I,6,FALSE),""))) -> 1362 | I97: =IF(D97="Total",SUMIFS(H:H,A:A,"="&A97,B:B,"="&B97,E:E,"=Total",F:F,"="&F97),IFERROR(VLOOKUP(B97&E97&F97,'Sub Modules'!A:I,7,FALSE),"")) ->  | J97: =IF(OR(E97="Total",D97="Total"),IF(I97="",0,I97)-IF(H97="",0,H97),IFERROR(VLOOKUP(B97&E97&F97,'Sub Modules'!A:I,8,FALSE),"")) -> -1362 | L97: =IFERROR(IF(VLOOKUP(B97&E97&F97,'Sub Modules'!A:I,9,FALSE)=0,"",VLOOKUP(B97&E97&F97,'Sub Modules'!A:I,9,FALSE)),"") -> 
A98: Energy Array | B98: Albion | C98: B1 | D98: E-Cell Fab 5-6 | E98: Total | F98: Bio-Optic Wiring | G98: =IF(OR(E98="Total",D98="Total"),"",IFERROR(VLOOKUP(B98&E98&F98,'Sub Modules'!A:E,5,FALSE),"")) ->  | H98: =IF(D98="Total",SUMIFS(H:H,A:A,"="&A98,B:B,"="&B98,E:E,"=Total",F:F,"="&F98),IF(E98="Total",SUMIFS(G:G,A:A,"="&A98,C:C,"="&C98,F:F,"="&F98),IFERROR(VLOOKUP(B98&E98&F98,'Sub Modules'!A:I,6,FALSE),""))) -> 1292 | I98: =IF(D98="Total",SUMIFS(H:H,A:A,"="&A98,B:B,"="&B98,E:E,"=Total",F:F,"="&F98),IFERROR(VLOOKUP(B98&E98&F98,'Sub Modules'!A:I,7,FALSE),"")) ->  | J98: =IF(OR(E98="Total",D98="Total"),IF(I98="",0,I98)-IF(H98="",0,H98),IFERROR(VLOOKUP(B98&E98&F98,'Sub Modules'!A:I,8,FALSE),"")) -> -1292 | L98: =IFERROR(IF(VLOOKUP(B98&E98&F98,'Sub Modules'!A:I,9,FALSE)=0,"",VLOOKUP(B98&E98&F98,'Sub Modules'!A:I,9,FALSE)),"") -> 
A99: Energy Array | B99: Albion | C99: B1 | D99: E-Cell Fab 5-6 | E99: Total | F99: Fusion Reactors | G99: =IF(OR(E99="Total",D99="Total"),"",IFERROR(VLOOKUP(B99&E99&F99,'Sub Modules'!A:E,5,FALSE),"")) ->  | H99: =IF(D99="Total",SUMIFS(H:H,A:A,"="&A99,B:B,"="&B99,E:E,"=Total",F:F,"="&F99),IF(E99="Total",SUMIFS(G:G,A:A,"="&A99,C:C,"="&C99,F:F,"="&F99),IFERROR(VLOOKUP(B99&E99&F99,'Sub Modules'!A:I,6,FALSE),""))) -> 260 | I99: =IF(D99="Total",SUMIFS(H:H,A:A,"="&A99,B:B,"="&B99,E:E,"=Total",F:F,"="&F99),IFERROR(VLOOKUP(B99&E99&F99,'Sub Modules'!A:I,7,FALSE),"")) ->  | J99: =IF(OR(E99="Total",D99="Total"),IF(I99="",0,I99)-IF(H99="",0,H99),IFERROR(VLOOKUP(B99&E99&F99,'Sub Modules'!A:I,8,FALSE),"")) -> -260 | L99: =IFERROR(IF(VLOOKUP(B99&E99&F99,'Sub Modules'!A:I,9,FALSE)=0,"",VLOOKUP(B99&E99&F99,'Sub Modules'!A:I,9,FALSE)),"") -> 
A100: Energy Array | B100: Albion | C100: B1 | D100: E-Cell Fab 5-6 | E100: Total | F100: HIT/MA Turret | G100: =IF(OR(E100="Total",D100="Total"),"",IFERROR(VLOOKUP(B100&E100&F100,'Sub Modules'!A:E,5,FALSE),"")) ->  | H100: =IF(D100="Total",SUMIFS(H:H,A:A,"="&A100,B:B,"="&B100,E:E,"=Total",F:F,"="&F100),IF(E100="Total",SUMIFS(G:G,A:A,"="&A100,C:C,"="&C100,F:F,"="&F100),IFERROR(VLOOKUP(B100&E100&F100,'Sub Modules'!A:I,6,FALSE),""))) -> 26 | I100: =IF(D100="Total",SUMIFS(H:H,A:A,"="&A100,B:B,"="&B100,E:E,"=Total",F:F,"="&F100),IFERROR(VLOOKUP(B100&E100&F100,'Sub Modules'!A:I,7,FALSE),"")) ->  | J100: =IF(OR(E100="Total",D100="Total"),IF(I100="",0,I100)-IF(H100="",0,H100),IFERROR(VLOOKUP(B100&E100&F100,'Sub Modules'!A:I,8,FALSE),"")) -> -26 | L100: =IFERROR(IF(VLOOKUP(B100&E100&F100,'Sub Modules'!A:I,9,FALSE)=0,"",VLOOKUP(B100&E100&F100,'Sub Modules'!A:I,9,FALSE)),"") -> 
A101: Energy Array | B101: Albion | C101: B1 | D101: E-Cell Fab 5-6 | E101: Total | F101: Plasma/MA Turret | G101: =IF(OR(E101="Total",D101="Total"),"",IFERROR(VLOOKUP(B101&E101&F101,'Sub Modules'!A:E,5,FALSE),"")) ->  | H101: =IF(D101="Total",SUMIFS(H:H,A:A,"="&A101,B:B,"="&B101,E:E,"=Total",F:F,"="&F101),IF(E101="Total",SUMIFS(G:G,A:A,"="&A101,C:C,"="&C101,F:F,"="&F101),IFERROR(VLOOKUP(B101&E101&F101,'Sub Modules'!A:I,6,FALSE),""))) -> 4 | I101: =IF(D101="Total",SUMIFS(H:H,A:A,"="&A101,B:B,"="&B101,E:E,"=Total",F:F,"="&F101),IFERROR(VLOOKUP(B101&E101&F101,'Sub Modules'!A:I,7,FALSE),"")) ->  | J101: =IF(OR(E101="Total",D101="Total"),IF(I101="",0,I101)-IF(H101="",0,H101),IFERROR(VLOOKUP(B101&E101&F101,'Sub Modules'!A:I,8,FALSE),"")) -> -4 | L101: =IFERROR(IF(VLOOKUP(B101&E101&F101,'Sub Modules'!A:I,9,FALSE)=0,"",VLOOKUP(B101&E101&F101,'Sub Modules'!A:I,9,FALSE)),"") -> 
A102: Energy Array | B102: Albion | C102: B1 | D102: E-Cell Fab 5-6 | E102: Total | F102: Force Field Projector | G102: =IF(OR(E102="Total",D102="Total"),"",IFERROR(VLOOKUP(B102&E102&F102,'Sub Modules'!A:E,5,FALSE),"")) ->  | H102: =IF(D102="Total",SUMIFS(H:H,A:A,"="&A102,B:B,"="&B102,E:E,"=Total",F:F,"="&F102),IF(E102="Total",SUMIFS(G:G,A:A,"="&A102,C:C,"="&C102,F:F,"="&F102),IFERROR(VLOOKUP(B102&E102&F102,'Sub Modules'!A:I,6,FALSE),""))) -> 6 | I102: =IF(D102="Total",SUMIFS(H:H,A:A,"="&A102,B:B,"="&B102,E:E,"=Total",F:F,"="&F102),IFERROR(VLOOKUP(B102&E102&F102,'Sub Modules'!A:I,7,FALSE),"")) ->  | J102: =IF(OR(E102="Total",D102="Total"),IF(I102="",0,I102)-IF(H102="",0,H102),IFERROR(VLOOKUP(B102&E102&F102,'Sub Modules'!A:I,8,FALSE),"")) -> -6 | L102: =IFERROR(IF(VLOOKUP(B102&E102&F102,'Sub Modules'!A:I,9,FALSE)=0,"",VLOOKUP(B102&E102&F102,'Sub Modules'!A:I,9,FALSE)),"") -> 
A103: Energy Array | B103: Albion | C103: B1 | D103: E-Cell Fab 5-6 | E103: E-Cell Fab | F103: Bio-Optic Wiring | G103: =IF(OR(E103="Total",D103="Total"),"",IFERROR(VLOOKUP(B103&E103&F103,'Sub Modules'!A:E,5,FALSE),"")) -> 646 | H103: =IF(D103="Total",SUMIFS(H:H,A:A,"="&A103,B:B,"="&B103,E:E,"=Total",F:F,"="&F103),IF(E103="Total",SUMIFS(G:G,A:A,"="&A103,C:C,"="&C103,F:F,"="&F103),IFERROR(VLOOKUP(B103&E103&F103,'Sub Modules'!A:I,6,FALSE),""))) -> 0 | I103: =IF(D103="Total",SUMIFS(I:I,A:A,"="&A103,B:B,"="&B103,E:E,"=Total",F:F,"="&F103),IFERROR(VLOOKUP(B103&E103&F103,'Sub Modules'!A:I,7,FALSE),"")) -> 0 | J103: =IF(OR(E103="Total",D103="Total"),IF(I103="",0,I103)-IF(H103="",0,H103),IFERROR(VLOOKUP(B103&E103&F103,'Sub Modules'!A:I,8,FALSE),"")) -> 0 | K103: 0 | L103: =IFERROR(IF(VLOOKUP(B103&E103&F103,'Sub Modules'!A:I,9,FALSE)=0,"",VLOOKUP(B103&E103&F103,'Sub Modules'!A:I,9,FALSE)),"") -> 
A104: Energy Array | B104: Albion | C104: B1 | D104: E-Cell Fab 5-6 | E104: E-Cell Fab | F104: Bio-Optic Wiring | G104: =IF(OR(E104="Total",D104="Total"),"",IFERROR(VLOOKUP(B104&E104&F104,'Sub Modules'!A:E,5,FALSE),"")) -> 646 | H104: =IF(D104="Total",SUMIFS(H:H,A:A,"="&A104,B:B,"="&B104,E:E,"=Total",F:F,"="&F104),IF(E104="Total",SUMIFS(G:G,A:A,"="&A104,C:C,"="&C104,F:F,"="&F104),IFERROR(VLOOKUP(B104&E104&F104,'Sub Modules'!A:I,6,FALSE),""))) -> 0 | I104: =IF(D104="Total",SUMIFS(I:I,A:A,"="&A104,B:B,"="&B104,E:E,"=Total",F:F,"="&F104),IFERROR(VLOOKUP(B104&E104&F104,'Sub Modules'!A:I,7,FALSE),"")) -> 0 | J104: =IF(OR(E104="Total",D104="Total"),IF(I104="",0,I104)-IF(H104="",0,H104),IFERROR(VLOOKUP(B104&E104&F104,'Sub Modules'!A:I,8,FALSE),"")) -> 0 | K104: 0 | L104: =IFERROR(IF(VLOOKUP(B104&E104&F104,'Sub Modules'!A:I,9,FALSE)=0,"",VLOOKUP(B104&E104&F104,'Sub Modules'!A:I,9,FALSE)),"") -> 
A105: Energy Array | B105: Albion | C105: B1 | D105: E-Cell Fab 5-6 | E105: E-Cell Fab | F105: Energy Cells | G105: =IF(OR(E105="Total",D105="Total"),"",IFERROR(VLOOKUP(B105&E105&F105,'Sub Modules'!A:E,5,FALSE),"")) -> 714 | H105: =IF(D105="Total",SUMIFS(H:H,A:A,"="&A105,B:B,"="&B105,E:E,"=Total",F:F,"="&F105),IF(E105="Total",SUMIFS(G:G,A:A,"="&A105,C:C,"="&C105,F:F,"="&F105),IFERROR(VLOOKUP(B105&E105&F105,'Sub Modules'!A:I,6,FALSE),""))) -> 7891 | I105: =IF(D105="Total",SUMIFS(I:I,A:A,"="&A105,B:B,"="&B105,E:E,"=Total",F:F,"="&F105),IFERROR(VLOOKUP(B105&E105&F105,'Sub Modules'!A:I,7,FALSE),"")) -> 0 | J105: =IF(OR(E105="Total",D105="Total"),IF(I105="",0,I105)-IF(H105="",0,H105),IFERROR(VLOOKUP(B105&E105&F105,'Sub Modules'!A:I,8,FALSE),"")) -> 0 | K105: 10731 | L105: =IFERROR(IF(VLOOKUP(B105&E105&F105,'Sub Modules'!A:I,9,FALSE)=0,"",VLOOKUP(B105&E105&F105,'Sub Modules'!A:I,9,FALSE)),"") -> 
A106: Energy Array | B106: Albion | C106: B1 | D106: E-Cell Fab 5-6 | E106: E-Cell Fab | F106: Energy Cells | G106: =IF(OR(E106="Total",D106="Total"),"",IFERROR(VLOOKUP(B106&E106&F106,'Sub Modules'!A:E,5,FALSE),"")) -> 714 | H106: =IF(D106="Total",SUMIFS(H:H,A:A,"="&A106,B:B,"="&B106,E:E,"=Total",F:F,"="&F106),IF(E106="Total",SUMIFS(G:G,A:A,"="&A106,C:C,"="&C106,F:F,"="&F106),IFERROR(VLOOKUP(B106&E106&F106,'Sub Modules'!A:I,6,FALSE),""))) -> 7891 | I106: =IF(D106="Total",SUMIFS(I:I,A:A,"="&A106,B:B,"="&B106,E:E,"=Total",F:F,"="&F106),IFERROR(VLOOKUP(B106&E106&F106,'Sub Modules'!A:I,7,FALSE),"")) -> 0 | J106: =IF(OR(E106="Total",D106="Total"),IF(I106="",0,I106)-IF(H106="",0,H106),IFERROR(VLOOKUP(B106&E106&F106,'Sub Modules'!A:I,8,FALSE),"")) -> 0 | K106: 10731 | L106: =IFERROR(IF(VLOOKUP(B106&E106&F106,'Sub Modules'!A:I,9,FALSE)=0,"",VLOOKUP(B106&E106&F106,'Sub Modules'!A:I,9,FALSE)),"") -> 
A107: Energy Array | B107: Albion | C107: B1 | D107: E-Cell Fab 5-6 | E107: E-Cell Fab | F107: Food Rations | G107: =IF(OR(E107="Total",D107="Total"),"",IFERROR(VLOOKUP(B107&E107&F107,'Sub Modules'!A:E,5,FALSE),"")) -> 0 | H107: =IF(D107="Total",SUMIFS(H:H,A:A,"="&A107,B:B,"="&B107,E:E,"=Total",F:F,"="&F107),IF(E107="Total",SUMIFS(G:G,A:A,"="&A107,C:C,"="&C107,F:F,"="&F107),IFERROR(VLOOKUP(B107&E107&F107,'Sub Modules'!A:I,6,FALSE),""))) -> 0 | I107: =IF(D107="Total",SUMIFS(I:I,A:A,"="&A107,B:B,"="&B107,E:E,"=Total",F:F,"="&F107),IFERROR(VLOOKUP(B107&E107&F107,'Sub Modules'!A:I,7,FALSE),"")) -> -48 | J107: =IF(OR(E107="Total",D107="Total"),IF(I107="",0,I107)-IF(H107="",0,H107),IFERROR(VLOOKUP(B107&E107&F107,'Sub Modules'!A:I,8,FALSE),"")) -> 15 | K107: -48 | L107: =IFERROR(IF(VLOOKUP(B107&E107&F107,'Sub Modules'!A:I,9,FALSE)=0,"",VLOOKUP(B107&E107&F107,'Sub Modules'!A:I,9,FALSE)),"") -> 
A108: Energy Array | B108: Albion | C108: B1 | D108: E-Cell Fab 5-6 | E108: E-Cell Fab | F108: Food Rations | G108: =IF(OR(E108="Total",D108="Total"),"",IFERROR(VLOOKUP(B108&E108&F108,'Sub Modules'!A:E,5,FALSE),"")) -> 0 | H108: =IF(D108="Total",SUMIFS(H:H,A:A,"="&A108,B:B,"="&B108,E:E,"=Total",F:F,"="&F108),IF(E108="Total",SUMIFS(G:G,A:A,"="&A108,C:C,"="&C108,F:F,"="&F108),IFERROR(VLOOKUP(B108&E108&F108,'Sub Modules'!A:I,6,FALSE),""))) -> 0 | I108: =IF(D108="Total",SUMIFS(I:I,A:A,"="&A108,B:B,"="&B108,E:E,"=Total",F:F,"="&F108),IFERROR(VLOOKUP(B108&E108&F108,'Sub Modules'!A:I,7,FALSE),"")) -> -48 | J108: =IF(OR(E108="Total",D108="Total"),IF(I108="",0,I108)-IF(H108="",0,H108),IFERROR(VLOOKUP(B108&E108&F108,'Sub Modules'!A:I,8,FALSE),"")) -> 15 | K108: -48 | L108: =IFERROR(IF(VLOOKUP(B108&E108&F108,'Sub Modules'!A:I,9,FALSE)=0,"",VLOOKUP(B108&E108&F108,'Sub Modules'!A:I,9,FALSE)),"") -> 
A109: Energy Array | B109: Albion | C109: B1 | D109: E-Cell Fab 5-6 | E109: E-Cell Fab | F109: Force Field Projector | G109: =IF(OR(E109="Total",D109="Total"),"",IFERROR(VLOOKUP(B109&E109&F109,'Sub Modules'!A:E,5,FALSE),"")) -> 1 | H109: =IF(D109="Total",SUMIFS(H:H,A:A,"="&A109,B:B,"="&B109,E:E,"=Total",F:F,"="&F109),IF(E109="Total",SUMIFS(G:G,A:A,"="&A109,C:C,"="&C109,F:F,"="&F109),IFERROR(VLOOKUP(B109&E109&F109,'Sub Modules'!A:I,6,FALSE),""))) -> 0 | I109: =IF(D109="Total",SUMIFS(I:I,A:A,"="&A109,B:B,"="&B109,E:E,"=Total",F:F,"="&F109),IFERROR(VLOOKUP(B109&E109&F109,'Sub Modules'!A:I,7,FALSE),"")) -> 0 | J109: =IF(OR(E109="Total",D109="Total"),IF(I109="",0,I109)-IF(H109="",0,H109),IFERROR(VLOOKUP(B109&E109&F109,'Sub Modules'!A:I,8,FALSE),"")) -> 0 | K109: 0 | L109: =IFERROR(IF(VLOOKUP(B109&E109&F109,'Sub Modules'!A:I,9,FALSE)=0,"",VLOOKUP(B109&E109&F109,'Sub Modules'!A:I,9,FALSE)),"") -> 
A110: Energy Array | B110: Albion | C110: B1 | D110: E-Cell Fab 5-6 | E110: E-Cell Fab | F110: Force Field Projector | G110: =IF(OR(E110="Total",D110="Total"),"",IFERROR(VLOOKUP(B110&E110&F110,'Sub Modules'!A:E,5,FALSE),"")) -> 1 | H110: =IF(D110="Total",SUMIFS(H:H,A:A,"="&A110,B:B,"="&B110,E:E,"=Total",F:F,"="&F110),IF(E110="Total",SUMIFS(G:G,A:A,"="&A110,C:C,"="&C110,F:F,"="&F110),IFERROR(VLOOKUP(B110&E110&F110,'Sub Modules'!A:I,6,FALSE),""))) -> 0 | I110: =IF(D110="Total",SUMIFS(I:I,A:A,"="&A110,B:B,"="&B110,E:E,"=Total",F:F,"="&F110),IFERROR(VLOOKUP(B110&E110&F110,'Sub Modules'!A:I,7,FALSE),"")) -> 0 | J110: =IF(OR(E110="Total",D110="Total"),IF(I110="",0,I110)-IF(H110="",0,H110),IFERROR(VLOOKUP(B110&E110&F110,'Sub Modules'!A:I,8,FALSE),"")) -> 0 | K110: 0 | L110: =IFERROR(IF(VLOOKUP(B110&E110&F110,'Sub Modules'!A:I,9,FALSE)=0,"",VLOOKUP(B110&E110&F110,'Sub Modules'!A:I,9,FALSE)),"") -> 
A111: Energy Array | B111: Albion | C111: B1 | D111: E-Cell Fab 5-6 | E111: E-Cell Fab | F111: Fusion Reactors | G111: =IF(OR(E111="Total",D111="Total"),"",IFERROR(VLOOKUP(B111&E111&F111,'Sub Modules'!A:E,5,FALSE),"")) -> 90 | H111: =IF(D111="Total",SUMIFS(H:H,A:A,"="&A111,B:B,"="&B111,E:E,"=Total",F:F,"="&F111),IF(E111="Total",SUMIFS(G:G,A:A,"="&A111,C:C,"="&C111,F:F,"="&F111),IFERROR(VLOOKUP(B111&E111&F111,'Sub Modules'!A:I,6,FALSE),""))) -> 0 | I111: =IF(D111="Total",SUMIFS(I:I,A:A,"="&A111,B:B,"="&B111,E:E,"=Total",F:F,"="&F111),IFERROR(VLOOKUP(B111&E111&F111,'Sub Modules'!A:I,7,FALSE),"")) -> 0 | J111: =IF(OR(E111="Total",D111="Total"),IF(I111="",0,I111)-IF(H111="",0,H111),IFERROR(VLOOKUP(B111&E111&F111,'Sub Modules'!A:I,8,FALSE),"")) -> 0 | K111: 0 | L111: =IFERROR(IF(VLOOKUP(B111&E111&F111,'Sub Modules'!A:I,9,FALSE)=0,"",VLOOKUP(B111&E111&F111,'Sub Modules'!A:I,9,FALSE)),"") -> 
A112: Energy Array | B112: Albion | C112: B1 | D112: E-Cell Fab 5-6 | E112: E-Cell Fab | F112: Fusion Reactors | G112: =IF(OR(E112="Total",D112="Total"),"",IFERROR(VLOOKUP(B112&E112&F112,'Sub Modules'!A:E,5,FALSE),"")) -> 90 | H112: =IF(D112="Total",SUMIFS(H:H,A:A,"="&A112,B:B,"="&B112,E:E,"=Total",F:F,"="&F112),IF(E112="Total",SUMIFS(G:G,A:A,"="&A112,C:C,"="&C112,F:F,"="&F112),IFERROR(VLOOKUP(B112&E112&F112,'Sub Modules'!A:I,6,FALSE),""))) -> 0 | I112: =IF(D112="Total",SUMIFS(I:I,A:A,"="&A112,B:B,"="&B112,E:E,"=Total",F:F,"="&F112),IFERROR(VLOOKUP(B112&E112&F112,'Sub Modules'!A:I,7,FALSE),"")) -> 0 | J112: =IF(OR(E112="Total",D112="Total"),IF(I112="",0,I112)-IF(H112="",0,H112),IFERROR(VLOOKUP(B112&E112&F112,'Sub Modules'!A:I,8,FALSE),"")) -> 0 | K112: 0 | L112: =IFERROR(IF(VLOOKUP(B112&E112&F112,'Sub Modules'!A:I,9,FALSE)=0,"",VLOOKUP(B112&E112&F112,'Sub Modules'!A:I,9,FALSE)),"") -> 
A113: Energy Array | B113: Albion | C113: B1 | D113: E-Cell Fab 5-6 | E113: E-Cell Fab | F113: HIT/MA Turret | G113: =IF(OR(E113="Total",D113="Total"),"",IFERROR(VLOOKUP(B113&E113&F113,'Sub Modules'!A:E,5,FALSE),"")) -> 5 | H113: =IF(D113="Total",SUMIFS(H:H,A:A,"="&A113,B:B,"="&B113,E:E,"=Total",F:F,"="&F113),IF(E113="Total",SUMIFS(G:G,A:A,"="&A113,C:C,"="&C113,F:F,"="&F113),IFERROR(VLOOKUP(B113&E113&F113,'Sub Modules'!A:I,6,FALSE),""))) -> 0 | I113: =IF(D113="Total",SUMIFS(I:I,A:A,"="&A113,B:B,"="&B113,E:E,"=Total",F:F,"="&F113),IFERROR(VLOOKUP(B113&E113&F113,'Sub Modules'!A:I,7,FALSE),"")) -> 0 | J113: =IF(OR(E113="Total",D113="Total"),IF(I113="",0,I113)-IF(H113="",0,H113),IFERROR(VLOOKUP(B113&E113&F113,'Sub Modules'!A:I,8,FALSE),"")) -> 0 | K113: 0 | L113: =IFERROR(IF(VLOOKUP(B113&E113&F113,'Sub Modules'!A:I,9,FALSE)=0,"",VLOOKUP(B113&E113&F113,'Sub Modules'!A:I,9,FALSE)),"") -> 
A114: Energy Array | B114: Albion | C114: B1 | D114: E-Cell Fab 5-6 | E114: E-Cell Fab | F114: HIT/MA Turret | G114: =IF(OR(E114="Total",D114="Total"),"",IFERROR(VLOOKUP(B114&E114&F114,'Sub Modules'!A:E,5,FALSE),"")) -> 5 | H114: =IF(D114="Total",SUMIFS(H:H,A:A,"="&A114,B:B,"="&B114,E:E,"=Total",F:F,"="&F114),IF(E114="Total",SUMIFS(G:G,A:A,"="&A114,C:C,"="&C114,F:F,"="&F114),IFERROR(VLOOKUP(B114&E114&F114,'Sub Modules'!A:I,6,FALSE),""))) -> 0 | I114: =IF(D114="Total",SUMIFS(I:I,A:A,"="&A114,B:B,"="&B114,E:E,"=Total",F:F,"="&F114),IFERROR(VLOOKUP(B114&E114&F114,'Sub Modules'!A:I,7,FALSE),"")) -> 0 | J114: =IF(OR(E114="Total",D114="Total"),IF(I114="",0,I114)-IF(H114="",0,H114),IFERROR(VLOOKUP(B114&E114&F114,'Sub Modules'!A:I,8,FALSE),"")) -> 0 | K114: 0 | L114: =IFERROR(IF(VLOOKUP(B114&E114&F114,'Sub Modules'!A:I,9,FALSE)=0,"",VLOOKUP(B114&E114&F114,'Sub Modules'!A:I,9,FALSE)),"") -> 
A115: Energy Array | B115: Albion | C115: B1 | D115: E-Cell Fab 5-6 | E115: E-Cell Fab | F115: Plasma/MA Turret | G115: =IF(OR(E115="Total",D115="Total"),"",IFERROR(VLOOKUP(B115&E115&F115,'Sub Modules'!A:E,5,FALSE),"")) -> 2 | H115: =IF(D115="Total",SUMIFS(H:H,A:A,"="&A115,B:B,"="&B115,E:E,"=Total",F:F,"="&F115),IF(E115="Total",SUMIFS(G:G,A:A,"="&A115,C:C,"="&C115,F:F,"="&F115),IFERROR(VLOOKUP(B115&E115&F115,'Sub Modules'!A:I,6,FALSE),""))) -> 0 | I115: =IF(D115="Total",SUMIFS(I:I,A:A,"="&A115,B:B,"="&B115,E:E,"=Total",F:F,"="&F115),IFERROR(VLOOKUP(B115&E115&F115,'Sub Modules'!A:I,7,FALSE),"")) -> 0 | J115: =IF(OR(E115="Total",D115="Total"),IF(I115="",0,I115)-IF(H115="",0,H115),IFERROR(VLOOKUP(B115&E115&F115,'Sub Modules'!A:I,8,FALSE),"")) -> 0 | K115: 0 | L115: =IFERROR(IF(VLOOKUP(B115&E115&F115,'Sub Modules'!A:I,9,FALSE)=0,"",VLOOKUP(B115&E115&F115,'Sub Modules'!A:I,9,FALSE)),"") -> 
A116: Energy Array | B116: Albion | C116: B1 | D116: E-Cell Fab 5-6 | E116: E-Cell Fab | F116: Plasma/MA Turret | G116: =IF(OR(E116="Total",D116="Total"),"",IFERROR(VLOOKUP(B116&E116&F116,'Sub Modules'!A:E,5,FALSE),"")) -> 2 | H116: =IF(D116="Total",SUMIFS(H:H,A:A,"="&A116,B:B,"="&B116,E:E,"=Total",F:F,"="&F116),IF(E116="Total",SUMIFS(G:G,A:A,"="&A116,C:C,"="&C116,F:F,"="&F116),IFERROR(VLOOKUP(B116&E116&F116,'Sub Modules'!A:I,6,FALSE),""))) -> 0 | I116: =IF(D116="Total",SUMIFS(I:I,A:A,"="&A116,B:B,"="&B116,E:E,"=Total",F:F,"="&F116),IFERROR(VLOOKUP(B116&E116&F116,'Sub Modules'!A:I,7,FALSE),"")) -> 0 | J116: =IF(OR(E116="Total",D116="Total"),IF(I116="",0,I116)-IF(H116="",0,H116),IFERROR(VLOOKUP(B116&E116&F116,'Sub Modules'!A:I,8,FALSE),"")) -> 0 | K116: 0 | L116: =IFERROR(IF(VLOOKUP(B116&E116&F116,'Sub Modules'!A:I,9,FALSE)=0,"",VLOOKUP(B116&E116&F116,'Sub Modules'!A:I,9,FALSE)),"") -> 
A117: Energy Array | B117: Albion | C117: B1 | D117: E-Cell Fab 5-6 | E117: E-Cell Fab | F117: Reinforced Metal Plating | G117: =IF(OR(E117="Total",D117="Total"),"",IFERROR(VLOOKUP(B117&E117&F117,'Sub Modules'!A:E,5,FALSE),"")) -> 487 | H117: =IF(D117="Total",SUMIFS(H:H,A:A,"="&A117,B:B,"="&B117,E:E,"=Total",F:F,"="&F117),IF(E117="Total",SUMIFS(G:G,A:A,"="&A117,C:C,"="&C117,F:F,"="&F117),IFERROR(VLOOKUP(B117&E117&F117,'Sub Modules'!A:I,6,FALSE),""))) -> 0 | I117: =IF(D117="Total",SUMIFS(I:I,A:A,"="&A117,B:B,"="&B117,E:E,"=Total",F:F,"="&F117),IFERROR(VLOOKUP(B117&E117&F117,'Sub Modules'!A:I,7,FALSE),"")) -> 0 | J117: =IF(OR(E117="Total",D117="Total"),IF(I117="",0,I117)-IF(H117="",0,H117),IFERROR(VLOOKUP(B117&E117&F117,'Sub Modules'!A:I,8,FALSE),"")) -> 0 | K117: 0 | L117: =IFERROR(IF(VLOOKUP(B117&E117&F117,'Sub Modules'!A:I,9,FALSE)=0,"",VLOOKUP(B117&E117&F117,'Sub Modules'!A:I,9,FALSE)),"") -> 
A118: Energy Array | B118: Albion | C118: B1 | D118: E-Cell Fab 5-6 | E118: E-Cell Fab | F118: Reinforced Metal Plating | G118: =IF(OR(E118="Total",D118="Total"),"",IFERROR(VLOOKUP(B118&E118&F118,'Sub Modules'!A:E,5,FALSE),"")) -> 487 | H118: =IF(D118="Total",SUMIFS(H:H,A:A,"="&A118,B:B,"="&B118,E:E,"=Total",F:F,"="&F118),IF(E118="Total",SUMIFS(G:G,A:A,"="&A118,C:C,"="&C118,F:F,"="&F118),IFERROR(VLOOKUP(B118&E118&F118,'Sub Modules'!A:I,6,FALSE),""))) -> 0 | I118: =IF(D118="Total",SUMIFS(I:I,A:A,"="&A118,B:B,"="&B118,E:E,"=Total",F:F,"="&F118),IFERROR(VLOOKUP(B118&E118&F118,'Sub Modules'!A:I,7,FALSE),"")) -> 0 | J118: =IF(OR(E118="Total",D118="Total"),IF(I118="",0,I118)-IF(H118="",0,H118),IFERROR(VLOOKUP(B118&E118&F118,'Sub Modules'!A:I,8,FALSE),"")) -> 0 | K118: 0 | L118: =IFERROR(IF(VLOOKUP(B118&E118&F118,'Sub Modules'!A:I,9,FALSE)=0,"",VLOOKUP(B118&E118&F118,'Sub Modules'!A:I,9,FALSE)),"") -> 
A119: Energy Array | B119: Albion | C119: B1 | D119: E-Cell Fab 5-6 | E119: Zoltek Bridge | F119: Energy Cells | G119: =IF(OR(E119="Total",D119="Total"),"",IFERROR(VLOOKUP(B119&E119&F119,'Sub Modules'!A:E,5,FALSE),"")) -> 242 | H119: =IF(D119="Total",SUMIFS(H:H,A:A,"="&A119,B:B,"="&B119,E:E,"=Total",F:F,"="&F119),IF(E119="Total",SUMIFS(G:G,A:A,"="&A119,C:C,"="&C119,F:F,"="&F119),IFERROR(VLOOKUP(B119&E119&F119,'Sub Modules'!A:I,6,FALSE),""))) -> 0 | I119: =IF(D119="Total",SUMIFS(I:I,A:A,"="&A119,B:B,"="&B119,E:E,"=Total",F:F,"="&F119),IFERROR(VLOOKUP(B119&E119&F119,'Sub Modules'!A:I,7,FALSE),"")) -> 0 | J119: =IF(OR(E119="Total",D119="Total"),IF(I119="",0,I119)-IF(H119="",0,H119),IFERROR(VLOOKUP(B119&E119&F119,'Sub Modules'!A:I,8,FALSE),"")) -> 3 | K119: 0 | L119: =IFERROR(IF(VLOOKUP(B119&E119&F119,'Sub Modules'!A:I,9,FALSE)=0,"",VLOOKUP(B119&E119&F119,'Sub Modules'!A:I,9,FALSE)),"") -> 
A120: Energy Array | B120: Albion | C120: B1 | D120: E-Cell Fab 5-6 | E120: Zoltek Bridge | F120: Force Field Projector | G120: =IF(OR(E120="Total",D120="Total"),"",IFERROR(VLOOKUP(B120&E120&F120,'Sub Modules'!A:E,5,FALSE),"")) -> 1 | H120: =IF(D120="Total",SUMIFS(H:H,A:A,"="&A120,B:B,"="&B120,E:E,"=Total",F:F,"="&F120),IF(E120="Total",SUMIFS(G:G,A:A,"="&A120,C:C,"="&C120,F:F,"="&F120),IFERROR(VLOOKUP(B120&E120&F120,'Sub Modules'!A:I,6,FALSE),""))) -> 0 | I120: =IF(D120="Total",SUMIFS(I:I,A:A,"="&A120,B:B,"="&B120,E:E,"=Total",F:F,"="&F120),IFERROR(VLOOKUP(B120&E120&F120,'Sub Modules'!A:I,7,FALSE),"")) -> 0 | J120: =IF(OR(E120="Total",D120="Total"),IF(I120="",0,I120)-IF(H120="",0,H120),IFERROR(VLOOKUP(B120&E120&F120,'Sub Modules'!A:I,8,FALSE),"")) -> 0 | K120: 0 | L120: =IFERROR(IF(VLOOKUP(B120&E120&F120,'Sub Modules'!A:I,9,FALSE)=0,"",VLOOKUP(B120&E120&F120,'Sub Modules'!A:I,9,FALSE)),"") -> 
A121: Energy Array | B121: Albion | C121: B1 | D121: E-Cell Fab 5-6 | E121: Zoltek Bridge | F121: Fusion Reactors | G121: =IF(OR(E121="Total",D121="Total"),"",IFERROR(VLOOKUP(B121&E121&F121,'Sub Modules'!A:E,5,FALSE),"")) -> 18 | H121: =IF(D121="Total",SUMIFS(H:H,A:A,"="&A121,B:B,"="&B121,E:E,"=Total",F:F,"="&F121),IF(E121="Total",SUMIFS(G:G,A:A,"="&A121,C:C,"="&C121,F:F,"="&F121),IFERROR(VLOOKUP(B121&E121&F121,'Sub Modules'!A:I,6,FALSE),""))) -> 0 | I121: =IF(D121="Total",SUMIFS(I:I,A:A,"="&A121,B:B,"="&B121,E:E,"=Total",F:F,"="&F121),IFERROR(VLOOKUP(B121&E121&F121,'Sub Modules'!A:I,7,FALSE),"")) -> 0 | J121: =IF(OR(E121="Total",D121="Total"),IF(I121="",0,I121)-IF(H121="",0,H121),IFERROR(VLOOKUP(B121&E121&F121,'Sub Modules'!A:I,8,FALSE),"")) -> 0 | K121: 0 | L121: =IFERROR(IF(VLOOKUP(B121&E121&F121,'Sub Modules'!A:I,9,FALSE)=0,"",VLOOKUP(B121&E121&F121,'Sub Modules'!A:I,9,FALSE)),"") -> 
A122: Energy Array | B122: Albion | C122: B1 | D122: E-Cell Fab 5-6 | E122: Zoltek Bridge | F122: Reinforced Metal Plating | G122: =IF(OR(E122="Total",D122="Total"),"",IFERROR(VLOOKUP(B122&E122&F122,'Sub Modules'!A:E,5,FALSE),"")) -> 86 | H122: =IF(D122="Total",SUMIFS(H:H,A:A,"="&A122,B:B,"="&B122,E:E,"=Total",F:F,"="&F122),IF(E122="Total",SUMIFS(G:G,A:A,"="&A122,C:C,"="&C122,F:F,"="&F122),IFERROR(VLOOKUP(B122&E122&F122,'Sub Modules'!A:I,6,FALSE),""))) -> 0 | I122: =IF(D122="Total",SUMIFS(I:I,A:A,"="&A122,B:B,"="&B122,E:E,"=Total",F:F,"="&F122),IFERROR(VLOOKUP(B122&E122&F122,'Sub Modules'!A:I,7,FALSE),"")) -> 0 | J122: =IF(OR(E122="Total",D122="Total"),IF(I122="",0,I122)-IF(H122="",0,H122),IFERROR(VLOOKUP(B122&E122&F122,'Sub Modules'!A:I,8,FALSE),"")) -> 0 | K122: 0 | L122: =IFERROR(IF(VLOOKUP(B122&E122&F122,'Sub Modules'!A:I,9,FALSE)=0,"",VLOOKUP(B122&E122&F122,'Sub Modules'!A:I,9,FALSE)),"") -> 
A123: Energy Array | B123: Albion | C123: B1 | D123: E-Cell Fab 5-6 | E123: Zoltek Bridge | F123: Energy Cells | G123: =IF(OR(E123="Total",D123="Total"),"",IFERROR(VLOOKUP(B123&E123&F123,'Sub Modules'!A:E,5,FALSE),"")) -> 242 | H123: =IF(D123="Total",SUMIFS(H:H,A:A,"="&A123,B:B,"="&B123,E:E,"=Total",F:F,"="&F123),IF(E123="Total",SUMIFS(G:G,A:A,"="&A123,C:C,"="&C123,F:F,"="&F123),IFERROR(VLOOKUP(B123&E123&F123,'Sub Modules'!A:I,6,FALSE),""))) -> 0 | I123: =IF(D123="Total",SUMIFS(I:I,A:A,"="&A123,B:B,"="&B123,E:E,"=Total",F:F,"="&F123),IFERROR(VLOOKUP(B123&E123&F123,'Sub Modules'!A:I,7,FALSE),"")) -> 0 | J123: =IF(OR(E123="Total",D123="Total"),IF(I123="",0,I123)-IF(H123="",0,H123),IFERROR(VLOOKUP(B123&E123&F123,'Sub Modules'!A:I,8,FALSE),"")) -> 3 | K123: 0 | L123: =IFERROR(IF(VLOOKUP(B123&E123&F123,'Sub Modules'!A:I,9,FALSE)=0,"",VLOOKUP(B123&E123&F123,'Sub Modules'!A:I,9,FALSE)),"") -> 
A124: Energy Array | B124: Albion | C124: B1 | D124: E-Cell Fab 5-6 | E124: Zoltek Bridge | F124: Force Field Projector | G124: =IF(OR(E124="Total",D124="Total"),"",IFERROR(VLOOKUP(B124&E124&F124,'Sub Modules'!A:E,5,FALSE),"")) -> 1 | H124: =IF(D124="Total",SUMIFS(H:H,A:A,"="&A124,B:B,"="&B124,E:E,"=Total",F:F,"="&F124),IF(E124="Total",SUMIFS(G:G,A:A,"="&A124,C:C,"="&C124,F:F,"="&F124),IFERROR(VLOOKUP(B124&E124&F124,'Sub Modules'!A:I,6,FALSE),""))) -> 0 | I124: =IF(D124="Total",SUMIFS(I:I,A:A,"="&A124,B:B,"="&B124,E:E,"=Total",F:F,"="&F124),IFERROR(VLOOKUP(B124&E124&F124,'Sub Modules'!A:I,7,FALSE),"")) -> 0 | J124: =IF(OR(E124="Total",D124="Total"),IF(I124="",0,I124)-IF(H124="",0,H124),IFERROR(VLOOKUP(B124&E124&F124,'Sub Modules'!A:I,8,FALSE),"")) -> 0 | K124: 0 | L124: =IFERROR(IF(VLOOKUP(B124&E124&F124,'Sub Modules'!A:I,9,FALSE)=0,"",VLOOKUP(B124&E124&F124,'Sub Modules'!A:I,9,FALSE)),"") -> 
A125: Energy Array | B125: Albion | C125: B1 | D125: E-Cell Fab 5-6 | E125: Zoltek Bridge | F125: Fusion Reactors | G125: =IF(OR(E125="Total",D125="Total"),"",IFERROR(VLOOKUP(B125&E125&F125,'Sub Modules'!A:E,5,FALSE),"")) -> 18 | H125: =IF(D125="Total",SUMIFS(H:H,A:A,"="&A125,B:B,"="&B125,E:E,"=Total",F:F,"="&F125),IF(E125="Total",SUMIFS(G:G,A:A,"="&A125,C:C,"="&C125,F:F,"="&F125),IFERROR(VLOOKUP(B125&E125&F125,'Sub Modules'!A:I,6,FALSE),""))) -> 0 | I125: =IF(D125="Total",SUMIFS(I:I,A:A,"="&A125,B:B,"="&B125,E:E,"=Total",F:F,"="&F125),IFERROR(VLOOKUP(B125&E125&F125,'Sub Modules'!A:I,7,FALSE),"")) -> 0 | J125: =IF(OR(E125="Total",D125="Total"),IF(I125="",0,I125)-IF(H125="",0,H125),IFERROR(VLOOKUP(B125&E125&F125,'Sub Modules'!A:I,8,FALSE),"")) -> 0 | K125: 0 | L125: =IFERROR(IF(VLOOKUP(B125&E125&F125,'Sub Modules'!A:I,9,FALSE)=0,"",VLOOKUP(B125&E125&F125,'Sub Modules'!A:I,9,FALSE)),"") -> 
A126: Energy Array | B126: Albion | C126: B1 | D126: E-Cell Fab 5-6 | E126: Zoltek Bridge | F126: Reinforced Metal Plating | G126: =IF(OR(E126="Total",D126="Total"),"",IFERROR(VLOOKUP(B126&E126&F126,'Sub Modules'!A:E,5,FALSE),"")) -> 86 | H126: =IF(D126="Total",SUMIFS(H:H,A:A,"="&A126,B:B,"="&B126,E:E,"=Total",F:F,"="&F126),IF(E126="Total",SUMIFS(G:G,A:A,"="&A126,C:C,"="&C126,F:F,"="&F126),IFERROR(VLOOKUP(B126&E126&F126,'Sub Modules'!A:I,6,FALSE),""))) -> 0 | I126: =IF(D126="Total",SUMIFS(I:I,A:A,"="&A126,B:B,"="&B126,E:E,"=Total",F:F,"="&F126),IFERROR(VLOOKUP(B126&E126&F126,'Sub Modules'!A:I,7,FALSE),"")) -> 0 | J126: =IF(OR(E126="Total",D126="Total"),IF(I126="",0,I126)-IF(H126="",0,H126),IFERROR(VLOOKUP(B126&E126&F126,'Sub Modules'!A:I,8,FALSE),"")) -> 0 | K126: 0 | L126: =IFERROR(IF(VLOOKUP(B126&E126&F126,'Sub Modules'!A:I,9,FALSE)=0,"",VLOOKUP(B126&E126&F126,'Sub Modules'!A:I,9,FALSE)),"") -> 
A127: Energy Array | B127: Albion | C127: B1 | D127: E-Cell Fab 5-6 | E127: Tesla Duo-Charger | F127: Energy Cells | G127: =IF(OR(E127="Total",D127="Total"),"",IFERROR(VLOOKUP(B127&E127&F127,'Sub Modules'!A:E,5,FALSE),"")) -> 290 | H127: =IF(D127="Total",SUMIFS(H:H,A:A,"="&A127,B:B,"="&B127,E:E,"=Total",F:F,"="&F127),IF(E127="Total",SUMIFS(G:G,A:A,"="&A127,C:C,"="&C127,F:F,"="&F127),IFERROR(VLOOKUP(B127&E127&F127,'Sub Modules'!A:I,6,FALSE),""))) -> 0 | I127: =IF(D127="Total",SUMIFS(I:I,A:A,"="&A127,B:B,"="&B127,E:E,"=Total",F:F,"="&F127),IFERROR(VLOOKUP(B127&E127&F127,'Sub Modules'!A:I,7,FALSE),"")) -> 0 | J127: =IF(OR(E127="Total",D127="Total"),IF(I127="",0,I127)-IF(H127="",0,H127),IFERROR(VLOOKUP(B127&E127&F127,'Sub Modules'!A:I,8,FALSE),"")) -> 0 | K127: 0 | L127: =IFERROR(IF(VLOOKUP(B127&E127&F127,'Sub Modules'!A:I,9,FALSE)=0,"",VLOOKUP(B127&E127&F127,'Sub Modules'!A:I,9,FALSE)),"") -> 320000
A128: Energy Array | B128: Albion | C128: B1 | D128: E-Cell Fab 5-6 | E128: Tesla Duo-Charger | F128: Fusion Reactors | G128: =IF(OR(E128="Total",D128="Total"),"",IFERROR(VLOOKUP(B128&E128&F128,'Sub Modules'!A:E,5,FALSE),"")) -> 22 | H128: =IF(D128="Total",SUMIFS(H:H,A:A,"="&A128,B:B,"="&B128,E:E,"=Total",F:F,"="&F128),IF(E128="Total",SUMIFS(G:G,A:A,"="&A128,C:C,"="&C128,F:F,"="&F128),IFERROR(VLOOKUP(B128&E128&F128,'Sub Modules'!A:I,6,FALSE),""))) -> 0 | I128: =IF(D128="Total",SUMIFS(I:I,A:A,"="&A128,B:B,"="&B128,E:E,"=Total",F:F,"="&F128),IFERROR(VLOOKUP(B128&E128&F128,'Sub Modules'!A:I,7,FALSE),"")) -> 0 | J128: =IF(OR(E128="Total",D128="Total"),IF(I128="",0,I128)-IF(H128="",0,H128),IFERROR(VLOOKUP(B128&E128&F128,'Sub Modules'!A:I,8,FALSE),"")) -> 0 | K128: 0 | L128: =IFERROR(IF(VLOOKUP(B128&E128&F128,'Sub Modules'!A:I,9,FALSE)=0,"",VLOOKUP(B128&E128&F128,'Sub Modules'!A:I,9,FALSE)),"") -> 
A129: Energy Array | B129: Albion | C129: B1 | D129: E-Cell Fab 5-6 | E129: Tesla Duo-Charger | F129: HIT/MA Turret | G129: =IF(OR(E129="Total",D129="Total"),"",IFERROR(VLOOKUP(B129&E129&F129,'Sub Modules'!A:E,5,FALSE),"")) -> 8 | H129: =IF(D129="Total",SUMIFS(H:H,A:A,"="&A129,B:B,"="&B129,E:E,"=Total",F:F,"="&F129),IF(E129="Total",SUMIFS(G:G,A:A,"="&A129,C:C,"="&C129,F:F,"="&F129),IFERROR(VLOOKUP(B129&E129&F129,'Sub Modules'!A:I,6,FALSE),""))) -> 0 | I129: =IF(D129="Total",SUMIFS(I:I,A:A,"="&A129,B:B,"="&B129,E:E,"=Total",F:F,"="&F129),IFERROR(VLOOKUP(B129&E129&F129,'Sub Modules'!A:I,7,FALSE),"")) -> 0 | J129: =IF(OR(E129="Total",D129="Total"),IF(I129="",0,I129)-IF(H129="",0,H129),IFERROR(VLOOKUP(B129&E129&F129,'Sub Modules'!A:I,8,FALSE),"")) -> 0 | K129: 0 | L129: =IFERROR(IF(VLOOKUP(B129&E129&F129,'Sub Modules'!A:I,9,FALSE)=0,"",VLOOKUP(B129&E129&F129,'Sub Modules'!A:I,9,FALSE)),"") -> 
A130: Energy Array | B130: Albion | C130: B1 | D130: E-Cell Fab 5-6 | E130: Tesla Duo-Charger | F130: Force Field Projector | G130: =IF(OR(E130="Total",D130="Total"),"",IFERROR(VLOOKUP(B130&E130&F130,'Sub Modules'!A:E,5,FALSE),"")) -> 1 | H130: =IF(D130="Total",SUMIFS(H:H,A:A,"="&A130,B:B,"="&B130,E:E,"=Total",F:F,"="&F130),IF(E130="Total",SUMIFS(G:G,A:A,"="&A130,C:C,"="&C130,F:F,"="&F130),IFERROR(VLOOKUP(B130&E130&F130,'Sub Modules'!A:I,6,FALSE),""))) -> 0 | I130: =IF(D130="Total",SUMIFS(I:I,A:A,"="&A130,B:B,"="&B130,E:E,"=Total",F:F,"="&F130),IFERROR(VLOOKUP(B130&E130&F130,'Sub Modules'!A:I,7,FALSE),"")) -> 0 | J130: =IF(OR(E130="Total",D130="Total"),IF(I130="",0,I130)-IF(H130="",0,H130),IFERROR(VLOOKUP(B130&E130&F130,'Sub Modules'!A:I,8,FALSE),"")) -> 0 | K130: =IF(AND(D130<>"Total",E130<>"Total"),IFERROR(IF(H130>0,INT((SUMIFS(J:J,A:A,"=" & A130,C:C,"=" & C130,E:E,"<>Total",E:E,"<>")/100)*H130),I130)+H130,""),"") -> 0 | L130: =IFERROR(IF(VLOOKUP(B130&E130&F130,'Sub Modules'!A:I,9,FALSE)=0,"",VLOOKUP(B130&E130&F130,'Sub Modules'!A:I,9,FALSE)),"") -> 
A131: Energy Array | B131: Albion | C131: B1 | D131: E-Cell Fab 5-6 | E131: Tesla Duo-Charger | F131: Reinforced Metal Plating | G131: =IF(OR(E131="Total",D131="Total"),"",IFERROR(VLOOKUP(B131&E131&F131,'Sub Modules'!A:E,5,FALSE),"")) -> 108 | H131: =IF(D131="Total",SUMIFS(H:H,A:A,"="&A131,B:B,"="&B131,E:E,"=Total",F:F,"="&F131),IF(E131="Total",SUMIFS(G:G,A:A,"="&A131,C:C,"="&C131,F:F,"="&F131),IFERROR(VLOOKUP(B131&E131&F131,'Sub Modules'!A:I,6,FALSE),""))) -> 0 | I131: =IF(D131="Total",SUMIFS(I:I,A:A,"="&A131,B:B,"="&B131,E:E,"=Total",F:F,"="&F131),IFERROR(VLOOKUP(B131&E131&F131,'Sub Modules'!A:I,7,FALSE),"")) -> 0 | J131: =IF(OR(E131="Total",D131="Total"),IF(I131="",0,I131)-IF(H131="",0,H131),IFERROR(VLOOKUP(B131&E131&F131,'Sub Modules'!A:I,8,FALSE),"")) -> 0 | K131: 0 | L131: =IFERROR(IF(VLOOKUP(B131&E131&F131,'Sub Modules'!A:I,9,FALSE)=0,"",VLOOKUP(B131&E131&F131,'Sub Modules'!A:I,9,FALSE)),"") -> 
A132: Energy Array | B132: Albion | C132: B1 | D132: E-Cell Fab 5-6 | E132: Tesla Duo-Charger | F132: Energy Cells | G132: =IF(OR(E132="Total",D132="Total"),"",IFERROR(VLOOKUP(B132&E132&F132,'Sub Modules'!A:E,5,FALSE),"")) -> 290 | H132: =IF(D132="Total",SUMIFS(H:H,A:A,"="&A132,B:B,"="&B132,E:E,"=Total",F:F,"="&F132),IF(E132="Total",SUMIFS(G:G,A:A,"="&A132,C:C,"="&C132,F:F,"="&F132),IFERROR(VLOOKUP(B132&E132&F132,'Sub Modules'!A:I,6,FALSE),""))) -> 0 | I132: =IF(D132="Total",SUMIFS(I:I,A:A,"="&A132,B:B,"="&B132,E:E,"=Total",F:F,"="&F132),IFERROR(VLOOKUP(B132&E132&F132,'Sub Modules'!A:I,7,FALSE),"")) -> 0 | J132: =IF(OR(E132="Total",D132="Total"),IF(I132="",0,I132)-IF(H132="",0,H132),IFERROR(VLOOKUP(B132&E132&F132,'Sub Modules'!A:I,8,FALSE),"")) -> 0 | K132: 0 | L132: =IFERROR(IF(VLOOKUP(B132&E132&F132,'Sub Modules'!A:I,9,FALSE)=0,"",VLOOKUP(B132&E132&F132,'Sub Modules'!A:I,9,FALSE)),"") -> 320000
A133: Energy Array | B133: Albion | C133: B1 | D133: E-Cell Fab 5-6 | E133: Tesla Duo-Charger | F133: Fusion Reactors | G133: =IF(OR(E133="Total",D133="Total"),"",IFERROR(VLOOKUP(B133&E133&F133,'Sub Modules'!A:E,5,FALSE),"")) -> 22 | H133: =IF(D133="Total",SUMIFS(H:H,A:A,"="&A133,B:B,"="&B133,E:E,"=Total",F:F,"="&F133),IF(E133="Total",SUMIFS(G:G,A:A,"="&A133,C:C,"="&C133,F:F,"="&F133),IFERROR(VLOOKUP(B133&E133&F133,'Sub Modules'!A:I,6,FALSE),""))) -> 0 | I133: =IF(D133="Total",SUMIFS(I:I,A:A,"="&A133,B:B,"="&B133,E:E,"=Total",F:F,"="&F133),IFERROR(VLOOKUP(B133&E133&F133,'Sub Modules'!A:I,7,FALSE),"")) -> 0 | J133: =IF(OR(E133="Total",D133="Total"),IF(I133="",0,I133)-IF(H133="",0,H133),IFERROR(VLOOKUP(B133&E133&F133,'Sub Modules'!A:I,8,FALSE),"")) -> 0 | K133: 0 | L133: =IFERROR(IF(VLOOKUP(B133&E133&F133,'Sub Modules'!A:I,9,FALSE)=0,"",VLOOKUP(B133&E133&F133,'Sub Modules'!A:I,9,FALSE)),"") -> 
A134: Energy Array | B134: Albion | C134: B1 | D134: E-Cell Fab 5-6 | E134: Tesla Duo-Charger | F134: HIT/MA Turret | G134: =IF(OR(E134="Total",D134="Total"),"",IFERROR(VLOOKUP(B134&E134&F134,'Sub Modules'!A:E,5,FALSE),"")) -> 8 | H134: =IF(D134="Total",SUMIFS(H:H,A:A,"="&A134,B:B,"="&B134,E:E,"=Total",F:F,"="&F134),IF(E134="Total",SUMIFS(G:G,A:A,"="&A134,C:C,"="&C134,F:F,"="&F134),IFERROR(VLOOKUP(B134&E134&F134,'Sub Modules'!A:I,6,FALSE),""))) -> 0 | I134: =IF(D134="Total",SUMIFS(I:I,A:A,"="&A134,B:B,"="&B134,E:E,"=Total",F:F,"="&F134),IFERROR(VLOOKUP(B134&E134&F134,'Sub Modules'!A:I,7,FALSE),"")) -> 0 | J134: =IF(OR(E134="Total",D134="Total"),IF(I134="",0,I134)-IF(H134="",0,H134),IFERROR(VLOOKUP(B134&E134&F134,'Sub Modules'!A:I,8,FALSE),"")) -> 0 | K134: 0 | L134: =IFERROR(IF(VLOOKUP(B134&E134&F134,'Sub Modules'!A:I,9,FALSE)=0,"",VLOOKUP(B134&E134&F134,'Sub Modules'!A:I,9,FALSE)),"") -> 
A135: Energy Array | B135: Albion | C135: B1 | D135: E-Cell Fab 5-6 | E135: Tesla Duo-Charger | F135: Force Field Projector | G135: =IF(OR(E135="Total",D135="Total"),"",IFERROR(VLOOKUP(B135&E135&F135,'Sub Modules'!A:E,5,FALSE),"")) -> 1 | H135: =IF(D135="Total",SUMIFS(H:H,A:A,"="&A135,B:B,"="&B135,E:E,"=Total",F:F,"="&F135),IF(E135="Total",SUMIFS(G:G,A:A,"="&A135,C:C,"="&C135,F:F,"="&F135),IFERROR(VLOOKUP(B135&E135&F135,'Sub Modules'!A:I,6,FALSE),""))) -> 0 | I135: =IF(D135="Total",SUMIFS(I:I,A:A,"="&A135,B:B,"="&B135,E:E,"=Total",F:F,"="&F135),IFERROR(VLOOKUP(B135&E135&F135,'Sub Modules'!A:I,7,FALSE),"")) -> 0 | J135: =IF(OR(E135="Total",D135="Total"),IF(I135="",0,I135)-IF(H135="",0,H135),IFERROR(VLOOKUP(B135&E135&F135,'Sub Modules'!A:I,8,FALSE),"")) -> 0 | K135: 0 | L135: =IFERROR(IF(VLOOKUP(B135&E135&F135,'Sub Modules'!A:I,9,FALSE)=0,"",VLOOKUP(B135&E135&F135,'Sub Modules'!A:I,9,FALSE)),"") -> 
A136: Energy Array | B136: Albion | C136: B1 | D136: E-Cell Fab 5-6 | E136: Tesla Duo-Charger | F136: Reinforced Metal Plating | G136: =IF(OR(E136="Total",D136="Total"),"",IFERROR(VLOOKUP(B136&E136&F136,'Sub Modules'!A:E,5,FALSE),"")) -> 108 | H136: =IF(D136="Total",SUMIFS(H:H,A:A,"="&A136,B:B,"="&B136,E:E,"=Total",F:F,"="&F136),IF(E136="Total",SUMIFS(G:G,A:A,"="&A136,C:C,"="&C136,F:F,"="&F136),IFERROR(VLOOKUP(B136&E136&F136,'Sub Modules'!A:I,6,FALSE),""))) -> 0 | I136: =IF(D136="Total",SUMIFS(I:I,A:A,"="&A136,B:B,"="&B136,E:E,"=Total",F:F,"="&F136),IFERROR(VLOOKUP(B136&E136&F136,'Sub Modules'!A:I,7,FALSE),"")) -> 0 | J136: =IF(OR(E136="Total",D136="Total"),IF(I136="",0,I136)-IF(H136="",0,H136),IFERROR(VLOOKUP(B136&E136&F136,'Sub Modules'!A:I,8,FALSE),"")) -> 0 | K136: 0 | L136: =IFERROR(IF(VLOOKUP(B136&E136&F136,'Sub Modules'!A:I,9,FALSE)=0,"",VLOOKUP(B136&E136&F136,'Sub Modules'!A:I,9,FALSE)),"") -> 
A137: Energy Array | B137: Albion | C137: B2 | D137: E-Cell Fab 7-8 | E137: Total | F137: Energy Cells | G137: =IF(OR(E137="Total",D137="Total"),"",IFERROR(VLOOKUP(B137&E137&F137,'Sub Modules'!A:E,5,FALSE),"")) ->  | H137: =IF(D137="Total",SUMIFS(H:H,A:A,"="&A137,B:B,"="&B137,E:E,"=Total",F:F,"="&F137),IF(E137="Total",SUMIFS(G:G,A:A,"="&A137,C:C,"="&C137,F:F,"="&F137),IFERROR(VLOOKUP(B137&E137&F137,'Sub Modules'!A:I,6,FALSE),""))) -> 2008 | I137: =IF(D137="Total",SUMIFS(H:H,A:A,"="&A137,B:B,"="&B137,E:E,"=Total",F:F,"="&F137),IFERROR(VLOOKUP(B137&E137&F137,'Sub Modules'!A:I,7,FALSE),"")) ->  | J137: =IF(OR(E137="Total",D137="Total"),IF(I137="",0,I137)-IF(H137="",0,H137),IFERROR(VLOOKUP(B137&E137&F137,'Sub Modules'!A:I,8,FALSE),"")) -> -2008 | L137: =IFERROR(IF(VLOOKUP(B137&E137&F137,'Sub Modules'!A:I,9,FALSE)=0,"",VLOOKUP(B137&E137&F137,'Sub Modules'!A:I,9,FALSE)),"") -> 
A138: Energy Array | B138: Albion | C138: B2 | D138: E-Cell Fab 7-8 | E138: Total | F138: Reinforced Metal Plating | G138: =IF(OR(E138="Total",D138="Total"),"",IFERROR(VLOOKUP(B138&E138&F138,'Sub Modules'!A:E,5,FALSE),"")) ->  | H138: =IF(D138="Total",SUMIFS(H:H,A:A,"="&A138,B:B,"="&B138,E:E,"=Total",F:F,"="&F138),IF(E138="Total",SUMIFS(G:G,A:A,"="&A138,C:C,"="&C138,F:F,"="&F138),IFERROR(VLOOKUP(B138&E138&F138,'Sub Modules'!A:I,6,FALSE),""))) -> 1190 | I138: =IF(D138="Total",SUMIFS(H:H,A:A,"="&A138,B:B,"="&B138,E:E,"=Total",F:F,"="&F138),IFERROR(VLOOKUP(B138&E138&F138,'Sub Modules'!A:I,7,FALSE),"")) ->  | J138: =IF(OR(E138="Total",D138="Total"),IF(I138="",0,I138)-IF(H138="",0,H138),IFERROR(VLOOKUP(B138&E138&F138,'Sub Modules'!A:I,8,FALSE),"")) -> -1190 | L138: =IFERROR(IF(VLOOKUP(B138&E138&F138,'Sub Modules'!A:I,9,FALSE)=0,"",VLOOKUP(B138&E138&F138,'Sub Modules'!A:I,9,FALSE)),"") -> 
A139: Energy Array | B139: Albion | C139: B2 | D139: E-Cell Fab 7-8 | E139: Total | F139: Bio-Optic Wiring | G139: =IF(OR(E139="Total",D139="Total"),"",IFERROR(VLOOKUP(B139&E139&F139,'Sub Modules'!A:E,5,FALSE),"")) ->  | H139: =IF(D139="Total",SUMIFS(H:H,A:A,"="&A139,B:B,"="&B139,E:E,"=Total",F:F,"="&F139),IF(E139="Total",SUMIFS(G:G,A:A,"="&A139,C:C,"="&C139,F:F,"="&F139),IFERROR(VLOOKUP(B139&E139&F139,'Sub Modules'!A:I,6,FALSE),""))) -> 1292 | I139: =IF(D139="Total",SUMIFS(H:H,A:A,"="&A139,B:B,"="&B139,E:E,"=Total",F:F,"="&F139),IFERROR(VLOOKUP(B139&E139&F139,'Sub Modules'!A:I,7,FALSE),"")) ->  | J139: =IF(OR(E139="Total",D139="Total"),IF(I139="",0,I139)-IF(H139="",0,H139),IFERROR(VLOOKUP(B139&E139&F139,'Sub Modules'!A:I,8,FALSE),"")) -> -1292 | L139: =IFERROR(IF(VLOOKUP(B139&E139&F139,'Sub Modules'!A:I,9,FALSE)=0,"",VLOOKUP(B139&E139&F139,'Sub Modules'!A:I,9,FALSE)),"") -> 
A140: Energy Array | B140: Albion | C140: B2 | D140: E-Cell Fab 7-8 | E140: Total | F140: Fusion Reactors | G140: =IF(OR(E140="Total",D140="Total"),"",IFERROR(VLOOKUP(B140&E140&F140,'Sub Modules'!A:E,5,FALSE),"")) ->  | H140: =IF(D140="Total",SUMIFS(H:H,A:A,"="&A140,B:B,"="&B140,E:E,"=Total",F:F,"="&F140),IF(E140="Total",SUMIFS(G:G,A:A,"="&A140,C:C,"="&C140,F:F,"="&F140),IFERROR(VLOOKUP(B140&E140&F140,'Sub Modules'!A:I,6,FALSE),""))) -> 224 | I140: =IF(D140="Total",SUMIFS(H:H,A:A,"="&A140,B:B,"="&B140,E:E,"=Total",F:F,"="&F140),IFERROR(VLOOKUP(B140&E140&F140,'Sub Modules'!A:I,7,FALSE),"")) ->  | J140: =IF(OR(E140="Total",D140="Total"),IF(I140="",0,I140)-IF(H140="",0,H140),IFERROR(VLOOKUP(B140&E140&F140,'Sub Modules'!A:I,8,FALSE),"")) -> -224 | L140: =IFERROR(IF(VLOOKUP(B140&E140&F140,'Sub Modules'!A:I,9,FALSE)=0,"",VLOOKUP(B140&E140&F140,'Sub Modules'!A:I,9,FALSE)),"") -> 
A141: Energy Array | B141: Albion | C141: B2 | D141: E-Cell Fab 7-8 | E141: Total | F141: HIT/MA Turret | G141: =IF(OR(E141="Total",D141="Total"),"",IFERROR(VLOOKUP(B141&E141&F141,'Sub Modules'!A:E,5,FALSE),"")) ->  | H141: =IF(D141="Total",SUMIFS(H:H,A:A,"="&A141,B:B,"="&B141,E:E,"=Total",F:F,"="&F141),IF(E141="Total",SUMIFS(G:G,A:A,"="&A141,C:C,"="&C141,F:F,"="&F141),IFERROR(VLOOKUP(B141&E141&F141,'Sub Modules'!A:I,6,FALSE),""))) -> 26 | I141: =IF(D141="Total",SUMIFS(H:H,A:A,"="&A141,B:B,"="&B141,E:E,"=Total",F:F,"="&F141),IFERROR(VLOOKUP(B141&E141&F141,'Sub Modules'!A:I,7,FALSE),"")) ->  | J141: =IF(OR(E141="Total",D141="Total"),IF(I141="",0,I141)-IF(H141="",0,H141),IFERROR(VLOOKUP(B141&E141&F141,'Sub Modules'!A:I,8,FALSE),"")) -> -26 | L141: =IFERROR(IF(VLOOKUP(B141&E141&F141,'Sub Modules'!A:I,9,FALSE)=0,"",VLOOKUP(B141&E141&F141,'Sub Modules'!A:I,9,FALSE)),"") -> 
A142: Energy Array | B142: Albion | C142: B2 | D142: E-Cell Fab 7-8 | E142: Total | F142: Plasma/MA Turret | G142: =IF(OR(E142="Total",D142="Total"),"",IFERROR(VLOOKUP(B142&E142&F142,'Sub Modules'!A:E,5,FALSE),"")) ->  | H142: =IF(D142="Total",SUMIFS(H:H,A:A,"="&A142,B:B,"="&B142,E:E,"=Total",F:F,"="&F142),IF(E142="Total",SUMIFS(G:G,A:A,"="&A142,C:C,"="&C142,F:F,"="&F142),IFERROR(VLOOKUP(B142&E142&F142,'Sub Modules'!A:I,6,FALSE),""))) -> 4 | I142: =IF(D142="Total",SUMIFS(H:H,A:A,"="&A142,B:B,"="&B142,E:E,"=Total",F:F,"="&F142),IFERROR(VLOOKUP(B142&E142&F142,'Sub Modules'!A:I,7,FALSE),"")) ->  | J142: =IF(OR(E142="Total",D142="Total"),IF(I142="",0,I142)-IF(H142="",0,H142),IFERROR(VLOOKUP(B142&E142&F142,'Sub Modules'!A:I,8,FALSE),"")) -> -4 | L142: =IFERROR(IF(VLOOKUP(B142&E142&F142,'Sub Modules'!A:I,9,FALSE)=0,"",VLOOKUP(B142&E142&F142,'Sub Modules'!A:I,9,FALSE)),"") -> 
A143: Energy Array | B143: Albion | C143: B2 | D143: E-Cell Fab 7-8 | E143: Total | F143: Force Field Projector | G143: =IF(OR(E143="Total",D143="Total"),"",IFERROR(VLOOKUP(B143&E143&F143,'Sub Modules'!A:E,5,FALSE),"")) ->  | H143: =IF(D143="Total",SUMIFS(H:H,A:A,"="&A143,B:B,"="&B143,E:E,"=Total",F:F,"="&F143),IF(E143="Total",SUMIFS(G:G,A:A,"="&A143,C:C,"="&C143,F:F,"="&F143),IFERROR(VLOOKUP(B143&E143&F143,'Sub Modules'!A:I,6,FALSE),""))) -> 4 | I143: =IF(D143="Total",SUMIFS(H:H,A:A,"="&A143,B:B,"="&B143,E:E,"=Total",F:F,"="&F143),IFERROR(VLOOKUP(B143&E143&F143,'Sub Modules'!A:I,7,FALSE),"")) ->  | J143: =IF(OR(E143="Total",D143="Total"),IF(I143="",0,I143)-IF(H143="",0,H143),IFERROR(VLOOKUP(B143&E143&F143,'Sub Modules'!A:I,8,FALSE),"")) -> -4 | L143: =IFERROR(IF(VLOOKUP(B143&E143&F143,'Sub Modules'!A:I,9,FALSE)=0,"",VLOOKUP(B143&E143&F143,'Sub Modules'!A:I,9,FALSE)),"") -> 
A144: Energy Array | B144: Albion | C144: B2 | D144: E-Cell Fab 7-8 | E144: E-Cell Fab | F144: Bio-Optic Wiring | G144: =IF(OR(E144="Total",D144="Total"),"",IFERROR(VLOOKUP(B144&E144&F144,'Sub Modules'!A:E,5,FALSE),"")) -> 646 | H144: =IF(D144="Total",SUMIFS(H:H,A:A,"="&A144,B:B,"="&B144,E:E,"=Total",F:F,"="&F144),IF(E144="Total",SUMIFS(G:G,A:A,"="&A144,C:C,"="&C144,F:F,"="&F144),IFERROR(VLOOKUP(B144&E144&F144,'Sub Modules'!A:I,6,FALSE),""))) -> 0 | I144: =IF(D144="Total",SUMIFS(I:I,A:A,"="&A144,B:B,"="&B144,E:E,"=Total",F:F,"="&F144),IFERROR(VLOOKUP(B144&E144&F144,'Sub Modules'!A:I,7,FALSE),"")) -> 0 | J144: =IF(OR(E144="Total",D144="Total"),IF(I144="",0,I144)-IF(H144="",0,H144),IFERROR(VLOOKUP(B144&E144&F144,'Sub Modules'!A:I,8,FALSE),"")) -> 0 | K144: 0 | L144: =IFERROR(IF(VLOOKUP(B144&E144&F144,'Sub Modules'!A:I,9,FALSE)=0,"",VLOOKUP(B144&E144&F144,'Sub Modules'!A:I,9,FALSE)),"") -> 
A145: Energy Array | B145: Albion | C145: B2 | D145: E-Cell Fab 7-8 | E145: E-Cell Fab | F145: Bio-Optic Wiring | G145: =IF(OR(E145="Total",D145="Total"),"",IFERROR(VLOOKUP(B145&E145&F145,'Sub Modules'!A:E,5,FALSE),"")) -> 646 | H145: =IF(D145="Total",SUMIFS(H:H,A:A,"="&A145,B:B,"="&B145,E:E,"=Total",F:F,"="&F145),IF(E145="Total",SUMIFS(G:G,A:A,"="&A145,C:C,"="&C145,F:F,"="&F145),IFERROR(VLOOKUP(B145&E145&F145,'Sub Modules'!A:I,6,FALSE),""))) -> 0 | I145: =IF(D145="Total",SUMIFS(I:I,A:A,"="&A145,B:B,"="&B145,E:E,"=Total",F:F,"="&F145),IFERROR(VLOOKUP(B145&E145&F145,'Sub Modules'!A:I,7,FALSE),"")) -> 0 | J145: =IF(OR(E145="Total",D145="Total"),IF(I145="",0,I145)-IF(H145="",0,H145),IFERROR(VLOOKUP(B145&E145&F145,'Sub Modules'!A:I,8,FALSE),"")) -> 0 | K145: 0 | L145: =IFERROR(IF(VLOOKUP(B145&E145&F145,'Sub Modules'!A:I,9,FALSE)=0,"",VLOOKUP(B145&E145&F145,'Sub Modules'!A:I,9,FALSE)),"") -> 
A146: Energy Array | B146: Albion | C146: B2 | D146: E-Cell Fab 7-8 | E146: E-Cell Fab | F146: Energy Cells | G146: =IF(OR(E146="Total",D146="Total"),"",IFERROR(VLOOKUP(B146&E146&F146,'Sub Modules'!A:E,5,FALSE),"")) -> 714 | H146: =IF(D146="Total",SUMIFS(H:H,A:A,"="&A146,B:B,"="&B146,E:E,"=Total",F:F,"="&F146),IF(E146="Total",SUMIFS(G:G,A:A,"="&A146,C:C,"="&C146,F:F,"="&F146),IFERROR(VLOOKUP(B146&E146&F146,'Sub Modules'!A:I,6,FALSE),""))) -> 7891 | I146: =IF(D146="Total",SUMIFS(I:I,A:A,"="&A146,B:B,"="&B146,E:E,"=Total",F:F,"="&F146),IFERROR(VLOOKUP(B146&E146&F146,'Sub Modules'!A:I,7,FALSE),"")) -> 0 | J146: =IF(OR(E146="Total",D146="Total"),IF(I146="",0,I146)-IF(H146="",0,H146),IFERROR(VLOOKUP(B146&E146&F146,'Sub Modules'!A:I,8,FALSE),"")) -> 0 | K146: 10258 | L146: =IFERROR(IF(VLOOKUP(B146&E146&F146,'Sub Modules'!A:I,9,FALSE)=0,"",VLOOKUP(B146&E146&F146,'Sub Modules'!A:I,9,FALSE)),"") -> 
A147: Energy Array | B147: Albion | C147: B2 | D147: E-Cell Fab 7-8 | E147: E-Cell Fab | F147: Energy Cells | G147: =IF(OR(E147="Total",D147="Total"),"",IFERROR(VLOOKUP(B147&E147&F147,'Sub Modules'!A:E,5,FALSE),"")) -> 714 | H147: =IF(D147="Total",SUMIFS(H:H,A:A,"="&A147,B:B,"="&B147,E:E,"=Total",F:F,"="&F147),IF(E147="Total",SUMIFS(G:G,A:A,"="&A147,C:C,"="&C147,F:F,"="&F147),IFERROR(VLOOKUP(B147&E147&F147,'Sub Modules'!A:I,6,FALSE),""))) -> 7891 | I147: =IF(D147="Total",SUMIFS(I:I,A:A,"="&A147,B:B,"="&B147,E:E,"=Total",F:F,"="&F147),IFERROR(VLOOKUP(B147&E147&F147,'Sub Modules'!A:I,7,FALSE),"")) -> 0 | J147: =IF(OR(E147="Total",D147="Total"),IF(I147="",0,I147)-IF(H147="",0,H147),IFERROR(VLOOKUP(B147&E147&F147,'Sub Modules'!A:I,8,FALSE),"")) -> 0 | K147: 10258 | L147: =IFERROR(IF(VLOOKUP(B147&E147&F147,'Sub Modules'!A:I,9,FALSE)=0,"",VLOOKUP(B147&E147&F147,'Sub Modules'!A:I,9,FALSE)),"") -> 
A148: Energy Array | B148: Albion | C148: B2 | D148: E-Cell Fab 7-8 | E148: E-Cell Fab | F148: Food Rations | G148: =IF(OR(E148="Total",D148="Total"),"",IFERROR(VLOOKUP(B148&E148&F148,'Sub Modules'!A:E,5,FALSE),"")) -> 0 | H148: =IF(D148="Total",SUMIFS(H:H,A:A,"="&A148,B:B,"="&B148,E:E,"=Total",F:F,"="&F148),IF(E148="Total",SUMIFS(G:G,A:A,"="&A148,C:C,"="&C148,F:F,"="&F148),IFERROR(VLOOKUP(B148&E148&F148,'Sub Modules'!A:I,6,FALSE),""))) -> 0 | I148: =IF(D148="Total",SUMIFS(I:I,A:A,"="&A148,B:B,"="&B148,E:E,"=Total",F:F,"="&F148),IFERROR(VLOOKUP(B148&E148&F148,'Sub Modules'!A:I,7,FALSE),"")) -> -48 | J148: =IF(OR(E148="Total",D148="Total"),IF(I148="",0,I148)-IF(H148="",0,H148),IFERROR(VLOOKUP(B148&E148&F148,'Sub Modules'!A:I,8,FALSE),"")) -> 15 | K148: -48 | L148: =IFERROR(IF(VLOOKUP(B148&E148&F148,'Sub Modules'!A:I,9,FALSE)=0,"",VLOOKUP(B148&E148&F148,'Sub Modules'!A:I,9,FALSE)),"") -> 
A149: Energy Array | B149: Albion | C149: B2 | D149: E-Cell Fab 7-8 | E149: E-Cell Fab | F149: Food Rations | G149: =IF(OR(E149="Total",D149="Total"),"",IFERROR(VLOOKUP(B149&E149&F149,'Sub Modules'!A:E,5,FALSE),"")) -> 0 | H149: =IF(D149="Total",SUMIFS(H:H,A:A,"="&A149,B:B,"="&B149,E:E,"=Total",F:F,"="&F149),IF(E149="Total",SUMIFS(G:G,A:A,"="&A149,C:C,"="&C149,F:F,"="&F149),IFERROR(VLOOKUP(B149&E149&F149,'Sub Modules'!A:I,6,FALSE),""))) -> 0 | I149: =IF(D149="Total",SUMIFS(I:I,A:A,"="&A149,B:B,"="&B149,E:E,"=Total",F:F,"="&F149),IFERROR(VLOOKUP(B149&E149&F149,'Sub Modules'!A:I,7,FALSE),"")) -> -48 | J149: =IF(OR(E149="Total",D149="Total"),IF(I149="",0,I149)-IF(H149="",0,H149),IFERROR(VLOOKUP(B149&E149&F149,'Sub Modules'!A:I,8,FALSE),"")) -> 15 | K149: -48 | L149: =IFERROR(IF(VLOOKUP(B149&E149&F149,'Sub Modules'!A:I,9,FALSE)=0,"",VLOOKUP(B149&E149&F149,'Sub Modules'!A:I,9,FALSE)),"") -> 
A150: Energy Array | B150: Albion | C150: B2 | D150: E-Cell Fab 7-8 | E150: E-Cell Fab | F150: Force Field Projector | G150: =IF(OR(E150="Total",D150="Total"),"",IFERROR(VLOOKUP(B150&E150&F150,'Sub Modules'!A:E,5,FALSE),"")) -> 1 | H150: =IF(D150="Total",SUMIFS(H:H,A:A,"="&A150,B:B,"="&B150,E:E,"=Total",F:F,"="&F150),IF(E150="Total",SUMIFS(G:G,A:A,"="&A150,C:C,"="&C150,F:F,"="&F150),IFERROR(VLOOKUP(B150&E150&F150,'Sub Modules'!A:I,6,FALSE),""))) -> 0 | I150: =IF(D150="Total",SUMIFS(I:I,A:A,"="&A150,B:B,"="&B150,E:E,"=Total",F:F,"="&F150),IFERROR(VLOOKUP(B150&E150&F150,'Sub Modules'!A:I,7,FALSE),"")) -> 0 | J150: =IF(OR(E150="Total",D150="Total"),IF(I150="",0,I150)-IF(H150="",0,H150),IFERROR(VLOOKUP(B150&E150&F150,'Sub Modules'!A:I,8,FALSE),"")) -> 0 | K150: 0 | L150: =IFERROR(IF(VLOOKUP(B150&E150&F150,'Sub Modules'!A:I,9,FALSE)=0,"",VLOOKUP(B150&E150&F150,'Sub Modules'!A:I,9,FALSE)),"") -> 
A151: Energy Array | B151: Albion | C151: B2 | D151: E-Cell Fab 7-8 | E151: E-Cell Fab | F151: Force Field Projector | G151: =IF(OR(E151="Total",D151="Total"),"",IFERROR(VLOOKUP(B151&E151&F151,'Sub Modules'!A:E,5,FALSE),"")) -> 1 | H151: =IF(D151="Total",SUMIFS(H:H,A:A,"="&A151,B:B,"="&B151,E:E,"=Total",F:F,"="&F151),IF(E151="Total",SUMIFS(G:G,A:A,"="&A151,C:C,"="&C151,F:F,"="&F151),IFERROR(VLOOKUP(B151&E151&F151,'Sub Modules'!A:I,6,FALSE),""))) -> 0 | I151: =IF(D151="Total",SUMIFS(I:I,A:A,"="&A151,B:B,"="&B151,E:E,"=Total",F:F,"="&F151),IFERROR(VLOOKUP(B151&E151&F151,'Sub Modules'!A:I,7,FALSE),"")) -> 0 | J151: =IF(OR(E151="Total",D151="Total"),IF(I151="",0,I151)-IF(H151="",0,H151),IFERROR(VLOOKUP(B151&E151&F151,'Sub Modules'!A:I,8,FALSE),"")) -> 0 | K151: 0 | L151: =IFERROR(IF(VLOOKUP(B151&E151&F151,'Sub Modules'!A:I,9,FALSE)=0,"",VLOOKUP(B151&E151&F151,'Sub Modules'!A:I,9,FALSE)),"") -> 
A152: Energy Array | B152: Albion | C152: B2 | D152: E-Cell Fab 7-8 | E152: E-Cell Fab | F152: Fusion Reactors | G152: =IF(OR(E152="Total",D152="Total"),"",IFERROR(VLOOKUP(B152&E152&F152,'Sub Modules'!A:E,5,FALSE),"")) -> 90 | H152: =IF(D152="Total",SUMIFS(H:H,A:A,"="&A152,B:B,"="&B152,E:E,"=Total",F:F,"="&F152),IF(E152="Total",SUMIFS(G:G,A:A,"="&A152,C:C,"="&C152,F:F,"="&F152),IFERROR(VLOOKUP(B152&E152&F152,'Sub Modules'!A:I,6,FALSE),""))) -> 0 | I152: =IF(D152="Total",SUMIFS(I:I,A:A,"="&A152,B:B,"="&B152,E:E,"=Total",F:F,"="&F152),IFERROR(VLOOKUP(B152&E152&F152,'Sub Modules'!A:I,7,FALSE),"")) -> 0 | J152: =IF(OR(E152="Total",D152="Total"),IF(I152="",0,I152)-IF(H152="",0,H152),IFERROR(VLOOKUP(B152&E152&F152,'Sub Modules'!A:I,8,FALSE),"")) -> 0 | K152: 0 | L152: =IFERROR(IF(VLOOKUP(B152&E152&F152,'Sub Modules'!A:I,9,FALSE)=0,"",VLOOKUP(B152&E152&F152,'Sub Modules'!A:I,9,FALSE)),"") -> 
A153: Energy Array | B153: Albion | C153: B2 | D153: E-Cell Fab 7-8 | E153: E-Cell Fab | F153: Fusion Reactors | G153: =IF(OR(E153="Total",D153="Total"),"",IFERROR(VLOOKUP(B153&E153&F153,'Sub Modules'!A:E,5,FALSE),"")) -> 90 | H153: =IF(D153="Total",SUMIFS(H:H,A:A,"="&A153,B:B,"="&B153,E:E,"=Total",F:F,"="&F153),IF(E153="Total",SUMIFS(G:G,A:A,"="&A153,C:C,"="&C153,F:F,"="&F153),IFERROR(VLOOKUP(B153&E153&F153,'Sub Modules'!A:I,6,FALSE),""))) -> 0 | I153: =IF(D153="Total",SUMIFS(I:I,A:A,"="&A153,B:B,"="&B153,E:E,"=Total",F:F,"="&F153),IFERROR(VLOOKUP(B153&E153&F153,'Sub Modules'!A:I,7,FALSE),"")) -> 0 | J153: =IF(OR(E153="Total",D153="Total"),IF(I153="",0,I153)-IF(H153="",0,H153),IFERROR(VLOOKUP(B153&E153&F153,'Sub Modules'!A:I,8,FALSE),"")) -> 0 | K153: 0 | L153: =IFERROR(IF(VLOOKUP(B153&E153&F153,'Sub Modules'!A:I,9,FALSE)=0,"",VLOOKUP(B153&E153&F153,'Sub Modules'!A:I,9,FALSE)),"") -> 
A154: Energy Array | B154: Albion | C154: B2 | D154: E-Cell Fab 7-8 | E154: E-Cell Fab | F154: HIT/MA Turret | G154: =IF(OR(E154="Total",D154="Total"),"",IFERROR(VLOOKUP(B154&E154&F154,'Sub Modules'!A:E,5,FALSE),"")) -> 5 | H154: =IF(D154="Total",SUMIFS(H:H,A:A,"="&A154,B:B,"="&B154,E:E,"=Total",F:F,"="&F154),IF(E154="Total",SUMIFS(G:G,A:A,"="&A154,C:C,"="&C154,F:F,"="&F154),IFERROR(VLOOKUP(B154&E154&F154,'Sub Modules'!A:I,6,FALSE),""))) -> 0 | I154: =IF(D154="Total",SUMIFS(I:I,A:A,"="&A154,B:B,"="&B154,E:E,"=Total",F:F,"="&F154),IFERROR(VLOOKUP(B154&E154&F154,'Sub Modules'!A:I,7,FALSE),"")) -> 0 | J154: =IF(OR(E154="Total",D154="Total"),IF(I154="",0,I154)-IF(H154="",0,H154),IFERROR(VLOOKUP(B154&E154&F154,'Sub Modules'!A:I,8,FALSE),"")) -> 0 | K154: 0 | L154: =IFERROR(IF(VLOOKUP(B154&E154&F154,'Sub Modules'!A:I,9,FALSE)=0,"",VLOOKUP(B154&E154&F154,'Sub Modules'!A:I,9,FALSE)),"") -> 
A155: Energy Array | B155: Albion | C155: B2 | D155: E-Cell Fab 7-8 | E155: E-Cell Fab | F155: HIT/MA Turret | G155: =IF(OR(E155="Total",D155="Total"),"",IFERROR(VLOOKUP(B155&E155&F155,'Sub Modules'!A:E,5,FALSE),"")) -> 5 | H155: =IF(D155="Total",SUMIFS(H:H,A:A,"="&A155,B:B,"="&B155,E:E,"=Total",F:F,"="&F155),IF(E155="Total",SUMIFS(G:G,A:A,"="&A155,C:C,"="&C155,F:F,"="&F155),IFERROR(VLOOKUP(B155&E155&F155,'Sub Modules'!A:I,6,FALSE),""))) -> 0 | I155: =IF(D155="Total",SUMIFS(I:I,A:A,"="&A155,B:B,"="&B155,E:E,"=Total",F:F,"="&F155),IFERROR(VLOOKUP(B155&E155&F155,'Sub Modules'!A:I,7,FALSE),"")) -> 0 | J155: =IF(OR(E155="Total",D155="Total"),IF(I155="",0,I155)-IF(H155="",0,H155),IFERROR(VLOOKUP(B155&E155&F155,'Sub Modules'!A:I,8,FALSE),"")) -> 0 | K155: 0 | L155: =IFERROR(IF(VLOOKUP(B155&E155&F155,'Sub Modules'!A:I,9,FALSE)=0,"",VLOOKUP(B155&E155&F155,'Sub Modules'!A:I,9,FALSE)),"") -> 
A156: Energy Array | B156: Albion | C156: B2 | D156: E-Cell Fab 7-8 | E156: E-Cell Fab | F156: Plasma/MA Turret | G156: =IF(OR(E156="Total",D156="Total"),"",IFERROR(VLOOKUP(B156&E156&F156,'Sub Modules'!A:E,5,FALSE),"")) -> 2 | H156: =IF(D156="Total",SUMIFS(H:H,A:A,"="&A156,B:B,"="&B156,E:E,"=Total",F:F,"="&F156),IF(E156="Total",SUMIFS(G:G,A:A,"="&A156,C:C,"="&C156,F:F,"="&F156),IFERROR(VLOOKUP(B156&E156&F156,'Sub Modules'!A:I,6,FALSE),""))) -> 0 | I156: =IF(D156="Total",SUMIFS(I:I,A:A,"="&A156,B:B,"="&B156,E:E,"=Total",F:F,"="&F156),IFERROR(VLOOKUP(B156&E156&F156,'Sub Modules'!A:I,7,FALSE),"")) -> 0 | J156: =IF(OR(E156="Total",D156="Total"),IF(I156="",0,I156)-IF(H156="",0,H156),IFERROR(VLOOKUP(B156&E156&F156,'Sub Modules'!A:I,8,FALSE),"")) -> 0 | K156: 0 | L156: =IFERROR(IF(VLOOKUP(B156&E156&F156,'Sub Modules'!A:I,9,FALSE)=0,"",VLOOKUP(B156&E156&F156,'Sub Modules'!A:I,9,FALSE)),"") -> 
A157: Energy Array | B157: Albion | C157: B2 | D157: E-Cell Fab 7-8 | E157: E-Cell Fab | F157: Plasma/MA Turret | G157: =IF(OR(E157="Total",D157="Total"),"",IFERROR(VLOOKUP(B157&E157&F157,'Sub Modules'!A:E,5,FALSE),"")) -> 2 | H157: =IF(D157="Total",SUMIFS(H:H,A:A,"="&A157,B:B,"="&B157,E:E,"=Total",F:F,"="&F157),IF(E157="Total",SUMIFS(G:G,A:A,"="&A157,C:C,"="&C157,F:F,"="&F157),IFERROR(VLOOKUP(B157&E157&F157,'Sub Modules'!A:I,6,FALSE),""))) -> 0 | I157: =IF(D157="Total",SUMIFS(I:I,A:A,"="&A157,B:B,"="&B157,E:E,"=Total",F:F,"="&F157),IFERROR(VLOOKUP(B157&E157&F157,'Sub Modules'!A:I,7,FALSE),"")) -> 0 | J157: =IF(OR(E157="Total",D157="Total"),IF(I157="",0,I157)-IF(H157="",0,H157),IFERROR(VLOOKUP(B157&E157&F157,'Sub Modules'!A:I,8,FALSE),"")) -> 0 | K157: 0 | L157: =IFERROR(IF(VLOOKUP(B157&E157&F157,'Sub Modules'!A:I,9,FALSE)=0,"",VLOOKUP(B157&E157&F157,'Sub Modules'!A:I,9,FALSE)),"") -> 
A158: Energy Array | B158: Albion | C158: B2 | D158: E-Cell Fab 7-8 | E158: E-Cell Fab | F158: Reinforced Metal Plating | G158: =IF(OR(E158="Total",D158="Total"),"",IFERROR(VLOOKUP(B158&E158&F158,'Sub Modules'!A:E,5,FALSE),"")) -> 487 | H158: =IF(D158="Total",SUMIFS(H:H,A:A,"="&A158,B:B,"="&B158,E:E,"=Total",F:F,"="&F158),IF(E158="Total",SUMIFS(G:G,A:A,"="&A158,C:C,"="&C158,F:F,"="&F158),IFERROR(VLOOKUP(B158&E158&F158,'Sub Modules'!A:I,6,FALSE),""))) -> 0 | I158: =IF(D158="Total",SUMIFS(I:I,A:A,"="&A158,B:B,"="&B158,E:E,"=Total",F:F,"="&F158),IFERROR(VLOOKUP(B158&E158&F158,'Sub Modules'!A:I,7,FALSE),"")) -> 0 | J158: =IF(OR(E158="Total",D158="Total"),IF(I158="",0,I158)-IF(H158="",0,H158),IFERROR(VLOOKUP(B158&E158&F158,'Sub Modules'!A:I,8,FALSE),"")) -> 0 | K158: 0 | L158: =IFERROR(IF(VLOOKUP(B158&E158&F158,'Sub Modules'!A:I,9,FALSE)=0,"",VLOOKUP(B158&E158&F158,'Sub Modules'!A:I,9,FALSE)),"") -> 
A159: Energy Array | B159: Albion | C159: B2 | D159: E-Cell Fab 7-8 | E159: E-Cell Fab | F159: Reinforced Metal Plating | G159: =IF(OR(E159="Total",D159="Total"),"",IFERROR(VLOOKUP(B159&E159&F159,'Sub Modules'!A:E,5,FALSE),"")) -> 487 | H159: =IF(D159="Total",SUMIFS(H:H,A:A,"="&A159,B:B,"="&B159,E:E,"=Total",F:F,"="&F159),IF(E159="Total",SUMIFS(G:G,A:A,"="&A159,C:C,"="&C159,F:F,"="&F159),IFERROR(VLOOKUP(B159&E159&F159,'Sub Modules'!A:I,6,FALSE),""))) -> 0 | I159: =IF(D159="Total",SUMIFS(I:I,A:A,"="&A159,B:B,"="&B159,E:E,"=Total",F:F,"="&F159),IFERROR(VLOOKUP(B159&E159&F159,'Sub Modules'!A:I,7,FALSE),"")) -> 0 | J159: =IF(OR(E159="Total",D159="Total"),IF(I159="",0,I159)-IF(H159="",0,H159),IFERROR(VLOOKUP(B159&E159&F159,'Sub Modules'!A:I,8,FALSE),"")) -> 0 | K159: 0 | L159: =IFERROR(IF(VLOOKUP(B159&E159&F159,'Sub Modules'!A:I,9,FALSE)=0,"",VLOOKUP(B159&E159&F159,'Sub Modules'!A:I,9,FALSE)),"") -> 
A160: Energy Array | B160: Albion | C160: B2 | D160: E-Cell Fab 7-8 | E160: Tesla Duo-Charger | F160: Energy Cells | G160: =IF(OR(E160="Total",D160="Total"),"",IFERROR(VLOOKUP(B160&E160&F160,'Sub Modules'!A:E,5,FALSE),"")) -> 290 | H160: =IF(D160="Total",SUMIFS(H:H,A:A,"="&A160,B:B,"="&B160,E:E,"=Total",F:F,"="&F160),IF(E160="Total",SUMIFS(G:G,A:A,"="&A160,C:C,"="&C160,F:F,"="&F160),IFERROR(VLOOKUP(B160&E160&F160,'Sub Modules'!A:I,6,FALSE),""))) -> 0 | I160: =IF(D160="Total",SUMIFS(I:I,A:A,"="&A160,B:B,"="&B160,E:E,"=Total",F:F,"="&F160),IFERROR(VLOOKUP(B160&E160&F160,'Sub Modules'!A:I,7,FALSE),"")) -> 0 | J160: =IF(OR(E160="Total",D160="Total"),IF(I160="",0,I160)-IF(H160="",0,H160),IFERROR(VLOOKUP(B160&E160&F160,'Sub Modules'!A:I,8,FALSE),"")) -> 0 | K160: 0 | L160: =IFERROR(IF(VLOOKUP(B160&E160&F160,'Sub Modules'!A:I,9,FALSE)=0,"",VLOOKUP(B160&E160&F160,'Sub Modules'!A:I,9,FALSE)),"") -> 320000
A161: Energy Array | B161: Albion | C161: B2 | D161: E-Cell Fab 7-8 | E161: Tesla Duo-Charger | F161: Fusion Reactors | G161: =IF(OR(E161="Total",D161="Total"),"",IFERROR(VLOOKUP(B161&E161&F161,'Sub Modules'!A:E,5,FALSE),"")) -> 22 | H161: =IF(D161="Total",SUMIFS(H:H,A:A,"="&A161,B:B,"="&B161,E:E,"=Total",F:F,"="&F161),IF(E161="Total",SUMIFS(G:G,A:A,"="&A161,C:C,"="&C161,F:F,"="&F161),IFERROR(VLOOKUP(B161&E161&F161,'Sub Modules'!A:I,6,FALSE),""))) -> 0 | I161: =IF(D161="Total",SUMIFS(I:I,A:A,"="&A161,B:B,"="&B161,E:E,"=Total",F:F,"="&F161),IFERROR(VLOOKUP(B161&E161&F161,'Sub Modules'!A:I,7,FALSE),"")) -> 0 | J161: =IF(OR(E161="Total",D161="Total"),IF(I161="",0,I161)-IF(H161="",0,H161),IFERROR(VLOOKUP(B161&E161&F161,'Sub Modules'!A:I,8,FALSE),"")) -> 0 | K161: 0 | L161: =IFERROR(IF(VLOOKUP(B161&E161&F161,'Sub Modules'!A:I,9,FALSE)=0,"",VLOOKUP(B161&E161&F161,'Sub Modules'!A:I,9,FALSE)),"") -> 
A162: Energy Array | B162: Albion | C162: B2 | D162: E-Cell Fab 7-8 | E162: Tesla Duo-Charger | F162: HIT/MA Turret | G162: =IF(OR(E162="Total",D162="Total"),"",IFERROR(VLOOKUP(B162&E162&F162,'Sub Modules'!A:E,5,FALSE),"")) -> 8 | H162: =IF(D162="Total",SUMIFS(H:H,A:A,"="&A162,B:B,"="&B162,E:E,"=Total",F:F,"="&F162),IF(E162="Total",SUMIFS(G:G,A:A,"="&A162,C:C,"="&C162,F:F,"="&F162),IFERROR(VLOOKUP(B162&E162&F162,'Sub Modules'!A:I,6,FALSE),""))) -> 0 | I162: =IF(D162="Total",SUMIFS(I:I,A:A,"="&A162,B:B,"="&B162,E:E,"=Total",F:F,"="&F162),IFERROR(VLOOKUP(B162&E162&F162,'Sub Modules'!A:I,7,FALSE),"")) -> 0 | J162: =IF(OR(E162="Total",D162="Total"),IF(I162="",0,I162)-IF(H162="",0,H162),IFERROR(VLOOKUP(B162&E162&F162,'Sub Modules'!A:I,8,FALSE),"")) -> 0 | K162: 0 | L162: =IFERROR(IF(VLOOKUP(B162&E162&F162,'Sub Modules'!A:I,9,FALSE)=0,"",VLOOKUP(B162&E162&F162,'Sub Modules'!A:I,9,FALSE)),"") -> 
A163: Energy Array | B163: Albion | C163: B2 | D163: E-Cell Fab 7-8 | E163: Tesla Duo-Charger | F163: Force Field Projector | G163: =IF(OR(E163="Total",D163="Total"),"",IFERROR(VLOOKUP(B163&E163&F163,'Sub Modules'!A:E,5,FALSE),"")) -> 1 | H163: =IF(D163="Total",SUMIFS(H:H,A:A,"="&A163,B:B,"="&B163,E:E,"=Total",F:F,"="&F163),IF(E163="Total",SUMIFS(G:G,A:A,"="&A163,C:C,"="&C163,F:F,"="&F163),IFERROR(VLOOKUP(B163&E163&F163,'Sub Modules'!A:I,6,FALSE),""))) -> 0 | I163: =IF(D163="Total",SUMIFS(I:I,A:A,"="&A163,B:B,"="&B163,E:E,"=Total",F:F,"="&F163),IFERROR(VLOOKUP(B163&E163&F163,'Sub Modules'!A:I,7,FALSE),"")) -> 0 | J163: =IF(OR(E163="Total",D163="Total"),IF(I163="",0,I163)-IF(H163="",0,H163),IFERROR(VLOOKUP(B163&E163&F163,'Sub Modules'!A:I,8,FALSE),"")) -> 0 | K163: 0 | L163: =IFERROR(IF(VLOOKUP(B163&E163&F163,'Sub Modules'!A:I,9,FALSE)=0,"",VLOOKUP(B163&E163&F163,'Sub Modules'!A:I,9,FALSE)),"") -> 
A164: Energy Array | B164: Albion | C164: B2 | D164: E-Cell Fab 7-8 | E164: Tesla Duo-Charger | F164: Reinforced Metal Plating | G164: =IF(OR(E164="Total",D164="Total"),"",IFERROR(VLOOKUP(B164&E164&F164,'Sub Modules'!A:E,5,FALSE),"")) -> 108 | H164: =IF(D164="Total",SUMIFS(H:H,A:A,"="&A164,B:B,"="&B164,E:E,"=Total",F:F,"="&F164),IF(E164="Total",SUMIFS(G:G,A:A,"="&A164,C:C,"="&C164,F:F,"="&F164),IFERROR(VLOOKUP(B164&E164&F164,'Sub Modules'!A:I,6,FALSE),""))) -> 0 | I164: =IF(D164="Total",SUMIFS(I:I,A:A,"="&A164,B:B,"="&B164,E:E,"=Total",F:F,"="&F164),IFERROR(VLOOKUP(B164&E164&F164,'Sub Modules'!A:I,7,FALSE),"")) -> 0 | J164: =IF(OR(E164="Total",D164="Total"),IF(I164="",0,I164)-IF(H164="",0,H164),IFERROR(VLOOKUP(B164&E164&F164,'Sub Modules'!A:I,8,FALSE),"")) -> 0 | K164: 0 | L164: =IFERROR(IF(VLOOKUP(B164&E164&F164,'Sub Modules'!A:I,9,FALSE)=0,"",VLOOKUP(B164&E164&F164,'Sub Modules'!A:I,9,FALSE)),"") -> 
A165: Energy Array | B165: Albion | C165: B2 | D165: E-Cell Fab 7-8 | E165: Tesla Duo-Charger | F165: Energy Cells | G165: =IF(OR(E165="Total",D165="Total"),"",IFERROR(VLOOKUP(B165&E165&F165,'Sub Modules'!A:E,5,FALSE),"")) -> 290 | H165: =IF(D165="Total",SUMIFS(H:H,A:A,"="&A165,B:B,"="&B165,E:E,"=Total",F:F,"="&F165),IF(E165="Total",SUMIFS(G:G,A:A,"="&A165,C:C,"="&C165,F:F,"="&F165),IFERROR(VLOOKUP(B165&E165&F165,'Sub Modules'!A:I,6,FALSE),""))) -> 0 | I165: =IF(D165="Total",SUMIFS(I:I,A:A,"="&A165,B:B,"="&B165,E:E,"=Total",F:F,"="&F165),IFERROR(VLOOKUP(B165&E165&F165,'Sub Modules'!A:I,7,FALSE),"")) -> 0 | J165: =IF(OR(E165="Total",D165="Total"),IF(I165="",0,I165)-IF(H165="",0,H165),IFERROR(VLOOKUP(B165&E165&F165,'Sub Modules'!A:I,8,FALSE),"")) -> 0 | K165: 0 | L165: =IFERROR(IF(VLOOKUP(B165&E165&F165,'Sub Modules'!A:I,9,FALSE)=0,"",VLOOKUP(B165&E165&F165,'Sub Modules'!A:I,9,FALSE)),"") -> 320000
A166: Energy Array | B166: Albion | C166: B2 | D166: E-Cell Fab 7-8 | E166: Tesla Duo-Charger | F166: Fusion Reactors | G166: =IF(OR(E166="Total",D166="Total"),"",IFERROR(VLOOKUP(B166&E166&F166,'Sub Modules'!A:E,5,FALSE),"")) -> 22 | H166: =IF(D166="Total",SUMIFS(H:H,A:A,"="&A166,B:B,"="&B166,E:E,"=Total",F:F,"="&F166),IF(E166="Total",SUMIFS(G:G,A:A,"="&A166,C:C,"="&C166,F:F,"="&F166),IFERROR(VLOOKUP(B166&E166&F166,'Sub Modules'!A:I,6,FALSE),""))) -> 0 | I166: =IF(D166="Total",SUMIFS(I:I,A:A,"="&A166,B:B,"="&B166,E:E,"=Total",F:F,"="&F166),IFERROR(VLOOKUP(B166&E166&F166,'Sub Modules'!A:I,7,FALSE),"")) -> 0 | J166: =IF(OR(E166="Total",D166="Total"),IF(I166="",0,I166)-IF(H166="",0,H166),IFERROR(VLOOKUP(B166&E166&F166,'Sub Modules'!A:I,8,FALSE),"")) -> 0 | K166: 0 | L166: =IFERROR(IF(VLOOKUP(B166&E166&F166,'Sub Modules'!A:I,9,FALSE)=0,"",VLOOKUP(B166&E166&F166,'Sub Modules'!A:I,9,FALSE)),"") -> 
A167: Energy Array | B167: Albion | C167: B2 | D167: E-Cell Fab 7-8 | E167: Tesla Duo-Charger | F167: HIT/MA Turret | G167: =IF(OR(E167="Total",D167="Total"),"",IFERROR(VLOOKUP(B167&E167&F167,'Sub Modules'!A:E,5,FALSE),"")) -> 8 | H167: =IF(D167="Total",SUMIFS(H:H,A:A,"="&A167,B:B,"="&B167,E:E,"=Total",F:F,"="&F167),IF(E167="Total",SUMIFS(G:G,A:A,"="&A167,C:C,"="&C167,F:F,"="&F167),IFERROR(VLOOKUP(B167&E167&F167,'Sub Modules'!A:I,6,FALSE),""))) -> 0 | I167: =IF(D167="Total",SUMIFS(I:I,A:A,"="&A167,B:B,"="&B167,E:E,"=Total",F:F,"="&F167),IFERROR(VLOOKUP(B167&E167&F167,'Sub Modules'!A:I,7,FALSE),"")) -> 0 | J167: =IF(OR(E167="Total",D167="Total"),IF(I167="",0,I167)-IF(H167="",0,H167),IFERROR(VLOOKUP(B167&E167&F167,'Sub Modules'!A:I,8,FALSE),"")) -> 0 | K167: 0 | L167: =IFERROR(IF(VLOOKUP(B167&E167&F167,'Sub Modules'!A:I,9,FALSE)=0,"",VLOOKUP(B167&E167&F167,'Sub Modules'!A:I,9,FALSE)),"") -> 
A168: Energy Array | B168: Albion | C168: B2 | D168: E-Cell Fab 7-8 | E168: Tesla Duo-Charger | F168: Force Field Projector | G168: =IF(OR(E168="Total",D168="Total"),"",IFERROR(VLOOKUP(B168&E168&F168,'Sub Modules'!A:E,5,FALSE),"")) -> 1 | H168: =IF(D168="Total",SUMIFS(H:H,A:A,"="&A168,B:B,"="&B168,E:E,"=Total",F:F,"="&F168),IF(E168="Total",SUMIFS(G:G,A:A,"="&A168,C:C,"="&C168,F:F,"="&F168),IFERROR(VLOOKUP(B168&E168&F168,'Sub Modules'!A:I,6,FALSE),""))) -> 0 | I168: =IF(D168="Total",SUMIFS(I:I,A:A,"="&A168,B:B,"="&B168,E:E,"=Total",F:F,"="&F168),IFERROR(VLOOKUP(B168&E168&F168,'Sub Modules'!A:I,7,FALSE),"")) -> 0 | J168: =IF(OR(E168="Total",D168="Total"),IF(I168="",0,I168)-IF(H168="",0,H168),IFERROR(VLOOKUP(B168&E168&F168,'Sub Modules'!A:I,8,FALSE),"")) -> 0 | K168: 0 | L168: =IFERROR(IF(VLOOKUP(B168&E168&F168,'Sub Modules'!A:I,9,FALSE)=0,"",VLOOKUP(B168&E168&F168,'Sub Modules'!A:I,9,FALSE)),"") -> 
A169: Energy Array | B169: Albion | C169: B2 | D169: E-Cell Fab 7-8 | E169: Tesla Duo-Charger | F169: Reinforced Metal Plating | G169: =IF(OR(E169="Total",D169="Total"),"",IFERROR(VLOOKUP(B169&E169&F169,'Sub Modules'!A:E,5,FALSE),"")) -> 108 | H169: =IF(D169="Total",SUMIFS(H:H,A:A,"="&A169,B:B,"="&B169,E:E,"=Total",F:F,"="&F169),IF(E169="Total",SUMIFS(G:G,A:A,"="&A169,C:C,"="&C169,F:F,"="&F169),IFERROR(VLOOKUP(B169&E169&F169,'Sub Modules'!A:I,6,FALSE),""))) -> 0 | I169: =IF(D169="Total",SUMIFS(I:I,A:A,"="&A169,B:B,"="&B169,E:E,"=Total",F:F,"="&F169),IFERROR(VLOOKUP(B169&E169&F169,'Sub Modules'!A:I,7,FALSE),"")) -> 0 | J169: =IF(OR(E169="Total",D169="Total"),IF(I169="",0,I169)-IF(H169="",0,H169),IFERROR(VLOOKUP(B169&E169&F169,'Sub Modules'!A:I,8,FALSE),"")) -> 0 | K169: 0 | L169: =IFERROR(IF(VLOOKUP(B169&E169&F169,'Sub Modules'!A:I,9,FALSE)=0,"",VLOOKUP(B169&E169&F169,'Sub Modules'!A:I,9,FALSE)),"") -> 
A170: Energy Array | B170: Albion | C170: B3 | D170: Storage 2 | E170: Tesla Duo-Charger | F170: Energy Cells | G170: =IF(OR(E170="Total",D170="Total"),"",IFERROR(VLOOKUP(B170&E170&F170,'Sub Modules'!A:E,5,FALSE),"")) -> 290 | H170: =IF(D170="Total",SUMIFS(H:H,A:A,"="&A170,B:B,"="&B170,E:E,"=Total",F:F,"="&F170),IF(E170="Total",SUMIFS(G:G,A:A,"="&A170,C:C,"="&C170,F:F,"="&F170),IFERROR(VLOOKUP(B170&E170&F170,'Sub Modules'!A:I,6,FALSE),""))) -> 0 | I170: =IF(D170="Total",SUMIFS(I:I,A:A,"="&A170,B:B,"="&B170,E:E,"=Total",F:F,"="&F170),IFERROR(VLOOKUP(B170&E170&F170,'Sub Modules'!A:I,7,FALSE),"")) -> 0 | J170: =IF(OR(E170="Total",D170="Total"),IF(I170="",0,I170)-IF(H170="",0,H170),IFERROR(VLOOKUP(B170&E170&F170,'Sub Modules'!A:I,8,FALSE),"")) -> 0 | K170: 0 | L170: =IFERROR(IF(VLOOKUP(B170&E170&F170,'Sub Modules'!A:I,9,FALSE)=0,"",VLOOKUP(B170&E170&F170,'Sub Modules'!A:I,9,FALSE)),"") -> 320000
A171: Energy Array | B171: Albion | C171: B3 | D171: Storage 2 | E171: Tesla Duo-Charger | F171: Fusion Reactors | G171: =IF(OR(E171="Total",D171="Total"),"",IFERROR(VLOOKUP(B171&E171&F171,'Sub Modules'!A:E,5,FALSE),"")) -> 22 | H171: =IF(D171="Total",SUMIFS(H:H,A:A,"="&A171,B:B,"="&B171,E:E,"=Total",F:F,"="&F171),IF(E171="Total",SUMIFS(G:G,A:A,"="&A171,C:C,"="&C171,F:F,"="&F171),IFERROR(VLOOKUP(B171&E171&F171,'Sub Modules'!A:I,6,FALSE),""))) -> 0 | I171: =IF(D171="Total",SUMIFS(I:I,A:A,"="&A171,B:B,"="&B171,E:E,"=Total",F:F,"="&F171),IFERROR(VLOOKUP(B171&E171&F171,'Sub Modules'!A:I,7,FALSE),"")) -> 0 | J171: =IF(OR(E171="Total",D171="Total"),IF(I171="",0,I171)-IF(H171="",0,H171),IFERROR(VLOOKUP(B171&E171&F171,'Sub Modules'!A:I,8,FALSE),"")) -> 0 | K171: 0 | L171: =IFERROR(IF(VLOOKUP(B171&E171&F171,'Sub Modules'!A:I,9,FALSE)=0,"",VLOOKUP(B171&E171&F171,'Sub Modules'!A:I,9,FALSE)),"") -> 
A172: Energy Array | B172: Albion | C172: B3 | D172: Storage 2 | E172: Tesla Duo-Charger | F172: HIT/MA Turret | G172: =IF(OR(E172="Total",D172="Total"),"",IFERROR(VLOOKUP(B172&E172&F172,'Sub Modules'!A:E,5,FALSE),"")) -> 8 | H172: =IF(D172="Total",SUMIFS(H:H,A:A,"="&A172,B:B,"="&B172,E:E,"=Total",F:F,"="&F172),IF(E172="Total",SUMIFS(G:G,A:A,"="&A172,C:C,"="&C172,F:F,"="&F172),IFERROR(VLOOKUP(B172&E172&F172,'Sub Modules'!A:I,6,FALSE),""))) -> 0 | I172: =IF(D172="Total",SUMIFS(I:I,A:A,"="&A172,B:B,"="&B172,E:E,"=Total",F:F,"="&F172),IFERROR(VLOOKUP(B172&E172&F172,'Sub Modules'!A:I,7,FALSE),"")) -> 0 | J172: =IF(OR(E172="Total",D172="Total"),IF(I172="",0,I172)-IF(H172="",0,H172),IFERROR(VLOOKUP(B172&E172&F172,'Sub Modules'!A:I,8,FALSE),"")) -> 0 | K172: 0 | L172: =IFERROR(IF(VLOOKUP(B172&E172&F172,'Sub Modules'!A:I,9,FALSE)=0,"",VLOOKUP(B172&E172&F172,'Sub Modules'!A:I,9,FALSE)),"") -> 
A173: Energy Array | B173: Albion | C173: B3 | D173: Storage 2 | E173: Tesla Duo-Charger | F173: Force Field Projector | G173: =IF(OR(E173="Total",D173="Total"),"",IFERROR(VLOOKUP(B173&E173&F173,'Sub Modules'!A:E,5,FALSE),"")) -> 1 | H173: =IF(D173="Total",SUMIFS(H:H,A:A,"="&A173,B:B,"="&B173,E:E,"=Total",F:F,"="&F173),IF(E173="Total",SUMIFS(G:G,A:A,"="&A173,C:C,"="&C173,F:F,"="&F173),IFERROR(VLOOKUP(B173&E173&F173,'Sub Modules'!A:I,6,FALSE),""))) -> 0 | I173: =IF(D173="Total",SUMIFS(I:I,A:A,"="&A173,B:B,"="&B173,E:E,"=Total",F:F,"="&F173),IFERROR(VLOOKUP(B173&E173&F173,'Sub Modules'!A:I,7,FALSE),"")) -> 0 | J173: =IF(OR(E173="Total",D173="Total"),IF(I173="",0,I173)-IF(H173="",0,H173),IFERROR(VLOOKUP(B173&E173&F173,'Sub Modules'!A:I,8,FALSE),"")) -> 0 | K173: 0 | L173: =IFERROR(IF(VLOOKUP(B173&E173&F173,'Sub Modules'!A:I,9,FALSE)=0,"",VLOOKUP(B173&E173&F173,'Sub Modules'!A:I,9,FALSE)),"") -> 
A174: Energy Array | B174: Albion | C174: B3 | D174: Storage 2 | E174: Tesla Duo-Charger | F174: Reinforced Metal Plating | G174: =IF(OR(E174="Total",D174="Total"),"",IFERROR(VLOOKUP(B174&E174&F174,'Sub Modules'!A:E,5,FALSE),"")) -> 108 | H174: =IF(D174="Total",SUMIFS(H:H,A:A,"="&A174,B:B,"="&B174,E:E,"=Total",F:F,"="&F174),IF(E174="Total",SUMIFS(G:G,A:A,"="&A174,C:C,"="&C174,F:F,"="&F174),IFERROR(VLOOKUP(B174&E174&F174,'Sub Modules'!A:I,6,FALSE),""))) -> 0 | I174: =IF(D174="Total",SUMIFS(I:I,A:A,"="&A174,B:B,"="&B174,E:E,"=Total",F:F,"="&F174),IFERROR(VLOOKUP(B174&E174&F174,'Sub Modules'!A:I,7,FALSE),"")) -> 0 | J174: =IF(OR(E174="Total",D174="Total"),IF(I174="",0,I174)-IF(H174="",0,H174),IFERROR(VLOOKUP(B174&E174&F174,'Sub Modules'!A:I,8,FALSE),"")) -> 0 | K174: 0 | L174: =IFERROR(IF(VLOOKUP(B174&E174&F174,'Sub Modules'!A:I,9,FALSE)=0,"",VLOOKUP(B174&E174&F174,'Sub Modules'!A:I,9,FALSE)),"") -> 
A175: Energy Array | B175: Albion | C175: B3 | D175: Storage 2 | E175: Tesla Duo-Charger | F175: Energy Cells | G175: =IF(OR(E175="Total",D175="Total"),"",IFERROR(VLOOKUP(B175&E175&F175,'Sub Modules'!A:E,5,FALSE),"")) -> 290 | H175: =IF(D175="Total",SUMIFS(H:H,A:A,"="&A175,B:B,"="&B175,E:E,"=Total",F:F,"="&F175),IF(E175="Total",SUMIFS(G:G,A:A,"="&A175,C:C,"="&C175,F:F,"="&F175),IFERROR(VLOOKUP(B175&E175&F175,'Sub Modules'!A:I,6,FALSE),""))) -> 0 | I175: =IF(D175="Total",SUMIFS(I:I,A:A,"="&A175,B:B,"="&B175,E:E,"=Total",F:F,"="&F175),IFERROR(VLOOKUP(B175&E175&F175,'Sub Modules'!A:I,7,FALSE),"")) -> 0 | J175: =IF(OR(E175="Total",D175="Total"),IF(I175="",0,I175)-IF(H175="",0,H175),IFERROR(VLOOKUP(B175&E175&F175,'Sub Modules'!A:I,8,FALSE),"")) -> 0 | K175: 0 | L175: =IFERROR(IF(VLOOKUP(B175&E175&F175,'Sub Modules'!A:I,9,FALSE)=0,"",VLOOKUP(B175&E175&F175,'Sub Modules'!A:I,9,FALSE)),"") -> 320000
A176: Energy Array | B176: Albion | C176: B3 | D176: Storage 2 | E176: Tesla Duo-Charger | F176: Fusion Reactors | G176: =IF(OR(E176="Total",D176="Total"),"",IFERROR(VLOOKUP(B176&E176&F176,'Sub Modules'!A:E,5,FALSE),"")) -> 22 | H176: =IF(D176="Total",SUMIFS(H:H,A:A,"="&A176,B:B,"="&B176,E:E,"=Total",F:F,"="&F176),IF(E176="Total",SUMIFS(G:G,A:A,"="&A176,C:C,"="&C176,F:F,"="&F176),IFERROR(VLOOKUP(B176&E176&F176,'Sub Modules'!A:I,6,FALSE),""))) -> 0 | I176: =IF(D176="Total",SUMIFS(I:I,A:A,"="&A176,B:B,"="&B176,E:E,"=Total",F:F,"="&F176),IFERROR(VLOOKUP(B176&E176&F176,'Sub Modules'!A:I,7,FALSE),"")) -> 0 | J176: =IF(OR(E176="Total",D176="Total"),IF(I176="",0,I176)-IF(H176="",0,H176),IFERROR(VLOOKUP(B176&E176&F176,'Sub Modules'!A:I,8,FALSE),"")) -> 0 | K176: 0 | L176: =IFERROR(IF(VLOOKUP(B176&E176&F176,'Sub Modules'!A:I,9,FALSE)=0,"",VLOOKUP(B176&E176&F176,'Sub Modules'!A:I,9,FALSE)),"") -> 
A177: Energy Array | B177: Albion | C177: B3 | D177: Storage 2 | E177: Tesla Duo-Charger | F177: HIT/MA Turret | G177: =IF(OR(E177="Total",D177="Total"),"",IFERROR(VLOOKUP(B177&E177&F177,'Sub Modules'!A:E,5,FALSE),"")) -> 8 | H177: =IF(D177="Total",SUMIFS(H:H,A:A,"="&A177,B:B,"="&B177,E:E,"=Total",F:F,"="&F177),IF(E177="Total",SUMIFS(G:G,A:A,"="&A177,C:C,"="&C177,F:F,"="&F177),IFERROR(VLOOKUP(B177&E177&F177,'Sub Modules'!A:I,6,FALSE),""))) -> 0 | I177: =IF(D177="Total",SUMIFS(I:I,A:A,"="&A177,B:B,"="&B177,E:E,"=Total",F:F,"="&F177),IFERROR(VLOOKUP(B177&E177&F177,'Sub Modules'!A:I,7,FALSE),"")) -> 0 | J177: =IF(OR(E177="Total",D177="Total"),IF(I177="",0,I177)-IF(H177="",0,H177),IFERROR(VLOOKUP(B177&E177&F177,'Sub Modules'!A:I,8,FALSE),"")) -> 0 | K177: 0 | L177: =IFERROR(IF(VLOOKUP(B177&E177&F177,'Sub Modules'!A:I,9,FALSE)=0,"",VLOOKUP(B177&E177&F177,'Sub Modules'!A:I,9,FALSE)),"") -> 
A178: Energy Array | B178: Albion | C178: B3 | D178: Storage 2 | E178: Tesla Duo-Charger | F178: Force Field Projector | G178: =IF(OR(E178="Total",D178="Total"),"",IFERROR(VLOOKUP(B178&E178&F178,'Sub Modules'!A:E,5,FALSE),"")) -> 1 | H178: =IF(D178="Total",SUMIFS(H:H,A:A,"="&A178,B:B,"="&B178,E:E,"=Total",F:F,"="&F178),IF(E178="Total",SUMIFS(G:G,A:A,"="&A178,C:C,"="&C178,F:F,"="&F178),IFERROR(VLOOKUP(B178&E178&F178,'Sub Modules'!A:I,6,FALSE),""))) -> 0 | I178: =IF(D178="Total",SUMIFS(I:I,A:A,"="&A178,B:B,"="&B178,E:E,"=Total",F:F,"="&F178),IFERROR(VLOOKUP(B178&E178&F178,'Sub Modules'!A:I,7,FALSE),"")) -> 0 | J178: =IF(OR(E178="Total",D178="Total"),IF(I178="",0,I178)-IF(H178="",0,H178),IFERROR(VLOOKUP(B178&E178&F178,'Sub Modules'!A:I,8,FALSE),"")) -> 0 | K178: 0 | L178: =IFERROR(IF(VLOOKUP(B178&E178&F178,'Sub Modules'!A:I,9,FALSE)=0,"",VLOOKUP(B178&E178&F178,'Sub Modules'!A:I,9,FALSE)),"") -> 
A179: Energy Array | B179: Albion | C179: B3 | D179: Storage 2 | E179: Tesla Duo-Charger | F179: Reinforced Metal Plating | G179: =IF(OR(E179="Total",D179="Total"),"",IFERROR(VLOOKUP(B179&E179&F179,'Sub Modules'!A:E,5,FALSE),"")) -> 108 | H179: =IF(D179="Total",SUMIFS(H:H,A:A,"="&A179,B:B,"="&B179,E:E,"=Total",F:F,"="&F179),IF(E179="Total",SUMIFS(G:G,A:A,"="&A179,C:C,"="&C179,F:F,"="&F179),IFERROR(VLOOKUP(B179&E179&F179,'Sub Modules'!A:I,6,FALSE),""))) -> 0 | I179: =IF(D179="Total",SUMIFS(I:I,A:A,"="&A179,B:B,"="&B179,E:E,"=Total",F:F,"="&F179),IFERROR(VLOOKUP(B179&E179&F179,'Sub Modules'!A:I,7,FALSE),"")) -> 0 | J179: =IF(OR(E179="Total",D179="Total"),IF(I179="",0,I179)-IF(H179="",0,H179),IFERROR(VLOOKUP(B179&E179&F179,'Sub Modules'!A:I,8,FALSE),"")) -> 0 | K179: 0 | L179: =IFERROR(IF(VLOOKUP(B179&E179&F179,'Sub Modules'!A:I,9,FALSE)=0,"",VLOOKUP(B179&E179&F179,'Sub Modules'!A:I,9,FALSE)),"") -> 
A180: Energy Array | B180: Albion | C180: C1 | D180: Radar | E180: Command Relay | F180: Energy Cells | G180: =IF(OR(E180="Total",D180="Total"),"",IFERROR(VLOOKUP(B180&E180&F180,'Sub Modules'!A:E,5,FALSE),"")) -> 652 | H180: =IF(D180="Total",SUMIFS(H:H,A:A,"="&A180,B:B,"="&B180,E:E,"=Total",F:F,"="&F180),IF(E180="Total",SUMIFS(G:G,A:A,"="&A180,C:C,"="&C180,F:F,"="&F180),IFERROR(VLOOKUP(B180&E180&F180,'Sub Modules'!A:I,6,FALSE),""))) -> 0 | I180: =IF(D180="Total",SUMIFS(I:I,A:A,"="&A180,B:B,"="&B180,E:E,"=Total",F:F,"="&F180),IFERROR(VLOOKUP(B180&E180&F180,'Sub Modules'!A:I,7,FALSE),"")) -> 0 | J180: =IF(OR(E180="Total",D180="Total"),IF(I180="",0,I180)-IF(H180="",0,H180),IFERROR(VLOOKUP(B180&E180&F180,'Sub Modules'!A:I,8,FALSE),"")) -> 0 | K180: 0 | L180: =IFERROR(IF(VLOOKUP(B180&E180&F180,'Sub Modules'!A:I,9,FALSE)=0,"",VLOOKUP(B180&E180&F180,'Sub Modules'!A:I,9,FALSE)),"") -> 
A181: Energy Array | B181: Albion | C181: C1 | D181: Radar | E181: Command Relay | F181: Force Field Projector | G181: =IF(OR(E181="Total",D181="Total"),"",IFERROR(VLOOKUP(B181&E181&F181,'Sub Modules'!A:E,5,FALSE),"")) -> 3 | H181: =IF(D181="Total",SUMIFS(H:H,A:A,"="&A181,B:B,"="&B181,E:E,"=Total",F:F,"="&F181),IF(E181="Total",SUMIFS(G:G,A:A,"="&A181,C:C,"="&C181,F:F,"="&F181),IFERROR(VLOOKUP(B181&E181&F181,'Sub Modules'!A:I,6,FALSE),""))) -> 0 | I181: =IF(D181="Total",SUMIFS(I:I,A:A,"="&A181,B:B,"="&B181,E:E,"=Total",F:F,"="&F181),IFERROR(VLOOKUP(B181&E181&F181,'Sub Modules'!A:I,7,FALSE),"")) -> 0 | J181: =IF(OR(E181="Total",D181="Total"),IF(I181="",0,I181)-IF(H181="",0,H181),IFERROR(VLOOKUP(B181&E181&F181,'Sub Modules'!A:I,8,FALSE),"")) -> 0 | K181: 0 | L181: =IFERROR(IF(VLOOKUP(B181&E181&F181,'Sub Modules'!A:I,9,FALSE)=0,"",VLOOKUP(B181&E181&F181,'Sub Modules'!A:I,9,FALSE)),"") -> 
A182: Energy Array | B182: Albion | C182: C1 | D182: Radar | E182: Command Relay | F182: Fusion Reactors | G182: =IF(OR(E182="Total",D182="Total"),"",IFERROR(VLOOKUP(B182&E182&F182,'Sub Modules'!A:E,5,FALSE),"")) -> 48 | H182: =IF(D182="Total",SUMIFS(H:H,A:A,"="&A182,B:B,"="&B182,E:E,"=Total",F:F,"="&F182),IF(E182="Total",SUMIFS(G:G,A:A,"="&A182,C:C,"="&C182,F:F,"="&F182),IFERROR(VLOOKUP(B182&E182&F182,'Sub Modules'!A:I,6,FALSE),""))) -> 0 | I182: =IF(D182="Total",SUMIFS(I:I,A:A,"="&A182,B:B,"="&B182,E:E,"=Total",F:F,"="&F182),IFERROR(VLOOKUP(B182&E182&F182,'Sub Modules'!A:I,7,FALSE),"")) -> 0 | J182: =IF(OR(E182="Total",D182="Total"),IF(I182="",0,I182)-IF(H182="",0,H182),IFERROR(VLOOKUP(B182&E182&F182,'Sub Modules'!A:I,8,FALSE),"")) -> 0 | K182: 0 | L182: =IFERROR(IF(VLOOKUP(B182&E182&F182,'Sub Modules'!A:I,9,FALSE)=0,"",VLOOKUP(B182&E182&F182,'Sub Modules'!A:I,9,FALSE)),"") -> 
A183: Energy Array | B183: Albion | C183: C1 | D183: Radar | E183: Command Relay | F183: HIT/MA Turret | G183: =IF(OR(E183="Total",D183="Total"),"",IFERROR(VLOOKUP(B183&E183&F183,'Sub Modules'!A:E,5,FALSE),"")) -> 4 | H183: =IF(D183="Total",SUMIFS(H:H,A:A,"="&A183,B:B,"="&B183,E:E,"=Total",F:F,"="&F183),IF(E183="Total",SUMIFS(G:G,A:A,"="&A183,C:C,"="&C183,F:F,"="&F183),IFERROR(VLOOKUP(B183&E183&F183,'Sub Modules'!A:I,6,FALSE),""))) -> 0 | I183: =IF(D183="Total",SUMIFS(I:I,A:A,"="&A183,B:B,"="&B183,E:E,"=Total",F:F,"="&F183),IFERROR(VLOOKUP(B183&E183&F183,'Sub Modules'!A:I,7,FALSE),"")) -> 0 | J183: =IF(OR(E183="Total",D183="Total"),IF(I183="",0,I183)-IF(H183="",0,H183),IFERROR(VLOOKUP(B183&E183&F183,'Sub Modules'!A:I,8,FALSE),"")) -> 0 | K183: 0 | L183: =IFERROR(IF(VLOOKUP(B183&E183&F183,'Sub Modules'!A:I,9,FALSE)=0,"",VLOOKUP(B183&E183&F183,'Sub Modules'!A:I,9,FALSE)),"") -> 
A184: Energy Array | B184: Albion | C184: C1 | D184: Radar | E184: Command Relay | F184: Plasma/MA Turret | G184: =IF(OR(E184="Total",D184="Total"),"",IFERROR(VLOOKUP(B184&E184&F184,'Sub Modules'!A:E,5,FALSE),"")) -> 2 | H184: =IF(D184="Total",SUMIFS(H:H,A:A,"="&A184,B:B,"="&B184,E:E,"=Total",F:F,"="&F184),IF(E184="Total",SUMIFS(G:G,A:A,"="&A184,C:C,"="&C184,F:F,"="&F184),IFERROR(VLOOKUP(B184&E184&F184,'Sub Modules'!A:I,6,FALSE),""))) -> 0 | I184: =IF(D184="Total",SUMIFS(I:I,A:A,"="&A184,B:B,"="&B184,E:E,"=Total",F:F,"="&F184),IFERROR(VLOOKUP(B184&E184&F184,'Sub Modules'!A:I,7,FALSE),"")) -> 0 | J184: =IF(OR(E184="Total",D184="Total"),IF(I184="",0,I184)-IF(H184="",0,H184),IFERROR(VLOOKUP(B184&E184&F184,'Sub Modules'!A:I,8,FALSE),"")) -> 0 | K184: 0 | L184: =IFERROR(IF(VLOOKUP(B184&E184&F184,'Sub Modules'!A:I,9,FALSE)=0,"",VLOOKUP(B184&E184&F184,'Sub Modules'!A:I,9,FALSE)),"") -> 
A185: Energy Array | B185: Albion | C185: C1 | D185: Radar | E185: Command Relay | F185: Reinforced Metal Plating | G185: =IF(OR(E185="Total",D185="Total"),"",IFERROR(VLOOKUP(B185&E185&F185,'Sub Modules'!A:E,5,FALSE),"")) -> 240 | H185: =IF(D185="Total",SUMIFS(H:H,A:A,"="&A185,B:B,"="&B185,E:E,"=Total",F:F,"="&F185),IF(E185="Total",SUMIFS(G:G,A:A,"="&A185,C:C,"="&C185,F:F,"="&F185),IFERROR(VLOOKUP(B185&E185&F185,'Sub Modules'!A:I,6,FALSE),""))) -> 0 | I185: =IF(D185="Total",SUMIFS(I:I,A:A,"="&A185,B:B,"="&B185,E:E,"=Total",F:F,"="&F185),IFERROR(VLOOKUP(B185&E185&F185,'Sub Modules'!A:I,7,FALSE),"")) -> 0 | J185: =IF(OR(E185="Total",D185="Total"),IF(I185="",0,I185)-IF(H185="",0,H185),IFERROR(VLOOKUP(B185&E185&F185,'Sub Modules'!A:I,8,FALSE),"")) -> 0 | K185: 0 | L185: =IFERROR(IF(VLOOKUP(B185&E185&F185,'Sub Modules'!A:I,9,FALSE)=0,"",VLOOKUP(B185&E185&F185,'Sub Modules'!A:I,9,FALSE)),"") -> 
A186: Energy Array | B186: Albion | C186: C1 | D186: Radar | E186: Command Relay | F186: V Launcher | G186: =IF(OR(E186="Total",D186="Total"),"",IFERROR(VLOOKUP(B186&E186&F186,'Sub Modules'!A:E,5,FALSE),"")) -> 1 | H186: =IF(D186="Total",SUMIFS(H:H,A:A,"="&A186,B:B,"="&B186,E:E,"=Total",F:F,"="&F186),IF(E186="Total",SUMIFS(G:G,A:A,"="&A186,C:C,"="&C186,F:F,"="&F186),IFERROR(VLOOKUP(B186&E186&F186,'Sub Modules'!A:I,6,FALSE),""))) -> 0 | I186: =IF(D186="Total",SUMIFS(I:I,A:A,"="&A186,B:B,"="&B186,E:E,"=Total",F:F,"="&F186),IFERROR(VLOOKUP(B186&E186&F186,'Sub Modules'!A:I,7,FALSE),"")) -> 0 | J186: =IF(OR(E186="Total",D186="Total"),IF(I186="",0,I186)-IF(H186="",0,H186),IFERROR(VLOOKUP(B186&E186&F186,'Sub Modules'!A:I,8,FALSE),"")) -> 0 | K186: 0 | L186: =IFERROR(IF(VLOOKUP(B186&E186&F186,'Sub Modules'!A:I,9,FALSE)=0,"",VLOOKUP(B186&E186&F186,'Sub Modules'!A:I,9,FALSE)),"") -> 
A187: Energy Array | B187: Albion | C187: D1 | D187: Defence 1 | E187: Targon Tracer | F187: Energy Cells | G187: =IF(OR(E187="Total",D187="Total"),"",IFERROR(VLOOKUP(B187&E187&F187,'Sub Modules'!A:E,5,FALSE),"")) -> 440 | H187: =IF(D187="Total",SUMIFS(H:H,A:A,"="&A187,B:B,"="&B187,E:E,"=Total",F:F,"="&F187),IF(E187="Total",SUMIFS(G:G,A:A,"="&A187,C:C,"="&C187,F:F,"="&F187),IFERROR(VLOOKUP(B187&E187&F187,'Sub Modules'!A:I,6,FALSE),""))) -> 0 | I187: =IF(D187="Total",SUMIFS(I:I,A:A,"="&A187,B:B,"="&B187,E:E,"=Total",F:F,"="&F187),IFERROR(VLOOKUP(B187&E187&F187,'Sub Modules'!A:I,7,FALSE),"")) -> 0 | J187: =IF(OR(E187="Total",D187="Total"),IF(I187="",0,I187)-IF(H187="",0,H187),IFERROR(VLOOKUP(B187&E187&F187,'Sub Modules'!A:I,8,FALSE),"")) -> 0 | K187: 0 | L187: =IFERROR(IF(VLOOKUP(B187&E187&F187,'Sub Modules'!A:I,9,FALSE)=0,"",VLOOKUP(B187&E187&F187,'Sub Modules'!A:I,9,FALSE)),"") -> 
A188: Energy Array | B188: Albion | C188: D1 | D188: Defence 1 | E188: Targon Tracer | F188: Force Field Projector | G188: =IF(OR(E188="Total",D188="Total"),"",IFERROR(VLOOKUP(B188&E188&F188,'Sub Modules'!A:E,5,FALSE),"")) -> 3 | H188: =IF(D188="Total",SUMIFS(H:H,A:A,"="&A188,B:B,"="&B188,E:E,"=Total",F:F,"="&F188),IF(E188="Total",SUMIFS(G:G,A:A,"="&A188,C:C,"="&C188,F:F,"="&F188),IFERROR(VLOOKUP(B188&E188&F188,'Sub Modules'!A:I,6,FALSE),""))) -> 0 | I188: =IF(D188="Total",SUMIFS(I:I,A:A,"="&A188,B:B,"="&B188,E:E,"=Total",F:F,"="&F188),IFERROR(VLOOKUP(B188&E188&F188,'Sub Modules'!A:I,7,FALSE),"")) -> 0 | J188: =IF(OR(E188="Total",D188="Total"),IF(I188="",0,I188)-IF(H188="",0,H188),IFERROR(VLOOKUP(B188&E188&F188,'Sub Modules'!A:I,8,FALSE),"")) -> 0 | K188: 0 | L188: =IFERROR(IF(VLOOKUP(B188&E188&F188,'Sub Modules'!A:I,9,FALSE)=0,"",VLOOKUP(B188&E188&F188,'Sub Modules'!A:I,9,FALSE)),"") -> 
A189: Energy Array | B189: Albion | C189: D1 | D189: Defence 1 | E189: Targon Tracer | F189: Fusion Reactors | G189: =IF(OR(E189="Total",D189="Total"),"",IFERROR(VLOOKUP(B189&E189&F189,'Sub Modules'!A:E,5,FALSE),"")) -> 44 | H189: =IF(D189="Total",SUMIFS(H:H,A:A,"="&A189,B:B,"="&B189,E:E,"=Total",F:F,"="&F189),IF(E189="Total",SUMIFS(G:G,A:A,"="&A189,C:C,"="&C189,F:F,"="&F189),IFERROR(VLOOKUP(B189&E189&F189,'Sub Modules'!A:I,6,FALSE),""))) -> 0 | I189: =IF(D189="Total",SUMIFS(I:I,A:A,"="&A189,B:B,"="&B189,E:E,"=Total",F:F,"="&F189),IFERROR(VLOOKUP(B189&E189&F189,'Sub Modules'!A:I,7,FALSE),"")) -> 0 | J189: =IF(OR(E189="Total",D189="Total"),IF(I189="",0,I189)-IF(H189="",0,H189),IFERROR(VLOOKUP(B189&E189&F189,'Sub Modules'!A:I,8,FALSE),"")) -> 0 | K189: 0 | L189: =IFERROR(IF(VLOOKUP(B189&E189&F189,'Sub Modules'!A:I,9,FALSE)=0,"",VLOOKUP(B189&E189&F189,'Sub Modules'!A:I,9,FALSE)),"") -> 
A190: Energy Array | B190: Albion | C190: D1 | D190: Defence 1 | E190: Targon Tracer | F190: HIT/MA Turret | G190: =IF(OR(E190="Total",D190="Total"),"",IFERROR(VLOOKUP(B190&E190&F190,'Sub Modules'!A:E,5,FALSE),"")) -> 8 | H190: =IF(D190="Total",SUMIFS(H:H,A:A,"="&A190,B:B,"="&B190,E:E,"=Total",F:F,"="&F190),IF(E190="Total",SUMIFS(G:G,A:A,"="&A190,C:C,"="&C190,F:F,"="&F190),IFERROR(VLOOKUP(B190&E190&F190,'Sub Modules'!A:I,6,FALSE),""))) -> 0 | I190: =IF(D190="Total",SUMIFS(I:I,A:A,"="&A190,B:B,"="&B190,E:E,"=Total",F:F,"="&F190),IFERROR(VLOOKUP(B190&E190&F190,'Sub Modules'!A:I,7,FALSE),"")) -> 0 | J190: =IF(OR(E190="Total",D190="Total"),IF(I190="",0,I190)-IF(H190="",0,H190),IFERROR(VLOOKUP(B190&E190&F190,'Sub Modules'!A:I,8,FALSE),"")) -> 0 | K190: 0 | L190: =IFERROR(IF(VLOOKUP(B190&E190&F190,'Sub Modules'!A:I,9,FALSE)=0,"",VLOOKUP(B190&E190&F190,'Sub Modules'!A:I,9,FALSE)),"") -> 
A191: Energy Array | B191: Albion | C191: D1 | D191: Defence 1 | E191: Targon Tracer | F191: Plasma/MA Turret | G191: =IF(OR(E191="Total",D191="Total"),"",IFERROR(VLOOKUP(B191&E191&F191,'Sub Modules'!A:E,5,FALSE),"")) -> 2 | H191: =IF(D191="Total",SUMIFS(H:H,A:A,"="&A191,B:B,"="&B191,E:E,"=Total",F:F,"="&F191),IF(E191="Total",SUMIFS(G:G,A:A,"="&A191,C:C,"="&C191,F:F,"="&F191),IFERROR(VLOOKUP(B191&E191&F191,'Sub Modules'!A:I,6,FALSE),""))) -> 0 | I191: =IF(D191="Total",SUMIFS(I:I,A:A,"="&A191,B:B,"="&B191,E:E,"=Total",F:F,"="&F191),IFERROR(VLOOKUP(B191&E191&F191,'Sub Modules'!A:I,7,FALSE),"")) -> 0 | J191: =IF(OR(E191="Total",D191="Total"),IF(I191="",0,I191)-IF(H191="",0,H191),IFERROR(VLOOKUP(B191&E191&F191,'Sub Modules'!A:I,8,FALSE),"")) -> 0 | K191: 0 | L191: =IFERROR(IF(VLOOKUP(B191&E191&F191,'Sub Modules'!A:I,9,FALSE)=0,"",VLOOKUP(B191&E191&F191,'Sub Modules'!A:I,9,FALSE)),"") -> 
A192: Energy Array | B192: Albion | C192: D1 | D192: Defence 1 | E192: Targon Tracer | F192: Reinforced Metal Plating | G192: =IF(OR(E192="Total",D192="Total"),"",IFERROR(VLOOKUP(B192&E192&F192,'Sub Modules'!A:E,5,FALSE),"")) -> 218 | H192: =IF(D192="Total",SUMIFS(H:H,A:A,"="&A192,B:B,"="&B192,E:E,"=Total",F:F,"="&F192),IF(E192="Total",SUMIFS(G:G,A:A,"="&A192,C:C,"="&C192,F:F,"="&F192),IFERROR(VLOOKUP(B192&E192&F192,'Sub Modules'!A:I,6,FALSE),""))) -> 0 | I192: =IF(D192="Total",SUMIFS(I:I,A:A,"="&A192,B:B,"="&B192,E:E,"=Total",F:F,"="&F192),IFERROR(VLOOKUP(B192&E192&F192,'Sub Modules'!A:I,7,FALSE),"")) -> 0 | J192: =IF(OR(E192="Total",D192="Total"),IF(I192="",0,I192)-IF(H192="",0,H192),IFERROR(VLOOKUP(B192&E192&F192,'Sub Modules'!A:I,8,FALSE),"")) -> 0 | K192: 0 | L192: =IFERROR(IF(VLOOKUP(B192&E192&F192,'Sub Modules'!A:I,9,FALSE)=0,"",VLOOKUP(B192&E192&F192,'Sub Modules'!A:I,9,FALSE)),"") -> 
A193: Energy Array | B193: Albion | C193: D1 | D193: Defence 1 | E193: Targon Tracer | F193: Energy Cells | G193: =IF(OR(E193="Total",D193="Total"),"",IFERROR(VLOOKUP(B193&E193&F193,'Sub Modules'!A:E,5,FALSE),"")) -> 440 | H193: =IF(D193="Total",SUMIFS(H:H,A:A,"="&A193,B:B,"="&B193,E:E,"=Total",F:F,"="&F193),IF(E193="Total",SUMIFS(G:G,A:A,"="&A193,C:C,"="&C193,F:F,"="&F193),IFERROR(VLOOKUP(B193&E193&F193,'Sub Modules'!A:I,6,FALSE),""))) -> 0 | I193: =IF(D193="Total",SUMIFS(I:I,A:A,"="&A193,B:B,"="&B193,E:E,"=Total",F:F,"="&F193),IFERROR(VLOOKUP(B193&E193&F193,'Sub Modules'!A:I,7,FALSE),"")) -> 0 | J193: =IF(OR(E193="Total",D193="Total"),IF(I193="",0,I193)-IF(H193="",0,H193),IFERROR(VLOOKUP(B193&E193&F193,'Sub Modules'!A:I,8,FALSE),"")) -> 0 | K193: 0 | L193: =IFERROR(IF(VLOOKUP(B193&E193&F193,'Sub Modules'!A:I,9,FALSE)=0,"",VLOOKUP(B193&E193&F193,'Sub Modules'!A:I,9,FALSE)),"") -> 
A194: Energy Array | B194: Albion | C194: D1 | D194: Defence 1 | E194: Targon Tracer | F194: Force Field Projector | G194: =IF(OR(E194="Total",D194="Total"),"",IFERROR(VLOOKUP(B194&E194&F194,'Sub Modules'!A:E,5,FALSE),"")) -> 3 | H194: =IF(D194="Total",SUMIFS(H:H,A:A,"="&A194,B:B,"="&B194,E:E,"=Total",F:F,"="&F194),IF(E194="Total",SUMIFS(G:G,A:A,"="&A194,C:C,"="&C194,F:F,"="&F194),IFERROR(VLOOKUP(B194&E194&F194,'Sub Modules'!A:I,6,FALSE),""))) -> 0 | I194: =IF(D194="Total",SUMIFS(I:I,A:A,"="&A194,B:B,"="&B194,E:E,"=Total",F:F,"="&F194),IFERROR(VLOOKUP(B194&E194&F194,'Sub Modules'!A:I,7,FALSE),"")) -> 0 | J194: =IF(OR(E194="Total",D194="Total"),IF(I194="",0,I194)-IF(H194="",0,H194),IFERROR(VLOOKUP(B194&E194&F194,'Sub Modules'!A:I,8,FALSE),"")) -> 0 | K194: =IF(AND(D194<>"Total",E194<>"Total"),IFERROR(IF(H194>0,INT((SUMIFS(J:J,A:A,"=" & A194,C:C,"=" & C194,E:E,"<>Total",E:E,"<>")/100)*H194),I194)+H194,""),"") -> 0 | L194: =IFERROR(IF(VLOOKUP(B194&E194&F194,'Sub Modules'!A:I,9,FALSE)=0,"",VLOOKUP(B194&E194&F194,'Sub Modules'!A:I,9,FALSE)),"") -> 
A195: Energy Array | B195: Albion | C195: D1 | D195: Defence 1 | E195: Targon Tracer | F195: Fusion Reactors | G195: =IF(OR(E195="Total",D195="Total"),"",IFERROR(VLOOKUP(B195&E195&F195,'Sub Modules'!A:E,5,FALSE),"")) -> 44 | H195: =IF(D195="Total",SUMIFS(H:H,A:A,"="&A195,B:B,"="&B195,E:E,"=Total",F:F,"="&F195),IF(E195="Total",SUMIFS(G:G,A:A,"="&A195,C:C,"="&C195,F:F,"="&F195),IFERROR(VLOOKUP(B195&E195&F195,'Sub Modules'!A:I,6,FALSE),""))) -> 0 | I195: =IF(D195="Total",SUMIFS(I:I,A:A,"="&A195,B:B,"="&B195,E:E,"=Total",F:F,"="&F195),IFERROR(VLOOKUP(B195&E195&F195,'Sub Modules'!A:I,7,FALSE),"")) -> 0 | J195: =IF(OR(E195="Total",D195="Total"),IF(I195="",0,I195)-IF(H195="",0,H195),IFERROR(VLOOKUP(B195&E195&F195,'Sub Modules'!A:I,8,FALSE),"")) -> 0 | K195: 0 | L195: =IFERROR(IF(VLOOKUP(B195&E195&F195,'Sub Modules'!A:I,9,FALSE)=0,"",VLOOKUP(B195&E195&F195,'Sub Modules'!A:I,9,FALSE)),"") -> 
A196: Energy Array | B196: Albion | C196: D1 | D196: Defence 1 | E196: Targon Tracer | F196: HIT/MA Turret | G196: =IF(OR(E196="Total",D196="Total"),"",IFERROR(VLOOKUP(B196&E196&F196,'Sub Modules'!A:E,5,FALSE),"")) -> 8 | H196: =IF(D196="Total",SUMIFS(H:H,A:A,"="&A196,B:B,"="&B196,E:E,"=Total",F:F,"="&F196),IF(E196="Total",SUMIFS(G:G,A:A,"="&A196,C:C,"="&C196,F:F,"="&F196),IFERROR(VLOOKUP(B196&E196&F196,'Sub Modules'!A:I,6,FALSE),""))) -> 0 | I196: =IF(D196="Total",SUMIFS(I:I,A:A,"="&A196,B:B,"="&B196,E:E,"=Total",F:F,"="&F196),IFERROR(VLOOKUP(B196&E196&F196,'Sub Modules'!A:I,7,FALSE),"")) -> 0 | J196: =IF(OR(E196="Total",D196="Total"),IF(I196="",0,I196)-IF(H196="",0,H196),IFERROR(VLOOKUP(B196&E196&F196,'Sub Modules'!A:I,8,FALSE),"")) -> 0 | K196: 0 | L196: =IFERROR(IF(VLOOKUP(B196&E196&F196,'Sub Modules'!A:I,9,FALSE)=0,"",VLOOKUP(B196&E196&F196,'Sub Modules'!A:I,9,FALSE)),"") -> 
A197: Energy Array | B197: Albion | C197: D1 | D197: Defence 1 | E197: Targon Tracer | F197: Plasma/MA Turret | G197: =IF(OR(E197="Total",D197="Total"),"",IFERROR(VLOOKUP(B197&E197&F197,'Sub Modules'!A:E,5,FALSE),"")) -> 2 | H197: =IF(D197="Total",SUMIFS(H:H,A:A,"="&A197,B:B,"="&B197,E:E,"=Total",F:F,"="&F197),IF(E197="Total",SUMIFS(G:G,A:A,"="&A197,C:C,"="&C197,F:F,"="&F197),IFERROR(VLOOKUP(B197&E197&F197,'Sub Modules'!A:I,6,FALSE),""))) -> 0 | I197: =IF(D197="Total",SUMIFS(I:I,A:A,"="&A197,B:B,"="&B197,E:E,"=Total",F:F,"="&F197),IFERROR(VLOOKUP(B197&E197&F197,'Sub Modules'!A:I,7,FALSE),"")) -> 0 | J197: =IF(OR(E197="Total",D197="Total"),IF(I197="",0,I197)-IF(H197="",0,H197),IFERROR(VLOOKUP(B197&E197&F197,'Sub Modules'!A:I,8,FALSE),"")) -> 0 | K197: 0 | L197: =IFERROR(IF(VLOOKUP(B197&E197&F197,'Sub Modules'!A:I,9,FALSE)=0,"",VLOOKUP(B197&E197&F197,'Sub Modules'!A:I,9,FALSE)),"") -> 
A198: Energy Array | B198: Albion | C198: D1 | D198: Defence 1 | E198: Targon Tracer | F198: Reinforced Metal Plating | G198: =IF(OR(E198="Total",D198="Total"),"",IFERROR(VLOOKUP(B198&E198&F198,'Sub Modules'!A:E,5,FALSE),"")) -> 218 | H198: =IF(D198="Total",SUMIFS(H:H,A:A,"="&A198,B:B,"="&B198,E:E,"=Total",F:F,"="&F198),IF(E198="Total",SUMIFS(G:G,A:A,"="&A198,C:C,"="&C198,F:F,"="&F198),IFERROR(VLOOKUP(B198&E198&F198,'Sub Modules'!A:I,6,FALSE),""))) -> 0 | I198: =IF(D198="Total",SUMIFS(I:I,A:A,"="&A198,B:B,"="&B198,E:E,"=Total",F:F,"="&F198),IFERROR(VLOOKUP(B198&E198&F198,'Sub Modules'!A:I,7,FALSE),"")) -> 0 | J198: =IF(OR(E198="Total",D198="Total"),IF(I198="",0,I198)-IF(H198="",0,H198),IFERROR(VLOOKUP(B198&E198&F198,'Sub Modules'!A:I,8,FALSE),"")) -> 0 | K198: 0 | L198: =IFERROR(IF(VLOOKUP(B198&E198&F198,'Sub Modules'!A:I,9,FALSE)=0,"",VLOOKUP(B198&E198&F198,'Sub Modules'!A:I,9,FALSE)),"") -> 
A199: Energy Array | B199: Albion | C199: D2 | D199: Defence 2 | E199: Targon Tracer | F199: Energy Cells | G199: =IF(OR(E199="Total",D199="Total"),"",IFERROR(VLOOKUP(B199&E199&F199,'Sub Modules'!A:E,5,FALSE),"")) -> 440 | H199: =IF(D199="Total",SUMIFS(H:H,A:A,"="&A199,B:B,"="&B199,E:E,"=Total",F:F,"="&F199),IF(E199="Total",SUMIFS(G:G,A:A,"="&A199,C:C,"="&C199,F:F,"="&F199),IFERROR(VLOOKUP(B199&E199&F199,'Sub Modules'!A:I,6,FALSE),""))) -> 0 | I199: =IF(D199="Total",SUMIFS(I:I,A:A,"="&A199,B:B,"="&B199,E:E,"=Total",F:F,"="&F199),IFERROR(VLOOKUP(B199&E199&F199,'Sub Modules'!A:I,7,FALSE),"")) -> 0 | J199: =IF(OR(E199="Total",D199="Total"),IF(I199="",0,I199)-IF(H199="",0,H199),IFERROR(VLOOKUP(B199&E199&F199,'Sub Modules'!A:I,8,FALSE),"")) -> 0 | K199: 0 | L199: =IFERROR(IF(VLOOKUP(B199&E199&F199,'Sub Modules'!A:I,9,FALSE)=0,"",VLOOKUP(B199&E199&F199,'Sub Modules'!A:I,9,FALSE)),"") -> 
A200: Energy Array | B200: Albion | C200: D2 | D200: Defence 2 | E200: Targon Tracer | F200: Force Field Projector | G200: =IF(OR(E200="Total",D200="Total"),"",IFERROR(VLOOKUP(B200&E200&F200,'Sub Modules'!A:E,5,FALSE),"")) -> 3 | H200: =IF(D200="Total",SUMIFS(H:H,A:A,"="&A200,B:B,"="&B200,E:E,"=Total",F:F,"="&F200),IF(E200="Total",SUMIFS(G:G,A:A,"="&A200,C:C,"="&C200,F:F,"="&F200),IFERROR(VLOOKUP(B200&E200&F200,'Sub Modules'!A:I,6,FALSE),""))) -> 0 | I200: =IF(D200="Total",SUMIFS(I:I,A:A,"="&A200,B:B,"="&B200,E:E,"=Total",F:F,"="&F200),IFERROR(VLOOKUP(B200&E200&F200,'Sub Modules'!A:I,7,FALSE),"")) -> 0 | J200: =IF(OR(E200="Total",D200="Total"),IF(I200="",0,I200)-IF(H200="",0,H200),IFERROR(VLOOKUP(B200&E200&F200,'Sub Modules'!A:I,8,FALSE),"")) -> 0 | K200: 0 | L200: =IFERROR(IF(VLOOKUP(B200&E200&F200,'Sub Modules'!A:I,9,FALSE)=0,"",VLOOKUP(B200&E200&F200,'Sub Modules'!A:I,9,FALSE)),"") -> 
... 2279 more rows

Sheet Sub Modules
A1: Search | B1: ProdLine | C1: Name | D1: Recource | E1: Amount | F1: Production | G1: Secondary | H1: Add | I1: Storage
A2: =B2&C2&D2 -> AlbionURV LauncherEnergy Cells | B2: Albion | C2: URV Launcher | D2: Energy Cells | E2: 114
A3: =B3&C3&D3 -> AlbionURV LauncherFusion Reactors | B3: Albion | C3: URV Launcher | D3: Fusion Reactors | E3: 12
A4: AlbionURV LauncherReinforced Metal Plating | B4: Albion | C4: URV Launcher | D4: Reinforced Metal Plating | E4: 56
A5: AlbionZoltek BridgeEnergy Cells | B5: Albion | C5: Zoltek Bridge | D5: Energy Cells | E5: 242 | H5: 3
A6: AlbionZoltek BridgeForce Field Projector | B6: Albion | C6: Zoltek Bridge | D6: Force Field Projector | E6: 1
A7: AlbionZoltek BridgeFusion Reactors | B7: Albion | C7: Zoltek Bridge | D7: Fusion Reactors | E7: 18
A8: AlbionZoltek BridgeReinforced Metal Plating | B8: Albion | C8: Zoltek Bridge | D8: Reinforced Metal Plating | E8: 86
A9: AlbionTesla Duo-ChargerEnergy Cells | B9: Albion | C9: Tesla Duo-Charger | D9: Energy Cells | E9: 290 | I9: 320000
A10: AlbionTesla Duo-ChargerFusion Reactors | B10: Albion | C10: Tesla Duo-Charger | D10: Fusion Reactors | E10: 22
A11: AlbionTesla Duo-ChargerHIT/MA Turret | B11: Albion | C11: Tesla Duo-Charger | D11: HIT/MA Turret | E11: 8
A12: AlbionTesla Duo-ChargerForce Field Projector | B12: Albion | C12: Tesla Duo-Charger | D12: Force Field Projector | E12: 1
A13: AlbionTesla Duo-ChargerReinforced Metal Plating | B13: Albion | C13: Tesla Duo-Charger | D13: Reinforced Metal Plating | E13: 108
A14: AlbionCommand RelayEnergy Cells | B14: Albion | C14: Command Relay | D14: Energy Cells | E14: 652
A15: AlbionCommand RelayForce Field Projector | B15: Albion | C15: Command Relay | D15: Force Field Projector | E15: 3
A16: AlbionCommand RelayFusion Reactors | B16: Albion | C16: Command Relay | D16: Fusion Reactors | E16: 48
A17: AlbionCommand RelayHIT/MA Turret | B17: Albion | C17: Command Relay | D17: HIT/MA Turret | E17: 4
A18: AlbionCommand RelayPlasma/MA Turret | B18: Albion | C18: Command Relay | D18: Plasma/MA Turret | E18: 2
A19: AlbionCommand RelayReinforced Metal Plating | B19: Albion | C19: Command Relay | D19: Reinforced Metal Plating | E19: 240
A20: AlbionCommand RelayV Launcher | B20: Albion | C20: Command Relay | D20: V Launcher | E20: 1
A21: AlbionTargon TracerEnergy Cells | B21: Albion | C21: Targon Tracer | D21: Energy Cells | E21: 440
A22: AlbionTargon TracerForce Field Projector | B22: Albion | C22: Targon Tracer | D22: Force Field Projector | E22: 3
A23: AlbionTargon TracerFusion Reactors | B23: Albion | C23: Targon Tracer | D23: Fusion Reactors | E23: 44
A24: AlbionTargon TracerHIT/MA Turret | B24: Albion | C24: Targon Tracer | D24: HIT/MA Turret | E24: 8
A25: AlbionTargon TracerPlasma/MA Turret | B25: Albion | C25: Targon Tracer | D25: Plasma/MA Turret | E25: 2
A26: AlbionTargon TracerReinforced Metal Plating | B26: Albion | C26: Targon Tracer | D26: Reinforced Metal Plating | E26: 218
A27: AlbionE-Cell FabBio-Optic Wiring | B27: Albion | C27: E-Cell Fab | D27: Bio-Optic Wiring | E27: 646
A28: AlbionE-Cell FabEnergy Cells | B28: Albion | C28: E-Cell Fab | D28: Energy Cells | E28: 714 | F28: 7891
A29: AlbionE-Cell FabFood Rations | B29: Albion | C29: E-Cell Fab | D29: Food Rations | G29: -48 | H29: 15
A30: AlbionE-Cell FabForce Field Projector | B30: Albion | C30: E-Cell Fab | D30: Force Field Projector | E30: 1
A31: AlbionE-Cell FabFusion Reactors | B31: Albion | C31: E-Cell Fab | D31: Fusion Reactors | E31: 90
A32: AlbionE-Cell FabHIT/MA Turret | B32: Albion | C32: E-Cell Fab | D32: HIT/MA Turret | E32: 5
A33: AlbionE-Cell FabPlasma/MA Turret | B33: Albion | C33: E-Cell Fab | D33: Plasma/MA Turret | E33: 2
A34: AlbionE-Cell FabReinforced Metal Plating | B34: Albion | C34: E-Cell Fab | D34: Reinforced Metal Plating | E34: 487
A35: AlbionContainer StorageReinforced Metal Plating | B35: Albion | C35: Container Storage | D35: Reinforced Metal Plating | E35: 70 | I35: 320000
A36: AlbionContainer StorageEnergy Cells | B36: Albion | C36: Container Storage | D36: Energy Cells | E36: 170
A37: AlbionContainer StorageFusion Reactors | B37: Albion | C37: Container Storage | D37: Fusion Reactors | E37: 14
A38: AlbionContainer StorageHIT/MA Turret | B38: Albion | C38: Container Storage | D38: HIT/MA Turret | E38: 7
A39: AlbionContainer StoragePlasma/MA Turret | B39: Albion | C39: Container Storage | D39: Plasma/MA Turret | E39: 5
A40: =B40&C40&D40 -> AlbionContainer StorageForce Field Projector | B40: Albion | C40: Container Storage | D40: Force Field Projector | E40: 1
A41: AlbionBulk Tube StackEnergy Cells | B41: Albion | C41: Bulk Tube Stack | D41: Energy Cells | E41: 244 | I41: 800000
A42: AlbionBulk Tube StackReinforced Metal Plating | B42: Albion | C42: Bulk Tube Stack | D42: Reinforced Metal Plating | E42: 90
A43: AlbionBulk Tube StackFusion Reactors | B43: Albion | C43: Bulk Tube Stack | D43: Fusion Reactors | E43: 18
A44: =B44&C44&D44 -> AlbionDuo-SphereEnergy Cells | B44: Albion | C44: Duo-Sphere | D44: Energy Cells | E44: 357 | I44: 800000
A45: AlbionDuo-SphereReinforced Metal Plating | B45: Albion | C45: Duo-Sphere | D45: Reinforced Metal Plating | E45: 119
A46: AlbionDuo-SphereFusion Reactors | B46: Albion | C46: Duo-Sphere | D46: Fusion Reactors | E46: 24
A47: =B47&C47&D47 -> AlbionLogistics DockHIT/MA Turret | B47: Albion | C47: Logistics Dock | D47: HIT/MA Turret | E47: 9
A48: =B48&C48&D48 -> AlbionCondenser StillHIT/MA Turret | B48: Albion | C48: Condenser Still | D48: HIT/MA Turret | E48: 3
A49: =B49&C49&D49 -> AlbionCondenser StillForce Field Projector | B49: Albion | C49: Condenser Still | D49: Force Field Projector | E49: 1
A50: =B50&C50&D50 -> AlbionLiquid SpheroidEnergy Cells | B50: Albion | C50: Liquid Spheroid | D50: Energy Cells | E50: 319 | I50: 800000
A51: AlbionLiquid SpheroidReinforced Metal Plating | B51: Albion | C51: Liquid Spheroid | D51: Reinforced Metal Plating | E51: 106
A52: AlbionLiquid SpheroidFusion Reactors | B52: Albion | C52: Liquid Spheroid | D52: Fusion Reactors | E52: 22
A53: =B53&C53&D53 -> AlbionZoltek ReactorPlasma/MA Turret | B53: Albion | C53: Zoltek Reactor | D53: Plasma/MA Turret | E53: 7 | H53: 6
A54: =B54&C54&D54 -> AlbionZoltek ReactorHIT/MA Turret | B54: Albion | C54: Zoltek Reactor | D54: HIT/MA Turret | E54: 8
A55: AlbionZoltek ReactorForce Field Projector | B55: Albion | C55: Zoltek Reactor | D55: Force Field Projector | E55: 3
A56: =B56&C56&D56 -> AlbionStorage BridgeEnergy Cells | B56: Albion | C56: Storage Bridge | D56: Energy Cells | E56: 80
A57: =B57&C57&D57 -> AlbionStorage BridgeReinforced Metal Plating | B57: Albion | C57: Storage Bridge | D57: Reinforced Metal Plating | E57: 24
A58: AlbionStorage BridgeFusion Reactors | B58: Albion | C58: Storage Bridge | D58: Fusion Reactors | E58: 6
A59: =B59&C59&D59 -> AlbionArmoury LinkEnergy Cells | B59: Albion | C59: Armoury Link | D59: Energy Cells | E59: 10
A60: =B60&C60&D60 -> AlbionIce RefineryEnergy Cells | B60: Albion | C60: Ice Refinery | D60: Energy Cells | E60: 1040
A61: AlbionIce RefineryReinforced Metal Plating | B61: Albion | C61: Ice Refinery | D61: Reinforced Metal Plating | E61: 454
A62: AlbionIce RefineryBio-Optic Wiring | B62: Albion | C62: Ice Refinery | D62: Bio-Optic Wiring | E62: 280
A63: AlbionIce RefineryFusion Reactors | B63: Albion | C63: Ice Refinery | D63: Fusion Reactors | E63: 88
A64: =B64&C64&D64 -> AlbionLiquor StillEnergy Cells | B64: Albion | C64: Liquor Still | D64: Energy Cells | E64: 1548
A65: AlbionLiquor StillReinforced Metal Plating | B65: Albion | C65: Liquor Still | D65: Reinforced Metal Plating | E65: 910
A66: AlbionLiquor StillBio-Optic Wiring | B66: Albion | C66: Liquor Still | D66: Bio-Optic Wiring | E66: 572
A67: AlbionLiquor StillFusion Reactors | B67: Albion | C67: Liquor Still | D67: Fusion Reactors | E67: 174
A68: AlbionLiquor StillHIT/MA Turret | B68: Albion | C68: Liquor Still | D68: HIT/MA Turret | E68: 16
A69: AlbionLiquor StillForce Field Projector | B69: Albion | C69: Liquor Still | D69: Force Field Projector | E69: 8
A70: AlbionLiquor StillPlasma/MA Turret | B70: Albion | C70: Liquor Still | D70: Plasma/MA Turret | E70: 8
A71: =B71&C71&D71 -> AlbionSteel RefineryEnergy Cells | B71: Albion | C71: Steel Refinery | D71: Energy Cells | E71: 0 | F71: -2400
A72: AlbionSteel RefineryReinforced Metal Plating | B72: Albion | C72: Steel Refinery | D72: Reinforced Metal Plating | E72: 0
A73: AlbionSteel RefineryBio-Optic Wiring | B73: Albion | C73: Steel Refinery | D73: Bio-Optic Wiring | E73: 0
A74: AlbionSteel RefineryFusion Reactors | B74: Albion | C74: Steel Refinery | D74: Fusion Reactors | E74: 0
A75: AlbionSteel RefineryHIT/MA Turret | B75: Albion | C75: Steel Refinery | D75: HIT/MA Turret | E75: 0
A76: AlbionSteel RefineryForce Field Projector | B76: Albion | C76: Steel Refinery | D76: Force Field Projector | E76: 0
A77: AlbionSteel RefineryPlasma/MA Turret | B77: Albion | C77: Steel Refinery | D77: Plasma/MA Turret | E77: 0
A78: AlbionSteel RefineryV Launcher | B78: Albion | C78: Steel Refinery | D78: V Launcher | E78: 0
A79: =B79&C79&D79 -> AlbionSteel RefineryFood Rations | B79: Albion | C79: Steel Refinery | D79: Food Rations | F79: -1440
A80: AlbionSteel RefineryOre | B80: Albion | C80: Steel Refinery | D80: Ore | F80: -2400
A81: AlbionSteel RefineryNarcotics | B81: Albion | C81: Steel Refinery | D81: Narcotics | G81: -120
A82: AlbionSteel RefinerySpacefuel | B82: Albion | C82: Steel Refinery | D82: Spacefuel | G82: -12
A83: =B83&C83&D83 -> AlbionSteel RefineryRefined Metals | B83: Albion | C83: Steel Refinery | D83: Refined Metals | F83: 1200
A84: AlbionCrystal CutteryEnergy Cells | B84: Albion | C84: Crystal Cuttery | D84: Energy Cells | E84: 1498 | F84: -1920
A85: =B85&C85&D85 -> AlbionCrystal CutteryReinforced Metal Plating | B85: Albion | C85: Crystal Cuttery | D85: Reinforced Metal Plating | E85: 886
A86: AlbionCrystal CutteryBio-Optic Wiring | B86: Albion | C86: Crystal Cuttery | D86: Bio-Optic Wiring | E86: 658
A87: AlbionCrystal CutteryFusion Reactors | B87: Albion | C87: Crystal Cuttery | D87: Fusion Reactors | E87: 220
A88: AlbionCrystal CutteryHIT/MA Turret | B88: Albion | C88: Crystal Cuttery | D88: HIT/MA Turret | E88: 3
A89: AlbionCrystal CutteryForce Field Projector | B89: Albion | C89: Crystal Cuttery | D89: Force Field Projector | E89: 1
A90: AlbionCrystal CutteryPlasma/MA Turret | B90: Albion | C90: Crystal Cuttery | D90: Plasma/MA Turret | E90: 2
A91: AlbionCrystal CutteryFood Rations | B91: Albion | C91: Crystal Cuttery | D91: Food Rations | F91: -1440
A92: AlbionCrystal CutteryCrystals | B92: Albion | C92: Crystal Cuttery | D92: Crystals | F92: -2400
A93: AlbionCrystal CutteryNarcotics | B93: Albion | C93: Crystal Cuttery | D93: Narcotics | G93: -120 | H93: 15
A94: AlbionCrystal CutterySpacefuel | B94: Albion | C94: Crystal Cuttery | D94: Spacefuel | G94: -24
A95: =B95&C95&D95 -> AlbionCrystal CutteryWater | B95: Albion | C95: Crystal Cuttery | D95: Water | F95: -960
A96: AlbionCrystal CutteryCut Crystals | B96: Albion | C96: Crystal Cuttery | D96: Cut Crystals | F96: 2600
A97: AlbionBureau SecurityEnergy Cells | B97: Albion | C97: Bureau Security | D97: Energy Cells | E97: 55 | H97: 4
A98: =B98&C98&D98 -> AlbionBureau SecurityReinforced Metal Plating | B98: Albion | C98: Bureau Security | D98: Reinforced Metal Plating | E98: 3
A99: AlbionBureau SecurityBio-Optic Wiring | B99: Albion | C99: Bureau Security | D99: Bio-Optic Wiring | E99: 48
A100: AlbionBureau SecurityFusion Reactors | B100: Albion | C100: Bureau Security | D100: Fusion Reactors | E100: 3
A101: AlbionBureau SecurityHIT/MA Turret | B101: Albion | C101: Bureau Security | D101: HIT/MA Turret | E101: 7
A102: AlbionBureau SecurityForce Field Projector | B102: Albion | C102: Bureau Security | D102: Force Field Projector | E102: 6
A103: AlbionBureau SecurityPlasma/MA Turret | B103: Albion | C103: Bureau Security | D103: Plasma/MA Turret | E103: 5
A104: AlbionBureau SecurityV Launcher | B104: Albion | C104: Bureau Security | D104: V Launcher | E104: 1
A105: =B105&C105&D105 -> AlbionCube PlantEnergy Cells | B105: Albion | C105: Cube Plant | D105: Energy Cells | E105: 1454 | F105: -1920
A106: =B106&C106&D106 -> AlbionCube PlantReinforced Metal Plating | B106: Albion | C106: Cube Plant | D106: Reinforced Metal Plating | E106: 860
A107: AlbionCube PlantBio-Optic Wiring | B107: Albion | C107: Cube Plant | D107: Bio-Optic Wiring | E107: 908
A108: AlbionCube PlantFusion Reactors | B108: Albion | C108: Cube Plant | D108: Fusion Reactors | E108: 240
A109: AlbionCube PlantHIT/MA Turret | B109: Albion | C109: Cube Plant | D109: HIT/MA Turret | E109: 4
A110: AlbionCube PlantForce Field Projector | B110: Albion | C110: Cube Plant | D110: Force Field Projector | E110: 1
A111: AlbionCube PlantNividium Cubes | B111: Albion | C111: Cube Plant | D111: Nividium Cubes | F111: 2628
A112: AlbionCube PlantFood Rations | B112: Albion | C112: Cube Plant | D112: Food Rations | F112: -1440
A113: AlbionCube PlantNividium | B113: Albion | C113: Cube Plant | D113: Nividium | F113: -2400
A114: AlbionCube PlantNarcotics | B114: Albion | C114: Cube Plant | D114: Narcotics | G114: -120 | H114: 15
A115: AlbionCube PlantSpacefuel | B115: Albion | C115: Cube Plant | D115: Spacefuel | G115: -24

Sheet ModuleTranslation
A1: Shown Name | B1: Script Name
